Workbook

Sheet Configurações
C1: Modalidades | D1: Aula 1 | E1: Aula 2 | F1: Aula 3 | G1: Aula 4 | H1: Aula 5 | I1: Aula 6 | J1: =C1 -> Modalidades | K1: Aula 1 | M1: Aula 2 | O1: Aula 3 | Q1: Aula 4 | S1: Aula 5 | U1: Aula 6
C2: Natação Adulta | D2: 0 | E2: 1 a 3 | F2: 4 a 5 | G2: 6 a 8 | J2: =C2 -> Natação Adulta | K2: =LEFT(D2,2) -> 0 | L2: =RIGHT(D2,2) -> 0 | M2: =LEFT(E2,2) -> 1 | N2: =RIGHT(E2,2) -> 3 | O2: =LEFT(F2,2) -> 4 | P2: =RIGHT(F2,2) -> 5 | Q2: =LEFT(G2,2) -> 6 | R2: =RIGHT(G2,2) -> 8 | S2: =LEFT(H2,2) ->  | T2: =RIGHT(H2,2) ->  | U2: =LEFT(I2,2) ->  | V2: =RIGHT(I2,2) -> 
C3: Natação Bebê | D3: 0 | E3: 1 a 4 | F3: 5 a 8 | G3: 9 a 12 | H3: 13 a 15 | J3: =C3 -> Natação Bebê | K3: =LEFT(D3,2) -> 0 | L3: =RIGHT(D3,2) -> 0 | M3: =LEFT(E3,2) -> 1 | N3: =RIGHT(E3,2) -> 4 | O3: =LEFT(F3,2) -> 5 | P3: =RIGHT(F3,2) -> 8 | Q3: =LEFT(G3,2) -> 9 | R3: =RIGHT(G3,2) -> 12 | S3: =LEFT(H3,2) -> 13 | T3: =RIGHT(H3,2) -> 15 | U3: =LEFT(I3,2) ->  | V3: =RIGHT(I3,2) -> 
C4: Aprendizagem A | D4: 0 | E4: 1 a 2 | F4: 3 a 4 | G4: 5 a 6 | H4: 7 a 8 | J4: Aprendizagem A | K4: 0 | L4: 0 | M4: 1 | N4: 2 | O4: 3 | P4: 4 | Q4: 5 | R4: 6 | S4: 7 | T4: 8
C5: Aprendizagem B | D5: 0 | E5: 1 a 4 | F5: 5 a 8 | G5: 9 a 12 | H5: 13 a 16 | J5: Aprendizagem B | K5: =LEFT(D5,2) -> 0 | L5: =RIGHT(D5,2) -> 0 | M5: =LEFT(E5,2) -> 1 | N5: =RIGHT(E5,2) -> 4 | O5: =LEFT(F5,2) -> 5 | P5: =RIGHT(F5,2) -> 8 | Q5: =LEFT(G5,2) -> 9 | R5: =RIGHT(G5,2) -> 12 | S5: =LEFT(H5,2) -> 13 | T5: =RIGHT(H5,2) -> 16 | U5: =LEFT(I5,2) ->  | V5: =RIGHT(I5,2) -> 
C6: Adaptação | D6: 0 | E6: 1 a 2 | F6: 3 a 4 | G6: 5 a 6 | H6: 7 a 8 | J6: Adaptação | K6: 0 | L6: 0 | M6: 1 | N6: 2 | O6: 3 | P6: 4 | Q6: 5 | R6: 6 | S6: 7 | T6: 8
C7: Iniciação | D7: 0 | E7: 1 a 3 | F7: 4 a 6 | G7: 7 a 8 | H7: 9 a 10 | J7: Iniciação | K7: 0 | L7: 0 | M7: 1 | N7: 3 | O7: 4 | P7: 6 | Q7: 7 | R7: 8 | S7: =LEFT(H7,2) -> 9 | T7: =RIGHT(H7,2) -> 10 | U7: =LEFT(I7,2) ->  | V7: =RIGHT(I7,2) ->  | AC7: Valor de Registro | AD7: 17.66
C8: Hidroginástica | D8: 0 | E8: 1 a 7 | F8: 8 a 15 | G8: 16 a 22 | H8: 23 a 30 | J8: Hidroginástica | K8: 0 | L8: 0 | M8: 1 | N8: 7 | O8: 8 | P8: 15 | Q8: 16 | R8: 22 | S8: 23 | T8: 30
C9: Sem Uso | J9: Sem Uso | U9: =LEFT(I9,2) ->  | V9: =RIGHT(I9,2) -> 
A11: Modalidade | B11: Nível | C11: Concatenado | D11: Aula 1 | E11: Aula 2 | F11: Aula 3 | G11: Aula 4 | H11: Aula 5 | I11: Aula 6
AA12: Adic_Nat.Ad_01 | AB12: Aula 1 | AC12: 17.66 | AD12: =AC12-$AD$7 -> 0 | AF12: Adic_Nat.Inf_01 | AG12: Aula 1 | AH12: 17.655 | AI12: =AH12-$AD$7 -> -0.005 | AK12: Adic_Hidr_01 | AL12: Aula 1 | AM12: 17.655 | AN12: =AM12-$AD$7 -> -0.005
A13: =C2 -> Natação Adulta | B13: =C50 -> Prof. Especial | C13: =$A$13&B13 -> Natação AdultaProf. Especial | D13: 17.655 | E13: 27.1887 | F13: 32.62644 | G13: 38.06418 | H13: 0 | AA13: Adic_Nat.Ad_02 | AB13: Aula 2 | AC13: 19.76 | AD13: =AC13-$AD$7 -> 2.1 | AF13: Adic_Nat.Inf_02 | AG13: Aula 2 | AH13: 19.76 | AI13: =AH13-$AD$7 -> 2.1 | AK13: Adic_Hidr_02 | AL13: Aula 2 | AM13: 23.68 | AN13: =AM13-$AD$7 -> 6.02
B14: =C51 -> Prof. Nível A | C14: =$A$13&B14 -> Natação AdultaProf. Nível A | D14: 17.655 | E14: 25.27019 | F14: 30.31952 | G14: 35.38062 | H14: 0 | AA14: Adic_Nat.Ad_03 | AB14: Aula 3 | AC14: 21.97 | AD14: 4.31 | AF14: Adic_Nat.Inf_03 | AG14: Aula 3 | AH14: 20.79 | AI14: 3.13 | AK14: Adic_Hidr_03 | AL14: Aula 3 | AM14: 26.08 | AN14: 8.42
B15: Prof. Nível B | C15: =$A$13&B15 -> Natação AdultaProf. Nível B | D15: 17.66 | E15: 21.97 | F15: 26.08 | G15: 29.92 | H15: 0 | AA15: Adic_Nat.Ad_04 | AB15: Aula 4 | AC15: 23.68 | AD15: 6.02 | AF15: Adic_Nat.Inf_04 | AG15: Aula 4 | AH15: 21.97 | AI15: 4.31 | AK15: Adic_Hidr_04 | AL15: Aula 4 | AM15: 27.65 | AN15: 9.99
B16: Prof. Nível C | C16: =$A$13&B16 -> Natação AdultaProf. Nível C | D16: 17.66 | E16: 19.76 | F16: 23.68 | G16: 27.65 | H16: 0 | AA16: Adic_Nat.Ad_05 | AB16: Aula 5 | AC16: 25.27 | AD16: 7.61 | AF16: Adic_Nat.Inf_05 | AG16: Aula 5 | AH16: 23.33 | AI16: 5.67 | AK16: Adic_Hidr_05 | AL16: Aula 5 | AM16: 30.2 | AN16: 12.54
B17: Estagiário | C17: =$A$13&B17 -> Natação AdultaEstagiário | D17: 17.655 | E17: 17.655 | F17: 17.655 | G17: 17.655 | H17: 0 | AA17: Adic_Nat.Ad_06 | AB17: Aula 6 | AC17: 26.08 | AD17: 8.42 | AF17: Adic_Nat.Inf_06 | AG17: Aula 6 | AH17: 23.55 | AI17: 5.89 | AK17: Adic_Hidr_06 | AL17: Aula 6 | AM17: 30.31952 | AN17: 12.65952
A18: =C3 -> Natação Bebê | B18: =C50 -> Prof. Especial | C18: =$A$18&B18 -> Natação BebêProf. Especial | D18: 17.655 | E18: 32.62644 | F18: 38.06418 | G18: 43.50192 | H18: 48.93966 | AA18: Adic_Nat.Ad_07 | AB18: Aula 7 | AC18: 27.19 | AD18: 9.53 | AF18: Adic_Nat.Inf_07 | AG18: Aula 7 | AH18: 23.68 | AI18: 6.02 | AK18: Adic_Hidr_07 | AL18: Aula 7 | AM18: 32.62644 | AN18: 14.96644
B19: =C51 -> Prof. Nível A | C19: =$A$18&B19 -> Natação BebêProf. Nível A | D19: 17.655 | E19: 30.31952 | F19: 35.34531 | G19: 40.78305 | H19: 46.22079 | AA19: Adic_Nat.Ad_08 | AB19: Aula 8 | AC19: 27.65 | AD19: 9.99 | AF19: Adic_Nat.Inf_08 | AG19: Aula 8 | AH19: 24.09 | AI19: 6.43 | AK19: Adic_Hidr_08 | AL19: Aula 8 | AM19: 33.42 | AN19: 15.76
B20: Prof. Nível B | C20: Natação BebêProf. Nível B | D20: 17.66 | E20: 26.08 | F20: 28.83 | G20: 31.57 | H20: 34.31 | AA20: Adic_Nat.Ad_09 | AB20: Aula 9 | AC20: 29.92 | AD20: 12.26 | AF20: Adic_Nat.Inf_09 | AG20: Aula 9 | AH20: 24.94 | AI20: 7.28 | AK20: Adic_Hidr_09 | AL20: Aula 9 | AM20: 35.34531 | AN20: 17.68531
B21: Prof. Nível C | C21: Natação BebêProf. Nível C | D21: 17.66 | E21: 23.55 | F21: 26.32 | G21: 29.09 | H21: 31.86 | AA21: Adic_Nat.Ad_10 | AB21: Aula 10 | AC21: 30.32 | AD21: 12.66 | AF21: Adic_Nat.Inf_10 | AG21: Aula 10 | AH21: 25.27019 | AI21: 7.61019 | AK21: Adic_Hidr_10 | AL21: Aula 10 | AM21: 35.68 | AN21: 18.02
B22: Estagiário | C22: Natação BebêEstagiário | D22: 17.655 | E22: 17.655 | F22: 17.655 | G22: 17.655 | H22: 17.655 | AA22: Adic_Nat.Ad_11 | AB22: Aula 11 | AC22: 32.63 | AD22: 14.97 | AF22: Adic_Nat.Inf_11 | AG22: Aula 11 | AH22: 26.08 | AI22: 8.42 | AK22: Adic_Hidr_11 | AL22: Aula 11 | AM22: 38.06418 | AN22: 20.40418
A23: =C4 -> Aprendizagem A | B23: =C50 -> Prof. Especial | C23: =$A$23&B23 -> Aprendizagem AProf. Especial | D23: 17.655 | E23: 27.1887 | F23: 32.62644 | G23: 38.06418 | H23: 41.2699 | AA23: Adic_Nat.Ad_12 | AB23: Aula 12 | AC23: 35.38 | AD23: 17.72 | AF23: Adic_Nat.Inf_12 | AG23: Aula 12 | AH23: 26.32 | AI23: 8.66 | AK23: Adic_Hidr_12 | AL23: Aula 12 | AM23: 38.81 | AN23: 21.15
B24: =C51 -> Prof. Nível A | C24: =$A$23&B24 -> Aprendizagem AProf. Nível A | D24: 17.655 | E24: 25.27019 | F24: 30.31952 | G24: 35.38062 | H24: 39.59 | AA24: Adic_Nat.Ad_13 | AB24: Aula 13 | AC24: 38.06 | AD24: 20.4 | AF24: Adic_Nat.Inf_13 | AG24: Aula 13 | AH24: 26.50604 | AI24: 8.84604 | AK24: Adic_Hidr_13 | AL24: Aula 13 | AM24: 40.78305 | AN24: 23.12305
B25: Prof. Nível B | C25: Aprendizagem AProf. Nível B | D25: 17.66 | E25: 21.97 | F25: 26.08 | G25: 29.92 | H25: 32.64 | AF25: Adic_Nat.Inf_14 | AG25: Aula 14 | AH25: 27.1887 | AI25: 9.5287 | AK25: Adic_Hidr_14 | AL25: Aula 14 | AM25: 41.17 | AN25: 23.51
B26: Prof. Nível C | C26: Aprendizagem AProf. Nível C | D26: 17.66 | E26: 19.76 | F26: 23.68 | G26: 27.65 | H26: 30.86 | AF26: Adic_Nat.Inf_15 | AG26: Aula 15 | AH26: 27.45 | AI26: 9.79 | AK26: Adic_Hidr_15 | AL26: Aula 15 | AM26: 43.50192 | AN26: 25.84192
B27: Estagiário | C27: Aprendizagem AEstagiário | D27: 17.655 | E27: 17.655 | F27: 17.655 | G27: 17.655 | H27: 17.655 | AF27: Adic_Nat.Inf_16 | AG27: Aula 16 | AH27: 27.65 | AI27: 9.99 | AK27: Adic_Hidr_16 | AL27: Aula 16 | AM27: 46.22079 | AN27: 28.56079
A28: =C5 -> Aprendizagem B | B28: =C50 -> Prof. Especial | C28: =$A$28&B28 -> Aprendizagem BProf. Especial | D28: 17.655 | E28: 27.1887 | F28: 32.62644 | G28: 38.06418 | H28: 41.2699 | AF28: Adic_Nat.Inf_17 | AG28: Aula 17 | AH28: 28.55402 | AI28: 10.89402 | AK28: Adic_Hidr_17 | AL28: Aula 17 | AM28: 48.93966 | AN28: 31.27966
B29: =C51 -> Prof. Nível A | C29: =$A$28&B29 -> Aprendizagem BProf. Nível A | D29: 17.655 | E29: 25.27019 | F29: 30.31952 | G29: 35.38062 | H29: 39.59 | AF29: Adic_Nat.Inf_18 | AG29: Aula 18 | AH29: 28.83 | AI29: 11.17
B30: Prof. Nível B | C30: Aprendizagem BProf. Nível B | D30: 17.66 | E30: 21.97 | F30: 26.08 | G30: 29.92 | H30: 32.64 | AF30: Adic_Nat.Inf_19 | AG30: Aula 19 | AH30: 29.09 | AI30: 11.43
B31: Prof. Nível C | C31: Aprendizagem BProf. Nível C | D31: 17.66 | E31: 19.76 | F31: 23.68 | G31: 27.65 | H31: 30.86 | AF31: Adic_Nat.Inf_20 | AG31: Aula 20 | AH31: 29.92 | AI31: 12.26
B32: Estagiário | C32: Aprendizagem BEstagiário | D32: 17.655 | E32: 17.655 | F32: 17.655 | G32: 17.655 | H32: 17.655 | AF32: Adic_Nat.Inf_21 | AG32: Aula 21 | AH32: 30.31952 | AI32: 12.65952
A33: =C6 -> Adaptação | B33: =C50 -> Prof. Especial | C33: =$A$33&B33 -> AdaptaçãoProf. Especial | D33: 17.655 | E33: 28.55402 | F33: 33.99176 | G33: 39.4295 | H33: 42.6288 | AF33: Adic_Nat.Inf_22 | AG33: Aula 22 | AH33: 30.86 | AI33: 13.2
B34: =C51 -> Prof. Nível A | C34: =$A$33&B34 -> AdaptaçãoProf. Nível A | D34: 17.655 | E34: 26.50604 | F34: 31.27289 | G34: 36.71063 | H34: 40.981 | AF34: Adic_Nat.Inf_23 | AG34: Aula 23 | AH34: 30.88 | AI34: 13.22
B35: Prof. Nível B | C35: AdaptaçãoProf. Nível B | D35: 17.66 | E35: 23.33 | F35: 27.45 | G35: 30.88 | H35: 34.09 | AF35: Adic_Nat.Inf_24 | AG35: Aula 24 | AH35: 31.27289 | AI35: 13.61289
B36: Prof. Nível C | C36: AdaptaçãoProf. Nível C | D36: 17.66 | E36: 20.79 | F36: 24.94 | G36: 24.09 | H36: 32.3 | AF36: Adic_Nat.Inf_25 | AG36: Aula 25 | AH36: 31.57 | AI36: 13.91
B37: Estagiário | C37: AdaptaçãoEstagiário | D37: 17.655 | E37: 17.655 | F37: 17.655 | G37: 17.655 | H37: 17.655 | AF37: Adic_Nat.Inf_26 | AG37: Aula 26 | AH37: 31.86 | AI37: 14.2
A38: =C7 -> Iniciação | B38: =C50 -> Prof. Especial | C38: =$A$38&B38 -> IniciaçãoProf. Especial | D38: 17.655 | E38: 28.55402 | F38: 33.99176 | G38: 39.4295 | H38: 42.6288 | AF38: Adic_Nat.Inf_27 | AG38: Aula 27 | AH38: 32.3 | AI38: 14.64
B39: =C51 -> Prof. Nível A | C39: =$A$38&B39 -> IniciaçãoProf. Nível A | D39: 17.655 | E39: 26.50604 | F39: 31.27289 | G39: 36.71063 | H39: 40.981 | AF39: Adic_Nat.Inf_28 | AG39: Aula 28 | AH39: 32.62644 | AI39: 14.96644
B40: Prof. Nível B | C40: IniciaçãoProf. Nível B | D40: 17.66 | E40: 23.33 | F40: 27.45 | G40: 30.88 | H40: 34.09 | AF40: Adic_Nat.Inf_29 | AG40: Aula 29 | AH40: 32.64 | AI40: 14.98
B41: Prof. Nível C | C41: IniciaçãoProf. Nível C | D41: 17.66 | E41: 20.79 | F41: 24.94 | G41: 29.09 | H41: 32.3 | AF41: Adic_Nat.Inf_30 | AG41: Aula 30 | AH41: 33.99176 | AI41: 16.33176
B42: Estagiário | C42: IniciaçãoEstagiário | D42: 17.655 | E42: 17.655 | F42: 17.655 | G42: 17.655 | H42: 17.655 | AF42: Adic_Nat.Inf_31 | AG42: Aula 31 | AH42: 34.09 | AI42: 16.43
A43: =C8 -> Hidroginástica | B43: =C50 -> Prof. Especial | C43: =$A$43&B43 -> HidroginásticaProf. Especial | D43: 17.655 | E43: 32.62644 | F43: 38.06418 | G43: 43.50192 | H43: 48.93966 | AF43: Adic_Nat.Inf_32 | AG43: Aula 32 | AH43: 34.31 | AI43: 16.65
B44: =C51 -> Prof. Nível A | C44: =$A$43&B44 -> HidroginásticaProf. Nível A | D44: 17.655 | E44: 30.31952 | F44: 35.34531 | G44: 40.78305 | H44: 46.22079 | AF44: Adic_Nat.Inf_33 | AG44: Aula 33 | AH44: 35.34531 | AI44: 17.68531
B45: Prof. Nível B | C45: HidroginásticaProf. Nível B | D45: 17.66 | E45: 26.08 | F45: 30.2 | G45: 35.68 | H45: 41.17 | AF45: Adic_Nat.Inf_34 | AG45: Aula 34 | AH45: 35.38062 | AI45: 17.72062
B46: Prof. Nível C | C46: HidroginásticaProf. Nível C | D46: 17.66 | E46: 23.68 | F46: 27.65 | G46: 33.42 | H46: 38.81 | AF46: Adic_Nat.Inf_35 | AG46: Aula 35 | AH46: 36.71063 | AI46: 19.05063
B47: Estagiário | C47: HidroginásticaEstagiário | D47: 17.655 | E47: 17.655 | F47: 17.655 | G47: 17.655 | H47: 17.655 | AF47: Adic_Nat.Inf_36 | AG47: Aula 36 | AH47: 38.06418 | AI47: 20.40418
AF48: Adic_Nat.Inf_37 | AG48: Aula 37 | AH48: 39.4295 | AI48: 21.7695
C49: Níveis | AF49: Adic_Nat.Inf_38 | AG49: Aula 38 | AH49: 39.59 | AI49: 21.93
C50: Prof. Especial | AF50: Adic_Nat.Inf_39 | AG50: Aula 39 | AH50: 40.78305 | AI50: 23.12305
C51: Prof. Nível A | D51: Sandra | AF51: Adic_Nat.Inf_40 | AG51: Aula 40 | AH51: 40.981 | AI51: 23.321
C52: Prof. Nível B | D52: Bruno | AF52: Adic_Nat.Inf_41 | AG52: Aula 41 | AH52: 41.2699 | AI52: 23.6099
C53: Prof. Nível C | AF53: Adic_Nat.Inf_42 | AG53: Aula 42 | AH53: 42.6288 | AI53: 24.9688
C54: Estagiário | AF54: Adic_Nat.Inf_43 | AG54: Aula 43 | AH54: 43.50192 | AI54: 25.84192
AF55: Adic_Nat.Inf_44 | AG55: Aula 44 | AH55: 46.22079 | AI55: 28.56079
AF56: Adic_Nat.Inf_45 | AG56: Aula 45 | AH56: 48.93966 | AI56: 31.27966

Sheet Impostos (hidden)
B2: INSS | H2: IRRF
B3: ALÍQUOTA | C3: FAIXA SALARIAL | F3: PARC DEDUZIR | H3: ALÍQUOTA | I3: FAIXA SALARIAL | K3: PARC DEDUZIR
B4: 0.075 | C4: 0 | D4: 1212 | E4: =D4*B4 -> 90.9 | F4: 0 | H4: 0 | I4: 0 | J4: 1903.98 | K4: 0
B5: 0.09 | C5: =D4+0.01 -> 1212.01 | D5: 2427.35 | E5: =(D5-D4)*B5 -> 109.3815 | F5: 18.18 | H5: 0.075 | I5: =J4+0.01 -> 1903.99 | J5: 2826.65 | K5: 142.8
B6: 0.12 | C6: =D5+0.01 -> 2427.36 | D6: 3641.03 | E6: =(D6-D5)*B6 -> 145.6416 | F6: 91 | H6: 0.15 | I6: =J5+0.01 -> 2826.66 | J6: 3751.05 | K6: 354.8
B7: 0.14 | C7: =D6+0.01 -> 3641.04 | D7: 7087.22 | E7: 828.39 | F7: 163.82 | H7: 0.225 | I7: =J6+0.01 -> 3751.06 | J7: 4664.68 | K7: 636.13
H8: 0.275 | I8: =J7+0.01 -> 4664.69 | J8: 999999.99 | K8: 869.36
H10: DEDUÇÃO POR DEPENDENTE | J10: 189.59

Sheet Bruno Cauê Lang Souza (hidden)
AT1: Valores | AY1: Aulas | BD1: Alunos
B2: Nat. Adulta | C2: Nat. Bebê | D2: Aprend. A | E2: Aprend. B | F2: Adaptação | G2: Iniciação | H2: Hidrogin. | J2: Professor(a) | M2: =AE5 -> Bruno Cauê Lang Souza | X2: Referência | Z2: 2025-07-01 | AE2: Natação Adulta | AF2: Natação Bebê | AG2: Aprendizagem A | AH2: Aprendizagem B | AI2: Adaptação | AJ2: Iniciação | AK2: Hidroginástica | AQ2: =TRANSPOSE(AE2:AK3) -> Natação Adulta | AR2: 184 | AT2: TOT NA | AU2: TOT BB | AV2: TOT IN | AW2: TOT HI | AY2: TOT NA | AZ2: TOT BB | BA2: TOT IN | BB2: TOT HI | BD2: TOT NA | BE2: TOT BB | BF2: TOT IN | BG2: TOT HI
AE3: =B102 -> 184 | AF3: 0 | AG3: 53 | AH3: 65 | AI3: 0 | AJ3: 0 | AK3: 80 | AQ3: Natação Bebê | AR3: 0
B4: 2 | D4: 4 | E4: 8 | H4: 6 | T4: Salário Bruto | W4: =R12+V11+Y11 -> 2448.92 | AE4: =CELL("nome.arquivo",AE5) -> C:\Users\SAMSUNG\Downloads\[Aulas de Julho - NOVA.xlsm]Bruno Cauê Lang Souza | AQ4: Aprendizagem A | AR4: 53 | AT4: =IF($N$16="Natação Adulta",$Q$24,0) -> 1469.68 | AU4: =IF($N$16="Natação Bebê",$Q$24,0) -> 0 | AV4: =IF(AND($N$16<>"Natação Adulta",$N$16<>"Natação Bebê",$N$16<>"Hidroginástica"),$Q$24,0) -> 0 | AW4: =IF($N$16="Hidroginástica",$Q$24,0) -> 0 | AY4: =IF($N$16="Natação Adulta",$Q$23,0) -> 63 | AZ4: =IF($N$16="Natação Bebê",$Q$23,0) -> 0 | BA4: =IF(AND($N$16<>"Natação Adulta",$N$16<>"Natação Bebê",$N$16<>"Hidroginástica"),$Q$23,0) -> 0 | BB4: =IF($N$16="Hidroginástica",$Q$23,0) -> 0 | BD4: =IF($N$16="Natação Adulta",$Q$22,0) -> 184 | BE4: =IF($N$16="Natação Bebê",$Q$22,0) -> 0 | BF4: =IF(AND($N$16<>"Natação Adulta",$N$16<>"Natação Bebê",$N$16<>"Hidroginástica"),$Q$22,0) -> 0 | BG4: =IF($N$16="Hidroginástica",$Q$22,0) -> 0
B5: 3 | D5: 6 | E5: 7 | H5: 8 | J5: Total de Alunos | N5: =R10+V9+Y9 -> 382 | P5: Total de Aulas | R5: =R11+V10+Y10 -> 100 | T5: INSS Total | W5: =BE14 -> 202.8699 | Y5: Contabilidade | AA5: =SUM(W21:AB21)+SUM(W32:AB32)+SUM(W43:AB43)+SUM(W54:AB54)+SUM(W65:AB65)+SUM(W76:AB76)+SUM(W87:AB87) -> 2448.92 | AE5: =MID(AE4,SEARCH("]",AE4)+1,LEN(AE4)-SEARCH("]",AE4)+1) -> Bruno Cauê Lang Souza | AH5: =MID(AE4,AF5+1,AG5-AF5) ->  | AQ5: Aprendizagem B | AR5: 65 | AT5: =IF($N$27="Natação Adulta",$Q$35,0) -> 0 | AU5: =IF($N$27="Natação Bebê",$Q$35,0) -> 0 | AV5: =IF(AND($N$27<>"Natação Adulta",$N$27<>"Natação Bebê",$N$27<>"Hidroginástica"),$Q$35,0) -> 0 | AW5: =IF($N$27="Hidroginástica",$Q$35,0) -> 0 | AY5: =IF($N$27="Natação Adulta",$Q$34,0) -> 0 | AZ5: =IF($N$27="Natação Bebê",$Q$34,0) -> 0 | BA5: =IF(AND($N$27<>"Natação Adulta",$N$27<>"Natação Bebê",$N$27<>"Hidroginástica"),$Q$34,0) -> 0 | BB5: =IF($N$27="Hidroginástica",$Q$34,0) -> 0 | BD5: =IF($N$27="Natação Adulta",$Q$33,0) -> 0 | BE5: =IF($N$27="Natação Bebê",$Q$33,0) -> 0 | BF5: =IF(AND($N$27<>"Natação Adulta",$N$27<>"Natação Bebê",$N$27<>"Hidroginástica"),$Q$33,0) -> 0 | BG5: =IF($N$27="Hidroginástica",$Q$33,0) -> 0
B6: 4 | D6: 3 | E6: 7 | H6: 9 | T6: Salário Líquido | W6: =BE20 -> 2246.0501 | AQ6: Adaptação | AR6: 0 | AT6: =IF($N$38="Natação Adulta",$Q$46,0) -> 0 | AU6: =IF($N$38="Natação Bebê",$Q$46,0) -> 0 | AV6: =IF(AND($N$38<>"Natação Adulta",$N$38<>"Natação Bebê",$N$38<>"Hidroginástica"),$Q$46,0) -> 411.42 | AW6: =IF($N$38="Hidroginástica",$Q$46,0) -> 0 | AY6: =IF($N$38="Natação Adulta",$Q$45,0) -> 0 | AZ6: =IF($N$38="Natação Bebê",$Q$45,0) -> 0 | BA6: =IF(AND($N$38<>"Natação Adulta",$N$38<>"Natação Bebê",$N$38<>"Hidroginástica"),$Q$45,0) -> 16 | BB6: =IF($N$38="Hidroginástica",$Q$45,0) -> 0 | BD6: =IF($N$38="Natação Adulta",$Q$44,0) -> 0 | BE6: =IF($N$38="Natação Bebê",$Q$44,0) -> 0 | BF6: =IF(AND($N$38<>"Natação Adulta",$N$38<>"Natação Bebê",$N$38<>"Hidroginástica"),$Q$44,0) -> 53 | BG6: =IF($N$38="Hidroginástica",$Q$44,0) -> 0
B7: 4 | D7: 3 | E7: 7 | H7: 7 | AQ7: Iniciação | AR7: 0 | AT7: =IF($N$49="Natação Adulta",$Q$57,0) -> 0 | AU7: =IF($N$49="Natação Bebê",$Q$57,0) -> 0 | AV7: =IF(AND($N$49<>"Natação Adulta",$N$49<>"Natação Bebê",$N$49<>"Hidroginástica"),$Q$57,0) -> 238.56 | AW7: =IF($N$49="Hidroginástica",$Q$57,0) -> 0 | AY7: =IF($N$49="Natação Adulta",$Q$56,0) -> 0 | AZ7: =IF($N$49="Natação Bebê",$Q$56,0) -> 0 | BA7: =IF(AND($N$49<>"Natação Adulta",$N$49<>"Natação Bebê",$N$49<>"Hidroginástica"),$Q$56,0) -> 9 | BB7: =IF($N$49="Hidroginástica",$Q$56,0) -> 0 | BD7: =IF($N$49="Natação Adulta",$Q$55,0) -> 0 | BE7: =IF($N$49="Natação Bebê",$Q$55,0) -> 0 | BF7: =IF(AND($N$49<>"Natação Adulta",$N$49<>"Natação Bebê",$N$49<>"Hidroginástica"),$Q$55,0) -> 65 | BG7: =IF($N$49="Hidroginástica",$Q$55,0) -> 0
B8: 1 | D8: 5 | E8: 8 | H8: 8 | M8: Natação Infantil | U8: Natação Adulta | X8: Hidroginástica | AQ8: Hidroginástica | AR8: 80 | AT8: =IF($N$60="Natação Adulta",$Q$68,0) -> 0 | AU8: =IF($N$60="Natação Bebê",$Q$68,0) -> 0 | AV8: =IF(AND($N$60<>"Natação Adulta",$N$60<>"Natação Bebê",$N$60<>"Hidroginástica"),$Q$68,0) -> 0 | AW8: =IF($N$60="Hidroginástica",$Q$68,0) -> 0 | AY8: =IF($N$60="Natação Adulta",$Q$67,0) -> 0 | AZ8: =IF($N$60="Natação Bebê",$Q$67,0) -> 0 | BA8: =IF(AND($N$60<>"Natação Adulta",$N$60<>"Natação Bebê",$N$60<>"Hidroginástica"),$Q$67,0) -> 0 | BB8: =IF($N$60="Hidroginástica",$Q$67,0) -> 0 | BD8: =IF($N$60="Natação Adulta",$Q$66,0) -> 0 | BE8: =IF($N$60="Natação Bebê",$Q$66,0) -> 0 | BF8: =IF(AND($N$60<>"Natação Adulta",$N$60<>"Natação Bebê",$N$60<>"Hidroginástica"),$Q$66,0) -> 0 | BG8: =IF($N$60="Hidroginástica",$Q$66,0) -> 0
B9: 2 | D9: 4 | E9: 7 | H9: 8 | M9: Natação Bebê | O9: Demais | Q9: Total Infantil | U9: Alunos | V9: =BD11 -> 184 | X9: Alunos | Y9: =BG11 -> 80 | AT9: =IF($N$71="Natação Adulta",$Q$79,0) -> 0 | AU9: =IF($N$71="Natação Bebê",$Q$79,0) -> 0 | AV9: =IF(AND($N$71<>"Natação Adulta",$N$71<>"Natação Bebê",$N$71<>"Hidroginástica"),$Q$79,0) -> 0 | AW9: =IF($N$71="Hidroginástica",$Q$79,0) -> 329.26 | AY9: =IF($N$71="Natação Adulta",$Q$78,0) -> 0 | AZ9: =IF($N$71="Natação Bebê",$Q$78,0) -> 0 | BA9: =IF(AND($N$71<>"Natação Adulta",$N$71<>"Natação Bebê",$N$71<>"Hidroginástica"),$Q$78,0) -> 0 | BB9: =IF($N$71="Hidroginástica",$Q$78,0) -> 12 | BD9: =IF($N$71="Natação Adulta",$Q$77,0) -> 0 | BE9: =IF($N$71="Natação Bebê",$Q$77,0) -> 0 | BF9: =IF(AND($N$71<>"Natação Adulta",$N$71<>"Natação Bebê",$N$71<>"Hidroginástica"),$Q$77,0) -> 0 | BG9: =IF($N$71="Hidroginástica",$Q$77,0) -> 80
B10: 3 | D10: 4 | E10: 9 | H10: 10 | K10: Contábil | M10: Alunos | N10: =BE11 -> 0 | O10: Alunos | P10: =BF11 -> 118 | Q10: Alunos | R10: =N10+P10 -> 118 | U10: Aulas | V10: =AY11 -> 63 | X10: Aulas | Y10: =BB11 -> 12 | AT10: =IF($N$82="Natação Adulta",$Q$90,0) -> 0 | AU10: =IF($N$82="Natação Bebê",$Q$90,0) -> 0 | AV10: =IF(AND($N$82<>"Natação Adulta",$N$82<>"Natação Bebê",$N$82<>"Hidroginástica"),$Q$90,0) ->  | AW10: =IF($N$82="Hidroginástica",$Q$90,0) -> 0 | AY10: =IF($N$82="Natação Adulta",$Q$89,0) -> 0 | AZ10: =IF($N$82="Natação Bebê",$Q$89,0) -> 0 | BA10: =IF(AND($N$82<>"Natação Adulta",$N$82<>"Natação Bebê",$N$82<>"Hidroginástica"),$Q$89,0) ->  | BB10: =IF($N$82="Hidroginástica",$Q$89,0) -> 0 | BD10: =IF($N$82="Natação Adulta",$Q$88,0) -> 0 | BE10: =IF($N$82="Natação Bebê",$Q$88,0) -> 0 | BF10: =IF(AND($N$82<>"Natação Adulta",$N$82<>"Natação Bebê",$N$82<>"Hidroginástica"),$Q$88,0) ->  | BG10: =IF($N$82="Hidroginástica",$Q$88,0) -> 0
B11: 3 | D11: 4 | E11: 5 | H11: 5 | K11: Sistema | M11: Aulas | N11: =AZ11 -> 0 | O11: Aulas | P11: =BA11 -> 25 | Q11: Aulas | R11: 25 | U11: Bruto | V11: =AT11 -> 1469.68 | X11: Bruto | Y11: =AW11 -> 329.26 | AT11: =SUM(AT4:AT10) -> 1469.68 | AU11: =SUM(AU4:AU10) -> 0 | AV11: 649.98 | AW11: 329.26 | AY11: =SUM(AY4:AY10) -> 63 | AZ11: =SUM(AZ4:AZ10) -> 0 | BA11: 25 | BB11: 12 | BD11: =SUM(BD4:BD10) -> 184 | BE11: =SUM(BE4:BE10) -> 0 | BF11: 118 | BG11: 80
B12: 3 | D12: 5 | E12: 7 | H12: 0 | K12: Sistema | M12: Bruto | N12: =AU11 -> 0 | O12: Bruto | P12: =AV11 -> 649.98 | Q12: Bruto | R12: 649.98 | U12: INSS | V12: =AZ15 -> 114.0912 | X12: INSS | Y12: =BB15 -> 24.6945
B13: 4 | D13: 5 | H13: 8 | M13: INSS | N13: =AU15 -> 0 | O13: INSS | P13: =AW15 -> 48.7485 | Q13: INSS | R13: 48.7485 | U13: Líquido | V13: =V11-V12 -> 1355.5888 | X13: Líquido | Y13: =Y11-Y12 -> 304.5655 | AT13: Natação Bebê | AV13: Demais | AY13: Natação Adulta | BA13: Hidroginástica | BD13: Bruto Informado | BE13: =AU14+AW14+AZ14+BB14 -> 2448.92
B14: 2 | D14: 3 | H14: 5 | M14: Líquido | N14: =N12-N13 -> 0 | O14: Líquido | P14: =P12-P13 -> 601.2315 | Q14: Líquido | R14: =N14+P14 -> 601.2315 | AT14: Salário | AU14: =AU11 -> 0 | AV14: Salário | AW14: =AV11 -> 649.98 | AY14: Salário | AZ14: =AT11 -> 1469.68 | BA14: Salário | BB14: =AW11 -> 329.26 | BD14: INSS | BE14: =IF(BE13<=Impostos!$D$4,BE13*Impostos!$B$4,IF(BE13<=Impostos!$D$5,(BE13-Impostos!$D$4)*Impostos!$B$5+Impostos!$E$4,IF(BE13<=Impostos!$D$6,(BE13-(Impostos!$D$5-Impostos!$D$4)-Impostos!$D$4)*Impostos!$B$6+Impostos!$E$5+Impostos!$E$4,IF(BE13<=Impostos!$D$7,(BE13-(Impostos!$D$6-Impostos!$D$5)-(Impostos!$D$5-Impostos!$D$4)-Impostos!$D$4)*Impostos!$B$7+Impostos!$E$6+Impostos!$E$5+Impostos!$E$4,IF(BE13>=Impostos!$E$7,Impostos!$E$7))))) -> 202.8699
B15: 2 | D15: 5 | H15: 6 | AT15: INSS | AU15: =IF(AU14<=Impostos!$D$4,AU14*Impostos!$B$4,IF(AU14<=Impostos!$D$5,(AU14-Impostos!$D$4)*Impostos!$B$5+Impostos!$E$4,IF(AU14<=Impostos!$D$6,(AU14-(Impostos!$D$5-Impostos!$D$4)-Impostos!$D$4)*Impostos!$B$6+Impostos!$E$5+Impostos!$E$4,IF(AU14<=Impostos!$D$7,(AU14-(Impostos!$D$6-Impostos!$D$5)-(Impostos!$D$5-Impostos!$D$4)-Impostos!$D$4)*Impostos!$B$7+Impostos!$E$6+Impostos!$E$5+Impostos!$E$4,IF(AU14>=Impostos!$E$7,Impostos!$E$7))))) -> 0 | AV15: INSS | AW15: =IF(AW14<=Impostos!$D$4,AW14*Impostos!$B$4,IF(AW14<=Impostos!$D$5,(AW14-Impostos!$D$4)*Impostos!$B$5+Impostos!$E$4,IF(AW14<=Impostos!$D$6,(AW14-(Impostos!$D$5-Impostos!$D$4)-Impostos!$D$4)*Impostos!$B$6+Impostos!$E$5+Impostos!$E$4,IF(AW14<=Impostos!$D$7,(AW14-(Impostos!$D$6-Impostos!$D$5)-(Impostos!$D$5-Impostos!$D$4)-Impostos!$D$4)*Impostos!$B$7+Impostos!$E$6+Impostos!$E$5+Impostos!$E$4,IF(AW14>=Impostos!$E$7,Impostos!$E$7))))) -> 48.7485 | AY15: INSS | AZ15: =IF(AZ14<=Impostos!$D$4,AZ14*Impostos!$B$4,IF(AZ14<=Impostos!$D$5,(AZ14-Impostos!$D$4)*Impostos!$B$5+Impostos!$E$4,IF(AZ14<=Impostos!$D$6,(AZ14-(Impostos!$D$5-Impostos!$D$4)-Impostos!$D$4)*Impostos!$B$6+Impostos!$E$5+Impostos!$E$4,IF(AZ14<=Impostos!$D$7,(AZ14-(Impostos!$D$6-Impostos!$D$5)-(Impostos!$D$5-Impostos!$D$4)-Impostos!$D$4)*Impostos!$B$7+Impostos!$E$6+Impostos!$E$5+Impostos!$E$4,IF(AZ14>=Impostos!$E$7,Impostos!$E$7))))) -> 114.0912 | BA15: INSS | BB15: =IF(BB14<=Impostos!$D$4,BB14*Impostos!$B$4,IF(BB14<=Impostos!$D$5,(BB14-Impostos!$D$4)*Impostos!$B$5+Impostos!$E$4,IF(BB14<=Impostos!$D$6,(BB14-(Impostos!$D$5-Impostos!$D$4)-Impostos!$D$4)*Impostos!$B$6+Impostos!$E$5+Impostos!$E$4,IF(BB14<=Impostos!$D$7,(BB14-(Impostos!$D$6-Impostos!$D$5)-(Impostos!$D$5-Impostos!$D$4)-Impostos!$D$4)*Impostos!$B$7+Impostos!$E$6+Impostos!$E$5+Impostos!$E$4,IF(BB14>=Impostos!$E$7,Impostos!$E$7))))) -> 24.6945 | BD15: Líquido | BE15: =BE13-BE14 -> 2246.0501
B16: 3 | D16: 0 | K16: Modalidade | N16: Natação Adulta | Q16: Nível | R16: Prof. Nível B | AE16: =VLOOKUP(N16,Configurações!$J$1:$V$9,2,0) -> 0 | AF16: =VLOOKUP(N16,Configurações!$J$1:$V$9,3,0) -> 0 | AG16: =VLOOKUP(N16,Configurações!$J$1:$V$9,4,0) -> 1 | AH16: =VLOOKUP(N16,Configurações!$J$1:$V$9,5,0) -> 3 | AI16: =VLOOKUP(N16,Configurações!$J$1:$V$9,6,0) -> 4 | AJ16: =VLOOKUP(N16,Configurações!$J$1:$V$9,7,0) -> 5 | AK16: =VLOOKUP(N16,Configurações!$J$1:$V$9,8,0) -> 6 | AL16: =VLOOKUP(N16,Configurações!$J$1:$V$9,9,0) -> 8 | AM16: =VLOOKUP(N16,Configurações!$J$1:$V$9,10,0) ->  | AN16: =VLOOKUP(N16,Configurações!$J$1:$V$9,11,0) ->  | AO16: =VLOOKUP(N16,Configurações!$J$1:$V$9,12,0) ->  | AP16: =VLOOKUP(N16,Configurações!$J$1:$V$9,13,0) -> 
B17: 3 | D17: 1 | K17: Academia | U17: Contabilidade | AE17: =IFERROR(VLOOKUP(N16,_xlfn.ANCHORARRAY($AQ$2),2,0),0) -> 184 | BD17: Líquido Calcl | BE17: =R14+V13+Y13 -> 2261.3858
B18: 1 | D18: 0 | K18: Nr. de Alunos | N18: =IF(AF23<>"",AF23,"") -> 0 | O18: =IF(AG23<>"",AG23,"") -> 1 a 3 | P18: =IF(AH23<>"",AH23,"") -> 4 a 5 | Q18: =IF(AI23<>"",AI23,"") -> 6 a 8 | R18: =IF(AJ23<>"",AJ23,"") ->  | S18: =IF(AK23<>0,AK23,"") ->  | U18: Nr. de Alunos | W18: =N18 -> 0 | X18: =O18 -> 1 a 3 | Y18: 4 a 5 | Z18: 6 a 8 | AF18: =IF($N$16=$AE$2,COUNTIF($B$4:$B$100,">="&AE16)-COUNTIF($B$4:$B$100,">"&AF16), IF($N$16=$AF$2,COUNTIF($C$4:$C$100,">="&AE16)-COUNTIF($C$4:$C$100,">"&AF16), IF($N$16=$AG$2,COUNTIF($D$4:$D$100,">="&AE16)-COUNTIF($D$4:$D$100,">"&AF16), IF($N$16=$AH$2,COUNTIF($E$4:$E$100,">="&AE16)-COUNTIF($E$4:$E$100,">"&AF16), IF($N$16=$AI$2,COUNTIF($F$4:$F$100,">="&AE16)-COUNTIF($F$4:$F$100,">"&AF16), IF($N$16=$AJ$2,COUNTIF($G$4:$G$100,">="&AE16)-COUNTIF($G$4:$G$100,">"&AF16), IF($N$16=$AK$2,COUNTIF($H$4:$H$100,">="&AE16)-COUNTIF($H$4:$H$100,">"&AF16), IF($N$16="Sem Uso","")))))))) -> 1 | AG18: =IF($N$16=$AE$2,COUNTIF($B$4:$B$100,">="&AG16)-COUNTIF($B$4:$B$100,">"&AH16), IF($N$16=$AF$2,COUNTIF($C$4:$C$100,">="&AG16)-COUNTIF($C$4:$C$100,">"&AH16), IF($N$16=$AG$2,COUNTIF($D$4:$D$100,">="&AG16)-COUNTIF($D$4:$D$100,">"&AH16), IF($N$16=$AH$2,COUNTIF($E$4:$E$100,">="&AG16)-COUNTIF($E$4:$E$100,">"&AH16), IF($N$16=$AI$2,COUNTIF($F$4:$F$100,">="&AG16)-COUNTIF($F$4:$F$100,">"&AH16), IF($N$16=$AJ$2,COUNTIF($G$4:$G$100,">="&AG16)-COUNTIF($G$4:$G$100,">"&AH16), IF($N$16=$AK$2,COUNTIF($H$4:$H$100,">="&AG16)-COUNTIF($H$4:$H$100,">"&AH16), IF($N$16="Sem Uso","")))))))) -> 42 | AH18: =IF($N$16=$AE$2,COUNTIF($B$4:$B$100,">="&AI16)-COUNTIF($B$4:$B$100,">"&AJ16), IF($N$16=$AF$2,COUNTIF($C$4:$C$100,">="&AI16)-COUNTIF($C$4:$C$100,">"&AJ16), IF($N$16=$AG$2,COUNTIF($D$4:$D$100,">="&AI16)-COUNTIF($D$4:$D$100,">"&AJ16), IF($N$16=$AH$2,COUNTIF($E$4:$E$100,">="&AI16)-COUNTIF($E$4:$E$100,">"&AJ16), IF($N$16=$AI$2,COUNTIF($F$4:$F$100,">="&AI16)-COUNTIF($F$4:$F$100,">"&AJ16), IF($N$16=$AJ$2,COUNTIF($G$4:$G$100,">="&AI16)-COUNTIF($G$4:$G$100,">"&AJ16), IF($N$16=$AK$2,COUNTIF($H$4:$H$100,">="&AI16)-COUNTIF($H$4:$H$100,">"&AJ16), IF($N$16="Sem Uso","")))))))) -> 18 | AI18: =IF($N$16=$AE$2,COUNTIF($B$4:$B$100,">="&AK16)-COUNTIF($B$4:$B$100,">"&AL16), IF($N$16=$AF$2,COUNTIF($C$4:$C$100,">="&AK16)-COUNTIF($C$4:$C$100,">"&AL16), IF($N$16=$AG$2,COUNTIF($D$4:$D$100,">="&AK16)-COUNTIF($D$4:$D$100,">"&AL16), IF($N$16=$AH$2,COUNTIF($E$4:$E$100,">="&AK16)-COUNTIF($E$4:$E$100,">"&AL16), IF($N$16=$AI$2,COUNTIF($F$4:$F$100,">="&AK16)-COUNTIF($F$4:$F$100,">"&AL16), IF($N$16=$AJ$2,COUNTIF($G$4:$G$100,">="&AK16)-COUNTIF($G$4:$G$100,">"&AL16), IF($N$16=$AK$2,COUNTIF($H$4:$H$100,">="&AK16)-COUNTIF($H$4:$H$100,">"&AL16), IF($N$16="Sem Uso","")))))))) -> 2 | AJ18: =IF($N$16=$AE$2,COUNTIF($B$4:$B$100,">="&AM16)-COUNTIF($B$4:$B$100,">"&AN16), IF($N$16=$AF$2,COUNTIF($C$4:$C$100,">="&AM16)-COUNTIF($C$4:$C$100,">"&AN16), IF($N$16=$AG$2,COUNTIF($D$4:$D$100,">="&AM16)-COUNTIF($D$4:$D$100,">"&AN16), IF($N$16=$AH$2,COUNTIF($E$4:$E$100,">="&AM16)-COUNTIF($E$4:$E$100,">"&AN16), IF($N$16=$AI$2,COUNTIF($F$4:$F$100,">="&AM16)-COUNTIF($F$4:$F$100,">"&AN16), IF($N$16=$AJ$2,COUNTIF($G$4:$G$100,">="&AM16)-COUNTIF($G$4:$G$100,">"&AN16), IF($N$16=$AK$2,COUNTIF($H$4:$H$100,">="&AM16)-COUNTIF($H$4:$H$100,">"&AN16), IF($N$16="Sem Uso","")))))))) -> 0 | AK18: =IF($N$16=$AE$2,COUNTIF($B$4:$B$100,">="&AO16)-COUNTIF($B$4:$B$100,">"&AP16), IF($N$16=$AF$2,COUNTIF($C$4:$C$100,">="&AO16)-COUNTIF($C$4:$C$100,">"&AP16), IF($N$16=$AG$2,COUNTIF($D$4:$D$100,">="&AO16)-COUNTIF($D$4:$D$100,">"&AP16), IF($N$16=$AH$2,COUNTIF($E$4:$E$100,">="&AO16)-COUNTIF($E$4:$E$100,">"&AP16), IF($N$16=$AI$2,COUNTIF($F$4:$F$100,">="&AO16)-COUNTIF($F$4:$F$100,">"&AP16), IF($N$16=$AJ$2,COUNTIF($G$4:$G$100,">="&AO16)-COUNTIF($G$4:$G$100,">"&AP16), IF($N$16=$AK$2,COUNTIF($H$4:$H$100,">="&AO16)-COUNTIF($H$4:$H$100,">"&AP16), IF($N$16="Sem Uso","")))))))) -> 0 | BD18: Diferença | BE18: =BE15-BE17 -> -15.3357
B19: 3 | D19: 1 | K19: Valor da Aula | N19: =IF(AF25<>0,AF25,"") -> 17.66 | O19: 21.97 | P19: 26.08 | Q19: 29.92 | U19: Valor da Aula | W19: =IFERROR(IF(N19<=$S$23,0,N19-$S$23),"") -> 17.66 | X19: 21.97 | Y19: 26.08 | Z19: 29.92 | AA19: 0 | AB19: 0
B20: 6 | K20: Nr. de Aulas | N20: =IF(AF23<>"",AF24,"") -> 1 | O20: 42 | P20: 18 | Q20: 2 | U20: Nr. de Aulas | W20: =N20 -> 1 | X20: 42 | Y20: 18 | Z20: 2 | AE20: =IF(N20<>"",N20,"") -> 1 | AF20: 42 | AG20: 18 | AH20: 2 | BD20: Líquido Real | BE20: =BE17+BE18 -> 2246.0501
B21: 3 | K21: Valor | N21: =IFERROR(N19*N20,"") -> 17.66 | O21: 922.74 | P21: 469.44 | Q21: 59.84 | U21: Valor | W21: =IFERROR(W19*W20,"") -> 17.66 | X21: 922.74 | Y21: 469.44 | Z21: 59.84 | AF21: =IF($N16<>"Sem Uso",VLOOKUP(N16,Configurações!$C$1:$I$8,2,0),"") -> 0 | AG21: =IF(N16<>"Sem Uso",VLOOKUP(N16,Configurações!$C$1:$I$8,3,0),"") -> 1 a 3 | AH21: =IF(N16<>"Sem Uso",VLOOKUP(N16,Configurações!$C$1:$I$8,4,0),"") -> 4 a 5 | AI21: =IF(N16<>"Sem Uso",VLOOKUP(N16,Configurações!$C$1:$I$8,5,0),"") -> 6 a 8 | AJ21: =IF(N16<>"Sem Uso",VLOOKUP(N16,Configurações!$C$1:$I$8,6,0),"") -> 0 | AK21: =IF(N16<>"Sem Uso",VLOOKUP(N16,Configurações!$C$1:$I$8,7,0),"") -> 0
B22: 2 | M22: Total de Alunos | Q22: =_xlfn.IFS(N16=$AE$2,$B$102,N16=$AF$2,$C$102,N16=$AG$2,$D$102,N16=$AH$2,$E$102,N16=$AI$2,$F$102,N16=$AJ$2,$G$102,N16=$AK$2,$H$102,N16="Sem Uso","") -> 184 | V22: Total de Alunos | Z22: =Q22 -> 184 | AE22: TABELA DE EQUIVALÊNCIA
B23: 2 | M23: Total de Aulas | Q23: =IF(Q22<>"",SUM(AE20:AJ20),"") -> 63 | R23: Registro | V23: Total de Aulas | Z23: =Q23 -> 63 | AE23: Nr. Alunos | AF23: =AF21 -> 0 | AG23: =IF(AG21<>0,AG21,"") -> 1 a 3 | AH23: =IF(AH21<>0,AH21,"") -> 4 a 5 | AI23: =IF(AI21<>0,AI21,"") -> 6 a 8 | AJ23: =IF(AJ21<>0,AJ21,"") ->  | AK23: =IF(AK21<>0,AK21,"") -> 
B24: 3 | M24: Total a Receber | Q24: =IF(Q22<>"",SUM(N21:S21),"") -> 1469.68 | V24: Total a Receber | Z24: =IF(Z22<>"",SUM(W21:AB21),"") -> 1469.68 | AE24: Aulas | AF24: =IF(AF23<>"",AF18,"") -> 1 | AG24: 42 | AH24: 18 | AI24: 2
B25: 4 | AF25: =IFERROR(VLOOKUP(N16&R16,Configurações!$C$13:$I$47,2,0),"") -> 17.66 | AG25: =IFERROR(IF(AG23<>0,VLOOKUP(N16&R16,Configurações!$C$13:$I$47,3,0),""),"") -> 21.97 | AH25: =IFERROR(IF(AH23<>0,VLOOKUP(N16&R16,Configurações!$C$13:$I$47,4,0),""),"") -> 26.08 | AI25: =IFERROR(IF(AI23<>0,VLOOKUP(N16&R16,Configurações!$C$13:$I$47,5,0),""),"") -> 29.92 | AJ25: =IFERROR(IF(AJ23<>0,VLOOKUP(N16&R16,Configurações!$C$13:$I$47,6,0),""),"") -> 0 | AK25: =IFERROR(IF(AK23<>0,VLOOKUP(N16&R16,Configurações!$C$13:$I$47,7,0),""),"") -> 0
B26: 5
B27: 3 | K27: Modalidade | N27: Natação Bebê | Q27: Nível | R27: Prof. Nível B | AE27: =VLOOKUP(N27,Configurações!$J$1:$V$9,2,0) -> 0 | AF27: =VLOOKUP(N27,Configurações!$J$1:$V$9,3,0) -> 0 | AG27: =VLOOKUP(N27,Configurações!$J$1:$V$9,4,0) -> 1 | AH27: =VLOOKUP(N27,Configurações!$J$1:$V$9,5,0) -> 4 | AI27: =VLOOKUP(N27,Configurações!$J$1:$V$9,6,0) -> 5 | AJ27: =VLOOKUP(N27,Configurações!$J$1:$V$9,7,0) -> 8 | AK27: =VLOOKUP(N27,Configurações!$J$1:$V$9,8,0) -> 9 | AL27: =VLOOKUP(N27,Configurações!$J$1:$V$9,9,0) -> 12 | AM27: =VLOOKUP(N27,Configurações!$J$1:$V$9,10,0) -> 13 | AN27: =VLOOKUP(N27,Configurações!$J$1:$V$9,11,0) -> 15 | AO27: =VLOOKUP(N27,Configurações!$J$1:$V$9,12,0) ->  | AP27: =VLOOKUP(N27,Configurações!$J$1:$V$9,13,0) -> 
B28: 1 | K28: Academia | U28: Contabilidade | AE28: =IFERROR(VLOOKUP(N27,_xlfn.ANCHORARRAY($AQ$2),2,0),0) -> 0
B29: 4 | K29: Nr. de Alunos | N29: =IF(AF34<>"",AF34,"") -> 0 | O29: =IF(AG34<>"",AG34,"") -> 1 a 4 | P29: =IF(AH34<>"",AH34,"") -> 5 a 8 | Q29: =IF(AI34<>"",AI34,"") -> 9 a 12 | R29: =IF(AJ34<>"",AJ34,"") -> 13 a 15 | S29: =IF(AK34<>0,AK34,"") ->  | U29: Nr. de Alunos | W29: =N29 -> 0 | X29: =O29 -> 1 a 4 | Y29: 5 a 8 | Z29: 9 a 12 | AA29: 13 a 15 | AF29: =IF($N$27=$AE$2,COUNTIF($B$4:$B$100,">="&AE27)-COUNTIF($B$4:$B$100,">"&AF27), IF($N$27=$AF$2,COUNTIF($C$4:$C$100,">="&AE27)-COUNTIF($C$4:$C$100,">"&AF27), IF($N$27=$AG$2,COUNTIF($D$4:$D$100,">="&AE27)-COUNTIF($D$4:$D$100,">"&AF27), IF($N$27=$AH$2,COUNTIF($E$4:$E$100,">="&AE27)-COUNTIF($E$4:$E$100,">"&AF27), IF($N$27=$AI$2,COUNTIF($F$4:$F$100,">="&AE27)-COUNTIF($F$4:$F$100,">"&AF27), IF($N$27=$AJ$2,COUNTIF($G$4:$G$100,">="&AE27)-COUNTIF($G$4:$G$100,">"&AF27), IF($N$27=$AK$2,COUNTIF($H$4:$H$100,">="&AE27)-COUNTIF($H$4:$H$100,">"&AF27), IF($N$27="Sem Uso","")))))))) -> 0 | AG29: =IF($N$27=$AE$2,COUNTIF($B$4:$B$100,">="&AG27)-COUNTIF($B$4:$B$100,">"&AH27), IF($N$27=$AF$2,COUNTIF($C$4:$C$100,">="&AG27)-COUNTIF($C$4:$C$100,">"&AH27), IF($N$27=$AG$2,COUNTIF($D$4:$D$100,">="&AG27)-COUNTIF($D$4:$D$100,">"&AH27), IF($N$27=$AH$2,COUNTIF($E$4:$E$100,">="&AG27)-COUNTIF($E$4:$E$100,">"&AH27), IF($N$27=$AI$2,COUNTIF($F$4:$F$100,">="&AG27)-COUNTIF($F$4:$F$100,">"&AH27), IF($N$27=$AJ$2,COUNTIF($G$4:$G$100,">="&AG27)-COUNTIF($G$4:$G$100,">"&AH27), IF($N$27=$AK$2,COUNTIF($H$4:$H$100,">="&AG27)-COUNTIF($H$4:$H$100,">"&AH27), IF($N$27="Sem Uso","")))))))) -> 0 | AH29: =IF($N$27=$AE$2,COUNTIF($B$4:$B$100,">="&AI27)-COUNTIF($B$4:$B$100,">"&AJ27), IF($N$27=$AF$2,COUNTIF($C$4:$C$100,">="&AI27)-COUNTIF($C$4:$C$100,">"&AJ27), IF($N$27=$AG$2,COUNTIF($D$4:$D$100,">="&AI27)-COUNTIF($D$4:$D$100,">"&AJ27), IF($N$27=$AH$2,COUNTIF($E$4:$E$100,">="&AI27)-COUNTIF($E$4:$E$100,">"&AJ27), IF($N$27=$AI$2,COUNTIF($F$4:$F$100,">="&AI27)-COUNTIF($F$4:$F$100,">"&AJ27), IF($N$27=$AJ$2,COUNTIF($G$4:$G$100,">="&AI27)-COUNTIF($G$4:$G$100,">"&AJ27), IF($N$27=$AK$2,COUNTIF($H$4:$H$100,">="&AI27)-COUNTIF($H$4:$H$100,">"&AJ27), IF($N$27="Sem Uso","")))))))) -> 0 | AI29: =IF($N$27=$AE$2,COUNTIF($B$4:$B$100,">="&AK27)-COUNTIF($B$4:$B$100,">"&AL27), IF($N$27=$AF$2,COUNTIF($C$4:$C$100,">="&AK27)-COUNTIF($C$4:$C$100,">"&AL27), IF($N$27=$AG$2,COUNTIF($D$4:$D$100,">="&AK27)-COUNTIF($D$4:$D$100,">"&AL27), IF($N$27=$AH$2,COUNTIF($E$4:$E$100,">="&AK27)-COUNTIF($E$4:$E$100,">"&AL27), IF($N$27=$AI$2,COUNTIF($F$4:$F$100,">="&AK27)-COUNTIF($F$4:$F$100,">"&AL27), IF($N$27=$AJ$2,COUNTIF($G$4:$G$100,">="&AK27)-COUNTIF($G$4:$G$100,">"&AL27), IF($N$27=$AK$2,COUNTIF($H$4:$H$100,">="&AK27)-COUNTIF($H$4:$H$100,">"&AL27), IF($N$27="Sem Uso","")))))))) -> 0 | AJ29: =IF($N$27=$AE$2,COUNTIF($B$4:$B$100,">="&AM27)-COUNTIF($B$4:$B$100,">"&AN27), IF($N$27=$AF$2,COUNTIF($C$4:$C$100,">="&AM27)-COUNTIF($C$4:$C$100,">"&AN27), IF($N$27=$AG$2,COUNTIF($D$4:$D$100,">="&AM27)-COUNTIF($D$4:$D$100,">"&AN27), IF($N$27=$AH$2,COUNTIF($E$4:$E$100,">="&AM27)-COUNTIF($E$4:$E$100,">"&AN27), IF($N$27=$AI$2,COUNTIF($F$4:$F$100,">="&AM27)-COUNTIF($F$4:$F$100,">"&AN27), IF($N$27=$AJ$2,COUNTIF($G$4:$G$100,">="&AM27)-COUNTIF($G$4:$G$100,">"&AN27), IF($N$27=$AK$2,COUNTIF($H$4:$H$100,">="&AM27)-COUNTIF($H$4:$H$100,">"&AN27), IF($N$27="Sem Uso","")))))))) -> 0 | AK29: =IF($N$27=$AE$2,COUNTIF($B$4:$B$100,">="&AO27)-COUNTIF($B$4:$B$100,">"&AP27), IF($N$27=$AF$2,COUNTIF($C$4:$C$100,">="&AO27)-COUNTIF($C$4:$C$100,">"&AP27), IF($N$27=$AG$2,COUNTIF($D$4:$D$100,">="&AO27)-COUNTIF($D$4:$D$100,">"&AP27), IF($N$27=$AH$2,COUNTIF($E$4:$E$100,">="&AO27)-COUNTIF($E$4:$E$100,">"&AP27), IF($N$27=$AI$2,COUNTIF($F$4:$F$100,">="&AO27)-COUNTIF($F$4:$F$100,">"&AP27), IF($N$27=$AJ$2,COUNTIF($G$4:$G$100,">="&AO27)-COUNTIF($G$4:$G$100,">"&AP27), IF($N$27=$AK$2,COUNTIF($H$4:$H$100,">="&AO27)-COUNTIF($H$4:$H$100,">"&AP27), IF($N$27="Sem Uso","")))))))) -> 0
B30: 5 | K30: Valor da Aula | N30: =IF(AF36<>0,AF36,"") -> 17.66 | O30: 26.08 | P30: 28.83 | Q30: 31.57 | R30: 34.31 | U30: Valor da Aula | W30: =IFERROR(IF(N30<=$S$34,0,N30-$S$34),"") -> 17.66 | X30: 26.08 | Y30: 28.83 | Z30: 31.57 | AA30: 34.31 | AB30: 0
B31: 3 | K31: Nr. de Aulas | N31: =IF(AF34<>"",AF35,"") -> 0 | O31: 0 | P31: 0 | Q31: 0 | R31: 0 | U31: Nr. de Aulas | W31: =N31 -> 0 | X31: 0 | Y31: 0 | Z31: 0 | AA31: 0 | AE31: =IF(N31<>"",N31,"") -> 0 | AF31: 0 | AG31: 0 | AH31: 0 | AI31: 0
B32: 4 | K32: Valor | N32: =IFERROR(N30*N31,"") -> 0 | O32: 0 | P32: 0 | Q32: 0 | R32: 0 | U32: Valor | W32: =IFERROR(W30*W31,"") -> 0 | X32: 0 | Y32: 0 | Z32: 0 | AA32: 0 | AF32: =IF($N27<>"Sem Uso",VLOOKUP(N27,Configurações!$C$1:$I$8,2,0),"") -> 0 | AG32: =IF(N27<>"Sem Uso",VLOOKUP(N27,Configurações!$C$1:$I$8,3,0),"") -> 1 a 4 | AH32: =IF(N27<>"Sem Uso",VLOOKUP(N27,Configurações!$C$1:$I$8,4,0),"") -> 5 a 8 | AI32: =IF(N27<>"Sem Uso",VLOOKUP(N27,Configurações!$C$1:$I$8,5,0),"") -> 9 a 12 | AJ32: =IF(N27<>"Sem Uso",VLOOKUP(N27,Configurações!$C$1:$I$8,6,0),"") -> 13 a 15 | AK32: =IF(N27<>"Sem Uso",VLOOKUP(N27,Configurações!$C$1:$I$8,7,0),"") -> 0
B33: 3 | M33: Total de Alunos | Q33: =_xlfn.IFS(N27=$AE$2,$B$102,N27=$AF$2,$C$102,N27=$AG$2,$D$102,N27=$AH$2,$E$102,N27=$AI$2,$F$102,N27=$AJ$2,$G$102,N27=$AK$2,$H$102,N27="Sem Uso","") -> 0 | V33: Total de Alunos | Z33: =Q33 -> 0 | AE33: TABELA DE EQUIVALÊNCIA
B34: 3 | M34: Total de Aulas | Q34: =IF(Q33<>"",SUM(AE31:AJ31),"") -> 0 | R34: Registro | V34: Total de Aulas | Z34: =Q34 -> 0 | AE34: Nr. Alunos | AF34: =AF32 -> 0 | AG34: =IF(AG32<>0,AG32,"") -> 1 a 4 | AH34: =IF(AH32<>0,AH32,"") -> 5 a 8 | AI34: =IF(AI32<>0,AI32,"") -> 9 a 12 | AJ34: =IF(AJ32<>0,AJ32,"") -> 13 a 15 | AK34: =IF(AK32<>0,AK32,"") -> 
B35: 4 | M35: Total a Receber | Q35: =IF(Q33<>"",SUM(N32:S32),"") -> 0 | V35: Total a Receber | Z35: =IF(Z33<>"",SUM(W32:AB32),"") -> 0 | AE35: Aulas | AF35: =IF(AF34<>"",AF29,"") -> 0 | AG35: 0 | AH35: 0 | AI35: 0 | AJ35: 0
B36: 5 | AF36: =IFERROR(VLOOKUP(N27&R27,Configurações!$C$13:$I$47,2,0),"") -> 17.66 | AG36: =IFERROR(IF(AG34<>0,VLOOKUP(N27&R27,Configurações!$C$13:$I$47,3,0),""),"") -> 26.08 | AH36: =IFERROR(IF(AH34<>0,VLOOKUP(N27&R27,Configurações!$C$13:$I$47,4,0),""),"") -> 28.83 | AI36: =IFERROR(IF(AI34<>0,VLOOKUP(N27&R27,Configurações!$C$13:$I$47,5,0),""),"") -> 31.57 | AJ36: =IFERROR(IF(AJ34<>0,VLOOKUP(N27&R27,Configurações!$C$13:$I$47,6,0),""),"") -> 34.31 | AK36: =IFERROR(IF(AK34<>0,VLOOKUP(N27&R27,Configurações!$C$13:$I$47,7,0),""),"") -> 0
B37: 2
B38: 2 | K38: Modalidade | N38: Aprendizagem A | Q38: Nível | R38: Prof. Nível B | AE38: =VLOOKUP(N38,Configurações!$J$1:$V$9,2,0) -> 0 | AF38: =VLOOKUP(N38,Configurações!$J$1:$V$9,3,0) -> 0 | AG38: =VLOOKUP(N38,Configurações!$J$1:$V$9,4,0) -> 1 | AH38: =VLOOKUP(N38,Configurações!$J$1:$V$9,5,0) -> 2 | AI38: =VLOOKUP(N38,Configurações!$J$1:$V$9,6,0) -> 3 | AJ38: =VLOOKUP(N38,Configurações!$J$1:$V$9,7,0) -> 4 | AK38: =VLOOKUP(N38,Configurações!$J$1:$V$9,8,0) -> 5 | AL38: =VLOOKUP(N38,Configurações!$J$1:$V$9,9,0) -> 6 | AM38: =VLOOKUP(N38,Configurações!$J$1:$V$9,10,0) -> 7 | AN38: =VLOOKUP(N38,Configurações!$J$1:$V$9,11,0) -> 8 | AO38: =VLOOKUP(N38,Configurações!$J$1:$V$9,12,0) ->  | AP38: =VLOOKUP(N38,Configurações!$J$1:$V$9,13,0) -> 
B39: 3 | K39: Academia | U39: Contabilidade | AE39: =IFERROR(VLOOKUP(N38,_xlfn.ANCHORARRAY($AQ$2),2,0),0) -> 53
B40: 1 | K40: Nr. de Alunos | N40: =IF(AF45<>"",AF45,"") -> 0 | O40: =IF(AG45<>"",AG45,"") -> 1 a 2 | P40: =IF(AH45<>"",AH45,"") -> 3 a 4 | Q40: =IF(AI45<>"",AI45,"") -> 5 a 6 | R40: =IF(AJ45<>"",AJ45,"") -> 7 a 8 | S40: =IF(AK45<>0,AK45,"") ->  | U40: Nr. de Alunos | W40: =N40 -> 0 | X40: =O40 -> 1 a 2 | Y40: 3 a 4 | Z40: 5 a 6 | AA40: 7 a 8 | AF40: =IF($N$38=$AE$2,COUNTIF($B$4:$B$100,">="&AE38)-COUNTIF($B$4:$B$100,">"&AF38), IF($N$38=$AF$2,COUNTIF($C$4:$C$100,">="&AE38)-COUNTIF($C$4:$C$100,">"&AF38), IF($N$38=$AG$2,COUNTIF($D$4:$D$100,">="&AE38)-COUNTIF($D$4:$D$100,">"&AF38), IF($N$38=$AH$2,COUNTIF($E$4:$E$100,">="&AE38)-COUNTIF($E$4:$E$100,">"&AF38), IF($N$38=$AI$2,COUNTIF($F$4:$F$100,">="&AE38)-COUNTIF($F$4:$F$100,">"&AF38), IF($N$38=$AJ$2,COUNTIF($G$4:$G$100,">="&AE38)-COUNTIF($G$4:$G$100,">"&AF38), IF($N$38=$AK$2,COUNTIF($H$4:$H$100,">="&AE38)-COUNTIF($H$4:$H$100,">"&AF38), IF($N$38="Sem Uso","")))))))) -> 2 | AG40: =IF($N$38=$AE$2,COUNTIF($B$4:$B$100,">="&AG38)-COUNTIF($B$4:$B$100,">"&AH38), IF($N$38=$AF$2,COUNTIF($C$4:$C$100,">="&AG38)-COUNTIF($C$4:$C$100,">"&AH38), IF($N$38=$AG$2,COUNTIF($D$4:$D$100,">="&AG38)-COUNTIF($D$4:$D$100,">"&AH38), IF($N$38=$AH$2,COUNTIF($E$4:$E$100,">="&AG38)-COUNTIF($E$4:$E$100,">"&AH38), IF($N$38=$AI$2,COUNTIF($F$4:$F$100,">="&AG38)-COUNTIF($F$4:$F$100,">"&AH38), IF($N$38=$AJ$2,COUNTIF($G$4:$G$100,">="&AG38)-COUNTIF($G$4:$G$100,">"&AH38), IF($N$38=$AK$2,COUNTIF($H$4:$H$100,">="&AG38)-COUNTIF($H$4:$H$100,">"&AH38), IF($N$38="Sem Uso","")))))))) -> 2 | AH40: =IF($N$38=$AE$2,COUNTIF($B$4:$B$100,">="&AI38)-COUNTIF($B$4:$B$100,">"&AJ38), IF($N$38=$AF$2,COUNTIF($C$4:$C$100,">="&AI38)-COUNTIF($C$4:$C$100,">"&AJ38), IF($N$38=$AG$2,COUNTIF($D$4:$D$100,">="&AI38)-COUNTIF($D$4:$D$100,">"&AJ38), IF($N$38=$AH$2,COUNTIF($E$4:$E$100,">="&AI38)-COUNTIF($E$4:$E$100,">"&AJ38), IF($N$38=$AI$2,COUNTIF($F$4:$F$100,">="&AI38)-COUNTIF($F$4:$F$100,">"&AJ38), IF($N$38=$AJ$2,COUNTIF($G$4:$G$100,">="&AI38)-COUNTIF($G$4:$G$100,">"&AJ38), IF($N$38=$AK$2,COUNTIF($H$4:$H$100,">="&AI38)-COUNTIF($H$4:$H$100,">"&AJ38), IF($N$38="Sem Uso","")))))))) -> 7 | AI40: =IF($N$38=$AE$2,COUNTIF($B$4:$B$100,">="&AK38)-COUNTIF($B$4:$B$100,">"&AL38), IF($N$38=$AF$2,COUNTIF($C$4:$C$100,">="&AK38)-COUNTIF($C$4:$C$100,">"&AL38), IF($N$38=$AG$2,COUNTIF($D$4:$D$100,">="&AK38)-COUNTIF($D$4:$D$100,">"&AL38), IF($N$38=$AH$2,COUNTIF($E$4:$E$100,">="&AK38)-COUNTIF($E$4:$E$100,">"&AL38), IF($N$38=$AI$2,COUNTIF($F$4:$F$100,">="&AK38)-COUNTIF($F$4:$F$100,">"&AL38), IF($N$38=$AJ$2,COUNTIF($G$4:$G$100,">="&AK38)-COUNTIF($G$4:$G$100,">"&AL38), IF($N$38=$AK$2,COUNTIF($H$4:$H$100,">="&AK38)-COUNTIF($H$4:$H$100,">"&AL38), IF($N$38="Sem Uso","")))))))) -> 5 | AJ40: =IF($N$38=$AE$2,COUNTIF($B$4:$B$100,">="&AM38)-COUNTIF($B$4:$B$100,">"&AN38), IF($N$38=$AF$2,COUNTIF($C$4:$C$100,">="&AM38)-COUNTIF($C$4:$C$100,">"&AN38), IF($N$38=$AG$2,COUNTIF($D$4:$D$100,">="&AM38)-COUNTIF($D$4:$D$100,">"&AN38), IF($N$38=$AH$2,COUNTIF($E$4:$E$100,">="&AM38)-COUNTIF($E$4:$E$100,">"&AN38), IF($N$38=$AI$2,COUNTIF($F$4:$F$100,">="&AM38)-COUNTIF($F$4:$F$100,">"&AN38), IF($N$38=$AJ$2,COUNTIF($G$4:$G$100,">="&AM38)-COUNTIF($G$4:$G$100,">"&AN38), IF($N$38=$AK$2,COUNTIF($H$4:$H$100,">="&AM38)-COUNTIF($H$4:$H$100,">"&AN38), IF($N$38="Sem Uso","")))))))) -> 0 | AK40: =IF($N$38=$AE$2,COUNTIF($B$4:$B$100,">="&AO38)-COUNTIF($B$4:$B$100,">"&AP38), IF($N$38=$AF$2,COUNTIF($C$4:$C$100,">="&AO38)-COUNTIF($C$4:$C$100,">"&AP38), IF($N$38=$AG$2,COUNTIF($D$4:$D$100,">="&AO38)-COUNTIF($D$4:$D$100,">"&AP38), IF($N$38=$AH$2,COUNTIF($E$4:$E$100,">="&AO38)-COUNTIF($E$4:$E$100,">"&AP38), IF($N$38=$AI$2,COUNTIF($F$4:$F$100,">="&AO38)-COUNTIF($F$4:$F$100,">"&AP38), IF($N$38=$AJ$2,COUNTIF($G$4:$G$100,">="&AO38)-COUNTIF($G$4:$G$100,">"&AP38), IF($N$38=$AK$2,COUNTIF($H$4:$H$100,">="&AO38)-COUNTIF($H$4:$H$100,">"&AP38), IF($N$38="Sem Uso","")))))))) -> 0
B41: 5 | K41: Valor da Aula | N41: =IF(AF47<>0,AF47,"") -> 17.66 | O41: 21.97 | P41: 26.08 | Q41: 29.92 | R41: 32.64 | U41: Valor da Aula | W41: =IFERROR(IF(N41<=$S$45,0,N41-$S$45),"") -> 17.66 | X41: 21.97 | Y41: 26.08 | Z41: 29.92 | AA41: 32.64 | AB41: 0
B42: 4 | K42: Nr. de Aulas | N42: =IF(AF45<>"",AF46,"") -> 2 | O42: 2 | P42: 7 | Q42: 5 | R42: 0 | U42: Nr. de Aulas | W42: =N42 -> 2 | X42: 2 | Y42: 7 | Z42: 5 | AA42: 0 | AE42: =IF(N42<>"",N42,"") -> 2 | AF42: 2 | AG42: 7 | AH42: 5 | AI42: 0
B43: 3 | K43: Valor | N43: =IFERROR(N41*N42,"") -> 35.32 | O43: 43.94 | P43: 182.56 | Q43: 149.6 | R43: 0 | U43: Valor | W43: =IFERROR(W41*W42,"") -> 35.32 | X43: 43.94 | Y43: 182.56 | Z43: 149.6 | AA43: 0 | AF43: =IF($N38<>"Sem Uso",VLOOKUP(N38,Configurações!$C$1:$I$8,2,0),"") -> 0 | AG43: =IF(N38<>"Sem Uso",VLOOKUP(N38,Configurações!$C$1:$I$8,3,0),"") -> 1 a 2 | AH43: =IF(N38<>"Sem Uso",VLOOKUP(N38,Configurações!$C$1:$I$8,4,0),"") -> 3 a 4 | AI43: =IF(N38<>"Sem Uso",VLOOKUP(N38,Configurações!$C$1:$I$8,5,0),"") -> 5 a 6 | AJ43: =IF(N38<>"Sem Uso",VLOOKUP(N38,Configurações!$C$1:$I$8,6,0),"") -> 7 a 8 | AK43: =IF(N38<>"Sem Uso",VLOOKUP(N38,Configurações!$C$1:$I$8,7,0),"") -> 0
B44: 1 | M44: Total de Alunos | Q44: =_xlfn.IFS(N38=$AE$2,$B$102,N38=$AF$2,$C$102,N38=$AG$2,$D$102,N38=$AH$2,$E$102,N38=$AI$2,$F$102,N38=$AJ$2,$G$102,N38=$AK$2,$H$102,N38="Sem Uso","") -> 53 | V44: Total de Alunos | Z44: =Q44 -> 53 | AE44: TABELA DE EQUIVALÊNCIA
B45: 4 | M45: Total de Aulas | Q45: =IF(Q44<>"",SUM(AE42:AJ42),"") -> 16 | R45: Registro | V45: Total de Aulas | Z45: =Q45 -> 16 | AE45: Nr. Alunos | AF45: =AF43 -> 0 | AG45: =IF(AG43<>0,AG43,"") -> 1 a 2 | AH45: =IF(AH43<>0,AH43,"") -> 3 a 4 | AI45: =IF(AI43<>0,AI43,"") -> 5 a 6 | AJ45: =IF(AJ43<>0,AJ43,"") -> 7 a 8 | AK45: =IF(AK43<>0,AK43,"") -> 
B46: 6 | M46: Total a Receber | Q46: =IF(Q44<>"",SUM(N43:S43),"") -> 411.42 | V46: Total a Receber | Z46: =IF(Z44<>"",SUM(W43:AB43),"") -> 411.42 | AE46: Aulas | AF46: =IF(AF45<>"",AF40,"") -> 2 | AG46: 2 | AH46: 7 | AI46: 5 | AJ46: 0
B47: 2 | AF47: =IFERROR(VLOOKUP(N38&R38,Configurações!$C$13:$I$47,2,0),"") -> 17.66 | AG47: =IFERROR(IF(AG45<>0,VLOOKUP(N38&R38,Configurações!$C$13:$I$47,3,0),""),"") -> 21.97 | AH47: =IFERROR(IF(AH45<>0,VLOOKUP(N38&R38,Configurações!$C$13:$I$47,4,0),""),"") -> 26.08 | AI47: =IFERROR(IF(AI45<>0,VLOOKUP(N38&R38,Configurações!$C$13:$I$47,5,0),""),"") -> 29.92 | AJ47: =IFERROR(IF(AJ45<>0,VLOOKUP(N38&R38,Configurações!$C$13:$I$47,6,0),""),"") -> 32.64 | AK47: =IFERROR(IF(AK45<>0,VLOOKUP(N38&R38,Configurações!$C$13:$I$47,7,0),""),"") -> 0
B48: 2
B49: 4 | K49: Modalidade | N49: Aprendizagem B | Q49: Nível | R49: Prof. Nível B | AE49: =VLOOKUP(N49,Configurações!$J$1:$V$9,2,0) -> 0 | AF49: =VLOOKUP(N49,Configurações!$J$1:$V$9,3,0) -> 0 | AG49: =VLOOKUP(N49,Configurações!$J$1:$V$9,4,0) -> 1 | AH49: =VLOOKUP(N49,Configurações!$J$1:$V$9,5,0) -> 4 | AI49: =VLOOKUP(N49,Configurações!$J$1:$V$9,6,0) -> 5 | AJ49: =VLOOKUP(N49,Configurações!$J$1:$V$9,7,0) -> 8 | AK49: =VLOOKUP(N49,Configurações!$J$1:$V$9,8,0) -> 9 | AL49: =VLOOKUP(N49,Configurações!$J$1:$V$9,9,0) -> 12 | AM49: =VLOOKUP(N49,Configurações!$J$1:$V$9,10,0) -> 13 | AN49: =VLOOKUP(N49,Configurações!$J$1:$V$9,11,0) -> 16 | AO49: =VLOOKUP(N49,Configurações!$J$1:$V$9,12,0) ->  | AP49: =VLOOKUP(N49,Configurações!$J$1:$V$9,13,0) -> 
B50: 4 | K50: Academia | U50: Contabilidade | AE50: =IFERROR(VLOOKUP(N49,_xlfn.ANCHORARRAY($AQ$2),2,0),0) -> 65
B51: 3 | K51: Nr. de Alunos | N51: =IF(AF56<>"",AF56,"") -> 0 | O51: =IF(AG56<>"",AG56,"") -> 1 a 4 | P51: =IF(AH56<>"",AH56,"") -> 5 a 8 | Q51: =IF(AI56<>"",AI56,"") -> 9 a 12 | R51: =IF(AJ56<>"",AJ56,"") -> 13 a 16 | S51: =IF(AK56<>0,AK56,"") ->  | U51: Nr. de Alunos | W51: =N51 -> 0 | X51: =O51 -> 1 a 4 | Y51: 5 a 8 | Z51: 9 a 12 | AA51: 13 a 16 | AF51: =IF($N$49=$AE$2,COUNTIF($B$4:$B$100,">="&AE49)-COUNTIF($B$4:$B$100,">"&AF49), IF($N$49=$AF$2,COUNTIF($C$4:$C$100,">="&AE49)-COUNTIF($C$4:$C$100,">"&AF49), IF($N$49=$AG$2,COUNTIF($D$4:$D$100,">="&AE49)-COUNTIF($D$4:$D$100,">"&AF49), IF($N$49=$AH$2,COUNTIF($E$4:$E$100,">="&AE49)-COUNTIF($E$4:$E$100,">"&AF49), IF($N$49=$AI$2,COUNTIF($F$4:$F$100,">="&AE49)-COUNTIF($F$4:$F$100,">"&AF49), IF($N$49=$AJ$2,COUNTIF($G$4:$G$100,">="&AE49)-COUNTIF($G$4:$G$100,">"&AF49), IF($N$49=$AK$2,COUNTIF($H$4:$H$100,">="&AE49)-COUNTIF($H$4:$H$100,">"&AF49), IF($N$49="Sem Uso","")))))))) -> 0 | AG51: =IF($N$49=$AE$2,COUNTIF($B$4:$B$100,">="&AG49)-COUNTIF($B$4:$B$100,">"&AH49), IF($N$49=$AF$2,COUNTIF($C$4:$C$100,">="&AG49)-COUNTIF($C$4:$C$100,">"&AH49), IF($N$49=$AG$2,COUNTIF($D$4:$D$100,">="&AG49)-COUNTIF($D$4:$D$100,">"&AH49), IF($N$49=$AH$2,COUNTIF($E$4:$E$100,">="&AG49)-COUNTIF($E$4:$E$100,">"&AH49), IF($N$49=$AI$2,COUNTIF($F$4:$F$100,">="&AG49)-COUNTIF($F$4:$F$100,">"&AH49), IF($N$49=$AJ$2,COUNTIF($G$4:$G$100,">="&AG49)-COUNTIF($G$4:$G$100,">"&AH49), IF($N$49=$AK$2,COUNTIF($H$4:$H$100,">="&AG49)-COUNTIF($H$4:$H$100,">"&AH49), IF($N$49="Sem Uso","")))))))) -> 0 | AH51: =IF($N$49=$AE$2,COUNTIF($B$4:$B$100,">="&AI49)-COUNTIF($B$4:$B$100,">"&AJ49), IF($N$49=$AF$2,COUNTIF($C$4:$C$100,">="&AI49)-COUNTIF($C$4:$C$100,">"&AJ49), IF($N$49=$AG$2,COUNTIF($D$4:$D$100,">="&AI49)-COUNTIF($D$4:$D$100,">"&AJ49), IF($N$49=$AH$2,COUNTIF($E$4:$E$100,">="&AI49)-COUNTIF($E$4:$E$100,">"&AJ49), IF($N$49=$AI$2,COUNTIF($F$4:$F$100,">="&AI49)-COUNTIF($F$4:$F$100,">"&AJ49), IF($N$49=$AJ$2,COUNTIF($G$4:$G$100,">="&AI49)-COUNTIF($G$4:$G$100,">"&AJ49), IF($N$49=$AK$2,COUNTIF($H$4:$H$100,">="&AI49)-COUNTIF($H$4:$H$100,">"&AJ49), IF($N$49="Sem Uso","")))))))) -> 8 | AI51: =IF($N$49=$AE$2,COUNTIF($B$4:$B$100,">="&AK49)-COUNTIF($B$4:$B$100,">"&AL49), IF($N$49=$AF$2,COUNTIF($C$4:$C$100,">="&AK49)-COUNTIF($C$4:$C$100,">"&AL49), IF($N$49=$AG$2,COUNTIF($D$4:$D$100,">="&AK49)-COUNTIF($D$4:$D$100,">"&AL49), IF($N$49=$AH$2,COUNTIF($E$4:$E$100,">="&AK49)-COUNTIF($E$4:$E$100,">"&AL49), IF($N$49=$AI$2,COUNTIF($F$4:$F$100,">="&AK49)-COUNTIF($F$4:$F$100,">"&AL49), IF($N$49=$AJ$2,COUNTIF($G$4:$G$100,">="&AK49)-COUNTIF($G$4:$G$100,">"&AL49), IF($N$49=$AK$2,COUNTIF($H$4:$H$100,">="&AK49)-COUNTIF($H$4:$H$100,">"&AL49), IF($N$49="Sem Uso","")))))))) -> 1 | AJ51: =IF($N$49=$AE$2,COUNTIF($B$4:$B$100,">="&AM49)-COUNTIF($B$4:$B$100,">"&AN49), IF($N$49=$AF$2,COUNTIF($C$4:$C$100,">="&AM49)-COUNTIF($C$4:$C$100,">"&AN49), IF($N$49=$AG$2,COUNTIF($D$4:$D$100,">="&AM49)-COUNTIF($D$4:$D$100,">"&AN49), IF($N$49=$AH$2,COUNTIF($E$4:$E$100,">="&AM49)-COUNTIF($E$4:$E$100,">"&AN49), IF($N$49=$AI$2,COUNTIF($F$4:$F$100,">="&AM49)-COUNTIF($F$4:$F$100,">"&AN49), IF($N$49=$AJ$2,COUNTIF($G$4:$G$100,">="&AM49)-COUNTIF($G$4:$G$100,">"&AN49), IF($N$49=$AK$2,COUNTIF($H$4:$H$100,">="&AM49)-COUNTIF($H$4:$H$100,">"&AN49), IF($N$49="Sem Uso","")))))))) -> 0 | AK51: =IF($N$49=$AE$2,COUNTIF($B$4:$B$100,">="&AO49)-COUNTIF($B$4:$B$100,">"&AP49), IF($N$49=$AF$2,COUNTIF($C$4:$C$100,">="&AO49)-COUNTIF($C$4:$C$100,">"&AP49), IF($N$49=$AG$2,COUNTIF($D$4:$D$100,">="&AO49)-COUNTIF($D$4:$D$100,">"&AP49), IF($N$49=$AH$2,COUNTIF($E$4:$E$100,">="&AO49)-COUNTIF($E$4:$E$100,">"&AP49), IF($N$49=$AI$2,COUNTIF($F$4:$F$100,">="&AO49)-COUNTIF($F$4:$F$100,">"&AP49), IF($N$49=$AJ$2,COUNTIF($G$4:$G$100,">="&AO49)-COUNTIF($G$4:$G$100,">"&AP49), IF($N$49=$AK$2,COUNTIF($H$4:$H$100,">="&AO49)-COUNTIF($H$4:$H$100,">"&AP49), IF($N$49="Sem Uso","")))))))) -> 0
B52: 3 | K52: Valor da Aula | N52: =IF(AF58<>0,AF58,"") -> 17.66 | O52: 21.97 | P52: 26.08 | Q52: 29.92 | R52: 32.64 | U52: Valor da Aula | W52: =IFERROR(IF(N52<=$S$56,0,N52-$S$56),"") -> 17.66 | X52: 21.97 | Y52: 26.08 | Z52: 29.92 | AA52: 32.64 | AB52: 0
B53: 1 | K53: Nr. de Aulas | N53: =IF(AF56<>"",AF57,"") -> 0 | O53: 0 | P53: 8 | Q53: 1 | R53: 0 | U53: Nr. de Aulas | W53: =N53 -> 0 | X53: 0 | Y53: 8 | Z53: 1 | AA53: 0 | AE53: =IF(N53<>"",N53,"") -> 0 | AF53: 0 | AG53: 8 | AH53: 1 | AI53: 0
B54: 1 | K54: Valor | N54: =IFERROR(N52*N53,"") -> 0 | O54: 0 | P54: 208.64 | Q54: 29.92 | R54: 0 | U54: Valor | W54: =IFERROR(W52*W53,"") -> 0 | X54: 0 | Y54: 208.64 | Z54: 29.92 | AA54: 0 | AF54: =IF($N49<>"Sem Uso",VLOOKUP(N49,Configurações!$C$1:$I$8,2,0),"") -> 0 | AG54: =IF(N49<>"Sem Uso",VLOOKUP(N49,Configurações!$C$1:$I$8,3,0),"") -> 1 a 4 | AH54: =IF(N49<>"Sem Uso",VLOOKUP(N49,Configurações!$C$1:$I$8,4,0),"") -> 5 a 8 | AI54: =IF(N49<>"Sem Uso",VLOOKUP(N49,Configurações!$C$1:$I$8,5,0),"") -> 9 a 12 | AJ54: =IF(N49<>"Sem Uso",VLOOKUP(N49,Configurações!$C$1:$I$8,6,0),"") -> 13 a 16 | AK54: =IF(N49<>"Sem Uso",VLOOKUP(N49,Configurações!$C$1:$I$8,7,0),"") -> 0
B55: 2 | M55: Total de Alunos | Q55: =_xlfn.IFS(N49=$AE$2,$B$102,N49=$AF$2,$C$102,N49=$AG$2,$D$102,N49=$AH$2,$E$102,N49=$AI$2,$F$102,N49=$AJ$2,$G$102,N49=$AK$2,$H$102,N49="Sem Uso","") -> 65 | V55: Total de Alunos | Z55: =Q55 -> 65 | AE55: TABELA DE EQUIVALÊNCIA
B56: 4 | M56: Total de Aulas | Q56: =IF(Q55<>"",SUM(AE53:AJ53),"") -> 9 | R56: Registro | V56: Total de Aulas | Z56: =Q56 -> 9 | AE56: Nr. Alunos | AF56: =AF54 -> 0 | AG56: =IF(AG54<>0,AG54,"") -> 1 a 4 | AH56: =IF(AH54<>0,AH54,"") -> 5 a 8 | AI56: =IF(AI54<>0,AI54,"") -> 9 a 12 | AJ56: =IF(AJ54<>0,AJ54,"") -> 13 a 16 | AK56: =IF(AK54<>0,AK54,"") -> 
B57: 3 | M57: Total a Receber | Q57: =IF(Q55<>"",SUM(N54:S54),"") -> 238.56 | V57: Total a Receber | Z57: =IF(Z55<>"",SUM(W54:AB54),"") -> 238.56 | AE57: Aulas | AF57: =IF(AF56<>"",AF51,"") -> 0 | AG57: 0 | AH57: 8 | AI57: 1 | AJ57: 0
B58: 3 | AF58: =IFERROR(VLOOKUP(N49&R49,Configurações!$C$13:$I$47,2,0),"") -> 17.66 | AG58: =IFERROR(IF(AG56<>0,VLOOKUP(N49&R49,Configurações!$C$13:$I$47,3,0),""),"") -> 21.97 | AH58: =IFERROR(IF(AH56<>0,VLOOKUP(N49&R49,Configurações!$C$13:$I$47,4,0),""),"") -> 26.08 | AI58: =IFERROR(IF(AI56<>0,VLOOKUP(N49&R49,Configurações!$C$13:$I$47,5,0),""),"") -> 29.92 | AJ58: =IFERROR(IF(AJ56<>0,VLOOKUP(N49&R49,Configurações!$C$13:$I$47,6,0),""),"") -> 32.64 | AK58: =IFERROR(IF(AK56<>0,VLOOKUP(N49&R49,Configurações!$C$13:$I$47,7,0),""),"") -> 0
B59: 1
B60: 0 | K60: Modalidade | N60: Iniciação | Q60: Nível | R60: Prof. Nível B | AE60: =VLOOKUP(N60,Configurações!$J$1:$V$9,2,0) -> 0 | AF60: =VLOOKUP(N60,Configurações!$J$1:$V$9,3,0) -> 0 | AG60: =VLOOKUP(N60,Configurações!$J$1:$V$9,4,0) -> 1 | AH60: =VLOOKUP(N60,Configurações!$J$1:$V$9,5,0) -> 3 | AI60: =VLOOKUP(N60,Configurações!$J$1:$V$9,6,0) -> 4 | AJ60: =VLOOKUP(N60,Configurações!$J$1:$V$9,7,0) -> 6 | AK60: =VLOOKUP(N60,Configurações!$J$1:$V$9,8,0) -> 7 | AL60: =VLOOKUP(N60,Configurações!$J$1:$V$9,9,0) -> 8 | AM60: =VLOOKUP(N60,Configurações!$J$1:$V$9,10,0) -> 9 | AN60: =VLOOKUP(N60,Configurações!$J$1:$V$9,11,0) -> 10 | AO60: =VLOOKUP(N60,Configurações!$J$1:$V$9,12,0) ->  | AP60: =VLOOKUP(N60,Configurações!$J$1:$V$9,13,0) -> 
B61: 4 | K61: Academia | U61: Contabilidade | AE61: =IFERROR(VLOOKUP(N60,_xlfn.ANCHORARRAY($AQ$2),2,0),0) -> 0
B62: 5 | K62: Nr. de Alunos | N62: =IF(AF67<>"",AF67,"") -> 0 | O62: =IF(AG67<>"",AG67,"") -> 1 a 3 | P62: =IF(AH67<>"",AH67,"") -> 4 a 6 | Q62: =IF(AI67<>"",AI67,"") -> 7 a 8 | R62: =IF(AJ67<>"",AJ67,"") -> 9 a 10 | S62: =IF(AK67<>0,AK67,"") ->  | U62: Nr. de Alunos | W62: =N62 -> 0 | X62: =O62 -> 1 a 3 | Y62: 4 a 6 | Z62: 7 a 8 | AA62: 9 a 10 | AF62: =IF($N$60=$AE$2,COUNTIF($B$4:$B$100,">="&AE60)-COUNTIF($B$4:$B$100,">"&AF60), IF($N$60=$AF$2,COUNTIF($C$4:$C$100,">="&AE60)-COUNTIF($C$4:$C$100,">"&AF60), IF($N$60=$AG$2,COUNTIF($D$4:$D$100,">="&AE60)-COUNTIF($D$4:$D$100,">"&AF60), IF($N$60=$AH$2,COUNTIF($E$4:$E$100,">="&AE60)-COUNTIF($E$4:$E$100,">"&AF60), IF($N$60=$AI$2,COUNTIF($F$4:$F$100,">="&AE60)-COUNTIF($F$4:$F$100,">"&AF60), IF($N$60=$AJ$2,COUNTIF($G$4:$G$100,">="&AE60)-COUNTIF($G$4:$G$100,">"&AF60), IF($N$60=$AK$2,COUNTIF($H$4:$H$100,">="&AE60)-COUNTIF($H$4:$H$100,">"&AF60), IF($N$60="Sem Uso","")))))))) -> 0 | AG62: =IF($N$60=$AE$2,COUNTIF($B$4:$B$100,">="&AG60)-COUNTIF($B$4:$B$100,">"&AH60), IF($N$60=$AF$2,COUNTIF($C$4:$C$100,">="&AG60)-COUNTIF($C$4:$C$100,">"&AH60), IF($N$60=$AG$2,COUNTIF($D$4:$D$100,">="&AG60)-COUNTIF($D$4:$D$100,">"&AH60), IF($N$60=$AH$2,COUNTIF($E$4:$E$100,">="&AG60)-COUNTIF($E$4:$E$100,">"&AH60), IF($N$60=$AI$2,COUNTIF($F$4:$F$100,">="&AG60)-COUNTIF($F$4:$F$100,">"&AH60), IF($N$60=$AJ$2,COUNTIF($G$4:$G$100,">="&AG60)-COUNTIF($G$4:$G$100,">"&AH60), IF($N$60=$AK$2,COUNTIF($H$4:$H$100,">="&AG60)-COUNTIF($H$4:$H$100,">"&AH60), IF($N$60="Sem Uso","")))))))) -> 0 | AH62: =IF($N$60=$AE$2,COUNTIF($B$4:$B$100,">="&AI60)-COUNTIF($B$4:$B$100,">"&AJ60), IF($N$60=$AF$2,COUNTIF($C$4:$C$100,">="&AI60)-COUNTIF($C$4:$C$100,">"&AJ60), IF($N$60=$AG$2,COUNTIF($D$4:$D$100,">="&AI60)-COUNTIF($D$4:$D$100,">"&AJ60), IF($N$60=$AH$2,COUNTIF($E$4:$E$100,">="&AI60)-COUNTIF($E$4:$E$100,">"&AJ60), IF($N$60=$AI$2,COUNTIF($F$4:$F$100,">="&AI60)-COUNTIF($F$4:$F$100,">"&AJ60), IF($N$60=$AJ$2,COUNTIF($G$4:$G$100,">="&AI60)-COUNTIF($G$4:$G$100,">"&AJ60), IF($N$60=$AK$2,COUNTIF($H$4:$H$100,">="&AI60)-COUNTIF($H$4:$H$100,">"&AJ60), IF($N$60="Sem Uso","")))))))) -> 0 | AI62: =IF($N$60=$AE$2,COUNTIF($B$4:$B$100,">="&AK60)-COUNTIF($B$4:$B$100,">"&AL60), IF($N$60=$AF$2,COUNTIF($C$4:$C$100,">="&AK60)-COUNTIF($C$4:$C$100,">"&AL60), IF($N$60=$AG$2,COUNTIF($D$4:$D$100,">="&AK60)-COUNTIF($D$4:$D$100,">"&AL60), IF($N$60=$AH$2,COUNTIF($E$4:$E$100,">="&AK60)-COUNTIF($E$4:$E$100,">"&AL60), IF($N$60=$AI$2,COUNTIF($F$4:$F$100,">="&AK60)-COUNTIF($F$4:$F$100,">"&AL60), IF($N$60=$AJ$2,COUNTIF($G$4:$G$100,">="&AK60)-COUNTIF($G$4:$G$100,">"&AL60), IF($N$60=$AK$2,COUNTIF($H$4:$H$100,">="&AK60)-COUNTIF($H$4:$H$100,">"&AL60), IF($N$60="Sem Uso","")))))))) -> 0 | AJ62: =IF($N$60=$AE$2,COUNTIF($B$4:$B$100,">="&AM60)-COUNTIF($B$4:$B$100,">"&AN60), IF($N$60=$AF$2,COUNTIF($C$4:$C$100,">="&AM60)-COUNTIF($C$4:$C$100,">"&AN60), IF($N$60=$AG$2,COUNTIF($D$4:$D$100,">="&AM60)-COUNTIF($D$4:$D$100,">"&AN60), IF($N$60=$AH$2,COUNTIF($E$4:$E$100,">="&AM60)-COUNTIF($E$4:$E$100,">"&AN60), IF($N$60=$AI$2,COUNTIF($F$4:$F$100,">="&AM60)-COUNTIF($F$4:$F$100,">"&AN60), IF($N$60=$AJ$2,COUNTIF($G$4:$G$100,">="&AM60)-COUNTIF($G$4:$G$100,">"&AN60), IF($N$60=$AK$2,COUNTIF($H$4:$H$100,">="&AM60)-COUNTIF($H$4:$H$100,">"&AN60), IF($N$60="Sem Uso","")))))))) -> 0 | AK62: =IF($N$60=$AE$2,COUNTIF($B$4:$B$100,">="&AO60)-COUNTIF($B$4:$B$100,">"&AP60), IF($N$60=$AF$2,COUNTIF($C$4:$C$100,">="&AO60)-COUNTIF($C$4:$C$100,">"&AP60), IF($N$60=$AG$2,COUNTIF($D$4:$D$100,">="&AO60)-COUNTIF($D$4:$D$100,">"&AP60), IF($N$60=$AH$2,COUNTIF($E$4:$E$100,">="&AO60)-COUNTIF($E$4:$E$100,">"&AP60), IF($N$60=$AI$2,COUNTIF($F$4:$F$100,">="&AO60)-COUNTIF($F$4:$F$100,">"&AP60), IF($N$60=$AJ$2,COUNTIF($G$4:$G$100,">="&AO60)-COUNTIF($G$4:$G$100,">"&AP60), IF($N$60=$AK$2,COUNTIF($H$4:$H$100,">="&AO60)-COUNTIF($H$4:$H$100,">"&AP60), IF($N$60="Sem Uso","")))))))) -> 0
B63: 1 | K63: Valor da Aula | N63: =IF(AF69<>0,AF69,"") -> 17.66 | O63: 23.33 | P63: 27.45 | Q63: 30.88 | R63: 34.09 | U63: Valor da Aula | W63: =IFERROR(IF(N63<=$S$67,0,N63-$S$67),"") -> 17.66 | X63: 23.33 | Y63: 27.45 | Z63: 30.88 | AA63: 34.09 | AB63: 0
B64: 1 | K64: Nr. de Aulas | N64: =IF(AF67<>"",AF68,"") -> 0 | O64: 0 | P64: 0 | Q64: 0 | R64: 0 | U64: Nr. de Aulas | W64: =N64 -> 0 | X64: 0 | Y64: 0 | Z64: 0 | AA64: 0 | AE64: =IF(N64<>"",N64,"") -> 0 | AF64: 0 | AG64: 0 | AH64: 0 | AI64: 0
B65: 3 | K65: Valor | N65: =IFERROR(N63*N64,"") -> 0 | O65: 0 | P65: 0 | Q65: 0 | R65: 0 | U65: Valor | W65: =IFERROR(W63*W64,"") -> 0 | X65: 0 | Y65: 0 | Z65: 0 | AA65: 0 | AF65: =IF($N60<>"Sem Uso",VLOOKUP(N60,Configurações!$C$1:$I$8,2,0),"") -> 0 | AG65: =IF(N60<>"Sem Uso",VLOOKUP(N60,Configurações!$C$1:$I$8,3,0),"") -> 1 a 3 | AH65: =IF(N60<>"Sem Uso",VLOOKUP(N60,Configurações!$C$1:$I$8,4,0),"") -> 4 a 6 | AI65: =IF(N60<>"Sem Uso",VLOOKUP(N60,Configurações!$C$1:$I$8,5,0),"") -> 7 a 8 | AJ65: =IF(N60<>"Sem Uso",VLOOKUP(N60,Configurações!$C$1:$I$8,6,0),"") -> 9 a 10 | AK65: =IF(N60<>"Sem Uso",VLOOKUP(N60,Configurações!$C$1:$I$8,7,0),"") -> 0
B66: 3 | M66: Total de Alunos | Q66: =_xlfn.IFS(N60=$AE$2,$B$102,N60=$AF$2,$C$102,N60=$AG$2,$D$102,N60=$AH$2,$E$102,N60=$AI$2,$F$102,N60=$AJ$2,$G$102,N60=$AK$2,$H$102,N60="Sem Uso","") -> 0 | V66: Total de Alunos | Z66: =Q66 -> 0 | AE66: TABELA DE EQUIVALÊNCIA
M67: Total de Aulas | Q67: =IF(Q66<>"",SUM(AE64:AJ64),"") -> 0 | R67: Registro | V67: Total de Aulas | Z67: =Q67 -> 0 | AE67: Nr. Alunos | AF67: =AF65 -> 0 | AG67: =IF(AG65<>0,AG65,"") -> 1 a 3 | AH67: =IF(AH65<>0,AH65,"") -> 4 a 6 | AI67: =IF(AI65<>0,AI65,"") -> 7 a 8 | AJ67: =IF(AJ65<>0,AJ65,"") -> 9 a 10 | AK67: =IF(AK65<>0,AK65,"") -> 
M68: Total a Receber | Q68: =IF(Q66<>"",SUM(N65:S65),"") -> 0 | V68: Total a Receber | Z68: =IF(Z66<>"",SUM(W65:AB65),"") -> 0 | AE68: Aulas | AF68: =IF(AF67<>"",AF62,"") -> 0 | AG68: 0 | AH68: 0 | AI68: 0 | AJ68: 0
AF69: =IFERROR(VLOOKUP(N60&R60,Configurações!$C$13:$I$47,2,0),"") -> 17.66 | AG69: =IFERROR(IF(AG67<>0,VLOOKUP(N60&R60,Configurações!$C$13:$I$47,3,0),""),"") -> 23.33 | AH69: =IFERROR(IF(AH67<>0,VLOOKUP(N60&R60,Configurações!$C$13:$I$47,4,0),""),"") -> 27.45 | AI69: =IFERROR(IF(AI67<>0,VLOOKUP(N60&R60,Configurações!$C$13:$I$47,5,0),""),"") -> 30.88 | AJ69: =IFERROR(IF(AJ67<>0,VLOOKUP(N60&R60,Configurações!$C$13:$I$47,6,0),""),"") -> 34.09 | AK69: =IFERROR(IF(AK67<>0,VLOOKUP(N60&R60,Configurações!$C$13:$I$47,7,0),""),"") -> 0
K71: Modalidade | N71: Hidroginástica | Q71: Nível | R71: Prof. Nível B | AE71: =VLOOKUP(N71,Configurações!$J$1:$V$9,2,0) -> 0 | AF71: =VLOOKUP(N71,Configurações!$J$1:$V$9,3,0) -> 0 | AG71: =VLOOKUP(N71,Configurações!$J$1:$V$9,4,0) -> 1 | AH71: =VLOOKUP(N71,Configurações!$J$1:$V$9,5,0) -> 7 | AI71: =VLOOKUP(N71,Configurações!$J$1:$V$9,6,0) -> 8 | AJ71: =VLOOKUP(N71,Configurações!$J$1:$V$9,7,0) -> 15 | AK71: =VLOOKUP(N71,Configurações!$J$1:$V$9,8,0) -> 16 | AL71: =VLOOKUP(N71,Configurações!$J$1:$V$9,9,0) -> 22 | AM71: =VLOOKUP(N71,Configurações!$J$1:$V$9,10,0) -> 23 | AN71: =VLOOKUP(N71,Configurações!$J$1:$V$9,11,0) -> 30 | AO71: =VLOOKUP(N71,Configurações!$J$1:$V$9,12,0) ->  | AP71: =VLOOKUP(N71,Configurações!$J$1:$V$9,13,0) -> 
K72: Academia | U72: Contabilidade | AE72: =IFERROR(VLOOKUP(N71,_xlfn.ANCHORARRAY($AQ$2),2,0),0) -> 80
K73: Nr. de Alunos | N73: =IF(AF78<>"",AF78,"") -> 0 | O73: =IF(AG78<>"",AG78,"") -> 1 a 7 | P73: =IF(AH78<>"",AH78,"") -> 8 a 15 | Q73: =IF(AI78<>"",AI78,"") -> 16 a 22 | R73: =IF(AJ78<>"",AJ78,"") -> 23 a 30 | S73: =IF(AK78<>0,AK78,"") ->  | U73: Nr. de Alunos | W73: =N73 -> 0 | X73: 1 a 7 | Y73: 8 a 15 | Z73: 16 a 22 | AA73: 23 a 30 | AF73: =IF($N$71=$AE$2,COUNTIF($B$4:$B$100,">="&AE71)-COUNTIF($B$4:$B$100,">"&AF71), IF($N$71=$AF$2,COUNTIF($C$4:$C$100,">="&AE71)-COUNTIF($C$4:$C$100,">"&AF71), IF($N$71=$AG$2,COUNTIF($D$4:$D$100,">="&AE71)-COUNTIF($D$4:$D$100,">"&AF71), IF($N$71=$AH$2,COUNTIF($E$4:$E$100,">="&AE71)-COUNTIF($E$4:$E$100,">"&AF71), IF($N$71=$AI$2,COUNTIF($F$4:$F$100,">="&AE71)-COUNTIF($F$4:$F$100,">"&AF71), IF($N$71=$AJ$2,COUNTIF($G$4:$G$100,">="&AE71)-COUNTIF($G$4:$G$100,">"&AF71), IF($N$71=$AK$2,COUNTIF($H$4:$H$100,">="&AE71)-COUNTIF($H$4:$H$100,">"&AF71), IF($N$71="Sem Uso","")))))))) -> 1 | AG73: =IF($N$71=$AE$2,COUNTIF($B$4:$B$100,">="&AG71)-COUNTIF($B$4:$B$100,">"&AH71), IF($N$71=$AF$2,COUNTIF($C$4:$C$100,">="&AG71)-COUNTIF($C$4:$C$100,">"&AH71), IF($N$71=$AG$2,COUNTIF($D$4:$D$100,">="&AG71)-COUNTIF($D$4:$D$100,">"&AH71), IF($N$71=$AH$2,COUNTIF($E$4:$E$100,">="&AG71)-COUNTIF($E$4:$E$100,">"&AH71), IF($N$71=$AI$2,COUNTIF($F$4:$F$100,">="&AG71)-COUNTIF($F$4:$F$100,">"&AH71), IF($N$71=$AJ$2,COUNTIF($G$4:$G$100,">="&AG71)-COUNTIF($G$4:$G$100,">"&AH71), IF($N$71=$AK$2,COUNTIF($H$4:$H$100,">="&AG71)-COUNTIF($H$4:$H$100,">"&AH71), IF($N$71="Sem Uso","")))))))) -> 5 | AH73: =IF($N$71=$AE$2,COUNTIF($B$4:$B$100,">="&AI71)-COUNTIF($B$4:$B$100,">"&AJ71), IF($N$71=$AF$2,COUNTIF($C$4:$C$100,">="&AI71)-COUNTIF($C$4:$C$100,">"&AJ71), IF($N$71=$AG$2,COUNTIF($D$4:$D$100,">="&AI71)-COUNTIF($D$4:$D$100,">"&AJ71), IF($N$71=$AH$2,COUNTIF($E$4:$E$100,">="&AI71)-COUNTIF($E$4:$E$100,">"&AJ71), IF($N$71=$AI$2,COUNTIF($F$4:$F$100,">="&AI71)-COUNTIF($F$4:$F$100,">"&AJ71), IF($N$71=$AJ$2,COUNTIF($G$4:$G$100,">="&AI71)-COUNTIF($G$4:$G$100,">"&AJ71), IF($N$71=$AK$2,COUNTIF($H$4:$H$100,">="&AI71)-COUNTIF($H$4:$H$100,">"&AJ71), IF($N$71="Sem Uso","")))))))) -> 6 | AI73: =IF($N$71=$AE$2,COUNTIF($B$4:$B$100,">="&AK71)-COUNTIF($B$4:$B$100,">"&AL71), IF($N$71=$AF$2,COUNTIF($C$4:$C$100,">="&AK71)-COUNTIF($C$4:$C$100,">"&AL71), IF($N$71=$AG$2,COUNTIF($D$4:$D$100,">="&AK71)-COUNTIF($D$4:$D$100,">"&AL71), IF($N$71=$AH$2,COUNTIF($E$4:$E$100,">="&AK71)-COUNTIF($E$4:$E$100,">"&AL71), IF($N$71=$AI$2,COUNTIF($F$4:$F$100,">="&AK71)-COUNTIF($F$4:$F$100,">"&AL71), IF($N$71=$AJ$2,COUNTIF($G$4:$G$100,">="&AK71)-COUNTIF($G$4:$G$100,">"&AL71), IF($N$71=$AK$2,COUNTIF($H$4:$H$100,">="&AK71)-COUNTIF($H$4:$H$100,">"&AL71), IF($N$71="Sem Uso","")))))))) -> 0 | AJ73: =IF($N$71=$AE$2,COUNTIF($B$4:$B$100,">="&AM71)-COUNTIF($B$4:$B$100,">"&AN71), IF($N$71=$AF$2,COUNTIF($C$4:$C$100,">="&AM71)-COUNTIF($C$4:$C$100,">"&AN71), IF($N$71=$AG$2,COUNTIF($D$4:$D$100,">="&AM71)-COUNTIF($D$4:$D$100,">"&AN71), IF($N$71=$AH$2,COUNTIF($E$4:$E$100,">="&AM71)-COUNTIF($E$4:$E$100,">"&AN71), IF($N$71=$AI$2,COUNTIF($F$4:$F$100,">="&AM71)-COUNTIF($F$4:$F$100,">"&AN71), IF($N$71=$AJ$2,COUNTIF($G$4:$G$100,">="&AM71)-COUNTIF($G$4:$G$100,">"&AN71), IF($N$71=$AK$2,COUNTIF($H$4:$H$100,">="&AM71)-COUNTIF($H$4:$H$100,">"&AN71), IF($N$71="Sem Uso","")))))))) -> 0 | AK73: =IF($N$71=$AE$2,COUNTIF($B$4:$B$100,">="&AO71)-COUNTIF($B$4:$B$100,">"&AP71), IF($N$71=$AF$2,COUNTIF($C$4:$C$100,">="&AO71)-COUNTIF($C$4:$C$100,">"&AP71), IF($N$71=$AG$2,COUNTIF($D$4:$D$100,">="&AO71)-COUNTIF($D$4:$D$100,">"&AP71), IF($N$71=$AH$2,COUNTIF($E$4:$E$100,">="&AO71)-COUNTIF($E$4:$E$100,">"&AP71), IF($N$71=$AI$2,COUNTIF($F$4:$F$100,">="&AO71)-COUNTIF($F$4:$F$100,">"&AP71), IF($N$71=$AJ$2,COUNTIF($G$4:$G$100,">="&AO71)-COUNTIF($G$4:$G$100,">"&AP71), IF($N$71=$AK$2,COUNTIF($H$4:$H$100,">="&AO71)-COUNTIF($H$4:$H$100,">"&AP71), IF($N$71="Sem Uso","")))))))) -> 0
K74: Valor da Aula | N74: =IF(AF80<>0,AF80,"") -> 17.66 | O74: 26.08 | P74: 30.2 | Q74: 35.68 | R74: 41.17 | U74: Valor da Aula | W74: =IFERROR(IF(N74<=$S$78,0,N74-$S$78),"") -> 17.66 | X74: 26.08 | Y74: 30.2 | Z74: 35.68 | AA74: 41.17 | AB74: 0
K75: Nr. de Aulas | N75: =IF(AF78<>"",AF79,"") -> 1 | O75: 5 | P75: 6 | Q75: 0 | R75: 0 | U75: Nr. de Aulas | W75: =N75 -> 1 | X75: 5 | Y75: 6 | Z75: 0 | AA75: 0 | AE75: =IF(N75<>"",N75,"") -> 1 | AF75: 5 | AG75: 6 | AH75: 0 | AI75: 0
K76: Valor | N76: =IFERROR(N74*N75,"") -> 17.66 | O76: 130.4 | P76: 181.2 | Q76: 0 | R76: 0 | U76: Valor | W76: =IFERROR(W74*W75,"") -> 17.66 | X76: 130.4 | Y76: 181.2 | Z76: 0 | AA76: 0 | AF76: =IF($N71<>"Sem Uso",VLOOKUP(N71,Configurações!$C$1:$I$8,2,0),"") -> 0 | AG76: =IF(N71<>"Sem Uso",VLOOKUP(N71,Configurações!$C$1:$I$8,3,0),"") -> 1 a 7 | AH76: =IF(N71<>"Sem Uso",VLOOKUP(N71,Configurações!$C$1:$I$8,4,0),"") -> 8 a 15 | AI76: =IF(N71<>"Sem Uso",VLOOKUP(N71,Configurações!$C$1:$I$8,5,0),"") -> 16 a 22 | AJ76: =IF(N71<>"Sem Uso",VLOOKUP(N71,Configurações!$C$1:$I$8,6,0),"") -> 23 a 30 | AK76: =IF(N71<>"Sem Uso",VLOOKUP(N71,Configurações!$C$1:$I$8,7,0),"") -> 0
M77: Total de Alunos | Q77: =_xlfn.IFS(N71=$AE$2,$B$102,N71=$AF$2,$C$102,N71=$AG$2,$D$102,N71=$AH$2,$E$102,N71=$AI$2,$F$102,N71=$AJ$2,$G$102,N71=$AK$2,$H$102,N71="Sem Uso","") -> 80 | V77: Total de Alunos | Z77: =Q77 -> 80 | AE77: TABELA DE EQUIVALÊNCIA
M78: Total de Aulas | Q78: =IF(Q77<>"",SUM(AE75:AJ75),"") -> 12 | R78: Registro | V78: Total de Aulas | Z78: =Q78 -> 12 | AE78: Nr. Alunos | AF78: =AF76 -> 0 | AG78: =IF(AG76<>0,AG76,"") -> 1 a 7 | AH78: =IF(AH76<>0,AH76,"") -> 8 a 15 | AI78: =IF(AI76<>0,AI76,"") -> 16 a 22 | AJ78: =IF(AJ76<>0,AJ76,"") -> 23 a 30 | AK78: =IF(AK76<>0,AK76,"") -> 
M79: Total a Receber | Q79: =IF(Q77<>"",SUM(N76:S76),"") -> 329.26 | V79: Total a Receber | Z79: =IF(Z77<>"",SUM(W76:AB76),"") -> 329.26 | AE79: Aulas | AF79: =IF(AF78<>"",AF73,"") -> 1 | AG79: 5 | AH79: 6 | AI79: 0 | AJ79: 0
AF80: =IFERROR(VLOOKUP(N71&R71,Configurações!$C$13:$I$47,2,0),"") -> 17.66 | AG80: =IFERROR(IF(AG78<>0,VLOOKUP(N71&R71,Configurações!$C$13:$I$47,3,0),""),"") -> 26.08 | AH80: =IFERROR(IF(AH78<>0,VLOOKUP(N71&R71,Configurações!$C$13:$I$47,4,0),""),"") -> 30.2 | AI80: =IFERROR(IF(AI78<>0,VLOOKUP(N71&R71,Configurações!$C$13:$I$47,5,0),""),"") -> 35.68 | AJ80: =IFERROR(IF(AJ78<>0,VLOOKUP(N71&R71,Configurações!$C$13:$I$47,6,0),""),"") -> 41.17 | AK80: =IFERROR(IF(AK78<>0,VLOOKUP(N71&R71,Configurações!$C$13:$I$47,7,0),""),"") -> 0
K82: Modalidade | N82: Sem Uso | Q82: Nível | R82: Prof. Especial | AE82: =VLOOKUP(N82,Configurações!$J$1:$V$9,2,0) ->  | AF82: =VLOOKUP(N82,Configurações!$J$1:$V$9,3,0) ->  | AG82: =VLOOKUP(N82,Configurações!$J$1:$V$9,4,0) ->  | AH82: =VLOOKUP(N82,Configurações!$J$1:$V$9,5,0) ->  | AI82: =VLOOKUP(N82,Configurações!$J$1:$V$9,6,0) ->  | AJ82: =VLOOKUP(N82,Configurações!$J$1:$V$9,7,0) ->  | AK82: =VLOOKUP(N82,Configurações!$J$1:$V$9,8,0) ->  | AL82: =VLOOKUP(N82,Configurações!$J$1:$V$9,9,0) ->  | AM82: =VLOOKUP(N82,Configurações!$J$1:$V$9,10,0) ->  | AN82: =VLOOKUP(N82,Configurações!$J$1:$V$9,11,0) ->  | AO82: =VLOOKUP(N82,Configurações!$J$1:$V$9,12,0) ->  | AP82: =VLOOKUP(N82,Configurações!$J$1:$V$9,13,0) -> 
K83: Academia | U83: Contabilidade | AE83: =IFERROR(VLOOKUP(N82,_xlfn.ANCHORARRAY($AQ$2),2,0),0) -> 0
K84: Nr. de Alunos | N84: =IF(AF89<>"",AF89,"") ->  | O84: =IF(AG89<>"",AG89,"") ->  | P84: =IF(AH89<>"",AH89,"") ->  | Q84: =IF(AI89<>"",AI89,"") ->  | R84: =IF(AJ89<>"",AJ89,"") ->  | S84: =IF(AK89<>0,AK89,"") ->  | U84: Nr. de Alunos | W84: =N84 ->  | X84: =O84 ->  | AF84: =IF($N$82=$AE$2,COUNTIF($B$4:$B$100,">="&AE82)-COUNTIF($B$4:$B$100,">"&AF82), IF($N$82=$AF$2,COUNTIF($C$4:$C$100,">="&AE82)-COUNTIF($C$4:$C$100,">"&AF82), IF($N$82=$AG$2,COUNTIF($D$4:$D$100,">="&AE82)-COUNTIF($D$4:$D$100,">"&AF82), IF($N$82=$AH$2,COUNTIF($E$4:$E$100,">="&AE82)-COUNTIF($E$4:$E$100,">"&AF82), IF($N$82=$AI$2,COUNTIF($F$4:$F$100,">="&AE82)-COUNTIF($F$4:$F$100,">"&AF82), IF($N$82=$AJ$2,COUNTIF($G$4:$G$100,">="&AE82)-COUNTIF($G$4:$G$100,">"&AF82), IF($N$82=$AK$2,COUNTIF($H$4:$H$100,">="&AE82)-COUNTIF($H$4:$H$100,">"&AF82), IF($N$82="Sem Uso","")))))))) ->  | AG84: =IF($N$82=$AE$2,COUNTIF($B$4:$B$100,">="&AG82)-COUNTIF($B$4:$B$100,">"&AH82), IF($N$82=$AF$2,COUNTIF($C$4:$C$100,">="&AG82)-COUNTIF($C$4:$C$100,">"&AH82), IF($N$82=$AG$2,COUNTIF($D$4:$D$100,">="&AG82)-COUNTIF($D$4:$D$100,">"&AH82), IF($N$82=$AH$2,COUNTIF($E$4:$E$100,">="&AG82)-COUNTIF($E$4:$E$100,">"&AH82), IF($N$82=$AI$2,COUNTIF($F$4:$F$100,">="&AG82)-COUNTIF($F$4:$F$100,">"&AH82), IF($N$82=$AJ$2,COUNTIF($G$4:$G$100,">="&AG82)-COUNTIF($G$4:$G$100,">"&AH82), IF($N$82=$AK$2,COUNTIF($H$4:$H$100,">="&AG82)-COUNTIF($H$4:$H$100,">"&AH82), IF($N$82="Sem Uso","")))))))) ->  | AH84: =IF($N$82=$AE$2,COUNTIF($B$4:$B$100,">="&AI82)-COUNTIF($B$4:$B$100,">"&AJ82), IF($N$82=$AF$2,COUNTIF($C$4:$C$100,">="&AI82)-COUNTIF($C$4:$C$100,">"&AJ82), IF($N$82=$AG$2,COUNTIF($D$4:$D$100,">="&AI82)-COUNTIF($D$4:$D$100,">"&AJ82), IF($N$82=$AH$2,COUNTIF($E$4:$E$100,">="&AI82)-COUNTIF($E$4:$E$100,">"&AJ82), IF($N$82=$AI$2,COUNTIF($F$4:$F$100,">="&AI82)-COUNTIF($F$4:$F$100,">"&AJ82), IF($N$82=$AJ$2,COUNTIF($G$4:$G$100,">="&AI82)-COUNTIF($G$4:$G$100,">"&AJ82), IF($N$82=$AK$2,COUNTIF($H$4:$H$100,">="&AI82)-COUNTIF($H$4:$H$100,">"&AJ82), IF($N$82="Sem Uso","")))))))) ->  | AI84: =IF($N$82=$AE$2,COUNTIF($B$4:$B$100,">="&AK82)-COUNTIF($B$4:$B$100,">"&AL82), IF($N$82=$AF$2,COUNTIF($C$4:$C$100,">="&AK82)-COUNTIF($C$4:$C$100,">"&AL82), IF($N$82=$AG$2,COUNTIF($D$4:$D$100,">="&AK82)-COUNTIF($D$4:$D$100,">"&AL82), IF($N$82=$AH$2,COUNTIF($E$4:$E$100,">="&AK82)-COUNTIF($E$4:$E$100,">"&AL82), IF($N$82=$AI$2,COUNTIF($F$4:$F$100,">="&AK82)-COUNTIF($F$4:$F$100,">"&AL82), IF($N$82=$AJ$2,COUNTIF($G$4:$G$100,">="&AK82)-COUNTIF($G$4:$G$100,">"&AL82), IF($N$82=$AK$2,COUNTIF($H$4:$H$100,">="&AK82)-COUNTIF($H$4:$H$100,">"&AL82), IF($N$82="Sem Uso","")))))))) ->  | AJ84: =IF($N$82=$AE$2,COUNTIF($B$4:$B$100,">="&AM82)-COUNTIF($B$4:$B$100,">"&AN82), IF($N$82=$AF$2,COUNTIF($C$4:$C$100,">="&AM82)-COUNTIF($C$4:$C$100,">"&AN82), IF($N$82=$AG$2,COUNTIF($D$4:$D$100,">="&AM82)-COUNTIF($D$4:$D$100,">"&AN82), IF($N$82=$AH$2,COUNTIF($E$4:$E$100,">="&AM82)-COUNTIF($E$4:$E$100,">"&AN82), IF($N$82=$AI$2,COUNTIF($F$4:$F$100,">="&AM82)-COUNTIF($F$4:$F$100,">"&AN82), IF($N$82=$AJ$2,COUNTIF($G$4:$G$100,">="&AM82)-COUNTIF($G$4:$G$100,">"&AN82), IF($N$82=$AK$2,COUNTIF($H$4:$H$100,">="&AM82)-COUNTIF($H$4:$H$100,">"&AN82), IF($N$82="Sem Uso","")))))))) ->  | AK84: =IF($N$82=$AE$2,COUNTIF($B$4:$B$100,">="&AO82)-COUNTIF($B$4:$B$100,">"&AP82), IF($N$82=$AF$2,COUNTIF($C$4:$C$100,">="&AO82)-COUNTIF($C$4:$C$100,">"&AP82), IF($N$82=$AG$2,COUNTIF($D$4:$D$100,">="&AO82)-COUNTIF($D$4:$D$100,">"&AP82), IF($N$82=$AH$2,COUNTIF($E$4:$E$100,">="&AO82)-COUNTIF($E$4:$E$100,">"&AP82), IF($N$82=$AI$2,COUNTIF($F$4:$F$100,">="&AO82)-COUNTIF($F$4:$F$100,">"&AP82), IF($N$82=$AJ$2,COUNTIF($G$4:$G$100,">="&AO82)-COUNTIF($G$4:$G$100,">"&AP82), IF($N$82=$AK$2,COUNTIF($H$4:$H$100,">="&AO82)-COUNTIF($H$4:$H$100,">"&AP82), IF($N$82="Sem Uso","")))))))) -> 
K85: Valor da Aula | N85: =IF(AF91<>0,AF91,"") ->  | U85: Valor da Aula | W85: =IFERROR(IF(N85<=$S$89,0,N85-$S$89),"") -> 0 | X85: 0 | Y85: 0 | Z85: 0 | AA85: 0 | AB85: 0
K86: Nr. de Aulas | N86: =IF(AF89<>"",AF90,"") ->  | U86: Nr. de Aulas | W86: =N86 ->  | AE86: =IF(N86<>"",N86,"") -> 
K87: Valor | N87: =IFERROR(N85*N86,"") ->  | U87: Valor | W87: =IFERROR(W85*W86,"") ->  | AF87: =IF($N82<>"Sem Uso",VLOOKUP(N82,Configurações!$C$1:$I$8,2,0),"") ->  | AG87: =IF(N82<>"Sem Uso",VLOOKUP(N82,Configurações!$C$1:$I$8,3,0),"") ->  | AH87: =IF(N82<>"Sem Uso",VLOOKUP(N82,Configurações!$C$1:$I$8,4,0),"") ->  | AI87: =IF(N82<>"Sem Uso",VLOOKUP(N82,Configurações!$C$1:$I$8,5,0),"") ->  | AJ87: =IF(N82<>"Sem Uso",VLOOKUP(N82,Configurações!$C$1:$I$8,6,0),"") ->  | AK87: =IF(N82<>"Sem Uso",VLOOKUP(N82,Configurações!$C$1:$I$8,7,0),"") -> 
M88: Total de Alunos | Q88: =_xlfn.IFS(N82=$AE$2,$B$102,N82=$AF$2,$C$102,N82=$AG$2,$D$102,N82=$AH$2,$E$102,N82=$AI$2,$F$102,N82=$AJ$2,$G$102,N82=$AK$2,$H$102,N82="Sem Uso","") ->  | V88: Total de Alunos | Z88: =Q88 ->  | AE88: TABELA DE EQUIVALÊNCIA
M89: Total de Aulas | Q89: =IF(Q88<>"",SUM(AE86:AJ86),"") ->  | R89: Registro | V89: Total de Aulas | Z89: =Q89 ->  | AE89: Nr. Alunos | AF89: =AF87 ->  | AG89: =IF(AG87<>0,AG87,"") ->  | AH89: =IF(AH87<>0,AH87,"") ->  | AI89: =IF(AI87<>0,AI87,"") ->  | AJ89: =IF(AJ87<>0,AJ87,"") ->  | AK89: =IF(AK87<>0,AK87,"") -> 
M90: Total a Receber | Q90: =IF(Q88<>"",SUM(N87:S87),"") ->  | V90: Total a Receber | Z90: =IF(Z88<>"",SUM(W87:AB87),"") ->  | AE90: Aulas | AF90: =IF(AF89<>"",AF84,"") -> 
AF91: =IFERROR(VLOOKUP(N82&R82,Configurações!$C$13:$I$47,2,0),"") ->  | AG91: =IFERROR(IF(AG89<>0,VLOOKUP(N82&R82,Configurações!$C$13:$I$47,3,0),""),"") ->  | AH91: =IFERROR(IF(AH89<>0,VLOOKUP(N82&R82,Configurações!$C$13:$I$47,4,0),""),"") ->  | AI91: =IFERROR(IF(AI89<>0,VLOOKUP(N82&R82,Configurações!$C$13:$I$47,5,0),""),"") ->  | AJ91: =IFERROR(IF(AJ89<>0,VLOOKUP(N82&R82,Configurações!$C$13:$I$47,6,0),""),"") ->  | AK91: =IFERROR(IF(AK89<>0,VLOOKUP(N82&R82,Configurações!$C$13:$I$47,7,0),""),"") -> 
B102: =SUM($B$4:$B$100) -> 184 | C102: =SUM($C$4:$C$100) -> 0 | D102: =SUM($D$4:$D$100) -> 53 | E102: =SUM($E$4:$E$100) -> 65 | F102: =SUM($F$4:$F$100) -> 0 | G102: =SUM($G$4:$G$100) -> 0 | H102: =SUM($H$4:$H$100) -> 80

Sheet Juliano Gallo Silva
BC1: Valores | BH1: Aulas | BM1: Alunos
B2: Nat. Adulta | C2: Nat. Bebê | D2: Aprend. A | E2: Aprend. B | F2: Adaptação | G2: Iniciação | H2: Hidrogin. | J2: Professor(a) | M2: =AN5 -> Juliano Gallo Silva | X2: Referência | Z2: 2025-07-01 | AN2: Natação Adulta | AO2: Natação Bebê | AP2: Aprendizagem A | AQ2: Aprendizagem B | AR2: Adaptação | AS2: Iniciação | AT2: Hidroginástica | AZ2: =TRANSPOSE(AN2:AT3) -> Natação Adulta | BA2: 180 | BC2: TOT NA | BD2: TOT BB | BE2: TOT IN | BF2: TOT HI | BH2: TOT NA | BI2: TOT BB | BJ2: TOT IN | BK2: TOT HI | BM2: TOT NA | BN2: TOT BB | BO2: TOT IN | BP2: TOT HI
AN3: =B102 -> 180 | AO3: 0 | AP3: 83 | AQ3: 41 | AR3: 0 | AS3: 51 | AT3: 258 | AZ3: Natação Bebê | BA3: 0
B4: 4 | D4: 4 | E4: 7 | G4: 2 | H4: 14 | T4: Salário Bruto | W4: =R12+V11+Y11 -> 2952.8 | AF4: RESUMOS CONTABILIDADE | AI4: =AI6+AI22+AI70 -> 709.98 | AN4: =CELL("nome.arquivo",AN5) -> C:\Users\SAMSUNG\Downloads\[Aulas de Julho - NOVA.xlsm]Juliano Gallo Silva | AZ4: Aprendizagem A | BA4: 83 | BC4: =IF($N$16="Natação Adulta",$Q$24,0) -> 1385.68 | BD4: =IF($N$16="Natação Bebê",$Q$24,0) -> 0 | BE4: =IF(AND($N$16<>"Natação Adulta",$N$16<>"Natação Bebê",$N$16<>"Hidroginástica"),$Q$24,0) -> 0 | BF4: =IF($N$16="Hidroginástica",$Q$24,0) -> 0 | BH4: =IF($N$16="Natação Adulta",$Q$23,0) -> 65 | BI4: =IF($N$16="Natação Bebê",$Q$23,0) -> 0 | BJ4: =IF(AND($N$16<>"Natação Adulta",$N$16<>"Natação Bebê",$N$16<>"Hidroginástica"),$Q$23,0) -> 0 | BK4: =IF($N$16="Hidroginástica",$Q$23,0) -> 0 | BM4: =IF($N$16="Natação Adulta",$Q$22,0) -> 180 | BN4: =IF($N$16="Natação Bebê",$Q$22,0) -> 0 | BO4: =IF(AND($N$16<>"Natação Adulta",$N$16<>"Natação Bebê",$N$16<>"Hidroginástica"),$Q$22,0) -> 0 | BP4: =IF($N$16="Hidroginástica",$Q$22,0) -> 0
B5: 4 | D5: 3 | E5: 9 | G5: 3 | H5: 15 | J5: Total de Alunos | N5: =R10+V9+Y9 -> 613 | P5: Total de Aulas | R5: =R11+V10+Y10 -> 127 | T5: INSS Total | W5: =BN14 -> 263.3355 | Y5: Contabilidade | AA5: =SUM(W21:AB21)+SUM(W32:AB32)+SUM(W43:AB43)+SUM(W54:AB54)+SUM(W65:AB65)+SUM(W76:AB76)+SUM(W87:AB87) -> 709.98 | AN5: =MID(AN4,SEARCH("]",AN4)+1,LEN(AN4)-SEARCH("]",AN4)+1) -> Juliano Gallo Silva | AQ5: =MID(AN4,AO5+1,AP5-AO5) ->  | AZ5: Aprendizagem B | BA5: 41 | BC5: =IF($N$27="Natação Adulta",$Q$35,0) -> 0 | BD5: =IF($N$27="Natação Bebê",$Q$35,0) -> 0 | BE5: =IF(AND($N$27<>"Natação Adulta",$N$27<>"Natação Bebê",$N$27<>"Hidroginástica"),$Q$35,0) -> 0 | BF5: =IF($N$27="Hidroginástica",$Q$35,0) -> 0 | BH5: =IF($N$27="Natação Adulta",$Q$34,0) -> 0 | BI5: =IF($N$27="Natação Bebê",$Q$34,0) -> 0 | BJ5: =IF(AND($N$27<>"Natação Adulta",$N$27<>"Natação Bebê",$N$27<>"Hidroginástica"),$Q$34,0) -> 0 | BK5: =IF($N$27="Hidroginástica",$Q$34,0) -> 0 | BM5: =IF($N$27="Natação Adulta",$Q$33,0) -> 0 | BN5: =IF($N$27="Natação Bebê",$Q$33,0) -> 0 | BO5: =IF(AND($N$27<>"Natação Adulta",$N$27<>"Natação Bebê",$N$27<>"Hidroginástica"),$Q$33,0) -> 0 | BP5: =IF($N$27="Hidroginástica",$Q$33,0) -> 0
B6: 0 | D6: 5 | E6: 6 | G6: 5 | H6: 7 | T6: Salário Líquido | W6: =BN20 -> 2689.4645 | AF6: Natação Aduta | AI6: =SUM(AI8:AI20) -> 237.78 | AZ6: Adaptação | BA6: 0 | BC6: =IF($N$38="Natação Adulta",$Q$46,0) -> 0 | BD6: =IF($N$38="Natação Bebê",$Q$46,0) -> 0 | BE6: =IF(AND($N$38<>"Natação Adulta",$N$38<>"Natação Bebê",$N$38<>"Hidroginástica"),$Q$46,0) -> 467.69 | BF6: =IF($N$38="Hidroginástica",$Q$46,0) -> 0 | BH6: =IF($N$38="Natação Adulta",$Q$45,0) -> 0 | BI6: =IF($N$38="Natação Bebê",$Q$45,0) -> 0 | BJ6: =IF(AND($N$38<>"Natação Adulta",$N$38<>"Natação Bebê",$N$38<>"Hidroginástica"),$Q$45,0) -> 19 | BK6: =IF($N$38="Hidroginástica",$Q$45,0) -> 0 | BM6: =IF($N$38="Natação Adulta",$Q$44,0) -> 0 | BN6: =IF($N$38="Natação Bebê",$Q$44,0) -> 0 | BO6: =IF(AND($N$38<>"Natação Adulta",$N$38<>"Natação Bebê",$N$38<>"Hidroginástica"),$Q$44,0) -> 83 | BP6: =IF($N$38="Hidroginástica",$Q$44,0) -> 0
B7: 0 | D7: 3 | E7: 7 | G7: 2 | H7: 18 | AF7: Nm_Adic | AG7: $_Aula | AH7: Qtde | AI7: $_Adic | AZ7: Iniciação | BA7: 51 | BC7: =IF($N$49="Natação Adulta",$Q$57,0) -> 0 | BD7: =IF($N$49="Natação Bebê",$Q$57,0) -> 0 | BE7: =IF(AND($N$49<>"Natação Adulta",$N$49<>"Natação Bebê",$N$49<>"Hidroginástica"),$Q$57,0) -> 142.13 | BF7: =IF($N$49="Hidroginástica",$Q$57,0) -> 0 | BH7: =IF($N$49="Natação Adulta",$Q$56,0) -> 0 | BI7: =IF($N$49="Natação Bebê",$Q$56,0) -> 0 | BJ7: =IF(AND($N$49<>"Natação Adulta",$N$49<>"Natação Bebê",$N$49<>"Hidroginástica"),$Q$56,0) -> 6 | BK7: =IF($N$49="Hidroginástica",$Q$56,0) -> 0 | BM7: =IF($N$49="Natação Adulta",$Q$55,0) -> 0 | BN7: =IF($N$49="Natação Bebê",$Q$55,0) -> 0 | BO7: =IF(AND($N$49<>"Natação Adulta",$N$49<>"Natação Bebê",$N$49<>"Hidroginástica"),$Q$55,0) -> 41 | BP7: =IF($N$49="Hidroginástica",$Q$55,0) -> 0
B8: 6 | D8: 2 | E8: 4 | G8: 3 | H8: 12 | M8: Natação Infantil | U8: Natação Adulta | X8: Hidroginástica | AF8: =IF(CR23<>"",CR23,"") -> Adic_Nat.Ad_02 | AG8: =IF(CT23<>"",CT23,"") -> 2.1 | AH8: =IF(CS23<>"",CS23,"") -> 34 | AI8: =IF(CU23<>"",CU23,"") -> 71.4 | AZ8: Hidroginástica | BA8: 258 | BC8: =IF($N$60="Natação Adulta",$Q$68,0) -> 0 | BD8: =IF($N$60="Natação Bebê",$Q$68,0) -> 0 | BE8: =IF(AND($N$60<>"Natação Adulta",$N$60<>"Natação Bebê",$N$60<>"Hidroginástica"),$Q$68,0) -> 357.54 | BF8: =IF($N$60="Hidroginástica",$Q$68,0) -> 0 | BH8: =IF($N$60="Natação Adulta",$Q$67,0) -> 0 | BI8: =IF($N$60="Natação Bebê",$Q$67,0) -> 0 | BJ8: =IF(AND($N$60<>"Natação Adulta",$N$60<>"Natação Bebê",$N$60<>"Hidroginástica"),$Q$67,0) -> 16 | BK8: =IF($N$60="Hidroginástica",$Q$67,0) -> 0 | BM8: =IF($N$60="Natação Adulta",$Q$66,0) -> 0 | BN8: =IF($N$60="Natação Bebê",$Q$66,0) -> 0 | BO8: =IF(AND($N$60<>"Natação Adulta",$N$60<>"Natação Bebê",$N$60<>"Hidroginástica"),$Q$66,0) -> 51 | BP8: =IF($N$60="Hidroginástica",$Q$66,0) -> 0
B9: 4 | D9: 4 | E9: 8 | G9: 4 | H9: 8 | M9: Natação Bebê | O9: Demais | Q9: Total Infantil | U9: Alunos | V9: =BM11 -> 180 | X9: Alunos | Y9: =BP11 -> 258 | AF9: Adic_Nat.Ad_04 | AG9: 6.02 | AH9: 21 | AI9: 126.42 | BC9: =IF($N$71="Natação Adulta",$Q$79,0) -> 0 | BD9: =IF($N$71="Natação Bebê",$Q$79,0) -> 0 | BE9: =IF(AND($N$71<>"Natação Adulta",$N$71<>"Natação Bebê",$N$71<>"Hidroginástica"),$Q$79,0) -> 0 | BF9: =IF($N$71="Hidroginástica",$Q$79,0) -> 599.76 | BH9: =IF($N$71="Natação Adulta",$Q$78,0) -> 0 | BI9: =IF($N$71="Natação Bebê",$Q$78,0) -> 0 | BJ9: =IF(AND($N$71<>"Natação Adulta",$N$71<>"Natação Bebê",$N$71<>"Hidroginástica"),$Q$78,0) -> 0 | BK9: =IF($N$71="Hidroginástica",$Q$78,0) -> 21 | BM9: =IF($N$71="Natação Adulta",$Q$77,0) -> 0 | BN9: =IF($N$71="Natação Bebê",$Q$77,0) -> 0 | BO9: =IF(AND($N$71<>"Natação Adulta",$N$71<>"Natação Bebê",$N$71<>"Hidroginástica"),$Q$77,0) -> 0 | BP9: =IF($N$71="Hidroginástica",$Q$77,0) -> 258
B10: 2 | D10: 7 | G10: 4 | H10: 11 | K10: Contábil | M10: Alunos | N10: =BN11 -> 0 | O10: Alunos | P10: =BO11 -> 175 | Q10: Alunos | R10: =N10+P10 -> 175 | U10: Aulas | V10: =BH11 -> 65 | X10: Aulas | Y10: =BK11 -> 21 | AF10: Adic_Nat.Ad_08 | AG10: 9.99 | AH10: 4 | AI10: 39.96 | BC10: =IF($N$82="Natação Adulta",$Q$90,0) -> 0 | BD10: =IF($N$82="Natação Bebê",$Q$90,0) -> 0 | BE10: =IF(AND($N$82<>"Natação Adulta",$N$82<>"Natação Bebê",$N$82<>"Hidroginástica"),$Q$90,0) ->  | BF10: =IF($N$82="Hidroginástica",$Q$90,0) -> 0 | BH10: =IF($N$82="Natação Adulta",$Q$89,0) -> 0 | BI10: =IF($N$82="Natação Bebê",$Q$89,0) -> 0 | BJ10: =IF(AND($N$82<>"Natação Adulta",$N$82<>"Natação Bebê",$N$82<>"Hidroginástica"),$Q$89,0) ->  | BK10: =IF($N$82="Hidroginástica",$Q$89,0) -> 0 | BM10: =IF($N$82="Natação Adulta",$Q$88,0) -> 0 | BN10: =IF($N$82="Natação Bebê",$Q$88,0) -> 0 | BO10: =IF(AND($N$82<>"Natação Adulta",$N$82<>"Natação Bebê",$N$82<>"Hidroginástica"),$Q$88,0) ->  | BP10: =IF($N$82="Hidroginástica",$Q$88,0) -> 0
B11: 1 | D11: 3 | G11: 3 | H11: 17 | K11: Sistema | M11: Aulas | N11: =BI11 -> 0 | O11: Aulas | P11: =BJ11 -> 41 | Q11: Aulas | R11: 41 | U11: Bruto | V11: =BC11 -> 1385.68 | X11: Bruto | Y11: =BF11 -> 599.76 | BC11: =SUM(BC4:BC10) -> 1385.68 | BD11: =SUM(BD4:BD10) -> 0 | BE11: 967.36 | BF11: 599.76 | BH11: =SUM(BH4:BH10) -> 65 | BI11: =SUM(BI4:BI10) -> 0 | BJ11: 41 | BK11: 21 | BM11: =SUM(BM4:BM10) -> 180 | BN11: =SUM(BN4:BN10) -> 0 | BO11: 175 | BP11: 258
B12: 1 | D12: 4 | G12: 3 | H12: 10 | K12: Sistema | M12: Bruto | N12: =BD11 -> 0 | O12: Bruto | P12: =BE11 -> 967.36 | Q12: Bruto | R12: 967.36 | U12: INSS | V12: =BI15 -> 106.5312 | X12: INSS | Y12: =BK15 -> 44.982
B13: 3 | D13: 9 | G13: 4 | H13: 10 | M13: INSS | N13: =BD15 -> 0 | O13: INSS | P13: =BF15 -> 72.552 | Q13: INSS | R13: 72.552 | U13: Líquido | V13: =V11-V12 -> 1279.1488 | X13: Líquido | Y13: =Y11-Y12 -> 554.778 | BC13: Natação Bebê | BE13: Demais | BH13: Natação Adulta | BJ13: Hidroginástica | BM13: Bruto Informado | BN13: =BD14+BF14+BI14+BK14 -> 2952.8
B14: 6 | D14: 3 | G14: 3 | H14: 9 | M14: Líquido | N14: =N12-N13 -> 0 | O14: Líquido | P14: =P12-P13 -> 894.808 | Q14: Líquido | R14: =N14+P14 -> 894.808 | BC14: Salário | BD14: =BD11 -> 0 | BE14: Salário | BF14: =BE11 -> 967.36 | BH14: Salário | BI14: =BC11 -> 1385.68 | BJ14: Salário | BK14: =BF11 -> 599.76 | BM14: INSS | BN14: =IF(BN13<=Impostos!$D$4,BN13*Impostos!$B$4,IF(BN13<=Impostos!$D$5,(BN13-Impostos!$D$4)*Impostos!$B$5+Impostos!$E$4,IF(BN13<=Impostos!$D$6,(BN13-(Impostos!$D$5-Impostos!$D$4)-Impostos!$D$4)*Impostos!$B$6+Impostos!$E$5+Impostos!$E$4,IF(BN13<=Impostos!$D$7,(BN13-(Impostos!$D$6-Impostos!$D$5)-(Impostos!$D$5-Impostos!$D$4)-Impostos!$D$4)*Impostos!$B$7+Impostos!$E$6+Impostos!$E$5+Impostos!$E$4,IF(BN13>=Impostos!$E$7,Impostos!$E$7))))) -> 263.3355
B15: 5 | D15: 7 | G15: 1 | H15: 19 | BC15: INSS | BD15: =IF(BD14<=Impostos!$D$4,BD14*Impostos!$B$4,IF(BD14<=Impostos!$D$5,(BD14-Impostos!$D$4)*Impostos!$B$5+Impostos!$E$4,IF(BD14<=Impostos!$D$6,(BD14-(Impostos!$D$5-Impostos!$D$4)-Impostos!$D$4)*Impostos!$B$6+Impostos!$E$5+Impostos!$E$4,IF(BD14<=Impostos!$D$7,(BD14-(Impostos!$D$6-Impostos!$D$5)-(Impostos!$D$5-Impostos!$D$4)-Impostos!$D$4)*Impostos!$B$7+Impostos!$E$6+Impostos!$E$5+Impostos!$E$4,IF(BD14>=Impostos!$E$7,Impostos!$E$7))))) -> 0 | BE15: INSS | BF15: =IF(BF14<=Impostos!$D$4,BF14*Impostos!$B$4,IF(BF14<=Impostos!$D$5,(BF14-Impostos!$D$4)*Impostos!$B$5+Impostos!$E$4,IF(BF14<=Impostos!$D$6,(BF14-(Impostos!$D$5-Impostos!$D$4)-Impostos!$D$4)*Impostos!$B$6+Impostos!$E$5+Impostos!$E$4,IF(BF14<=Impostos!$D$7,(BF14-(Impostos!$D$6-Impostos!$D$5)-(Impostos!$D$5-Impostos!$D$4)-Impostos!$D$4)*Impostos!$B$7+Impostos!$E$6+Impostos!$E$5+Impostos!$E$4,IF(BF14>=Impostos!$E$7,Impostos!$E$7))))) -> 72.552 | BH15: INSS | BI15: =IF(BI14<=Impostos!$D$4,BI14*Impostos!$B$4,IF(BI14<=Impostos!$D$5,(BI14-Impostos!$D$4)*Impostos!$B$5+Impostos!$E$4,IF(BI14<=Impostos!$D$6,(BI14-(Impostos!$D$5-Impostos!$D$4)-Impostos!$D$4)*Impostos!$B$6+Impostos!$E$5+Impostos!$E$4,IF(BI14<=Impostos!$D$7,(BI14-(Impostos!$D$6-Impostos!$D$5)-(Impostos!$D$5-Impostos!$D$4)-Impostos!$D$4)*Impostos!$B$7+Impostos!$E$6+Impostos!$E$5+Impostos!$E$4,IF(BI14>=Impostos!$E$7,Impostos!$E$7))))) -> 106.5312 | BJ15: INSS | BK15: =IF(BK14<=Impostos!$D$4,BK14*Impostos!$B$4,IF(BK14<=Impostos!$D$5,(BK14-Impostos!$D$4)*Impostos!$B$5+Impostos!$E$4,IF(BK14<=Impostos!$D$6,(BK14-(Impostos!$D$5-Impostos!$D$4)-Impostos!$D$4)*Impostos!$B$6+Impostos!$E$5+Impostos!$E$4,IF(BK14<=Impostos!$D$7,(BK14-(Impostos!$D$6-Impostos!$D$5)-(Impostos!$D$5-Impostos!$D$4)-Impostos!$D$4)*Impostos!$B$7+Impostos!$E$6+Impostos!$E$5+Impostos!$E$4,IF(BK14>=Impostos!$E$7,Impostos!$E$7))))) -> 44.982 | BM15: Líquido | BN15: =BN13-BN14 -> 2689.4645
B16: 1 | D16: 7 | G16: 2 | H16: 11 | K16: Modalidade | N16: Natação Adulta | Q16: Nível | R16: Prof. Nível C | AN16: =VLOOKUP(N16,Configurações!$J$1:$V$9,2,0) -> 0 | AO16: =VLOOKUP(N16,Configurações!$J$1:$V$9,3,0) -> 0 | AP16: =VLOOKUP(N16,Configurações!$J$1:$V$9,4,0) -> 1 | AQ16: =VLOOKUP(N16,Configurações!$J$1:$V$9,5,0) -> 3 | AR16: =VLOOKUP(N16,Configurações!$J$1:$V$9,6,0) -> 4 | AS16: =VLOOKUP(N16,Configurações!$J$1:$V$9,7,0) -> 5 | AT16: =VLOOKUP(N16,Configurações!$J$1:$V$9,8,0) -> 6 | AU16: =VLOOKUP(N16,Configurações!$J$1:$V$9,9,0) -> 8 | AV16: =VLOOKUP(N16,Configurações!$J$1:$V$9,10,0) ->  | AW16: =VLOOKUP(N16,Configurações!$J$1:$V$9,11,0) ->  | AX16: =VLOOKUP(N16,Configurações!$J$1:$V$9,12,0) ->  | AY16: =VLOOKUP(N16,Configurações!$J$1:$V$9,13,0) -> 
B17: 2 | D17: 2 | G17: 4 | H17: 14 | K17: Academia | U17: Contabilidade | AN17: =IFERROR(VLOOKUP(N16,_xlfn.ANCHORARRAY($AZ$2),2,0),0) -> 180 | BM17: Líquido Calcl | BN17: =R14+V13+Y13 -> 2728.7348
B18: 3 | D18: 4 | G18: 5 | H18: 14 | K18: Nr. de Alunos | N18: =IF(AO23<>"",AO23,"") -> 0 | O18: =IF(AP23<>"",AP23,"") -> 1 a 3 | P18: =IF(AQ23<>"",AQ23,"") -> 4 a 5 | Q18: =IF(AR23<>"",AR23,"") -> 6 a 8 | R18: =IF(AS23<>"",AS23,"") ->  | S18: =IF(AT23<>0,AT23,"") ->  | U18: Nr. de Alunos | W18: =N18 -> 0 | X18: =O18 -> 1 a 3 | Y18: 4 a 5 | Z18: 6 a 8 | AO18: =IF($N$16=$AN$2,COUNTIF($B$4:$B$100,">="&AN16)-COUNTIF($B$4:$B$100,">"&AO16), IF($N$16=$AO$2,COUNTIF($C$4:$C$100,">="&AN16)-COUNTIF($C$4:$C$100,">"&AO16), IF($N$16=$AP$2,COUNTIF($D$4:$D$100,">="&AN16)-COUNTIF($D$4:$D$100,">"&AO16), IF($N$16=$AQ$2,COUNTIF($E$4:$E$100,">="&AN16)-COUNTIF($E$4:$E$100,">"&AO16), IF($N$16=$AR$2,COUNTIF($F$4:$F$100,">="&AN16)-COUNTIF($F$4:$F$100,">"&AO16), IF($N$16=$AS$2,COUNTIF($G$4:$G$100,">="&AN16)-COUNTIF($G$4:$G$100,">"&AO16), IF($N$16=$AT$2,COUNTIF($H$4:$H$100,">="&AN16)-COUNTIF($H$4:$H$100,">"&AO16), IF($N$16="Sem Uso","")))))))) -> 6 | AP18: =IF($N$16=$AN$2,COUNTIF($B$4:$B$100,">="&AP16)-COUNTIF($B$4:$B$100,">"&AQ16), IF($N$16=$AO$2,COUNTIF($C$4:$C$100,">="&AP16)-COUNTIF($C$4:$C$100,">"&AQ16), IF($N$16=$AP$2,COUNTIF($D$4:$D$100,">="&AP16)-COUNTIF($D$4:$D$100,">"&AQ16), IF($N$16=$AQ$2,COUNTIF($E$4:$E$100,">="&AP16)-COUNTIF($E$4:$E$100,">"&AQ16), IF($N$16=$AR$2,COUNTIF($F$4:$F$100,">="&AP16)-COUNTIF($F$4:$F$100,">"&AQ16), IF($N$16=$AS$2,COUNTIF($G$4:$G$100,">="&AP16)-COUNTIF($G$4:$G$100,">"&AQ16), IF($N$16=$AT$2,COUNTIF($H$4:$H$100,">="&AP16)-COUNTIF($H$4:$H$100,">"&AQ16), IF($N$16="Sem Uso","")))))))) -> 34 | AQ18: =IF($N$16=$AN$2,COUNTIF($B$4:$B$100,">="&AR16)-COUNTIF($B$4:$B$100,">"&AS16), IF($N$16=$AO$2,COUNTIF($C$4:$C$100,">="&AR16)-COUNTIF($C$4:$C$100,">"&AS16), IF($N$16=$AP$2,COUNTIF($D$4:$D$100,">="&AR16)-COUNTIF($D$4:$D$100,">"&AS16), IF($N$16=$AQ$2,COUNTIF($E$4:$E$100,">="&AR16)-COUNTIF($E$4:$E$100,">"&AS16), IF($N$16=$AR$2,COUNTIF($F$4:$F$100,">="&AR16)-COUNTIF($F$4:$F$100,">"&AS16), IF($N$16=$AS$2,COUNTIF($G$4:$G$100,">="&AR16)-COUNTIF($G$4:$G$100,">"&AS16), IF($N$16=$AT$2,COUNTIF($H$4:$H$100,">="&AR16)-COUNTIF($H$4:$H$100,">"&AS16), IF($N$16="Sem Uso","")))))))) -> 21 | AR18: =IF($N$16=$AN$2,COUNTIF($B$4:$B$100,">="&AT16)-COUNTIF($B$4:$B$100,">"&AU16), IF($N$16=$AO$2,COUNTIF($C$4:$C$100,">="&AT16)-COUNTIF($C$4:$C$100,">"&AU16), IF($N$16=$AP$2,COUNTIF($D$4:$D$100,">="&AT16)-COUNTIF($D$4:$D$100,">"&AU16), IF($N$16=$AQ$2,COUNTIF($E$4:$E$100,">="&AT16)-COUNTIF($E$4:$E$100,">"&AU16), IF($N$16=$AR$2,COUNTIF($F$4:$F$100,">="&AT16)-COUNTIF($F$4:$F$100,">"&AU16), IF($N$16=$AS$2,COUNTIF($G$4:$G$100,">="&AT16)-COUNTIF($G$4:$G$100,">"&AU16), IF($N$16=$AT$2,COUNTIF($H$4:$H$100,">="&AT16)-COUNTIF($H$4:$H$100,">"&AU16), IF($N$16="Sem Uso","")))))))) -> 4 | AS18: =IF($N$16=$AN$2,COUNTIF($B$4:$B$100,">="&AV16)-COUNTIF($B$4:$B$100,">"&AW16), IF($N$16=$AO$2,COUNTIF($C$4:$C$100,">="&AV16)-COUNTIF($C$4:$C$100,">"&AW16), IF($N$16=$AP$2,COUNTIF($D$4:$D$100,">="&AV16)-COUNTIF($D$4:$D$100,">"&AW16), IF($N$16=$AQ$2,COUNTIF($E$4:$E$100,">="&AV16)-COUNTIF($E$4:$E$100,">"&AW16), IF($N$16=$AR$2,COUNTIF($F$4:$F$100,">="&AV16)-COUNTIF($F$4:$F$100,">"&AW16), IF($N$16=$AS$2,COUNTIF($G$4:$G$100,">="&AV16)-COUNTIF($G$4:$G$100,">"&AW16), IF($N$16=$AT$2,COUNTIF($H$4:$H$100,">="&AV16)-COUNTIF($H$4:$H$100,">"&AW16), IF($N$16="Sem Uso","")))))))) -> 0 | AT18: =IF($N$16=$AN$2,COUNTIF($B$4:$B$100,">="&AX16)-COUNTIF($B$4:$B$100,">"&AY16), IF($N$16=$AO$2,COUNTIF($C$4:$C$100,">="&AX16)-COUNTIF($C$4:$C$100,">"&AY16), IF($N$16=$AP$2,COUNTIF($D$4:$D$100,">="&AX16)-COUNTIF($D$4:$D$100,">"&AY16), IF($N$16=$AQ$2,COUNTIF($E$4:$E$100,">="&AX16)-COUNTIF($E$4:$E$100,">"&AY16), IF($N$16=$AR$2,COUNTIF($F$4:$F$100,">="&AX16)-COUNTIF($F$4:$F$100,">"&AY16), IF($N$16=$AS$2,COUNTIF($G$4:$G$100,">="&AX16)-COUNTIF($G$4:$G$100,">"&AY16), IF($N$16=$AT$2,COUNTIF($H$4:$H$100,">="&AX16)-COUNTIF($H$4:$H$100,">"&AY16), IF($N$16="Sem Uso","")))))))) -> 0 | BM18: Diferença | BN18: =BN15-BN17 -> -39.2703
B19: 2 | D19: 3 | G19: 3 | H19: 14 | K19: Valor da Aula | N19: =IF(AO25<>0,AO25,"") -> 17.66 | O19: 19.76 | P19: 23.68 | Q19: 27.65 | U19: Valor da Aula | W19: =IFERROR(IF(N19<=$S$23,0,N19-$S$23),"") -> 0 | X19: 2.1 | Y19: 6.02 | Z19: 9.99
B20: 1 | D20: 1 | H20: 9 | K20: Nr. de Aulas | N20: =IF(AO23<>"",AO24,"") -> 6 | O20: 34 | P20: 21 | Q20: 4 | U20: Nr. de Aulas | W20: =N20 -> 6 | X20: 34 | Y20: 21 | Z20: 4 | AN20: =IF(N20<>"",N20,"") -> 6 | AO20: 34 | AP20: 21 | AQ20: 4 | BM20: Líquido Real | BN20: =BN17+BN18 -> 2689.4645
B21: 1 | D21: 2 | H21: 10 | K21: Valor | N21: =IFERROR(N19*N20,"") -> 105.96 | O21: 671.84 | P21: 497.28 | Q21: 110.6 | U21: Valor | W21: =IFERROR(W19*W20,"") -> 0 | X21: 71.4 | Y21: 126.42 | Z21: 39.96 | AO21: =IF($N16<>"Sem Uso",VLOOKUP(N16,Configurações!$C$1:$I$8,2,0),"") -> 0 | AP21: =IF(N16<>"Sem Uso",VLOOKUP(N16,Configurações!$C$1:$I$8,3,0),"") -> 1 a 3 | AQ21: =IF(N16<>"Sem Uso",VLOOKUP(N16,Configurações!$C$1:$I$8,4,0),"") -> 4 a 5 | AR21: =IF(N16<>"Sem Uso",VLOOKUP(N16,Configurações!$C$1:$I$8,5,0),"") -> 6 a 8 | AS21: =IF(N16<>"Sem Uso",VLOOKUP(N16,Configurações!$C$1:$I$8,6,0),"") -> 0 | AT21: =IF(N16<>"Sem Uso",VLOOKUP(N16,Configurações!$C$1:$I$8,7,0),"") -> 0
B22: 2 | D22: 5 | H22: 9 | M22: Total de Alunos | Q22: =_xlfn.IFS(N16=$AN$2,$B$102,N16=$AO$2,$C$102,N16=$AP$2,$D$102,N16=$AQ$2,$E$102,N16=$AR$2,$F$102,N16=$AS$2,$G$102,N16=$AT$2,$H$102,N16="Sem Uso","") -> 180 | V22: Total de Alunos | Z22: =Q22 -> 180 | AF22: Natação Infantil | AI22: =SUM(AI24:AI68) -> 243.3 | AN22: TABELA DE EQUIVALÊNCIA | BC22: Natação Adulta | BH22: Natação Infantil | BM22: Hidroginástica | BR22: Natação Adulta | BY22: Natação Infantil | CF22: Hidroginástica | CO22: Natação Adulta | CW22: Natação Infantil | DE22: Hidroginástica
B23: 4 | D23: 5 | H23: 16 | M23: Total de Aulas | Q23: =IF(Q22<>"",SUM(AN20:AS20),"") -> 65 | R23: Registro | S23: 17.66 | V23: Total de Aulas | Z23: =Q23 -> 65 | AF23: Nm_Adic | AG23: $_Aula | AH23: Qtde | AI23: $_Adic | AN23: Nr. Alunos | AO23: =AO21 -> 0 | AP23: =IF(AP21<>0,AP21,"") -> 1 a 3 | AQ23: =IF(AQ21<>0,AQ21,"") -> 4 a 5 | AR23: =IF(AR21<>0,AR21,"") -> 6 a 8 | AS23: =IF(AS21<>0,AS21,"") ->  | AT23: =IF(AT21<>0,AT21,"") ->  | BC23: Nome_Adic | BD23: Valor_Aula | BE23: Qtdade_Aulas | BF23: Valor_Adicional | BH23: Nome_Adic | BI23: Valor_Aula | BJ23: Qtdade_Aulas | BK23: Valor_Adicional | BM23: Nome_Adic | BN23: Valor_Aula | BO23: Qtdade_Aulas | BP23: Valor_Adicional | BR23: Valor da Aula | BS23: Qtdade | BT23: Valor da Aula | BU23: Qtdade | BV23: Valor da Aula | BW23: Qtdade | BY23: Valor da Aula | BZ23: Qtdade | CA23: Valor da Aula | CB23: Qtdade | CC23: Valor da Aula | CD23: Qtdade | CF23: Valor da Aula | CG23: Qtdade | CH23: Valor da Aula | CI23: Qtdade | CJ23: Valor da Aula | CK23: Qtdade | CO23: =Configurações!AA12 -> Adic_Nat.Ad_01 | CP23: =Configurações!AD12 -> 0 | CQ23: =IFERROR(VLOOKUP(CP23:CP35,BV27:BW68,2,0),"") ->  | CR23: =IFERROR(_xlfn._xlws.SORT(_xlfn._xlws.FILTER($CO$23:$CO$35,_xlfn.ANCHORARRAY($CQ$23)<>"")),"") -> Adic_Nat.Ad_02 | CS23: =IFERROR(_xlfn._xlws.FILTER(_xlfn.ANCHORARRAY($CQ$23),_xlfn.ANCHORARRAY($CQ$23)<>""),"") -> 34 | CT23: =IFERROR(VLOOKUP(CR23:CR35,CO23:CP35,2,0),"") -> 2.1 | CU23: =IFERROR(CS23*CT23,"") -> 71.4 | CW23: =Configurações!AF12 -> Adic_Nat.Inf_01 | CX23: =Configurações!AI12 -> -0.005 | CY23: =IFERROR(VLOOKUP(CX23:CX67,CC27:CD68,2,0),"") ->  | CZ23: =IFERROR(_xlfn._xlws.SORT(_xlfn._xlws.FILTER($CW$23:$CW$67,_xlfn.ANCHORARRAY($CY$23)<>"")),"") -> Adic_Nat.Inf_02 | DA23: =IFERROR(_xlfn._xlws.FILTER(_xlfn.ANCHORARRAY($CY$23),_xlfn.ANCHORARRAY($CY$23)<>""),"") -> 5 | DB23: =IFERROR(VLOOKUP(CZ23:CZ67,CW23:CX67,2,0),"") -> 2.1 | DC23: =IFERROR(DA23*DB23,"") -> 10.5 | DE23: =Configurações!AK12 -> Adic_Hidr_01 | DF23: =Configurações!AN12 -> -0.005 | DG23: =IFERROR(VLOOKUP(DF23:DF39,CJ27:CK68,2,0),"") ->  | DH23: =IFERROR(_xlfn._xlws.SORT(_xlfn._xlws.FILTER($DE$23:$DE$39,$DG$23:$DG$39<>"")),"") -> Adic_Hidr_02 | DI23: =IFERROR(_xlfn._xlws.FILTER($DG$23:$DG$39,$DG$23:$DG$39<>""),"") -> 1 | DJ23: =IFERROR(VLOOKUP(DH23:DH39,DE23:DF39,2,0),"") -> 6.02 | DK23: =IFERROR(DJ23*DI23,"") -> 6.02
B24: 2 | H24: 11 | M24: Total a Receber | Q24: =IF(Q22<>"",SUM(N21:S21),"") -> 1385.68 | V24: Total a Receber | Z24: =IF(Z22<>"",SUM(W21:AB21),"") -> 237.78 | AF24: =IF(CZ23<>"",CZ23,"") -> Adic_Nat.Inf_02 | AG24: =IF(DB23<>"",DB23,"") -> 2.1 | AH24: =IF(DA23<>"",DA23,"") -> 5 | AI24: =IF(DC23<>"",DC23,"") -> 10.5 | AN24: Aulas | AO24: =IF(AO23<>"",AO18,"") -> 6 | AP24: =IF(AP23<>"",AP18,"") -> 34 | AQ24: 21 | AR24: 4 | BC24: Adic.Nat.Ad.1 | BD24: =IF($N$16="Natação Adulta",$W$19,0) -> 0 | BE24: =IF($N$16="Natação Adulta",$W$20,0) -> 6 | BF24: =IFERROR((BD24*BE24),"") -> 0 | BH24: Adic.Nat.Inf.1 | BI24: =IF(AND($N$16<>"Natação Adulta",$N$16<>"Hidroginástica"),$W$19,0) -> 0 | BJ24: =IF(AND($N$16<>"Natação Adulta",$N$16<>"Hidroginástica"),$W$20,0) -> 0 | BK24: =IFERROR((BI24*BJ24),"") -> 0 | BM24: Adic.Hid.1 | BN24: =IF($N$16="Hidroginástica",W$19,0) -> 0 | BO24: =IF($N$16="Hidroginástica",$W$20,0) -> 0 | BP24: =IFERROR((BN24*BO24),"") -> 0 | CO24: =Configurações!AA13 -> Adic_Nat.Ad_02 | CP24: =Configurações!AD13 -> 2.1 | CQ24: 34 | CR24: Adic_Nat.Ad_04 | CS24: 21 | CT24: 6.02 | CU24: =IFERROR(CS24*CT24,"") -> 126.42 | CW24: =Configurações!AF13 -> Adic_Nat.Inf_02 | CX24: =Configurações!AI13 -> 2.1 | CY24: 5 | CZ24: Adic_Nat.Inf_03 | DA24: 10 | DB24: 3.13 | DC24: =IFERROR(DA24*DB24,"") -> 31.3 | DE24: =Configurações!AK13 -> Adic_Hidr_02 | DF24: =Configurações!AN13 -> 6.02 | DG24: 1 | DH24: Adic_Hidr_04 | DI24: 16 | DJ24: 9.99 | DK24: =IFERROR(DJ24*DI24,"") -> 159.84
B25: 2 | AF25: Adic_Nat.Inf_03 | AG25: 3.13 | AH25: 10 | AI25: 31.3 | AO25: =IFERROR(VLOOKUP(N16&R16,Configurações!$C$13:$I$47,2,0),"") -> 17.66 | AP25: =IFERROR(IF(AP23<>0,VLOOKUP(N16&R16,Configurações!$C$13:$I$47,3,0),""),"") -> 19.76 | AQ25: =IFERROR(IF(AQ23<>0,VLOOKUP(N16&R16,Configurações!$C$13:$I$47,4,0),""),"") -> 23.68 | AR25: =IFERROR(IF(AR23<>0,VLOOKUP(N16&R16,Configurações!$C$13:$I$47,5,0),""),"") -> 27.65 | AS25: =IFERROR(IF(AS23<>0,VLOOKUP(N16&R16,Configurações!$C$13:$I$47,6,0),""),"") -> 0 | AT25: =IFERROR(IF(AT23<>0,VLOOKUP(N16&R16,Configurações!$C$13:$I$47,7,0),""),"") -> 0 | BC25: Adic.Nat.Ad.2 | BD25: =IF($N$16="Natação Adulta",$X$19,0) -> 2.1 | BE25: =IF($N$16="Natação Adulta",$X$20,0) -> 34 | BF25: =IFERROR((BD25*BE25),"") -> 71.4 | BH25: Adic.Nat.Inf.2 | BI25: =IF(AND($N$16<>"Natação Adulta",$N$16<>"Hidroginástica"),$X$19,0) -> 0 | BJ25: =IF(AND($N$16<>"Natação Adulta",$N$16<>"Hidroginástica"),$X$20,0) -> 0 | BK25: =IFERROR((BI25*BJ25),"") -> 0 | BM25: Adic.Hid.2 | BN25: =IF($N$16="Hidroginástica",$X$19,0) -> 0 | BO25: =IF($N$16="Hidroginástica",$X$20,0) -> 0 | BP25: =IFERROR((BN25*BO25),"") -> 0 | CO25: =Configurações!AA14 -> Adic_Nat.Ad_03 | CP25: =Configurações!AD14 -> 4.31 | CR25: Adic_Nat.Ad_08 | CS25: 4 | CT25: 9.99 | CU25: 39.96 | CW25: =Configurações!AF14 -> Adic_Nat.Inf_03 | CX25: =Configurações!AI14 -> 3.13 | CY25: 10 | CZ25: Adic_Nat.Inf_07 | DA25: 13 | DB25: 6.02 | DC25: 78.26 | DE25: =Configurações!AK14 -> Adic_Hidr_03 | DF25: =Configurações!AN14 -> 8.42 | DH25: Adic_Hidr_08 | DI25: 4 | DJ25: 15.76 | DK25: 63.04
B26: 3 | AF26: Adic_Nat.Inf_07 | AG26: 6.02 | AH26: 13 | AI26: 78.26 | BC26: Adic.Nat.Ad.3 | BD26: =IF($N$16="Natação Adulta",$Y$19,0) -> 6.02 | BE26: =IF($N$16="Natação Adulta",$Y$20,0) -> 21 | BF26: 126.42 | BH26: Adic.Nat.Inf.3 | BI26: =IF(AND($N$16<>"Natação Adulta",$N$16<>"Hidroginástica"),$Y$19,0) -> 0 | BJ26: =IF(AND($N$16<>"Natação Adulta",$N$16<>"Hidroginástica"),$Y$20,0) -> 0 | BK26: 0 | BM26: Adic.Hid.3 | BN26: =IF($N$16="Hidroginástica",$Y$19,0) -> 0 | BO26: =IF($N$16="Hidroginástica",$Y$20,0) -> 0 | BP26: 0 | CO26: =Configurações!AA15 -> Adic_Nat.Ad_04 | CP26: =Configurações!AD15 -> 6.02 | CQ26: 21 | CW26: =Configurações!AF15 -> Adic_Nat.Inf_04 | CX26: =Configurações!AI15 -> 4.31 | CZ26: Adic_Nat.Inf_09 | DA26: 6 | DB26: 7.28 | DC26: 43.68 | DE26: =Configurações!AK15 -> Adic_Hidr_04 | DF26: =Configurações!AN15 -> 9.99 | DG26: 16
B27: 0 | K27: Modalidade | N27: Natação Bebê | Q27: Nível | R27: Prof. Nível C | AF27: Adic_Nat.Inf_09 | AG27: 7.28 | AH27: 6 | AI27: 43.68 | AN27: =VLOOKUP(N27,Configurações!$J$1:$V$9,2,0) -> 0 | AO27: =VLOOKUP(N27,Configurações!$J$1:$V$9,3,0) -> 0 | AP27: =VLOOKUP(N27,Configurações!$J$1:$V$9,4,0) -> 1 | AQ27: =VLOOKUP(N27,Configurações!$J$1:$V$9,5,0) -> 4 | AR27: =VLOOKUP(N27,Configurações!$J$1:$V$9,6,0) -> 5 | AS27: =VLOOKUP(N27,Configurações!$J$1:$V$9,7,0) -> 8 | AT27: =VLOOKUP(N27,Configurações!$J$1:$V$9,8,0) -> 9 | AU27: =VLOOKUP(N27,Configurações!$J$1:$V$9,9,0) -> 12 | AV27: =VLOOKUP(N27,Configurações!$J$1:$V$9,10,0) -> 13 | AW27: =VLOOKUP(N27,Configurações!$J$1:$V$9,11,0) -> 15 | AX27: =VLOOKUP(N27,Configurações!$J$1:$V$9,12,0) ->  | AY27: =VLOOKUP(N27,Configurações!$J$1:$V$9,13,0) ->  | BC27: Adic.Nat.Ad.4 | BD27: =IF($N$16="Natação Adulta",$Z$19,0) -> 9.99 | BE27: =IF($N$16="Natação Adulta",$Z$20,0) -> 4 | BF27: 39.96 | BH27: Adic.Nat.Inf.4 | BI27: =IF(AND($N$16<>"Natação Adulta",$N$16<>"Hidroginástica"),$Z$19,0) -> 0 | BJ27: =IF(AND($N$16<>"Natação Adulta",$N$16<>"Hidroginástica"),$Z$20,0) -> 0 | BK27: 0 | BM27: Adic.Hid.4 | BN27: =IF($N$16="Hidroginástica",$Z$19,0) -> 0 | BO27: =IF($N$16="Hidroginástica",$Z$20,0) -> 0 | BP27: 0 | BR27: =IF(BD24<>0,BD24,"") ->  | BS27: =IF(BD24<>0,BE24,"") ->  | BT27: =_xlfn._xlws.SORT(_xlfn.UNIQUE($BR$27:$BR$68)) -> 2.1 | BU27: =SUMIF($BR$27:$BR$68,BT27,$BS$27:$BS$68) -> 34 | BV27: =_xlfn._xlws.SORT(_xlfn._xlws.FILTER($BT$27:$BT$68,$BU$27:$BU$68<>0)) -> 2.1 | BW27: =_xlfn._xlws.FILTER($BU$27:$BU$68,$BU$27:$BU$68<>0) -> 34 | BY27: =IF(BI24<>0,BI24,"") ->  | BZ27: =IF(BI24<>0,BJ24,"") ->  | CA27: =_xlfn._xlws.SORT(_xlfn.UNIQUE($BY$27:$BY$68)) -> 2.1 | CB27: =SUMIF($BY$27:$BY$68,CA27,$BZ$27:$BZ$68) -> 5 | CC27: =_xlfn._xlws.SORT(_xlfn._xlws.FILTER($CA$27:$CA$68,$CB$27:$CB$68<>0)) -> 2.1 | CD27: =_xlfn._xlws.FILTER($CB$27:$CB$68,CB27:CB68<>0) -> 5 | CF27: =IF(BN24<>0,BN24,"") ->  | CG27: =IF(BN24<>0,BO24,"") ->  | CH27: =_xlfn._xlws.SORT(_xlfn.UNIQUE($CF$27:$CF$67)) -> 6.02 | CI27: =SUMIF($CF$27:$CF$68,CH27,$CG$27:$CG$68) -> 1 | CJ27: =_xlfn._xlws.SORT(_xlfn._xlws.FILTER($CH$27:$CH$68,$CI$27:$CI$68<>0)) -> 6.02 | CK27: =_xlfn._xlws.FILTER($CI$27:$CI$68,$CI$27:$CI$68<>0) -> 1 | CO27: =Configurações!AA16 -> Adic_Nat.Ad_05 | CP27: =Configurações!AD16 -> 7.61 | CW27: =Configurações!AF16 -> Adic_Nat.Inf_05 | CX27: =Configurações!AI16 -> 5.67 | CZ27: Adic_Nat.Inf_16 | DA27: 4 | DB27: 9.99 | DC27: 39.96 | DE27: =Configurações!AK16 -> Adic_Hidr_05 | DF27: =Configurações!AN16 -> 12.54
B28: 4 | K28: Academia | U28: Contabilidade | AF28: Adic_Nat.Inf_16 | AG28: 9.99 | AH28: 4 | AI28: 39.96 | AN28: =IFERROR(VLOOKUP(N27,_xlfn.ANCHORARRAY($AZ$2),2,0),0) -> 0 | BC28: Adic.Nat.Ad.5 | BD28: =IF($N$16="Natação Adulta",$AA$19,0) ->  | BE28: =IF($N$16="Natação Adulta",$AA$20,0) ->  | BH28: Adic.Nat.Inf.5 | BI28: =IF(AND($N$16<>"Natação Adulta",$N$16<>"Hidroginástica"),$AA$19,0) -> 0 | BJ28: =IF(AND($N$16<>"Natação Adulta",$N$16<>"Hidroginástica"),$AA$20,0) -> 0 | BK28: 0 | BM28: Adic.Hid.5 | BN28: =IF($N$16="Hidroginástica",$AA$19,0) -> 0 | BO28: =IF($N$16="Hidroginástica",$AA$20,0) -> 0 | BP28: 0 | BR28: 2.1 | BS28: 34 | BT28: 6.02 | BU28: 21 | BV28: 6.02 | BW28: 21 | CA28: 3.13 | CB28: 10 | CC28: 3.13 | CD28: 10 | CH28: 9.99 | CI28: 16 | CJ28: 9.99 | CK28: 16 | CO28: =Configurações!AA17 -> Adic_Nat.Ad_06 | CP28: =Configurações!AD17 -> 8.42 | CW28: =Configurações!AF17 -> Adic_Nat.Inf_06 | CX28: =Configurações!AI17 -> 5.89 | CZ28: Adic_Nat.Inf_22 | DA28: 3 | DB28: 13.2 | DC28: 39.6 | DE28: =Configurações!AK17 -> Adic_Hidr_06 | DF28: =Configurações!AN17 -> 12.65952
B29: 4 | K29: Nr. de Alunos | N29: =IF(AO34<>"",AO34,"") -> 0 | O29: =IF(AP34<>"",AP34,"") ->  | P29: =IF(AQ34<>"",AQ34,"") ->  | Q29: =IF(AR34<>"",AR34,"") ->  | R29: =IF(AS34<>"",AS34,"") ->  | S29: =IF(AT34<>0,AT34,"") ->  | U29: Nr. de Alunos | W29: =N29 -> 0 | X29: =O29 ->  | AF29: Adic_Nat.Inf_22 | AG29: 13.2 | AH29: 3 | AI29: 39.6 | BC29: Adic.Nat.Ad.6 | BD29: =IF($N$16="Natação Adulta",$AB$19,0) ->  | BE29: =IF($N$16="Natação Adulta",$AB$20,0) ->  | BH29: Adic.Nat.Inf.6 | BI29: =IF(AND($N$16<>"Natação Adulta",$N$16<>"Hidroginástica"),$AB$19,0) -> 0 | BJ29: =IF(AND($N$16<>"Natação Adulta",$N$16<>"Hidroginástica"),$AB$20,0) -> 0 | BK29: 0 | BM29: Adic.Hid.6 | BN29: =IF($N$16="Hidroginástica",$AB$19,0) -> 0 | BO29: =IF($N$16="Hidroginástica",$AB$20,0) -> 0 | BP29: 0 | BR29: 6.02 | BS29: 21 | BT29: 9.99 | BU29: 4 | BV29: 9.99 | BW29: 4 | CA29: 5.89 | CB29: 0 | CC29: 6.02 | CD29: 13 | CH29: 15.76 | CI29: 4 | CJ29: 15.76 | CK29: 4 | CO29: =Configurações!AA18 -> Adic_Nat.Ad_07 | CP29: =Configurações!AD18 -> 9.53 | CW29: =Configurações!AF18 -> Adic_Nat.Inf_07 | CX29: =Configurações!AI18 -> 6.02 | CY29: 13 | DE29: =Configurações!AK18 -> Adic_Hidr_07 | DF29: =Configurações!AN18 -> 14.96644
B30: 1 | K30: Valor da Aula | N30: =IF(AO36<>0,AO36,"") -> 17.66 | O30: 23.55 | P30: 26.32 | Q30: 29.09 | R30: 31.86 | U30: Valor da Aula | W30: =IFERROR(IF(N30<=$S$34,0,N30-$S$34),"") -> 0 | X30: 5.89 | Y30: 8.66 | Z30: 11.43 | AA30: 14.2 | BR30: 9.99 | BS30: 4 | BU30: 0 | CA30: 6.02 | CB30: 13 | CC30: 7.28 | CD30: 6 | CH30: 21.15 | CI30: 0 | CO30: =Configurações!AA19 -> Adic_Nat.Ad_08 | CP30: =Configurações!AD19 -> 9.99 | CQ30: 4 | CW30: =Configurações!AF19 -> Adic_Nat.Inf_08 | CX30: =Configurações!AI19 -> 6.43 | DE30: =Configurações!AK19 -> Adic_Hidr_08 | DF30: =Configurações!AN19 -> 15.76 | DG30: 4
B31: 0 | K31: Nr. de Aulas | N31: =IF(AO34<>"",AO35,"") -> 0 | U31: Nr. de Aulas | W31: =N31 -> 0 | BC31: Adic.Nat.Ad.1 | BD31: =IF($N$27="Natação Adulta",$W$30,0) -> 0 | BE31: =IF($N$27="Natação Adulta",$W$31,0) -> 0 | BF31: =IFERROR((BD31*BE31),"") -> 0 | BH31: Adic.Nat.Inf.1 | BI31: =IF(AND($N$27<>"Natação Adulta",$N$27<>"Hidroginástica"),$W$30,0) -> 0 | BJ31: =IF(AND($N$27<>"Natação Adulta",$N$27<>"Hidroginástica"),$W$31,0) -> 0 | BK31: =IFERROR((BI31*BJ31),"") -> 0 | BM31: Adic.Hid.1 | BN31: =IF($N$27="Hidroginástica",$W$30,0) -> 0 | BO31: =IF($N$27="Hidroginástica",$W$31,0) -> 0 | BP31: =IFERROR((BN31*BO31),"") -> 0 | BU31: 0 | CA31: 7.28 | CB31: 6 | CC31: 9.99 | CD31: 4 | CI31: 0 | CO31: =Configurações!AA20 -> Adic_Nat.Ad_09 | CP31: =Configurações!AD20 -> 12.26 | CW31: =Configurações!AF20 -> Adic_Nat.Inf_09 | CX31: =Configurações!AI20 -> 7.28 | CY31: 6 | DE31: =Configurações!AK20 -> Adic_Hidr_09 | DF31: =Configurações!AN20 -> 17.68531
B32: 2 | K32: Valor | N32: =IFERROR(N30*N31,"") -> 0 | U32: Valor | W32: =IFERROR(W30*W31,"") -> 0 | BC32: Adic.Nat.Ad.2 | BD32: =IF($N$27="Natação Adulta",$X$30,0) -> 0 | BE32: =IF($N$27="Natação Adulta",$X$31,0) -> 0 | BF32: =IFERROR((BD32*BE32),"") -> 0 | BH32: Adic.Nat.Inf.2 | BI32: =IF(AND($N$27<>"Natação Adulta",$N$27<>"Hidroginástica"),$X$30,0) -> 5.89 | BJ32: =IF(AND($N$27<>"Natação Adulta",$N$27<>"Hidroginástica"),$X$31,0) ->  | BK32: =IFERROR((BI32*BJ32),"") ->  | BM32: Adic.Hid.2 | BN32: =IF($N$27="Hidroginástica",$X$30,0) -> 0 | BO32: =IF($N$27="Hidroginástica",$X$31,0) -> 0 | BP32: =IFERROR((BN32*BO32),"") -> 0 | BU32: 0 | CA32: 8.66 | CB32: 0 | CC32: 13.2 | CD32: 3 | CI32: 0 | CO32: =Configurações!AA21 -> Adic_Nat.Ad_10 | CP32: =Configurações!AD21 -> 12.66 | CW32: =Configurações!AF21 -> Adic_Nat.Inf_10 | CX32: =Configurações!AI21 -> 7.61019 | DE32: =Configurações!AK21 -> Adic_Hidr_10 | DF32: =Configurações!AN21 -> 18.02
B33: 5 | M33: Total de Alunos | Q33: =_xlfn.IFS(N27=$AN$2,$B$102,N27=$AO$2,$C$102,N27=$AP$2,$D$102,N27=$AQ$2,$E$102,N27=$AR$2,$F$102,N27=$AS$2,$G$102,N27=$AT$2,$H$102,N27="Sem Uso","") -> 0 | V33: Total de Alunos | Z33: =Q33 -> 0 | AN33: TABELA DE EQUIVALÊNCIA | BC33: Adic.Nat.Ad.3 | BD33: =IF($N$27="Natação Adulta",$Y$30,0) -> 0 | BE33: =IF($N$27="Natação Adulta",$Y$31,0) -> 0 | BF33: 0 | BH33: Adic.Nat.Inf.3 | BI33: =IF(AND($N$27<>"Natação Adulta",$N$27<>"Hidroginástica"),$Y$30,0) -> 8.66 | BJ33: =IF(AND($N$27<>"Natação Adulta",$N$27<>"Hidroginástica"),$Y$31,0) ->  | BM33: Adic.Hid.3 | BN33: =IF($N$27="Hidroginástica",$Y$30,0) -> 0 | BO33: =IF($N$27="Hidroginástica",$Y$31,0) -> 0 | BP33: 0 | BR33: =IF(BD31<>0,BD31,"") ->  | BS33: =IF(BD31<>0,BE31,"") ->  | BU33: 0 | BY33: =IF(BI31<>0,BI31,"") ->  | BZ33: =IF(BI31<>0,BJ31,"") ->  | CA33: 9.99 | CB33: 4 | CF33: =IF(BN31<>0,BN31,"") ->  | CG33: =IF(BN31<>0,BO31,"") ->  | CI33: 0 | CO33: =Configurações!AA22 -> Adic_Nat.Ad_11 | CP33: =Configurações!AD22 -> 14.97 | CW33: =Configurações!AF22 -> Adic_Nat.Inf_11 | CX33: =Configurações!AI22 -> 8.42 | DE33: =Configurações!AK22 -> Adic_Hidr_11 | DF33: =Configurações!AN22 -> 20.40418
B34: 3 | M34: Total de Aulas | Q34: =IF(Q33<>"",SUM(AN31:AS31),"") -> 0 | R34: Registro | S34: 17.66 | V34: Total de Aulas | Z34: =Q34 -> 0 | AN34: Nr. Alunos | AO34: =AO32 -> 0 | AP34: =IF(AP32<>0,AP32,"") ->  | AQ34: =IF(AQ32<>0,AQ32,"") ->  | AR34: =IF(AR32<>0,AR32,"") ->  | AS34: =IF(AS32<>0,AS32,"") ->  | AT34: =IF(AT32<>0,AT32,"") ->  | BC34: Adic.Nat.Ad.4 | BD34: =IF($N$27="Natação Adulta",$Z$30,0) -> 0 | BE34: =IF($N$27="Natação Adulta",$Z$31,0) -> 0 | BF34: 0 | BH34: Adic.Nat.Inf.4 | BI34: =IF(AND($N$27<>"Natação Adulta",$N$27<>"Hidroginástica"),$Z$30,0) -> 11.43 | BJ34: =IF(AND($N$27<>"Natação Adulta",$N$27<>"Hidroginástica"),$Z$31,0) ->  | BM34: Adic.Hid.4 | BN34: =IF($N$27="Hidroginástica",$Z$30,0) -> 0 | BO34: =IF($N$27="Hidroginástica",$Z$31,0) -> 0 | BP34: 0 | BU34: 0 | BY34: 5.89 | CA34: 11.43 | CB34: 0 | CI34: 0 | CO34: =Configurações!AA23 -> Adic_Nat.Ad_12 | CP34: =Configurações!AD23 -> 17.72 | CW34: =Configurações!AF23 -> Adic_Nat.Inf_12 | CX34: =Configurações!AI23 -> 8.66 | DE34: =Configurações!AK23 -> Adic_Hidr_12 | DF34: =Configurações!AN23 -> 21.15
B35: 5 | M35: Total a Receber | Q35: =IF(Q33<>"",SUM(N32:S32),"") -> 0 | V35: Total a Receber | Z35: =IF(Z33<>"",SUM(W32:AB32),"") -> 0 | AN35: Aulas | AO35: =IF(AO34<>"",AO29,"") -> 0 | BC35: Adic.Nat.Ad.5 | BD35: =IF($N$27="Natação Adulta",$AA$30,0) -> 0 | BE35: =IF($N$27="Natação Adulta",$AA$31,0) -> 0 | BF35: 0 | BH35: Adic.Nat.Inf.5 | BI35: =IF(AND($N$27<>"Natação Adulta",$N$27<>"Hidroginástica"),$AA$30,0) -> 14.2 | BJ35: =IF(AND($N$27<>"Natação Adulta",$N$27<>"Hidroginástica"),$AA$31,0) ->  | BM35: Adic.Hid.5 | BN35: =IF($N$27="Hidroginástica",$AA$30,0) -> 0 | BO35: =IF($N$27="Hidroginástica",$AA$31,0) -> 0 | BP35: 0 | BU35: 0 | BY35: 8.66 | CA35: 13.2 | CB35: 3 | CI35: 0 | CO35: =Configurações!AA24 -> Adic_Nat.Ad_13 | CP35: =Configurações!AD24 -> 20.4 | CW35: =Configurações!AF24 -> Adic_Nat.Inf_13 | CX35: =Configurações!AI24 -> 8.84604 | DE35: =Configurações!AK24 -> Adic_Hidr_13 | DF35: =Configurações!AN24 -> 23.12305
B36: 0 | AO36: =IFERROR(VLOOKUP(N27&R27,Configurações!$C$13:$I$47,2,0),"") -> 17.66 | AP36: =IFERROR(IF(AP34<>0,VLOOKUP(N27&R27,Configurações!$C$13:$I$47,3,0),""),"") -> 23.55 | AQ36: =IFERROR(IF(AQ34<>0,VLOOKUP(N27&R27,Configurações!$C$13:$I$47,4,0),""),"") -> 26.32 | AR36: =IFERROR(IF(AR34<>0,VLOOKUP(N27&R27,Configurações!$C$13:$I$47,5,0),""),"") -> 29.09 | AS36: =IFERROR(IF(AS34<>0,VLOOKUP(N27&R27,Configurações!$C$13:$I$47,6,0),""),"") -> 31.86 | AT36: =IFERROR(IF(AT34<>0,VLOOKUP(N27&R27,Configurações!$C$13:$I$47,7,0),""),"") -> 0 | BC36: Adic.Nat.Ad.6 | BD36: =IF($N$27="Natação Adulta",$AB$30,0) -> 0 | BE36: =IF($N$27="Natação Adulta",$AB$31,0) -> 0 | BF36: 0 | BH36: Adic.Nat.Inf.6 | BI36: =IF(AND($N$27<>"Natação Adulta",$N$27<>"Hidroginástica"),$AB$30,0) ->  | BJ36: =IF(AND($N$27<>"Natação Adulta",$N$27<>"Hidroginástica"),$AB$31,0) ->  | BM36: Adic.Hid.6 | BN36: =IF($N$27="Hidroginástica",$AB$30,0) -> 0 | BO36: =IF($N$27="Hidroginástica",$AB$31,0) -> 0 | BP36: 0 | BU36: 0 | BY36: 11.43 | CA36: 14.2 | CB36: 0 | CI36: 0 | CW36: =Configurações!AF25 -> Adic_Nat.Inf_14 | CX36: =Configurações!AI25 -> 9.5287 | DE36: =Configurações!AK25 -> Adic_Hidr_14 | DF36: =Configurações!AN25 -> 23.51
B37: 2 | BU37: 0 | BY37: 14.2 | CA37: 14.64 | CB37: 0 | CI37: 0 | CW37: =Configurações!AF26 -> Adic_Nat.Inf_15 | CX37: =Configurações!AI26 -> 9.79 | DE37: =Configurações!AK26 -> Adic_Hidr_15 | DF37: =Configurações!AN26 -> 25.84192
B38: 5 | K38: Modalidade | N38: Aprendizagem A | Q38: Nível | R38: Prof. Nível C | AN38: =VLOOKUP(N38,Configurações!$J$1:$V$9,2,0) -> 0 | AO38: =VLOOKUP(N38,Configurações!$J$1:$V$9,3,0) -> 0 | AP38: =VLOOKUP(N38,Configurações!$J$1:$V$9,4,0) -> 1 | AQ38: =VLOOKUP(N38,Configurações!$J$1:$V$9,5,0) -> 2 | AR38: =VLOOKUP(N38,Configurações!$J$1:$V$9,6,0) -> 3 | AS38: =VLOOKUP(N38,Configurações!$J$1:$V$9,7,0) -> 4 | AT38: =VLOOKUP(N38,Configurações!$J$1:$V$9,8,0) -> 5 | AU38: =VLOOKUP(N38,Configurações!$J$1:$V$9,9,0) -> 6 | AV38: =VLOOKUP(N38,Configurações!$J$1:$V$9,10,0) -> 7 | AW38: =VLOOKUP(N38,Configurações!$J$1:$V$9,11,0) -> 8 | AX38: =VLOOKUP(N38,Configurações!$J$1:$V$9,12,0) ->  | AY38: =VLOOKUP(N38,Configurações!$J$1:$V$9,13,0) ->  | BC38: Adic.Nat.Ad.1 | BD38: =IF($N$38="Natação Adulta",$W$41,0) -> 0 | BE38: =IF($N$38="Natação Adulta",$W$42,0) -> 0 | BF38: =IFERROR((BD38*BE38),"") -> 0 | BH38: Adic.Nat.Inf.1 | BI38: =IF(AND($N$38<>"Natação Adulta",$N$38<>"Hidroginástica"),$W$41,0) -> 0 | BJ38: =IF(AND($N$38<>"Natação Adulta",$N$38<>"Hidroginástica"),$W$42,0) -> 0 | BK38: =IFERROR((BI38*BJ38),"") -> 0 | BM38: Adic.Hid.1 | BN38: =IF($N$38="Hidroginástica",$W$41,0) -> 0 | BO38: =IF($N$38="Hidroginástica",$W$42,0) -> 0 | BP38: =IFERROR((BN38*BO38),"") -> 0 | BU38: 0 | CB38: 0 | CI38: 0 | CW38: =Configurações!AF27 -> Adic_Nat.Inf_16 | CX38: =Configurações!AI27 -> 9.99 | CY38: 4 | DE38: =Configurações!AK27 -> Adic_Hidr_16 | DF38: =Configurações!AN27 -> 28.56079
B39: 7 | K39: Academia | U39: Contabilidade | AN39: =IFERROR(VLOOKUP(N38,_xlfn.ANCHORARRAY($AZ$2),2,0),0) -> 83 | BC39: Adic.Nat.Ad.2 | BD39: =IF($N$38="Natação Adulta",$X$41,0) -> 0 | BE39: =IF($N$38="Natação Adulta",$X$42,0) -> 0 | BF39: =IFERROR((BD39*BE39),"") -> 0 | BH39: Adic.Nat.Inf.2 | BI39: =IF(AND($N$38<>"Natação Adulta",$N$38<>"Hidroginástica"),$X$41,0) -> 2.1 | BJ39: =IF(AND($N$38<>"Natação Adulta",$N$38<>"Hidroginástica"),$X$42,0) -> 4 | BK39: =IFERROR((BI39*BJ39),"") -> 8.4 | BM39: Adic.Hid.2 | BN39: =IF($N$38="Hidroginástica",$X$41,0) -> 0 | BO39: =IF($N$38="Hidroginástica",$X$42,0) -> 0 | BP39: =IFERROR((BN39*BO39),"") -> 0 | BR39: =IF(BD38<>0,BD38,"") ->  | BS39: =IF(BD38<>0,BE38,"") ->  | BU39: 0 | BY39: =IF(BI38<>0,BI38,"") ->  | BZ39: =IF(BI38<>0,BJ38,"") ->  | CB39: 0 | CF39: =IF(BN38<>0,BN38,"") ->  | CG39: =IF(BN38<>0,BO38,"") ->  | CI39: 0 | CW39: =Configurações!AF28 -> Adic_Nat.Inf_17 | CX39: =Configurações!AI28 -> 10.89402 | DE39: =Configurações!AK28 -> Adic_Hidr_17 | DF39: =Configurações!AN28 -> 31.27966
B40: 4 | K40: Nr. de Alunos | N40: =IF(AO45<>"",AO45,"") -> 0 | O40: =IF(AP45<>"",AP45,"") -> 1 a 2 | P40: =IF(AQ45<>"",AQ45,"") -> 3 a 4 | Q40: =IF(AR45<>"",AR45,"") -> 5 a 6 | R40: =IF(AS45<>"",AS45,"") -> 7 a 8 | S40: =IF(AT45<>0,AT45,"") ->  | U40: Nr. de Alunos | W40: =N40 -> 0 | X40: =O40 -> 1 a 2 | Y40: 3 a 4 | Z40: 5 a 6 | AA40: 7 a 8 | AO40: =IF($N$38=$AN$2,COUNTIF($B$4:$B$100,">="&AN38)-COUNTIF($B$4:$B$100,">"&AO38), IF($N$38=$AO$2,COUNTIF($C$4:$C$100,">="&AN38)-COUNTIF($C$4:$C$100,">"&AO38), IF($N$38=$AP$2,COUNTIF($D$4:$D$100,">="&AN38)-COUNTIF($D$4:$D$100,">"&AO38), IF($N$38=$AQ$2,COUNTIF($E$4:$E$100,">="&AN38)-COUNTIF($E$4:$E$100,">"&AO38), IF($N$38=$AR$2,COUNTIF($F$4:$F$100,">="&AN38)-COUNTIF($F$4:$F$100,">"&AO38), IF($N$38=$AS$2,COUNTIF($G$4:$G$100,">="&AN38)-COUNTIF($G$4:$G$100,">"&AO38), IF($N$38=$AT$2,COUNTIF($H$4:$H$100,">="&AN38)-COUNTIF($H$4:$H$100,">"&AO38), IF($N$38="Sem Uso","")))))))) -> 0 | AP40: =IF($N$38=$AN$2,COUNTIF($B$4:$B$100,">="&AP38)-COUNTIF($B$4:$B$100,">"&AQ38), IF($N$38=$AO$2,COUNTIF($C$4:$C$100,">="&AP38)-COUNTIF($C$4:$C$100,">"&AQ38), IF($N$38=$AP$2,COUNTIF($D$4:$D$100,">="&AP38)-COUNTIF($D$4:$D$100,">"&AQ38), IF($N$38=$AQ$2,COUNTIF($E$4:$E$100,">="&AP38)-COUNTIF($E$4:$E$100,">"&AQ38), IF($N$38=$AR$2,COUNTIF($F$4:$F$100,">="&AP38)-COUNTIF($F$4:$F$100,">"&AQ38), IF($N$38=$AS$2,COUNTIF($G$4:$G$100,">="&AP38)-COUNTIF($G$4:$G$100,">"&AQ38), IF($N$38=$AT$2,COUNTIF($H$4:$H$100,">="&AP38)-COUNTIF($H$4:$H$100,">"&AQ38), IF($N$38="Sem Uso","")))))))) -> 4 | AQ40: =IF($N$38=$AN$2,COUNTIF($B$4:$B$100,">="&AR38)-COUNTIF($B$4:$B$100,">"&AS38), IF($N$38=$AO$2,COUNTIF($C$4:$C$100,">="&AR38)-COUNTIF($C$4:$C$100,">"&AS38), IF($N$38=$AP$2,COUNTIF($D$4:$D$100,">="&AR38)-COUNTIF($D$4:$D$100,">"&AS38), IF($N$38=$AQ$2,COUNTIF($E$4:$E$100,">="&AR38)-COUNTIF($E$4:$E$100,">"&AS38), IF($N$38=$AR$2,COUNTIF($F$4:$F$100,">="&AR38)-COUNTIF($F$4:$F$100,">"&AS38), IF($N$38=$AS$2,COUNTIF($G$4:$G$100,">="&AR38)-COUNTIF($G$4:$G$100,">"&AS38), IF($N$38=$AT$2,COUNTIF($H$4:$H$100,">="&AR38)-COUNTIF($H$4:$H$100,">"&AS38), IF($N$38="Sem Uso","")))))))) -> 9 | AR40: =IF($N$38=$AN$2,COUNTIF($B$4:$B$100,">="&AT38)-COUNTIF($B$4:$B$100,">"&AU38), IF($N$38=$AO$2,COUNTIF($C$4:$C$100,">="&AT38)-COUNTIF($C$4:$C$100,">"&AU38), IF($N$38=$AP$2,COUNTIF($D$4:$D$100,">="&AT38)-COUNTIF($D$4:$D$100,">"&AU38), IF($N$38=$AQ$2,COUNTIF($E$4:$E$100,">="&AT38)-COUNTIF($E$4:$E$100,">"&AU38), IF($N$38=$AR$2,COUNTIF($F$4:$F$100,">="&AT38)-COUNTIF($F$4:$F$100,">"&AU38), IF($N$38=$AS$2,COUNTIF($G$4:$G$100,">="&AT38)-COUNTIF($G$4:$G$100,">"&AU38), IF($N$38=$AT$2,COUNTIF($H$4:$H$100,">="&AT38)-COUNTIF($H$4:$H$100,">"&AU38), IF($N$38="Sem Uso","")))))))) -> 3 | AS40: =IF($N$38=$AN$2,COUNTIF($B$4:$B$100,">="&AV38)-COUNTIF($B$4:$B$100,">"&AW38), IF($N$38=$AO$2,COUNTIF($C$4:$C$100,">="&AV38)-COUNTIF($C$4:$C$100,">"&AW38), IF($N$38=$AP$2,COUNTIF($D$4:$D$100,">="&AV38)-COUNTIF($D$4:$D$100,">"&AW38), IF($N$38=$AQ$2,COUNTIF($E$4:$E$100,">="&AV38)-COUNTIF($E$4:$E$100,">"&AW38), IF($N$38=$AR$2,COUNTIF($F$4:$F$100,">="&AV38)-COUNTIF($F$4:$F$100,">"&AW38), IF($N$38=$AS$2,COUNTIF($G$4:$G$100,">="&AV38)-COUNTIF($G$4:$G$100,">"&AW38), IF($N$38=$AT$2,COUNTIF($H$4:$H$100,">="&AV38)-COUNTIF($H$4:$H$100,">"&AW38), IF($N$38="Sem Uso","")))))))) -> 3 | AT40: =IF($N$38=$AN$2,COUNTIF($B$4:$B$100,">="&AX38)-COUNTIF($B$4:$B$100,">"&AY38), IF($N$38=$AO$2,COUNTIF($C$4:$C$100,">="&AX38)-COUNTIF($C$4:$C$100,">"&AY38), IF($N$38=$AP$2,COUNTIF($D$4:$D$100,">="&AX38)-COUNTIF($D$4:$D$100,">"&AY38), IF($N$38=$AQ$2,COUNTIF($E$4:$E$100,">="&AX38)-COUNTIF($E$4:$E$100,">"&AY38), IF($N$38=$AR$2,COUNTIF($F$4:$F$100,">="&AX38)-COUNTIF($F$4:$F$100,">"&AY38), IF($N$38=$AS$2,COUNTIF($G$4:$G$100,">="&AX38)-COUNTIF($G$4:$G$100,">"&AY38), IF($N$38=$AT$2,COUNTIF($H$4:$H$100,">="&AX38)-COUNTIF($H$4:$H$100,">"&AY38), IF($N$38="Sem Uso","")))))))) -> 0 | BC40: Adic.Nat.Ad.3 | BD40: =IF($N$38="Natação Adulta",$Y$41,0) -> 0 | BE40: =IF($N$38="Natação Adulta",$Y$42,0) -> 0 | BF40: 0 | BH40: Adic.Nat.Inf.3 | BI40: =IF(AND($N$38<>"Natação Adulta",$N$38<>"Hidroginástica"),$Y$41,0) -> 6.02 | BJ40: =IF(AND($N$38<>"Natação Adulta",$N$38<>"Hidroginástica"),$Y$42,0) -> 9 | BK40: 54.18 | BM40: Adic.Hid.3 | BN40: =IF($N$38="Hidroginástica",$Y$41,0) -> 0 | BO40: =IF($N$38="Hidroginástica",$Y$42,0) -> 0 | BP40: 0 | BU40: 0 | BY40: 2.1 | BZ40: 4 | CB40: 0 | CI40: 0 | CW40: =Configurações!AF29 -> Adic_Nat.Inf_18 | CX40: =Configurações!AI29 -> 11.17
B41: 4 | K41: Valor da Aula | N41: =IF(AO47<>0,AO47,"") -> 17.66 | O41: 19.76 | P41: 23.68 | Q41: 27.65 | R41: 30.86 | U41: Valor da Aula | W41: =IFERROR(IF(N41<=$S$45,0,N41-$S$45),"") -> 0 | X41: 2.1 | Y41: 6.02 | Z41: 9.99 | AA41: 13.2 | BC41: Adic.Nat.Ad.4 | BD41: =IF($N$38="Natação Adulta",$Z$41,0) -> 0 | BE41: =IF($N$38="Natação Adulta",$Z$42,0) -> 0 | BF41: 0 | BH41: Adic.Nat.Inf.4 | BI41: =IF(AND($N$38<>"Natação Adulta",$N$38<>"Hidroginástica"),$Z$41,0) -> 9.99 | BJ41: =IF(AND($N$38<>"Natação Adulta",$N$38<>"Hidroginástica"),$Z$42,0) -> 3 | BK41: 29.97 | BM41: Adic.Hid.4 | BN41: =IF($N$38="Hidroginástica",$Z$41,0) -> 0 | BO41: =IF($N$38="Hidroginástica",$Z$42,0) -> 0 | BP41: 0 | BU41: 0 | BY41: 6.02 | BZ41: 9 | CB41: 0 | CI41: 0 | CW41: =Configurações!AF30 -> Adic_Nat.Inf_19 | CX41: =Configurações!AI30 -> 11.43
B42: 4 | K42: Nr. de Aulas | N42: =IF(AO45<>"",AO46,"") -> 0 | O42: 4 | P42: 9 | Q42: 3 | R42: 3 | U42: Nr. de Aulas | W42: =N42 -> 0 | X42: 4 | Y42: 9 | Z42: 3 | AA42: 3 | AN42: =IF(N42<>"",N42,"") -> 0 | AO42: 4 | AP42: 9 | AQ42: 3 | AR42: 3 | BC42: Adic.Nat.Ad.5 | BD42: =IF($N$38="Natação Adulta",$AA$41,0) -> 0 | BE42: =IF($N$38="Natação Adulta",$AA$42,0) -> 0 | BF42: 0 | BH42: Adic.Nat.Inf.5 | BI42: =IF(AND($N$38<>"Natação Adulta",$N$38<>"Hidroginástica"),$AA$41,0) -> 13.2 | BJ42: =IF(AND($N$38<>"Natação Adulta",$N$38<>"Hidroginástica"),$AA$42,0) -> 3 | BK42: 39.6 | BM42: Adic.Hid.5 | BN42: =IF($N$38="Hidroginástica",$AA$41,0) -> 0 | BO42: =IF($N$38="Hidroginástica",$AA$42,0) -> 0 | BP42: 0 | BU42: 0 | BY42: 9.99 | BZ42: 3 | CB42: 0 | CI42: 0 | CW42: =Configurações!AF31 -> Adic_Nat.Inf_20 | CX42: =Configurações!AI31 -> 12.26
B43: 1 | K43: Valor | N43: =IFERROR(N41*N42,"") -> 0 | O43: 79.04 | P43: 213.12 | Q43: 82.95 | R43: 92.58 | U43: Valor | W43: =IFERROR(W41*W42,"") -> 0 | X43: 8.4 | Y43: 54.18 | Z43: 29.97 | AA43: 39.6 | AO43: =IF($N38<>"Sem Uso",VLOOKUP(N38,Configurações!$C$1:$I$8,2,0),"") -> 0 | AP43: =IF(N38<>"Sem Uso",VLOOKUP(N38,Configurações!$C$1:$I$8,3,0),"") -> 1 a 2 | AQ43: =IF(N38<>"Sem Uso",VLOOKUP(N38,Configurações!$C$1:$I$8,4,0),"") -> 3 a 4 | AR43: =IF(N38<>"Sem Uso",VLOOKUP(N38,Configurações!$C$1:$I$8,5,0),"") -> 5 a 6 | AS43: =IF(N38<>"Sem Uso",VLOOKUP(N38,Configurações!$C$1:$I$8,6,0),"") -> 7 a 8 | AT43: =IF(N38<>"Sem Uso",VLOOKUP(N38,Configurações!$C$1:$I$8,7,0),"") -> 0 | BC43: Adic.Nat.Ad.6 | BD43: =IF($N$38="Natação Adulta",$AB$41,0) -> 0 | BE43: =IF($N$38="Natação Adulta",$AB$42,0) -> 0 | BF43: 0 | BH43: Adic.Nat.Inf.6 | BI43: =IF(AND($N$38<>"Natação Adulta",$N$38<>"Hidroginástica"),$AB$41,0) ->  | BJ43: =IF(AND($N$38<>"Natação Adulta",$N$38<>"Hidroginástica"),$AB$42,0) ->  | BM43: Adic.Hid.6 | BN43: =IF($N$38="Hidroginástica",$AB$41,0) -> 0 | BO43: =IF($N$38="Hidroginástica",$AB$42,0) -> 0 | BP43: 0 | BU43: 0 | BY43: 13.2 | BZ43: 3 | CB43: 0 | CI43: 0 | CW43: =Configurações!AF32 -> Adic_Nat.Inf_21 | CX43: =Configurações!AI32 -> 12.65952
B44: 4 | M44: Total de Alunos | Q44: =_xlfn.IFS(N38=$AN$2,$B$102,N38=$AO$2,$C$102,N38=$AP$2,$D$102,N38=$AQ$2,$E$102,N38=$AR$2,$F$102,N38=$AS$2,$G$102,N38=$AT$2,$H$102,N38="Sem Uso","") -> 83 | V44: Total de Alunos | Z44: =Q44 -> 83 | AN44: TABELA DE EQUIVALÊNCIA | BU44: 0 | CB44: 0 | CI44: 0 | CW44: =Configurações!AF33 -> Adic_Nat.Inf_22 | CX44: =Configurações!AI33 -> 13.2 | CY44: 3
B45: 1 | M45: Total de Aulas | Q45: =IF(Q44<>"",SUM(AN42:AS42),"") -> 19 | R45: Registro | S45: 17.66 | V45: Total de Aulas | Z45: =Q45 -> 19 | AN45: Nr. Alunos | AO45: =AO43 -> 0 | AP45: =IF(AP43<>0,AP43,"") -> 1 a 2 | AQ45: =IF(AQ43<>0,AQ43,"") -> 3 a 4 | AR45: =IF(AR43<>0,AR43,"") -> 5 a 6 | AS45: =IF(AS43<>0,AS43,"") -> 7 a 8 | AT45: =IF(AT43<>0,AT43,"") ->  | BC45: Adic.Nat.Ad.1 | BD45: =IF($N$49="Natação Adulta",$W$52,0) -> 0 | BE45: =IF($N$49="Natação Adulta",$W$53,0) -> 0 | BF45: =IFERROR((BD45*BE45),"") -> 0 | BH45: Adic.Nat.Inf.1 | BI45: =IF(AND($N$49<>"Natação Adulta",$N$49<>"Hidroginástica"),$W$52,0) -> 0 | BJ45: =IF(AND($N$49<>"Natação Adulta",$N$49<>"Hidroginástica"),$W$53,0) -> 0 | BK45: =IFERROR((BI45*BJ45),"") -> 0 | BM45: Adic.Hid.1 | BN45: =IF($N$49="Hidroginástica",$W$52,0) -> 0 | BO45: =IF($N$49="Hidroginástica",$W$53,0) -> 0 | BP45: =IFERROR((BN45*BO45),"") -> 0 | BR45: =IF(BD45<>0,BD45,"") ->  | BS45: =IF(BD45<>0,BE45,"") ->  | BU45: 0 | BY45: =IF(BI45<>0,BI45,"") ->  | BZ45: =IF(BI45<>0,BJ45,"") ->  | CB45: 0 | CF45: =IF(BN45<>0,BN45,"") ->  | CG45: =IF(BN45<>0,BO45,"") ->  | CI45: 0 | CW45: =Configurações!AF34 -> Adic_Nat.Inf_23 | CX45: =Configurações!AI34 -> 13.22
B46: 2 | M46: Total a Receber | Q46: =IF(Q44<>"",SUM(N43:S43),"") -> 467.69 | V46: Total a Receber | Z46: =IF(Z44<>"",SUM(W43:AB43),"") -> 132.15 | AN46: Aulas | AO46: =IF(AO45<>"",AO40,"") -> 0 | AP46: 4 | AQ46: 9 | AR46: 3 | AS46: 3 | BC46: Adic.Nat.Ad.2 | BD46: =IF($N$49="Natação Adulta",$X$52,0) -> 0 | BE46: =IF($N$49="Natação Adulta",$X$53,0) -> 0 | BF46: =IFERROR((BD46*BE46),"") -> 0 | BH46: Adic.Nat.Inf.2 | BI46: =IF(AND($N$49<>"Natação Adulta",$N$49<>"Hidroginástica"),$X$52,0) -> 2.1 | BJ46: =IF(AND($N$49<>"Natação Adulta",$N$49<>"Hidroginástica"),$X$53,0) -> 1 | BK46: =IFERROR((BI46*BJ46),"") -> 2.1 | BM46: Adic.Hid.2 | BN46: =IF($N$49="Hidroginástica",$X$52,0) -> 0 | BO46: =IF($N$49="Hidroginástica",$X$53,0) -> 0 | BP46: =IFERROR((BN46*BO46),"") -> 0 | BU46: 0 | BY46: 2.1 | BZ46: 1 | CB46: 0 | CI46: 0 | CW46: =Configurações!AF35 -> Adic_Nat.Inf_24 | CX46: =Configurações!AI35 -> 13.61289
B47: 2 | AO47: =IFERROR(VLOOKUP(N38&R38,Configurações!$C$13:$I$47,2,0),"") -> 17.66 | AP47: =IFERROR(IF(AP45<>0,VLOOKUP(N38&R38,Configurações!$C$13:$I$47,3,0),""),"") -> 19.76 | AQ47: =IFERROR(IF(AQ45<>0,VLOOKUP(N38&R38,Configurações!$C$13:$I$47,4,0),""),"") -> 23.68 | AR47: =IFERROR(IF(AR45<>0,VLOOKUP(N38&R38,Configurações!$C$13:$I$47,5,0),""),"") -> 27.65 | AS47: =IFERROR(IF(AS45<>0,VLOOKUP(N38&R38,Configurações!$C$13:$I$47,6,0),""),"") -> 30.86 | AT47: =IFERROR(IF(AT45<>0,VLOOKUP(N38&R38,Configurações!$C$13:$I$47,7,0),""),"") -> 0 | BC47: Adic.Nat.Ad.3 | BD47: =IF($N$49="Natação Adulta",$Y$52,0) -> 0 | BE47: =IF($N$49="Natação Adulta",$Y$53,0) -> 0 | BF47: 0 | BH47: Adic.Nat.Inf.3 | BI47: =IF(AND($N$49<>"Natação Adulta",$N$49<>"Hidroginástica"),$Y$52,0) -> 6.02 | BJ47: =IF(AND($N$49<>"Natação Adulta",$N$49<>"Hidroginástica"),$Y$53,0) -> 4 | BK47: 24.08 | BM47: Adic.Hid.3 | BN47: =IF($N$49="Hidroginástica",$Y$52,0) -> 0 | BO47: =IF($N$49="Hidroginástica",$Y$53,0) -> 0 | BP47: 0 | BU47: 0 | BY47: 6.02 | BZ47: 4 | CB47: 0 | CI47: 0 | CW47: =Configurações!AF36 -> Adic_Nat.Inf_25 | CX47: =Configurações!AI36 -> 13.91
B48: 2 | BC48: Adic.Nat.Ad.4 | BD48: =IF($N$49="Natação Adulta",$Z$52,0) -> 0 | BE48: =IF($N$49="Natação Adulta",$Z$53,0) -> 0 | BF48: 0 | BH48: Adic.Nat.Inf.4 | BI48: =IF(AND($N$49<>"Natação Adulta",$N$49<>"Hidroginástica"),$Z$52,0) -> 9.99 | BJ48: =IF(AND($N$49<>"Natação Adulta",$N$49<>"Hidroginástica"),$Z$53,0) -> 1 | BK48: 9.99 | BM48: Adic.Hid.4 | BN48: =IF($N$49="Hidroginástica",$Z$52,0) -> 0 | BO48: =IF($N$49="Hidroginástica",$Z$53,0) -> 0 | BP48: 0 | BU48: 0 | BY48: 9.99 | BZ48: 1 | CB48: 0 | CI48: 0 | CW48: =Configurações!AF37 -> Adic_Nat.Inf_26 | CX48: =Configurações!AI37 -> 14.2
B49: 5 | K49: Modalidade | N49: Aprendizagem B | Q49: Nível | R49: Prof. Nível C | AN49: =VLOOKUP(N49,Configurações!$J$1:$V$9,2,0) -> 0 | AO49: =VLOOKUP(N49,Configurações!$J$1:$V$9,3,0) -> 0 | AP49: =VLOOKUP(N49,Configurações!$J$1:$V$9,4,0) -> 1 | AQ49: =VLOOKUP(N49,Configurações!$J$1:$V$9,5,0) -> 4 | AR49: =VLOOKUP(N49,Configurações!$J$1:$V$9,6,0) -> 5 | AS49: =VLOOKUP(N49,Configurações!$J$1:$V$9,7,0) -> 8 | AT49: =VLOOKUP(N49,Configurações!$J$1:$V$9,8,0) -> 9 | AU49: =VLOOKUP(N49,Configurações!$J$1:$V$9,9,0) -> 12 | AV49: =VLOOKUP(N49,Configurações!$J$1:$V$9,10,0) -> 13 | AW49: =VLOOKUP(N49,Configurações!$J$1:$V$9,11,0) -> 16 | AX49: =VLOOKUP(N49,Configurações!$J$1:$V$9,12,0) ->  | AY49: =VLOOKUP(N49,Configurações!$J$1:$V$9,13,0) ->  | BC49: Adic.Nat.Ad.5 | BD49: =IF($N$49="Natação Adulta",$AA$52,0) -> 0 | BE49: =IF($N$49="Natação Adulta",$AA$53,0) -> 0 | BF49: 0 | BH49: Adic.Nat.Inf.5 | BI49: =IF(AND($N$49<>"Natação Adulta",$N$49<>"Hidroginástica"),$AA$52,0) -> 13.2 | BJ49: =IF(AND($N$49<>"Natação Adulta",$N$49<>"Hidroginástica"),$AA$53,0) -> 0 | BK49: 0 | BM49: Adic.Hid.5 | BN49: =IF($N$49="Hidroginástica",$AA$52,0) -> 0 | BO49: =IF($N$49="Hidroginástica",$AA$53,0) -> 0 | BP49: 0 | BU49: 0 | BY49: 13.2 | BZ49: 0 | CB49: 0 | CI49: 0 | CW49: =Configurações!AF38 -> Adic_Nat.Inf_27 | CX49: =Configurações!AI38 -> 14.64
B50: 5 | K50: Academia | U50: Contabilidade | AN50: =IFERROR(VLOOKUP(N49,_xlfn.ANCHORARRAY($AZ$2),2,0),0) -> 41 | BC50: Adic.Nat.Ad.6 | BD50: =IF(N$49="Natação Adulta",AB$52,0) -> 0 | BE50: =IF($N$49="Natação Adulta",$AB$53,0) -> 0 | BF50: 0 | BH50: Adic.Nat.Inf.6 | BI50: =IF(AND($N$49<>"Natação Adulta",$N$49<>"Hidroginástica"),$AB$52,0) ->  | BJ50: =IF(AND($N$49<>"Natação Adulta",$N$49<>"Hidroginástica"),$AB$53,0) ->  | BM50: Adic.Hid.6 | BN50: =IF($N$49="Hidroginástica",$AB$52,0) -> 0 | BO50: =IF($N$49="Hidroginástica",$AB$53,0) -> 0 | BP50: 0 | BU50: 0 | CB50: 0 | CI50: 0 | CW50: =Configurações!AF39 -> Adic_Nat.Inf_28 | CX50: =Configurações!AI39 -> 14.96644
B51: 1 | K51: Nr. de Alunos | N51: =IF(AO56<>"",AO56,"") -> 0 | O51: =IF(AP56<>"",AP56,"") -> 1 a 4 | P51: =IF(AQ56<>"",AQ56,"") -> 5 a 8 | Q51: =IF(AR56<>"",AR56,"") -> 9 a 12 | R51: =IF(AS56<>"",AS56,"") -> 13 a 16 | S51: =IF(AT56<>0,AT56,"") ->  | U51: Nr. de Alunos | W51: =N51 -> 0 | X51: =O51 -> 1 a 4 | Y51: 5 a 8 | Z51: 9 a 12 | AA51: 13 a 16 | AO51: =IF($N$49=$AN$2,COUNTIF($B$4:$B$100,">="&AN49)-COUNTIF($B$4:$B$100,">"&AO49), IF($N$49=$AO$2,COUNTIF($C$4:$C$100,">="&AN49)-COUNTIF($C$4:$C$100,">"&AO49), IF($N$49=$AP$2,COUNTIF($D$4:$D$100,">="&AN49)-COUNTIF($D$4:$D$100,">"&AO49), IF($N$49=$AQ$2,COUNTIF($E$4:$E$100,">="&AN49)-COUNTIF($E$4:$E$100,">"&AO49), IF($N$49=$AR$2,COUNTIF($F$4:$F$100,">="&AN49)-COUNTIF($F$4:$F$100,">"&AO49), IF($N$49=$AS$2,COUNTIF($G$4:$G$100,">="&AN49)-COUNTIF($G$4:$G$100,">"&AO49), IF($N$49=$AT$2,COUNTIF($H$4:$H$100,">="&AN49)-COUNTIF($H$4:$H$100,">"&AO49), IF($N$49="Sem Uso","")))))))) -> 0 | AP51: =IF($N$49=$AN$2,COUNTIF($B$4:$B$100,">="&AP49)-COUNTIF($B$4:$B$100,">"&AQ49), IF($N$49=$AO$2,COUNTIF($C$4:$C$100,">="&AP49)-COUNTIF($C$4:$C$100,">"&AQ49), IF($N$49=$AP$2,COUNTIF($D$4:$D$100,">="&AP49)-COUNTIF($D$4:$D$100,">"&AQ49), IF($N$49=$AQ$2,COUNTIF($E$4:$E$100,">="&AP49)-COUNTIF($E$4:$E$100,">"&AQ49), IF($N$49=$AR$2,COUNTIF($F$4:$F$100,">="&AP49)-COUNTIF($F$4:$F$100,">"&AQ49), IF($N$49=$AS$2,COUNTIF($G$4:$G$100,">="&AP49)-COUNTIF($G$4:$G$100,">"&AQ49), IF($N$49=$AT$2,COUNTIF($H$4:$H$100,">="&AP49)-COUNTIF($H$4:$H$100,">"&AQ49), IF($N$49="Sem Uso","")))))))) -> 1 | AQ51: =IF($N$49=$AN$2,COUNTIF($B$4:$B$100,">="&AR49)-COUNTIF($B$4:$B$100,">"&AS49), IF($N$49=$AO$2,COUNTIF($C$4:$C$100,">="&AR49)-COUNTIF($C$4:$C$100,">"&AS49), IF($N$49=$AP$2,COUNTIF($D$4:$D$100,">="&AR49)-COUNTIF($D$4:$D$100,">"&AS49), IF($N$49=$AQ$2,COUNTIF($E$4:$E$100,">="&AR49)-COUNTIF($E$4:$E$100,">"&AS49), IF($N$49=$AR$2,COUNTIF($F$4:$F$100,">="&AR49)-COUNTIF($F$4:$F$100,">"&AS49), IF($N$49=$AS$2,COUNTIF($G$4:$G$100,">="&AR49)-COUNTIF($G$4:$G$100,">"&AS49), IF($N$49=$AT$2,COUNTIF($H$4:$H$100,">="&AR49)-COUNTIF($H$4:$H$100,">"&AS49), IF($N$49="Sem Uso","")))))))) -> 4 | AR51: =IF($N$49=$AN$2,COUNTIF($B$4:$B$100,">="&AT49)-COUNTIF($B$4:$B$100,">"&AU49), IF($N$49=$AO$2,COUNTIF($C$4:$C$100,">="&AT49)-COUNTIF($C$4:$C$100,">"&AU49), IF($N$49=$AP$2,COUNTIF($D$4:$D$100,">="&AT49)-COUNTIF($D$4:$D$100,">"&AU49), IF($N$49=$AQ$2,COUNTIF($E$4:$E$100,">="&AT49)-COUNTIF($E$4:$E$100,">"&AU49), IF($N$49=$AR$2,COUNTIF($F$4:$F$100,">="&AT49)-COUNTIF($F$4:$F$100,">"&AU49), IF($N$49=$AS$2,COUNTIF($G$4:$G$100,">="&AT49)-COUNTIF($G$4:$G$100,">"&AU49), IF($N$49=$AT$2,COUNTIF($H$4:$H$100,">="&AT49)-COUNTIF($H$4:$H$100,">"&AU49), IF($N$49="Sem Uso","")))))))) -> 1 | AS51: =IF($N$49=$AN$2,COUNTIF($B$4:$B$100,">="&AV49)-COUNTIF($B$4:$B$100,">"&AW49), IF($N$49=$AO$2,COUNTIF($C$4:$C$100,">="&AV49)-COUNTIF($C$4:$C$100,">"&AW49), IF($N$49=$AP$2,COUNTIF($D$4:$D$100,">="&AV49)-COUNTIF($D$4:$D$100,">"&AW49), IF($N$49=$AQ$2,COUNTIF($E$4:$E$100,">="&AV49)-COUNTIF($E$4:$E$100,">"&AW49), IF($N$49=$AR$2,COUNTIF($F$4:$F$100,">="&AV49)-COUNTIF($F$4:$F$100,">"&AW49), IF($N$49=$AS$2,COUNTIF($G$4:$G$100,">="&AV49)-COUNTIF($G$4:$G$100,">"&AW49), IF($N$49=$AT$2,COUNTIF($H$4:$H$100,">="&AV49)-COUNTIF($H$4:$H$100,">"&AW49), IF($N$49="Sem Uso","")))))))) -> 0 | AT51: =IF($N$49=$AN$2,COUNTIF($B$4:$B$100,">="&AX49)-COUNTIF($B$4:$B$100,">"&AY49), IF($N$49=$AO$2,COUNTIF($C$4:$C$100,">="&AX49)-COUNTIF($C$4:$C$100,">"&AY49), IF($N$49=$AP$2,COUNTIF($D$4:$D$100,">="&AX49)-COUNTIF($D$4:$D$100,">"&AY49), IF($N$49=$AQ$2,COUNTIF($E$4:$E$100,">="&AX49)-COUNTIF($E$4:$E$100,">"&AY49), IF($N$49=$AR$2,COUNTIF($F$4:$F$100,">="&AX49)-COUNTIF($F$4:$F$100,">"&AY49), IF($N$49=$AS$2,COUNTIF($G$4:$G$100,">="&AX49)-COUNTIF($G$4:$G$100,">"&AY49), IF($N$49=$AT$2,COUNTIF($H$4:$H$100,">="&AX49)-COUNTIF($H$4:$H$100,">"&AY49), IF($N$49="Sem Uso","")))))))) -> 0 | BR51: =IF(BD52<>0,BD52,"") ->  | BS51: =IF(BD52<>0,BE52,"") ->  | BU51: 0 | BY51: =IF(BI52<>0,BI52,"") ->  | BZ51: =IF(BI52<>0,BJ52,"") ->  | CB51: 0 | CF51: =IF(BN52<>0,BN52,"") ->  | CG51: =IF(BN52<>0,BO52,"") ->  | CI51: 0 | CW51: =Configurações!AF40 -> Adic_Nat.Inf_29 | CX51: =Configurações!AI40 -> 14.98
B52: 0 | K52: Valor da Aula | N52: =IF(AO58<>0,AO58,"") -> 17.66 | O52: 19.76 | P52: 23.68 | Q52: 27.65 | R52: 30.86 | U52: Valor da Aula | W52: =IFERROR(IF(N52<=$S$56,0,N52-$S$56),"") -> 0 | X52: 2.1 | Y52: 6.02 | Z52: 9.99 | AA52: 13.2 | BC52: Adic.Nat.Ad.1 | BD52: =IF($N$60="Natação Adulta",$W$63,0) -> 0 | BE52: =IF($N$60="Natação Adulta",$W$64,0) -> 0 | BF52: =IFERROR((BD52*BE52),"") -> 0 | BH52: Adic.Nat.Inf.1 | BI52: =IF(AND($N$60<>"Natação Adulta",$N$60<>"Hidroginástica"),$W$63,0) -> 0 | BJ52: =IF(AND($N$60<>"Natação Adulta",$N$60<>"Hidroginástica"),$W$64,0) -> 0 | BK52: =IFERROR((BI52*BJ52),"") -> 0 | BM52: Adic.Hid.1 | BN52: =IF($N$60="Hidroginástica",$W$63,0) -> 0 | BO52: =IF($N$60="Hidroginástica",$W$64,0) -> 0 | BP52: =IFERROR((BN52*BO52),"") -> 0 | BU52: 0 | BY52: 3.13 | BZ52: 10 | CB52: 0 | CI52: 0 | CW52: =Configurações!AF41 -> Adic_Nat.Inf_30 | CX52: =Configurações!AI41 -> 16.33176
B53: 4 | K53: Nr. de Aulas | N53: =IF(AO56<>"",AO57,"") -> 0 | O53: 1 | P53: 4 | Q53: 1 | R53: 0 | U53: Nr. de Aulas | W53: =N53 -> 0 | X53: 1 | Y53: 4 | Z53: 1 | AA53: 0 | AN53: =IF(N53<>"",N53,"") -> 0 | AO53: 1 | AP53: 4 | AQ53: 1 | AR53: 0 | BC53: Adic.Nat.Ad.2 | BD53: =IF($N$60="Natação Adulta",$X$63,0) -> 0 | BE53: =IF($N$60="Natação Adulta",$X$64,0) -> 0 | BF53: =IFERROR((BD53*BE53),"") -> 0 | BH53: Adic.Nat.Inf.2 | BI53: =IF(AND($N$60<>"Natação Adulta",$N$60<>"Hidroginástica"),$X$63,0) -> 3.13 | BJ53: =IF(AND($N$60<>"Natação Adulta",$N$60<>"Hidroginástica"),$X$64,0) -> 10 | BK53: =IFERROR((BI53*BJ53),"") -> 31.3 | BM53: Adic.Hid.2 | BN53: =IF($N$60="Hidroginástica",$X$63,0) -> 0 | BO53: =IF($N$60="Hidroginástica",$X$64,0) -> 0 | BP53: =IFERROR((BN53*BO53),"") -> 0 | BU53: 0 | BY53: 7.28 | BZ53: 6 | CB53: 0 | CI53: 0 | CW53: =Configurações!AF42 -> Adic_Nat.Inf_31 | CX53: =Configurações!AI42 -> 16.43
B54: 7 | K54: Valor | N54: =IFERROR(N52*N53,"") -> 0 | O54: 19.76 | P54: 94.72 | Q54: 27.65 | R54: 0 | U54: Valor | W54: =IFERROR(W52*W53,"") -> 0 | X54: 2.1 | Y54: 24.08 | Z54: 9.99 | AA54: 0 | AO54: =IF($N49<>"Sem Uso",VLOOKUP(N49,Configurações!$C$1:$I$8,2,0),"") -> 0 | AP54: =IF(N49<>"Sem Uso",VLOOKUP(N49,Configurações!$C$1:$I$8,3,0),"") -> 1 a 4 | AQ54: =IF(N49<>"Sem Uso",VLOOKUP(N49,Configurações!$C$1:$I$8,4,0),"") -> 5 a 8 | AR54: =IF(N49<>"Sem Uso",VLOOKUP(N49,Configurações!$C$1:$I$8,5,0),"") -> 9 a 12 | AS54: =IF(N49<>"Sem Uso",VLOOKUP(N49,Configurações!$C$1:$I$8,6,0),"") -> 13 a 16 | AT54: =IF(N49<>"Sem Uso",VLOOKUP(N49,Configurações!$C$1:$I$8,7,0),"") -> 0 | BC54: Adic.Nat.Ad.3 | BD54: =IF($N$60="Natação Adulta",$Y$63,0) -> 0 | BE54: =IF($N$60="Natação Adulta",$Y$64,0) -> 0 | BF54: 0 | BH54: Adic.Nat.Inf.3 | BI54: =IF(AND($N$60<>"Natação Adulta",$N$60<>"Hidroginástica"),$Y$63,0) -> 7.28 | BJ54: =IF(AND($N$60<>"Natação Adulta",$N$60<>"Hidroginástica"),$Y$64,0) -> 6 | BK54: 43.68 | BM54: Adic.Hid.3 | BN54: =IF($N$60="Hidroginástica",$Y$63,0) -> 0 | BO54: =IF($N$60="Hidroginástica",$Y$64,0) -> 0 | BP54: 0 | BU54: 0 | BY54: 11.43 | BZ54: 0 | CB54: 0 | CI54: 0 | CW54: =Configurações!AF43 -> Adic_Nat.Inf_32 | CX54: =Configurações!AI43 -> 16.65
B55: 5 | M55: Total de Alunos | Q55: =_xlfn.IFS(N49=$AN$2,$B$102,N49=$AO$2,$C$102,N49=$AP$2,$D$102,N49=$AQ$2,$E$102,N49=$AR$2,$F$102,N49=$AS$2,$G$102,N49=$AT$2,$H$102,N49="Sem Uso","") -> 41 | V55: Total de Alunos | Z55: =Q55 -> 41 | AN55: TABELA DE EQUIVALÊNCIA | BC55: Adic.Nat.Ad.4 | BD55: =IF($N$60="Natação Adulta",$Z$63,0) -> 0 | BE55: =IF($N$60="Natação Adulta",$Z$64,0) -> 0 | BF55: 0 | BH55: Adic.Nat.Inf.4 | BI55: =IF(AND($N$60<>"Natação Adulta",$N$60<>"Hidroginástica"),$Z$63,0) -> 11.43 | BJ55: =IF(AND($N$60<>"Natação Adulta",$N$60<>"Hidroginástica"),$Z$64,0) -> 0 | BK55: 0 | BM55: Adic.Hid.4 | BN55: =IF($N$60="Hidroginástica",$Z$63,0) -> 0 | BO55: =IF($N$60="Hidroginástica",$Z$64,0) -> 0 | BP55: 0 | BU55: 0 | BY55: 14.64 | BZ55: 0 | CB55: 0 | CI55: 0 | CW55: =Configurações!AF44 -> Adic_Nat.Inf_33 | CX55: =Configurações!AI44 -> 17.68531
B56: 1 | M56: Total de Aulas | Q56: =IF(Q55<>"",SUM(AN53:AS53),"") -> 6 | R56: Registro | S56: 17.66 | V56: Total de Aulas | Z56: =Q56 -> 6 | AN56: Nr. Alunos | AO56: =AO54 -> 0 | AP56: =IF(AP54<>0,AP54,"") -> 1 a 4 | AQ56: =IF(AQ54<>0,AQ54,"") -> 5 a 8 | AR56: =IF(AR54<>0,AR54,"") -> 9 a 12 | AS56: =IF(AS54<>0,AS54,"") -> 13 a 16 | AT56: =IF(AT54<>0,AT54,"") ->  | BC56: Adic.Nat.Ad.5 | BD56: =IF($N$60="Natação Adulta",$AA$63,0) -> 0 | BE56: =IF($N$60="Natação Adulta",$AA$64,0) -> 0 | BF56: 0 | BH56: Adic.Nat.Inf.5 | BI56: =IF(AND($N$60<>"Natação Adulta",$N$60<>"Hidroginástica"),$AA$63,0) -> 14.64 | BJ56: =IF(AND($N$60<>"Natação Adulta",$N$60<>"Hidroginástica"),$AA$64,0) -> 0 | BK56: 0 | BM56: Adic.Hid.5 | BN56: =IF($N$60="Hidroginástica",$AA$63,0) -> 0 | BO56: =IF($N$60="Hidroginástica",$AA$64,0) -> 0 | BP56: 0 | BU56: 0 | CB56: 0 | CI56: 0 | CW56: =Configurações!AF45 -> Adic_Nat.Inf_34 | CX56: =Configurações!AI45 -> 17.72062
B57: 2 | M57: Total a Receber | Q57: =IF(Q55<>"",SUM(N54:S54),"") -> 142.13 | V57: Total a Receber | Z57: =IF(Z55<>"",SUM(W54:AB54),"") -> 36.17 | AN57: Aulas | AO57: =IF(AO56<>"",AO51,"") -> 0 | AP57: 1 | AQ57: 4 | AR57: 1 | AS57: 0 | BC57: Adic.Nat.Ad.6 | BD57: =IF($N$60="Natação Adulta",$AB$63,0) -> 0 | BE57: =IF($N$60="Natação Adulta",$AB$64,0) -> 0 | BF57: 0 | BH57: Adic.Nat.Inf.6 | BI57: =IF(AND($N$60<>"Natação Adulta",$N$60<>"Hidroginástica"),$AB$63,0) ->  | BJ57: =IF(AND($N$60<>"Natação Adulta",$N$60<>"Hidroginástica"),$AB$64,0) ->  | BM57: Adic.Hid.6 | BN57: =IF($N$60="Hidroginástica",$AB$63,0) -> 0 | BO57: =IF($N$60="Hidroginástica",$AB$64,0) -> 0 | BP57: 0 | BR57: =IF(BD59<>0,BD59,"") ->  | BS57: =IF(BD59<>0,BE59,"") ->  | BU57: 0 | BY57: =IF(BI59<>0,BI59,"") ->  | BZ57: =IF(BI59<>0,BJ59,"") ->  | CB57: 0 | CF57: =IF(BN59<>0,BN59,"") ->  | CG57: =IF(BN59<>0,BO59,"") ->  | CI57: 0 | CW57: =Configurações!AF46 -> Adic_Nat.Inf_35 | CX57: =Configurações!AI46 -> 19.05063
B58: 3 | AO58: =IFERROR(VLOOKUP(N49&R49,Configurações!$C$13:$I$47,2,0),"") -> 17.66 | AP58: =IFERROR(IF(AP56<>0,VLOOKUP(N49&R49,Configurações!$C$13:$I$47,3,0),""),"") -> 19.76 | AQ58: =IFERROR(IF(AQ56<>0,VLOOKUP(N49&R49,Configurações!$C$13:$I$47,4,0),""),"") -> 23.68 | AR58: =IFERROR(IF(AR56<>0,VLOOKUP(N49&R49,Configurações!$C$13:$I$47,5,0),""),"") -> 27.65 | AS58: =IFERROR(IF(AS56<>0,VLOOKUP(N49&R49,Configurações!$C$13:$I$47,6,0),""),"") -> 30.86 | AT58: =IFERROR(IF(AT56<>0,VLOOKUP(N49&R49,Configurações!$C$13:$I$47,7,0),""),"") -> 0 | BU58: 0 | CB58: 0 | CF58: 6.02 | CG58: 1 | CI58: 0 | CW58: =Configurações!AF47 -> Adic_Nat.Inf_36 | CX58: =Configurações!AI47 -> 20.40418
B59: 2 | BC59: Adic.Nat.Ad.1 | BD59: =IF($N$71="Natação Adulta",$W$74,0) -> 0 | BE59: =IF($N$71="Natação Adulta",$W$75,0) -> 0 | BF59: =IFERROR((BD59*BE59),"") -> 0 | BH59: Adic.Nat.Inf.1 | BI59: =IF(AND($N$71<>"Natação Adulta",$N$71<>"Hidroginástica"),$W$74,0) -> 0 | BJ59: =IF(AND($N$71<>"Natação Adulta",$N$71<>"Hidroginástica"),$W$75,0) -> 0 | BK59: =IFERROR((BI59*BJ59),"") -> 0 | BM59: Adic.Hid.1 | BN59: =IF($N$71="Hidroginástica",$W$74,0) -> 0 | BO59: =IF($N$71="Hidroginástica",$W$75,0) -> 0 | BP59: =IFERROR((BN59*BO59),"") -> 0 | BU59: 0 | CB59: 0 | CF59: 9.99 | CG59: 16 | CI59: 0 | CW59: =Configurações!AF48 -> Adic_Nat.Inf_37 | CX59: =Configurações!AI48 -> 21.7695
B60: 3 | K60: Modalidade | N60: Iniciação | Q60: Nível | R60: Prof. Nível C | AN60: =VLOOKUP(N60,Configurações!$J$1:$V$9,2,0) -> 0 | AO60: =VLOOKUP(N60,Configurações!$J$1:$V$9,3,0) -> 0 | AP60: =VLOOKUP(N60,Configurações!$J$1:$V$9,4,0) -> 1 | AQ60: =VLOOKUP(N60,Configurações!$J$1:$V$9,5,0) -> 3 | AR60: =VLOOKUP(N60,Configurações!$J$1:$V$9,6,0) -> 4 | AS60: =VLOOKUP(N60,Configurações!$J$1:$V$9,7,0) -> 6 | AT60: =VLOOKUP(N60,Configurações!$J$1:$V$9,8,0) -> 7 | AU60: =VLOOKUP(N60,Configurações!$J$1:$V$9,9,0) -> 8 | AV60: =VLOOKUP(N60,Configurações!$J$1:$V$9,10,0) -> 9 | AW60: =VLOOKUP(N60,Configurações!$J$1:$V$9,11,0) -> 10 | AX60: =VLOOKUP(N60,Configurações!$J$1:$V$9,12,0) ->  | AY60: =VLOOKUP(N60,Configurações!$J$1:$V$9,13,0) ->  | BC60: Adic.Nat.Ad.2 | BD60: =IF($N$71="Natação Adulta",$X$74,0) -> 0 | BE60: =IF($N$71="Natação Adulta",$X$75,0) -> 0 | BF60: =IFERROR((BD60*BE60),"") -> 0 | BH60: Adic.Nat.Inf.2 | BI60: =IF(AND($N$71<>"Natação Adulta",$N$71<>"Hidroginástica"),$X$74,0) -> 0 | BJ60: =IF(AND($N$71<>"Natação Adulta",$N$71<>"Hidroginástica"),$X$75,0) -> 0 | BK60: =IFERROR((BI60*BJ60),"") -> 0 | BM60: Adic.Hid.2 | BN60: =IF($N$71="Hidroginástica",$X$74,0) -> 6.02 | BO60: =IF($N$71="Hidroginástica",$X$75,0) -> 1 | BP60: =IFERROR((BN60*BO60),"") -> 6.02 | BU60: 0 | CB60: 0 | CF60: 15.76 | CG60: 4 | CI60: 0 | CW60: =Configurações!AF49 -> Adic_Nat.Inf_38 | CX60: =Configurações!AI49 -> 21.93
B61: 1 | K61: Academia | U61: Contabilidade | AN61: =IFERROR(VLOOKUP(N60,_xlfn.ANCHORARRAY($AZ$2),2,0),0) -> 51 | BC61: Adic.Nat.Ad.3 | BD61: =IF($N$71="Natação Adulta",$Y$74,0) -> 0 | BE61: =IF($N$71="Natação Adulta",$Y$75,0) -> 0 | BF61: 0 | BH61: Adic.Nat.Inf.3 | BI61: =IF(AND($N$71<>"Natação Adulta",$N$71<>"Hidroginástica"),$Y$74,0) -> 0 | BJ61: =IF(AND($N$71<>"Natação Adulta",$N$71<>"Hidroginástica"),$Y$75,0) -> 0 | BK61: 0 | BM61: Adic.Hid.3 | BN61: =IF($N$71="Hidroginástica",$Y$74,0) -> 9.99 | BO61: =IF($N$71="Hidroginástica",$Y$75,0) -> 16 | BP61: 159.84 | BU61: 0 | CB61: 0 | CF61: 21.15 | CG61: 0 | CI61: 0 | CW61: =Configurações!AF50 -> Adic_Nat.Inf_39 | CX61: =Configurações!AI50 -> 23.12305
B62: 1 | K62: Nr. de Alunos | N62: =IF(AO67<>"",AO67,"") -> 0 | O62: =IF(AP67<>"",AP67,"") -> 1 a 3 | P62: =IF(AQ67<>"",AQ67,"") -> 4 a 6 | Q62: =IF(AR67<>"",AR67,"") -> 7 a 8 | R62: =IF(AS67<>"",AS67,"") -> 9 a 10 | S62: =IF(AT67<>0,AT67,"") ->  | U62: Nr. de Alunos | W62: =N62 -> 0 | X62: =O62 -> 1 a 3 | Y62: 4 a 6 | Z62: 7 a 8 | AA62: 9 a 10 | AO62: =IF($N$60=$AN$2,COUNTIF($B$4:$B$100,">="&AN60)-COUNTIF($B$4:$B$100,">"&AO60), IF($N$60=$AO$2,COUNTIF($C$4:$C$100,">="&AN60)-COUNTIF($C$4:$C$100,">"&AO60), IF($N$60=$AP$2,COUNTIF($D$4:$D$100,">="&AN60)-COUNTIF($D$4:$D$100,">"&AO60), IF($N$60=$AQ$2,COUNTIF($E$4:$E$100,">="&AN60)-COUNTIF($E$4:$E$100,">"&AO60), IF($N$60=$AR$2,COUNTIF($F$4:$F$100,">="&AN60)-COUNTIF($F$4:$F$100,">"&AO60), IF($N$60=$AS$2,COUNTIF($G$4:$G$100,">="&AN60)-COUNTIF($G$4:$G$100,">"&AO60), IF($N$60=$AT$2,COUNTIF($H$4:$H$100,">="&AN60)-COUNTIF($H$4:$H$100,">"&AO60), IF($N$60="Sem Uso","")))))))) -> 0 | AP62: =IF($N$60=$AN$2,COUNTIF($B$4:$B$100,">="&AP60)-COUNTIF($B$4:$B$100,">"&AQ60), IF($N$60=$AO$2,COUNTIF($C$4:$C$100,">="&AP60)-COUNTIF($C$4:$C$100,">"&AQ60), IF($N$60=$AP$2,COUNTIF($D$4:$D$100,">="&AP60)-COUNTIF($D$4:$D$100,">"&AQ60), IF($N$60=$AQ$2,COUNTIF($E$4:$E$100,">="&AP60)-COUNTIF($E$4:$E$100,">"&AQ60), IF($N$60=$AR$2,COUNTIF($F$4:$F$100,">="&AP60)-COUNTIF($F$4:$F$100,">"&AQ60), IF($N$60=$AS$2,COUNTIF($G$4:$G$100,">="&AP60)-COUNTIF($G$4:$G$100,">"&AQ60), IF($N$60=$AT$2,COUNTIF($H$4:$H$100,">="&AP60)-COUNTIF($H$4:$H$100,">"&AQ60), IF($N$60="Sem Uso","")))))))) -> 10 | AQ62: =IF($N$60=$AN$2,COUNTIF($B$4:$B$100,">="&AR60)-COUNTIF($B$4:$B$100,">"&AS60), IF($N$60=$AO$2,COUNTIF($C$4:$C$100,">="&AR60)-COUNTIF($C$4:$C$100,">"&AS60), IF($N$60=$AP$2,COUNTIF($D$4:$D$100,">="&AR60)-COUNTIF($D$4:$D$100,">"&AS60), IF($N$60=$AQ$2,COUNTIF($E$4:$E$100,">="&AR60)-COUNTIF($E$4:$E$100,">"&AS60), IF($N$60=$AR$2,COUNTIF($F$4:$F$100,">="&AR60)-COUNTIF($F$4:$F$100,">"&AS60), IF($N$60=$AS$2,COUNTIF($G$4:$G$100,">="&AR60)-COUNTIF($G$4:$G$100,">"&AS60), IF($N$60=$AT$2,COUNTIF($H$4:$H$100,">="&AR60)-COUNTIF($H$4:$H$100,">"&AS60), IF($N$60="Sem Uso","")))))))) -> 6 | AR62: =IF($N$60=$AN$2,COUNTIF($B$4:$B$100,">="&AT60)-COUNTIF($B$4:$B$100,">"&AU60), IF($N$60=$AO$2,COUNTIF($C$4:$C$100,">="&AT60)-COUNTIF($C$4:$C$100,">"&AU60), IF($N$60=$AP$2,COUNTIF($D$4:$D$100,">="&AT60)-COUNTIF($D$4:$D$100,">"&AU60), IF($N$60=$AQ$2,COUNTIF($E$4:$E$100,">="&AT60)-COUNTIF($E$4:$E$100,">"&AU60), IF($N$60=$AR$2,COUNTIF($F$4:$F$100,">="&AT60)-COUNTIF($F$4:$F$100,">"&AU60), IF($N$60=$AS$2,COUNTIF($G$4:$G$100,">="&AT60)-COUNTIF($G$4:$G$100,">"&AU60), IF($N$60=$AT$2,COUNTIF($H$4:$H$100,">="&AT60)-COUNTIF($H$4:$H$100,">"&AU60), IF($N$60="Sem Uso","")))))))) -> 0 | AS62: =IF($N$60=$AN$2,COUNTIF($B$4:$B$100,">="&AV60)-COUNTIF($B$4:$B$100,">"&AW60), IF($N$60=$AO$2,COUNTIF($C$4:$C$100,">="&AV60)-COUNTIF($C$4:$C$100,">"&AW60), IF($N$60=$AP$2,COUNTIF($D$4:$D$100,">="&AV60)-COUNTIF($D$4:$D$100,">"&AW60), IF($N$60=$AQ$2,COUNTIF($E$4:$E$100,">="&AV60)-COUNTIF($E$4:$E$100,">"&AW60), IF($N$60=$AR$2,COUNTIF($F$4:$F$100,">="&AV60)-COUNTIF($F$4:$F$100,">"&AW60), IF($N$60=$AS$2,COUNTIF($G$4:$G$100,">="&AV60)-COUNTIF($G$4:$G$100,">"&AW60), IF($N$60=$AT$2,COUNTIF($H$4:$H$100,">="&AV60)-COUNTIF($H$4:$H$100,">"&AW60), IF($N$60="Sem Uso","")))))))) -> 0 | AT62: =IF($N$60=$AN$2,COUNTIF($B$4:$B$100,">="&AX60)-COUNTIF($B$4:$B$100,">"&AY60), IF($N$60=$AO$2,COUNTIF($C$4:$C$100,">="&AX60)-COUNTIF($C$4:$C$100,">"&AY60), IF($N$60=$AP$2,COUNTIF($D$4:$D$100,">="&AX60)-COUNTIF($D$4:$D$100,">"&AY60), IF($N$60=$AQ$2,COUNTIF($E$4:$E$100,">="&AX60)-COUNTIF($E$4:$E$100,">"&AY60), IF($N$60=$AR$2,COUNTIF($F$4:$F$100,">="&AX60)-COUNTIF($F$4:$F$100,">"&AY60), IF($N$60=$AS$2,COUNTIF($G$4:$G$100,">="&AX60)-COUNTIF($G$4:$G$100,">"&AY60), IF($N$60=$AT$2,COUNTIF($H$4:$H$100,">="&AX60)-COUNTIF($H$4:$H$100,">"&AY60), IF($N$60="Sem Uso","")))))))) -> 0 | BC62: Adic.Nat.Ad.4 | BD62: =IF($N$71="Natação Adulta",$Z$74,0) -> 0 | BE62: =IF($N$71="Natação Adulta",$Z$75,0) -> 0 | BF62: 0 | BH62: Adic.Nat.Inf.4 | BI62: =IF(AND($N$71<>"Natação Adulta",$N$71<>"Hidroginástica"),$Z$74,0) -> 0 | BJ62: =IF(AND($N$71<>"Natação Adulta",$N$71<>"Hidroginástica"),$Z$75,0) -> 0 | BK62: 0 | BM62: Adic.Hid.4 | BN62: =IF($N$71="Hidroginástica",$Z$74,0) -> 15.76 | BO62: =IF($N$71="Hidroginástica",$Z$75,0) -> 4 | BP62: 63.04 | BU62: 0 | CB62: 0 | CI62: 0 | CW62: =Configurações!AF51 -> Adic_Nat.Inf_40 | CX62: =Configurações!AI51 -> 23.321
B63: 3 | K63: Valor da Aula | N63: =IF(AO69<>0,AO69,"") -> 17.66 | O63: 20.79 | P63: 24.94 | Q63: 29.09 | R63: 32.3 | U63: Valor da Aula | W63: =IFERROR(IF(N63<=$S$67,0,N63-$S$67),"") -> 0 | X63: 3.13 | Y63: 7.28 | Z63: 11.43 | AA63: 14.64 | BC63: Adic.Nat.Ad.5 | BD63: =IF($N$71="Natação Adulta",$AA$74,0) -> 0 | BE63: =IF($N$71="Natação Adulta",$AA$75,0) -> 0 | BF63: 0 | BH63: Adic.Nat.Inf.5 | BI63: =IF(AND($N$71<>"Natação Adulta",$N$71<>"Hidroginástica"),$AA$74,0) -> 0 | BJ63: =IF(AND($N$71<>"Natação Adulta",$N$71<>"Hidroginástica"),$AA$75,0) -> 0 | BK63: 0 | BM63: Adic.Hid.5 | BN63: =IF($N$71="Hidroginástica",$AA$74,0) -> 21.15 | BO63: =IF($N$71="Hidroginástica",$AA$75,0) -> 0 | BP63: 0 | BR63: =IF(BD66<>0,BD66,"") ->  | BS63: =IF(BD66<>0,BE66,"") ->  | BU63: 0 | BY63: =IF(BI66<>0,BI66,"") ->  | BZ63: =IF(BI66<>0,BJ66,"") ->  | CB63: 0 | CF63: =IF(BN66<>0,BN66,"") ->  | CG63: =IF(BN66<>0,BO66,"") ->  | CI63: 0 | CW63: =Configurações!AF52 -> Adic_Nat.Inf_41 | CX63: =Configurações!AI52 -> 23.6099
B64: 4 | K64: Nr. de Aulas | N64: =IF(AO67<>"",AO68,"") -> 0 | O64: 10 | P64: 6 | Q64: 0 | R64: 0 | U64: Nr. de Aulas | W64: =N64 -> 0 | X64: 10 | Y64: 6 | Z64: 0 | AA64: 0 | AN64: =IF(N64<>"",N64,"") -> 0 | AO64: 10 | AP64: 6 | AQ64: 0 | AR64: 0 | BC64: Adic.Nat.Ad.6 | BD64: =IF($N$71="Natação Adulta",$AB$74,0) -> 0 | BE64: =IF($N$71="Natação Adulta",$AB$75,0) -> 0 | BF64: 0 | BH64: Adic.Nat.Inf.6 | BI64: =IF(AND($N$71<>"Natação Adulta",$N$71<>"Hidroginástica"),$AB$74,0) -> 0 | BJ64: =IF(AND($N$71<>"Natação Adulta",$N$71<>"Hidroginástica"),$AB$75,0) -> 0 | BK64: 0 | BM64: Adic.Hid.6 | BN64: =IF($N$71="Hidroginástica",$AB$74,0) ->  | BO64: =IF($N$71="Hidroginástica",$AB$75,0) ->  | BU64: 0 | CB64: 0 | CI64: 0 | CW64: =Configurações!AF53 -> Adic_Nat.Inf_42 | CX64: =Configurações!AI53 -> 24.9688
B65: 5 | K65: Valor | N65: =IFERROR(N63*N64,"") -> 0 | O65: 207.9 | P65: 149.64 | Q65: 0 | R65: 0 | U65: Valor | W65: =IFERROR(W63*W64,"") -> 0 | X65: 31.3 | Y65: 43.68 | Z65: 0 | AA65: 0 | AO65: =IF($N60<>"Sem Uso",VLOOKUP(N60,Configurações!$C$1:$I$8,2,0),"") -> 0 | AP65: =IF(N60<>"Sem Uso",VLOOKUP(N60,Configurações!$C$1:$I$8,3,0),"") -> 1 a 3 | AQ65: =IF(N60<>"Sem Uso",VLOOKUP(N60,Configurações!$C$1:$I$8,4,0),"") -> 4 a 6 | AR65: =IF(N60<>"Sem Uso",VLOOKUP(N60,Configurações!$C$1:$I$8,5,0),"") -> 7 a 8 | AS65: =IF(N60<>"Sem Uso",VLOOKUP(N60,Configurações!$C$1:$I$8,6,0),"") -> 9 a 10 | AT65: =IF(N60<>"Sem Uso",VLOOKUP(N60,Configurações!$C$1:$I$8,7,0),"") -> 0 | BU65: 0 | CB65: 0 | CI65: 0 | CW65: =Configurações!AF54 -> Adic_Nat.Inf_43 | CX65: =Configurações!AI54 -> 25.84192
B66: 5 | M66: Total de Alunos | Q66: =_xlfn.IFS(N60=$AN$2,$B$102,N60=$AO$2,$C$102,N60=$AP$2,$D$102,N60=$AQ$2,$E$102,N60=$AR$2,$F$102,N60=$AS$2,$G$102,N60=$AT$2,$H$102,N60="Sem Uso","") -> 51 | V66: Total de Alunos | Z66: =Q66 -> 51 | AN66: TABELA DE EQUIVALÊNCIA | BC66: Adic.Nat.Ad.1 | BD66: =IF($N$82="Natação Adulta",$W$85,0) -> 0 | BE66: =IF($N$82="Natação Adulta",$W$86,0) -> 0 | BF66: =IFERROR((BD66*BE66),"") -> 0 | BH66: Adic.Nat.Inf.1 | BI66: =IF(AND($N$82<>"Natação Adulta",$N$82<>"Hidroginástica"),$W$85,0) -> 0 | BJ66: =IF(AND($N$82<>"Natação Adulta",$N$82<>"Hidroginástica"),$W$86,0) ->  | BK66: =IFERROR((BI66*BJ66),"") ->  | BM66: Adic.Hid.1 | BN66: =IF($N$82="Hidroginástica",$W$85,0) -> 0 | BO66: =IF($N$82="Hidroginástica",$W$86,0) -> 0 | BP66: =IFERROR((BN66*BO66),"") -> 0 | BU66: 0 | CB66: 0 | CI66: 0 | CW66: =Configurações!AF55 -> Adic_Nat.Inf_44 | CX66: =Configurações!AI55 -> 28.56079
B67: 1 | M67: Total de Aulas | Q67: =IF(Q66<>"",SUM(AN64:AS64),"") -> 16 | R67: Registro | S67: 17.66 | V67: Total de Aulas | Z67: =Q67 -> 16 | AN67: Nr. Alunos | AO67: =AO65 -> 0 | AP67: =IF(AP65<>0,AP65,"") -> 1 a 3 | AQ67: =IF(AQ65<>0,AQ65,"") -> 4 a 6 | AR67: =IF(AR65<>0,AR65,"") -> 7 a 8 | AS67: =IF(AS65<>0,AS65,"") -> 9 a 10 | AT67: =IF(AT65<>0,AT65,"") ->  | BC67: Adic.Nat.Ad.2 | BD67: =IF($N$82="Natação Adulta",$X$85,0) -> 0 | BE67: =IF($N$82="Natação Adulta",$X$86,0) -> 0 | BF67: 0 | BH67: Adic.Nat.Inf.2 | BI67: =IF(AND($N$82<>"Natação Adulta",$N$82<>"Hidroginástica"),$X$85,0) -> 0 | BJ67: =IF(AND($N$82<>"Natação Adulta",$N$82<>"Hidroginástica"),$X$86,0) ->  | BK67: =IFERROR((BI67*BJ67),"") ->  | BM67: Adic.Hid.2 | BN67: =IF($N$82="Hidroginástica",$X$85,0) -> 0 | BO67: =IF($N$82="Hidroginástica",$X$86,0) -> 0 | BP67: =IFERROR((BN67*BO67),"") -> 0 | BU67: 0 | CB67: 0 | CI67: 0 | CW67: =Configurações!AF56 -> Adic_Nat.Inf_45 | CX67: =Configurações!AI56 -> 31.27966
B68: 1 | M68: Total a Receber | Q68: =IF(Q66<>"",SUM(N65:S65),"") -> 357.54 | V68: Total a Receber | Z68: =IF(Z66<>"",SUM(W65:AB65),"") -> 74.98 | AN68: Aulas | AO68: =IF(AO67<>"",AO62,"") -> 0 | AP68: 10 | AQ68: 6 | AR68: 0 | AS68: 0 | BC68: Adic.Nat.Ad.3 | BD68: =IF($N$82="Natação Adulta",$Y$85,0) -> 0 | BE68: =IF($N$82="Natação Adulta",$Y$86,0) -> 0 | BF68: 0 | BH68: Adic.Nat.Inf.3 | BI68: =IF(AND($N$82<>"Natação Adulta",$N$82<>"Hidroginástica"),$Y$85,0) -> 0 | BJ68: =IF(AND($N$82<>"Natação Adulta",$N$82<>"Hidroginástica"),$Y$86,0) ->  | BM68: Adic.Hid.3 | BN68: =IF($N$82="Hidroginástica",$Y$85,0) -> 0 | BO68: =IF($N$82="Hidroginástica",$Y$86,0) -> 0 | BP68: 0 | BU68: 0 | CB68: 0 | CI68: 0
AO69: =IFERROR(VLOOKUP(N60&R60,Configurações!$C$13:$I$47,2,0),"") -> 17.66 | AP69: =IFERROR(IF(AP67<>0,VLOOKUP(N60&R60,Configurações!$C$13:$I$47,3,0),""),"") -> 20.79 | AQ69: =IFERROR(IF(AQ67<>0,VLOOKUP(N60&R60,Configurações!$C$13:$I$47,4,0),""),"") -> 24.94 | AR69: =IFERROR(IF(AR67<>0,VLOOKUP(N60&R60,Configurações!$C$13:$I$47,5,0),""),"") -> 29.09 | AS69: =IFERROR(IF(AS67<>0,VLOOKUP(N60&R60,Configurações!$C$13:$I$47,6,0),""),"") -> 32.3 | AT69: =IFERROR(IF(AT67<>0,VLOOKUP(N60&R60,Configurações!$C$13:$I$47,7,0),""),"") -> 0 | BC69: Adic.Nat.Ad.4 | BD69: =IF($N$82="Natação Adulta",$Z$85,0) -> 0 | BE69: =IF($N$82="Natação Adulta",$Z$86,0) -> 0 | BF69: 0 | BH69: Adic.Nat.Inf.4 | BI69: =IF(AND($N$82<>"Natação Adulta",$N$82<>"Hidroginástica"),$Z$85,0) -> 0 | BJ69: =IF(AND($N$82<>"Natação Adulta",$N$82<>"Hidroginástica"),$Z$86,0) ->  | BM69: Adic.Hid.4 | BN69: =IF($N$82="Hidroginástica",$Z$85,0) -> 0 | BO69: =IF($N$82="Hidroginástica",$Z$86,0) -> 0 | BP69: 0
AF70: Hidroginástica | AI70: =SUM(AI72:AI88) -> 228.9 | BC70: Adic.Nat.Ad.5 | BD70: =IF($N$82="Natação Adulta",$AA$85,0) -> 0 | BE70: =IF($N$82="Natação Adulta",$AA$86,0) -> 0 | BF70: 0 | BH70: Adic.Nat.Inf.5 | BI70: =IF(AND($N$82<>"Natação Adulta",$N$82<>"Hidroginástica"),$AA$85,0) -> 0 | BJ70: =IF(AND($N$82<>"Natação Adulta",$N$82<>"Hidroginástica"),$AA$86,0) ->  | BM70: Adic.Hid.5 | BN70: =IF($N$82="Hidroginástica",$AA$85,0) -> 0 | BO70: =IF($N$82="Hidroginástica",$AA$86,0) -> 0 | BP70: 0
K71: Modalidade | N71: Hidroginástica | Q71: Nível | R71: Prof. Nível C | AF71: Nm_Adic | AG71: $_Aula | AH71: Qtde | AI71: $_Adic | AN71: =VLOOKUP(N71,Configurações!$J$1:$V$9,2,0) -> 0 | AO71: =VLOOKUP(N71,Configurações!$J$1:$V$9,3,0) -> 0 | AP71: =VLOOKUP(N71,Configurações!$J$1:$V$9,4,0) -> 1 | AQ71: =VLOOKUP(N71,Configurações!$J$1:$V$9,5,0) -> 7 | AR71: =VLOOKUP(N71,Configurações!$J$1:$V$9,6,0) -> 8 | AS71: =VLOOKUP(N71,Configurações!$J$1:$V$9,7,0) -> 15 | AT71: =VLOOKUP(N71,Configurações!$J$1:$V$9,8,0) -> 16 | AU71: =VLOOKUP(N71,Configurações!$J$1:$V$9,9,0) -> 22 | AV71: =VLOOKUP(N71,Configurações!$J$1:$V$9,10,0) -> 23 | AW71: =VLOOKUP(N71,Configurações!$J$1:$V$9,11,0) -> 30 | AX71: =VLOOKUP(N71,Configurações!$J$1:$V$9,12,0) ->  | AY71: =VLOOKUP(N71,Configurações!$J$1:$V$9,13,0) ->  | BC71: Adic.Nat.Ad.6 | BD71: =IF($N$82="Natação Adulta",$AB$85,0) -> 0 | BE71: =IF($N$82="Natação Adulta",$AB$86,0) -> 0 | BF71: 0 | BH71: Adic.Nat.Inf.6 | BI71: =IF(AND($N$82<>"Natação Adulta",$N$82<>"Hidroginástica"),$AB$85,0) -> 0 | BJ71: =IF(AND($N$82<>"Natação Adulta",$N$82<>"Hidroginástica"),$AB$86,0) ->  | BM71: Adic.Hid.6 | BN71: =IF($N$82="Hidroginástica",$AB$85,0) -> 0 | BO71: =IF($N$82="Hidroginástica",$AB$86,0) -> 0 | BP71: 0
K72: Academia | U72: Contabilidade | AF72: =IF(DH23<>"",DH23,"") -> Adic_Hidr_02 | AG72: =IF(DJ23<>"",DJ23,"") -> 6.02 | AH72: =IF(DI23<>"",DI23,"") -> 1 | AI72: =IF(DK23<>"",DK23,"") -> 6.02 | AN72: =IFERROR(VLOOKUP(N71,_xlfn.ANCHORARRAY($AZ$2),2,0),0) -> 258
K73: Nr. de Alunos | N73: =IF(AO78<>"",AO78,"") -> 0 | O73: =IF(AP78<>"",AP78,"") -> 1 a 7 | P73: =IF(AQ78<>"",AQ78,"") -> 8 a 15 | Q73: =IF(AR78<>"",AR78,"") -> 16 a 22 | R73: =IF(AS78<>"",AS78,"") -> 23 a 30 | S73: =IF(AT78<>0,AT78,"") ->  | U73: Nr. de Alunos | W73: =N73 -> 0 | X73: 1 a 7 | Y73: 8 a 15 | Z73: 16 a 22 | AA73: 23 a 30 | AF73: Adic_Hidr_04 | AG73: 9.99 | AH73: 16 | AI73: 159.84 | AO73: =IF($N$71=$AN$2,COUNTIF($B$4:$B$100,">="&AN71)-COUNTIF($B$4:$B$100,">"&AO71), IF($N$71=$AO$2,COUNTIF($C$4:$C$100,">="&AN71)-COUNTIF($C$4:$C$100,">"&AO71), IF($N$71=$AP$2,COUNTIF($D$4:$D$100,">="&AN71)-COUNTIF($D$4:$D$100,">"&AO71), IF($N$71=$AQ$2,COUNTIF($E$4:$E$100,">="&AN71)-COUNTIF($E$4:$E$100,">"&AO71), IF($N$71=$AR$2,COUNTIF($F$4:$F$100,">="&AN71)-COUNTIF($F$4:$F$100,">"&AO71), IF($N$71=$AS$2,COUNTIF($G$4:$G$100,">="&AN71)-COUNTIF($G$4:$G$100,">"&AO71), IF($N$71=$AT$2,COUNTIF($H$4:$H$100,">="&AN71)-COUNTIF($H$4:$H$100,">"&AO71), IF($N$71="Sem Uso","")))))))) -> 0 | AP73: =IF($N$71=$AN$2,COUNTIF($B$4:$B$100,">="&AP71)-COUNTIF($B$4:$B$100,">"&AQ71), IF($N$71=$AO$2,COUNTIF($C$4:$C$100,">="&AP71)-COUNTIF($C$4:$C$100,">"&AQ71), IF($N$71=$AP$2,COUNTIF($D$4:$D$100,">="&AP71)-COUNTIF($D$4:$D$100,">"&AQ71), IF($N$71=$AQ$2,COUNTIF($E$4:$E$100,">="&AP71)-COUNTIF($E$4:$E$100,">"&AQ71), IF($N$71=$AR$2,COUNTIF($F$4:$F$100,">="&AP71)-COUNTIF($F$4:$F$100,">"&AQ71), IF($N$71=$AS$2,COUNTIF($G$4:$G$100,">="&AP71)-COUNTIF($G$4:$G$100,">"&AQ71), IF($N$71=$AT$2,COUNTIF($H$4:$H$100,">="&AP71)-COUNTIF($H$4:$H$100,">"&AQ71), IF($N$71="Sem Uso","")))))))) -> 1 | AQ73: =IF($N$71=$AN$2,COUNTIF($B$4:$B$100,">="&AR71)-COUNTIF($B$4:$B$100,">"&AS71), IF($N$71=$AO$2,COUNTIF($C$4:$C$100,">="&AR71)-COUNTIF($C$4:$C$100,">"&AS71), IF($N$71=$AP$2,COUNTIF($D$4:$D$100,">="&AR71)-COUNTIF($D$4:$D$100,">"&AS71), IF($N$71=$AQ$2,COUNTIF($E$4:$E$100,">="&AR71)-COUNTIF($E$4:$E$100,">"&AS71), IF($N$71=$AR$2,COUNTIF($F$4:$F$100,">="&AR71)-COUNTIF($F$4:$F$100,">"&AS71), IF($N$71=$AS$2,COUNTIF($G$4:$G$100,">="&AR71)-COUNTIF($G$4:$G$100,">"&AS71), IF($N$71=$AT$2,COUNTIF($H$4:$H$100,">="&AR71)-COUNTIF($H$4:$H$100,">"&AS71), IF($N$71="Sem Uso","")))))))) -> 16 | AR73: =IF($N$71=$AN$2,COUNTIF($B$4:$B$100,">="&AT71)-COUNTIF($B$4:$B$100,">"&AU71), IF($N$71=$AO$2,COUNTIF($C$4:$C$100,">="&AT71)-COUNTIF($C$4:$C$100,">"&AU71), IF($N$71=$AP$2,COUNTIF($D$4:$D$100,">="&AT71)-COUNTIF($D$4:$D$100,">"&AU71), IF($N$71=$AQ$2,COUNTIF($E$4:$E$100,">="&AT71)-COUNTIF($E$4:$E$100,">"&AU71), IF($N$71=$AR$2,COUNTIF($F$4:$F$100,">="&AT71)-COUNTIF($F$4:$F$100,">"&AU71), IF($N$71=$AS$2,COUNTIF($G$4:$G$100,">="&AT71)-COUNTIF($G$4:$G$100,">"&AU71), IF($N$71=$AT$2,COUNTIF($H$4:$H$100,">="&AT71)-COUNTIF($H$4:$H$100,">"&AU71), IF($N$71="Sem Uso","")))))))) -> 4 | AS73: =IF($N$71=$AN$2,COUNTIF($B$4:$B$100,">="&AV71)-COUNTIF($B$4:$B$100,">"&AW71), IF($N$71=$AO$2,COUNTIF($C$4:$C$100,">="&AV71)-COUNTIF($C$4:$C$100,">"&AW71), IF($N$71=$AP$2,COUNTIF($D$4:$D$100,">="&AV71)-COUNTIF($D$4:$D$100,">"&AW71), IF($N$71=$AQ$2,COUNTIF($E$4:$E$100,">="&AV71)-COUNTIF($E$4:$E$100,">"&AW71), IF($N$71=$AR$2,COUNTIF($F$4:$F$100,">="&AV71)-COUNTIF($F$4:$F$100,">"&AW71), IF($N$71=$AS$2,COUNTIF($G$4:$G$100,">="&AV71)-COUNTIF($G$4:$G$100,">"&AW71), IF($N$71=$AT$2,COUNTIF($H$4:$H$100,">="&AV71)-COUNTIF($H$4:$H$100,">"&AW71), IF($N$71="Sem Uso","")))))))) -> 0 | AT73: =IF($N$71=$AN$2,COUNTIF($B$4:$B$100,">="&AX71)-COUNTIF($B$4:$B$100,">"&AY71), IF($N$71=$AO$2,COUNTIF($C$4:$C$100,">="&AX71)-COUNTIF($C$4:$C$100,">"&AY71), IF($N$71=$AP$2,COUNTIF($D$4:$D$100,">="&AX71)-COUNTIF($D$4:$D$100,">"&AY71), IF($N$71=$AQ$2,COUNTIF($E$4:$E$100,">="&AX71)-COUNTIF($E$4:$E$100,">"&AY71), IF($N$71=$AR$2,COUNTIF($F$4:$F$100,">="&AX71)-COUNTIF($F$4:$F$100,">"&AY71), IF($N$71=$AS$2,COUNTIF($G$4:$G$100,">="&AX71)-COUNTIF($G$4:$G$100,">"&AY71), IF($N$71=$AT$2,COUNTIF($H$4:$H$100,">="&AX71)-COUNTIF($H$4:$H$100,">"&AY71), IF($N$71="Sem Uso","")))))))) -> 0
K74: Valor da Aula | N74: =IF(AO80<>0,AO80,"") -> 17.66 | O74: 23.68 | P74: 27.65 | Q74: 33.42 | R74: 38.81 | U74: Valor da Aula | W74: =IFERROR(IF(N74<=$S$78,0,N74-$S$78),"") -> 0 | X74: 6.02 | Y74: 9.99 | Z74: 15.76 | AA74: 21.15 | AF74: Adic_Hidr_08 | AG74: 15.76 | AH74: 4 | AI74: 63.04
K75: Nr. de Aulas | N75: =IF(AO78<>"",AO79,"") -> 0 | O75: 1 | P75: 16 | Q75: 4 | R75: 0 | U75: Nr. de Aulas | W75: =N75 -> 0 | X75: 1 | Y75: 16 | Z75: 4 | AA75: 0 | AN75: =IF(N75<>"",N75,"") -> 0 | AO75: 1 | AP75: 16 | AQ75: 4 | AR75: 0
K76: Valor | N76: =IFERROR(N74*N75,"") -> 0 | O76: 23.68 | P76: 442.4 | Q76: 133.68 | R76: 0 | U76: Valor | W76: =IFERROR(W74*W75,"") -> 0 | X76: 6.02 | Y76: 159.84 | Z76: 63.04 | AA76: 0 | AO76: =IF($N71<>"Sem Uso",VLOOKUP(N71,Configurações!$C$1:$I$8,2,0),"") -> 0 | AP76: =IF(N71<>"Sem Uso",VLOOKUP(N71,Configurações!$C$1:$I$8,3,0),"") -> 1 a 7 | AQ76: =IF(N71<>"Sem Uso",VLOOKUP(N71,Configurações!$C$1:$I$8,4,0),"") -> 8 a 15 | AR76: =IF(N71<>"Sem Uso",VLOOKUP(N71,Configurações!$C$1:$I$8,5,0),"") -> 16 a 22 | AS76: =IF(N71<>"Sem Uso",VLOOKUP(N71,Configurações!$C$1:$I$8,6,0),"") -> 23 a 30 | AT76: =IF(N71<>"Sem Uso",VLOOKUP(N71,Configurações!$C$1:$I$8,7,0),"") -> 0
M77: Total de Alunos | Q77: =_xlfn.IFS(N71=$AN$2,$B$102,N71=$AO$2,$C$102,N71=$AP$2,$D$102,N71=$AQ$2,$E$102,N71=$AR$2,$F$102,N71=$AS$2,$G$102,N71=$AT$2,$H$102,N71="Sem Uso","") -> 258 | V77: Total de Alunos | Z77: =Q77 -> 258 | AN77: TABELA DE EQUIVALÊNCIA
M78: Total de Aulas | Q78: =IF(Q77<>"",SUM(AN75:AS75),"") -> 21 | R78: Registro | S78: 17.66 | V78: Total de Aulas | Z78: =Q78 -> 21 | AN78: Nr. Alunos | AO78: =AO76 -> 0 | AP78: =IF(AP76<>0,AP76,"") -> 1 a 7 | AQ78: =IF(AQ76<>0,AQ76,"") -> 8 a 15 | AR78: =IF(AR76<>0,AR76,"") -> 16 a 22 | AS78: =IF(AS76<>0,AS76,"") -> 23 a 30 | AT78: =IF(AT76<>0,AT76,"") -> 
M79: Total a Receber | Q79: =IF(Q77<>"",SUM(N76:S76),"") -> 599.76 | V79: Total a Receber | Z79: =IF(Z77<>"",SUM(W76:AB76),"") -> 228.9 | AN79: Aulas | AO79: =IF(AO78<>"",AO73,"") -> 0 | AP79: 1 | AQ79: 16 | AR79: 4 | AS79: 0
AO80: =IFERROR(VLOOKUP(N71&R71,Configurações!$C$13:$I$47,2,0),"") -> 17.66 | AP80: =IFERROR(IF(AP78<>0,VLOOKUP(N71&R71,Configurações!$C$13:$I$47,3,0),""),"") -> 23.68 | AQ80: =IFERROR(IF(AQ78<>0,VLOOKUP(N71&R71,Configurações!$C$13:$I$47,4,0),""),"") -> 27.65 | AR80: =IFERROR(IF(AR78<>0,VLOOKUP(N71&R71,Configurações!$C$13:$I$47,5,0),""),"") -> 33.42 | AS80: =IFERROR(IF(AS78<>0,VLOOKUP(N71&R71,Configurações!$C$13:$I$47,6,0),""),"") -> 38.81 | AT80: =IFERROR(IF(AT78<>0,VLOOKUP(N71&R71,Configurações!$C$13:$I$47,7,0),""),"") -> 0
K82: Modalidade | N82: Sem Uso | Q82: Nível | R82: Prof. Especial | AN82: =VLOOKUP(N82,Configurações!$J$1:$V$9,2,0) ->  | AO82: =VLOOKUP(N82,Configurações!$J$1:$V$9,3,0) ->  | AP82: =VLOOKUP(N82,Configurações!$J$1:$V$9,4,0) ->  | AQ82: =VLOOKUP(N82,Configurações!$J$1:$V$9,5,0) ->  | AR82: =VLOOKUP(N82,Configurações!$J$1:$V$9,6,0) ->  | AS82: =VLOOKUP(N82,Configurações!$J$1:$V$9,7,0) ->  | AT82: =VLOOKUP(N82,Configurações!$J$1:$V$9,8,0) ->  | AU82: =VLOOKUP(N82,Configurações!$J$1:$V$9,9,0) ->  | AV82: =VLOOKUP(N82,Configurações!$J$1:$V$9,10,0) ->  | AW82: =VLOOKUP(N82,Configurações!$J$1:$V$9,11,0) ->  | AX82: =VLOOKUP(N82,Configurações!$J$1:$V$9,12,0) ->  | AY82: =VLOOKUP(N82,Configurações!$J$1:$V$9,13,0) -> 
K83: Academia | U83: Contabilidade | AN83: =IFERROR(VLOOKUP(N82,_xlfn.ANCHORARRAY($AZ$2),2,0),0) -> 0
K84: Nr. de Alunos | N84: =IF(AO89<>"",AO89,"") ->  | O84: =IF(AP89<>"",AP89,"") ->  | P84: =IF(AQ89<>"",AQ89,"") ->  | Q84: =IF(AR89<>"",AR89,"") ->  | R84: =IF(AS89<>"",AS89,"") ->  | S84: =IF(AT89<>0,AT89,"") ->  | U84: Nr. de Alunos | W84: =N84 ->  | X84: =O84 ->  | AO84: =IF($N$82=$AN$2,COUNTIF($B$4:$B$100,">="&AN82)-COUNTIF($B$4:$B$100,">"&AO82), IF($N$82=$AO$2,COUNTIF($C$4:$C$100,">="&AN82)-COUNTIF($C$4:$C$100,">"&AO82), IF($N$82=$AP$2,COUNTIF($D$4:$D$100,">="&AN82)-COUNTIF($D$4:$D$100,">"&AO82), IF($N$82=$AQ$2,COUNTIF($E$4:$E$100,">="&AN82)-COUNTIF($E$4:$E$100,">"&AO82), IF($N$82=$AR$2,COUNTIF($F$4:$F$100,">="&AN82)-COUNTIF($F$4:$F$100,">"&AO82), IF($N$82=$AS$2,COUNTIF($G$4:$G$100,">="&AN82)-COUNTIF($G$4:$G$100,">"&AO82), IF($N$82=$AT$2,COUNTIF($H$4:$H$100,">="&AN82)-COUNTIF($H$4:$H$100,">"&AO82), IF($N$82="Sem Uso","")))))))) ->  | AP84: =IF($N$82=$AN$2,COUNTIF($B$4:$B$100,">="&AP82)-COUNTIF($B$4:$B$100,">"&AQ82), IF($N$82=$AO$2,COUNTIF($C$4:$C$100,">="&AP82)-COUNTIF($C$4:$C$100,">"&AQ82), IF($N$82=$AP$2,COUNTIF($D$4:$D$100,">="&AP82)-COUNTIF($D$4:$D$100,">"&AQ82), IF($N$82=$AQ$2,COUNTIF($E$4:$E$100,">="&AP82)-COUNTIF($E$4:$E$100,">"&AQ82), IF($N$82=$AR$2,COUNTIF($F$4:$F$100,">="&AP82)-COUNTIF($F$4:$F$100,">"&AQ82), IF($N$82=$AS$2,COUNTIF($G$4:$G$100,">="&AP82)-COUNTIF($G$4:$G$100,">"&AQ82), IF($N$82=$AT$2,COUNTIF($H$4:$H$100,">="&AP82)-COUNTIF($H$4:$H$100,">"&AQ82), IF($N$82="Sem Uso","")))))))) ->  | AQ84: =IF($N$82=$AN$2,COUNTIF($B$4:$B$100,">="&AR82)-COUNTIF($B$4:$B$100,">"&AS82), IF($N$82=$AO$2,COUNTIF($C$4:$C$100,">="&AR82)-COUNTIF($C$4:$C$100,">"&AS82), IF($N$82=$AP$2,COUNTIF($D$4:$D$100,">="&AR82)-COUNTIF($D$4:$D$100,">"&AS82), IF($N$82=$AQ$2,COUNTIF($E$4:$E$100,">="&AR82)-COUNTIF($E$4:$E$100,">"&AS82), IF($N$82=$AR$2,COUNTIF($F$4:$F$100,">="&AR82)-COUNTIF($F$4:$F$100,">"&AS82), IF($N$82=$AS$2,COUNTIF($G$4:$G$100,">="&AR82)-COUNTIF($G$4:$G$100,">"&AS82), IF($N$82=$AT$2,COUNTIF($H$4:$H$100,">="&AR82)-COUNTIF($H$4:$H$100,">"&AS82), IF($N$82="Sem Uso","")))))))) ->  | AR84: =IF($N$82=$AN$2,COUNTIF($B$4:$B$100,">="&AT82)-COUNTIF($B$4:$B$100,">"&AU82), IF($N$82=$AO$2,COUNTIF($C$4:$C$100,">="&AT82)-COUNTIF($C$4:$C$100,">"&AU82), IF($N$82=$AP$2,COUNTIF($D$4:$D$100,">="&AT82)-COUNTIF($D$4:$D$100,">"&AU82), IF($N$82=$AQ$2,COUNTIF($E$4:$E$100,">="&AT82)-COUNTIF($E$4:$E$100,">"&AU82), IF($N$82=$AR$2,COUNTIF($F$4:$F$100,">="&AT82)-COUNTIF($F$4:$F$100,">"&AU82), IF($N$82=$AS$2,COUNTIF($G$4:$G$100,">="&AT82)-COUNTIF($G$4:$G$100,">"&AU82), IF($N$82=$AT$2,COUNTIF($H$4:$H$100,">="&AT82)-COUNTIF($H$4:$H$100,">"&AU82), IF($N$82="Sem Uso","")))))))) ->  | AS84: =IF($N$82=$AN$2,COUNTIF($B$4:$B$100,">="&AV82)-COUNTIF($B$4:$B$100,">"&AW82), IF($N$82=$AO$2,COUNTIF($C$4:$C$100,">="&AV82)-COUNTIF($C$4:$C$100,">"&AW82), IF($N$82=$AP$2,COUNTIF($D$4:$D$100,">="&AV82)-COUNTIF($D$4:$D$100,">"&AW82), IF($N$82=$AQ$2,COUNTIF($E$4:$E$100,">="&AV82)-COUNTIF($E$4:$E$100,">"&AW82), IF($N$82=$AR$2,COUNTIF($F$4:$F$100,">="&AV82)-COUNTIF($F$4:$F$100,">"&AW82), IF($N$82=$AS$2,COUNTIF($G$4:$G$100,">="&AV82)-COUNTIF($G$4:$G$100,">"&AW82), IF($N$82=$AT$2,COUNTIF($H$4:$H$100,">="&AV82)-COUNTIF($H$4:$H$100,">"&AW82), IF($N$82="Sem Uso","")))))))) ->  | AT84: =IF($N$82=$AN$2,COUNTIF($B$4:$B$100,">="&AX82)-COUNTIF($B$4:$B$100,">"&AY82), IF($N$82=$AO$2,COUNTIF($C$4:$C$100,">="&AX82)-COUNTIF($C$4:$C$100,">"&AY82), IF($N$82=$AP$2,COUNTIF($D$4:$D$100,">="&AX82)-COUNTIF($D$4:$D$100,">"&AY82), IF($N$82=$AQ$2,COUNTIF($E$4:$E$100,">="&AX82)-COUNTIF($E$4:$E$100,">"&AY82), IF($N$82=$AR$2,COUNTIF($F$4:$F$100,">="&AX82)-COUNTIF($F$4:$F$100,">"&AY82), IF($N$82=$AS$2,COUNTIF($G$4:$G$100,">="&AX82)-COUNTIF($G$4:$G$100,">"&AY82), IF($N$82=$AT$2,COUNTIF($H$4:$H$100,">="&AX82)-COUNTIF($H$4:$H$100,">"&AY82), IF($N$82="Sem Uso","")))))))) -> 
K85: Valor da Aula | N85: =IF(AO91<>0,AO91,"") ->  | U85: Valor da Aula | W85: =IFERROR(IF(N85<=$S$89,0,N85-$S$89),"") -> 0 | X85: 0 | Y85: 0 | Z85: 0 | AA85: 0 | AB85: 0
K86: Nr. de Aulas | N86: =IF(AO89<>"",AO90,"") ->  | U86: Nr. de Aulas | W86: =N86 ->  | AN86: =IF(N86<>"",N86,"") -> 
K87: Valor | N87: =IFERROR(N85*N86,"") ->  | U87: Valor | W87: =IFERROR(W85*W86,"") ->  | AO87: =IF($N82<>"Sem Uso",VLOOKUP(N82,Configurações!$C$1:$I$8,2,0),"") ->  | AP87: =IF(N82<>"Sem Uso",VLOOKUP(N82,Configurações!$C$1:$I$8,3,0),"") ->  | AQ87: =IF(N82<>"Sem Uso",VLOOKUP(N82,Configurações!$C$1:$I$8,4,0),"") ->  | AR87: =IF(N82<>"Sem Uso",VLOOKUP(N82,Configurações!$C$1:$I$8,5,0),"") ->  | AS87: =IF(N82<>"Sem Uso",VLOOKUP(N82,Configurações!$C$1:$I$8,6,0),"") ->  | AT87: =IF(N82<>"Sem Uso",VLOOKUP(N82,Configurações!$C$1:$I$8,7,0),"") -> 
M88: Total de Alunos | Q88: =_xlfn.IFS(N82=$AN$2,$B$102,N82=$AO$2,$C$102,N82=$AP$2,$D$102,N82=$AQ$2,$E$102,N82=$AR$2,$F$102,N82=$AS$2,$G$102,N82=$AT$2,$H$102,N82="Sem Uso","") ->  | V88: Total de Alunos | Z88: =Q88 ->  | AN88: TABELA DE EQUIVALÊNCIA
M89: Total de Aulas | Q89: =IF(Q88<>"",SUM(AN86:AS86),"") ->  | R89: Registro | V89: Total de Aulas | Z89: =Q89 ->  | AN89: Nr. Alunos | AO89: =AO87 ->  | AP89: =IF(AP87<>0,AP87,"") ->  | AQ89: =IF(AQ87<>0,AQ87,"") ->  | AR89: =IF(AR87<>0,AR87,"") ->  | AS89: =IF(AS87<>0,AS87,"") ->  | AT89: =IF(AT87<>0,AT87,"") -> 
M90: Total a Receber | Q90: =IF(Q88<>"",SUM(N87:S87),"") ->  | V90: Total a Receber | Z90: =IF(Z88<>"",SUM(W87:AB87),"") ->  | AN90: Aulas | AO90: =IF(AO89<>"",AO84,"") -> 
AO91: =IFERROR(VLOOKUP(N82&R82,Configurações!$C$13:$I$47,2,0),"") ->  | AP91: =IFERROR(IF(AP89<>0,VLOOKUP(N82&R82,Configurações!$C$13:$I$47,3,0),""),"") ->  | AQ91: =IFERROR(IF(AQ89<>0,VLOOKUP(N82&R82,Configurações!$C$13:$I$47,4,0),""),"") ->  | AR91: =IFERROR(IF(AR89<>0,VLOOKUP(N82&R82,Configurações!$C$13:$I$47,5,0),""),"") ->  | AS91: =IFERROR(IF(AS89<>0,VLOOKUP(N82&R82,Configurações!$C$13:$I$47,6,0),""),"") ->  | AT91: =IFERROR(IF(AT89<>0,VLOOKUP(N82&R82,Configurações!$C$13:$I$47,7,0),""),"") -> 
B102: =SUM($B$4:$B$100) -> 180 | C102: =SUM($C$4:$C$100) -> 0 | D102: =SUM($D$4:$D$100) -> 83 | E102: =SUM($E$4:$E$100) -> 41 | F102: =SUM($F$4:$F$100) -> 0 | G102: =SUM($G$4:$G$100) -> 51 | H102: =SUM($H$4:$H$100) -> 258

Sheet Sandra Aparecida M. Tavares (hidden)
AT1: Valores | AY1: Aulas | BD1: Alunos
B2: Nat. Adulta | C2: Nat. Bebê | D2: Aprend. A | E2: Aprend. B | F2: Adaptação | G2: Iniciação | H2: Hidrogin. | J2: Professor(a) | M2: =AE5 -> Sandra Aparecida M. Tavares | X2: Referência | Z2: 2025-07-01 | AE2: Natação Adulta | AF2: Natação Bebê | AG2: Aprendizagem A | AH2: Aprendizagem B | AI2: Adaptação | AJ2: Iniciação | AK2: Hidroginástica | AQ2: =TRANSPOSE(AE2:AK3) -> Natação Adulta | AR2: 0 | AT2: TOT NA | AU2: TOT BB | AV2: TOT IN | AW2: TOT HI | AY2: TOT NA | AZ2: TOT BB | BA2: TOT IN | BB2: TOT HI | BD2: TOT NA | BE2: TOT BB | BF2: TOT IN | BG2: TOT HI
AE3: =B102 -> 0 | AF3: 67 | AG3: 0 | AH3: 0 | AI3: 113 | AJ3: 0 | AK3: 0 | AQ3: Natação Bebê | AR3: 67
C4: 4 | F4: 1 | T4: Salário Bruto | W4: =R12+V11+Y11 -> 2131.99426 | AE4: =CELL("nome.arquivo",AE5) -> C:\Users\SAMSUNG\Downloads\[Aulas de Julho - NOVA.xlsm]Sandra Aparecida M. Tavares | AQ4: Aprendizagem A | AR4: 0 | AT4: =IF($N$16="Natação Adulta",$Q$24,0) -> 0 | AU4: =IF($N$16="Natação Bebê",$Q$24,0) -> 507.62833 | AV4: =IF(AND($N$16<>"Natação Adulta",$N$16<>"Natação Bebê",$N$16<>"Hidroginástica"),$Q$24,0) -> 0 | AW4: =IF($N$16="Hidroginástica",$Q$24,0) -> 0 | AY4: =IF($N$16="Natação Adulta",$Q$23,0) -> 0 | AZ4: =IF($N$16="Natação Bebê",$Q$23,0) -> 16 | BA4: =IF(AND($N$16<>"Natação Adulta",$N$16<>"Natação Bebê",$N$16<>"Hidroginástica"),$Q$23,0) -> 0 | BB4: =IF($N$16="Hidroginástica",$Q$23,0) -> 0 | BD4: =IF($N$16="Natação Adulta",$Q$22,0) -> 0 | BE4: =IF($N$16="Natação Bebê",$Q$22,0) -> 67 | BF4: =IF(AND($N$16<>"Natação Adulta",$N$16<>"Natação Bebê",$N$16<>"Hidroginástica"),$Q$22,0) -> 0 | BG4: =IF($N$16="Hidroginástica",$Q$22,0) -> 0
C5: 3 | F5: 2 | J5: Total de Alunos | N5: =R10+V9+Y9 -> 180 | P5: Total de Aulas | R5: =R11+V10+Y10 -> 77 | T5: INSS Total | W5: =BE14 -> 173.6994834 | Y5: Contabilidade | AA5: =SUM(W21:AB21)+SUM(W32:AB32)+SUM(W43:AB43)+SUM(W54:AB54)+SUM(W65:AB65)+SUM(W76:AB76)+SUM(W87:AB87) -> 2131.99426 | AE5: =MID(AE4,SEARCH("]",AE4)+1,LEN(AE4)-SEARCH("]",AE4)+1) -> Sandra Aparecida M. Tavares | AH5: =MID(AE4,AF5+1,AG5-AF5) ->  | AQ5: Aprendizagem B | AR5: 0 | AT5: =IF($N$27="Natação Adulta",$Q$35,0) -> 0 | AU5: =IF($N$27="Natação Bebê",$Q$35,0) -> 0 | AV5: =IF(AND($N$27<>"Natação Adulta",$N$27<>"Natação Bebê",$N$27<>"Hidroginástica"),$Q$35,0) -> 1624.36593 | AW5: =IF($N$27="Hidroginástica",$Q$35,0) -> 0 | AY5: =IF($N$27="Natação Adulta",$Q$34,0) -> 0 | AZ5: =IF($N$27="Natação Bebê",$Q$34,0) -> 0 | BA5: =IF(AND($N$27<>"Natação Adulta",$N$27<>"Natação Bebê",$N$27<>"Hidroginástica"),$Q$34,0) -> 61 | BB5: =IF($N$27="Hidroginástica",$Q$34,0) -> 0 | BD5: =IF($N$27="Natação Adulta",$Q$33,0) -> 0 | BE5: =IF($N$27="Natação Bebê",$Q$33,0) -> 0 | BF5: =IF(AND($N$27<>"Natação Adulta",$N$27<>"Natação Bebê",$N$27<>"Hidroginástica"),$Q$33,0) -> 113 | BG5: =IF($N$27="Hidroginástica",$Q$33,0) -> 0
C6: 4 | F6: 3 | T6: Salário Líquido | W6: =BE20 -> 1958.294777 | AQ6: Adaptação | AR6: 113 | AT6: =IF($N$38="Natação Adulta",$Q$46,0) -> 0 | AU6: =IF($N$38="Natação Bebê",$Q$46,0) -> 0 | AV6: =IF(AND($N$38<>"Natação Adulta",$N$38<>"Natação Bebê",$N$38<>"Hidroginástica"),$Q$46,0) ->  | AW6: =IF($N$38="Hidroginástica",$Q$46,0) -> 0 | AY6: =IF($N$38="Natação Adulta",$Q$45,0) -> 0 | AZ6: =IF($N$38="Natação Bebê",$Q$45,0) -> 0 | BA6: =IF(AND($N$38<>"Natação Adulta",$N$38<>"Natação Bebê",$N$38<>"Hidroginástica"),$Q$45,0) ->  | BB6: =IF($N$38="Hidroginástica",$Q$45,0) -> 0 | BD6: =IF($N$38="Natação Adulta",$Q$44,0) -> 0 | BE6: =IF($N$38="Natação Bebê",$Q$44,0) -> 0 | BF6: =IF(AND($N$38<>"Natação Adulta",$N$38<>"Natação Bebê",$N$38<>"Hidroginástica"),$Q$44,0) ->  | BG6: =IF($N$38="Hidroginástica",$Q$44,0) -> 0
C7: 6 | F7: 2 | AQ7: Iniciação | AR7: 0 | AT7: =IF($N$49="Natação Adulta",$Q$57,0) -> 0 | AU7: =IF($N$49="Natação Bebê",$Q$57,0) -> 0 | AV7: =IF(AND($N$49<>"Natação Adulta",$N$49<>"Natação Bebê",$N$49<>"Hidroginástica"),$Q$57,0) ->  | AW7: =IF($N$49="Hidroginástica",$Q$57,0) -> 0 | AY7: =IF($N$49="Natação Adulta",$Q$56,0) -> 0 | AZ7: =IF($N$49="Natação Bebê",$Q$56,0) -> 0 | BA7: =IF(AND($N$49<>"Natação Adulta",$N$49<>"Natação Bebê",$N$49<>"Hidroginástica"),$Q$56,0) ->  | BB7: =IF($N$49="Hidroginástica",$Q$56,0) -> 0 | BD7: =IF($N$49="Natação Adulta",$Q$55,0) -> 0 | BE7: =IF($N$49="Natação Bebê",$Q$55,0) -> 0 | BF7: =IF(AND($N$49<>"Natação Adulta",$N$49<>"Natação Bebê",$N$49<>"Hidroginástica"),$Q$55,0) ->  | BG7: =IF($N$49="Hidroginástica",$Q$55,0) -> 0
C8: 5 | F8: 1 | M8: Natação Infantil | U8: Natação Adulta | X8: Hidroginástica | AQ8: Hidroginástica | AR8: 0 | AT8: =IF($N$60="Natação Adulta",$Q$68,0) -> 0 | AU8: =IF($N$60="Natação Bebê",$Q$68,0) -> 0 | AV8: =IF(AND($N$60<>"Natação Adulta",$N$60<>"Natação Bebê",$N$60<>"Hidroginástica"),$Q$68,0) ->  | AW8: =IF($N$60="Hidroginástica",$Q$68,0) -> 0 | AY8: =IF($N$60="Natação Adulta",$Q$67,0) -> 0 | AZ8: =IF($N$60="Natação Bebê",$Q$67,0) -> 0 | BA8: =IF(AND($N$60<>"Natação Adulta",$N$60<>"Natação Bebê",$N$60<>"Hidroginástica"),$Q$67,0) ->  | BB8: =IF($N$60="Hidroginástica",$Q$67,0) -> 0 | BD8: =IF($N$60="Natação Adulta",$Q$66,0) -> 0 | BE8: =IF($N$60="Natação Bebê",$Q$66,0) -> 0 | BF8: =IF(AND($N$60<>"Natação Adulta",$N$60<>"Natação Bebê",$N$60<>"Hidroginástica"),$Q$66,0) ->  | BG8: =IF($N$60="Hidroginástica",$Q$66,0) -> 0
C9: 4 | F9: 2 | M9: Natação Bebê | O9: Demais | Q9: Total Infantil | U9: Alunos | V9: =BD11 -> 0 | X9: Alunos | Y9: =BG11 -> 0 | AT9: =IF($N$71="Natação Adulta",$Q$79,0) -> 0 | AU9: =IF($N$71="Natação Bebê",$Q$79,0) -> 0 | AV9: =IF(AND($N$71<>"Natação Adulta",$N$71<>"Natação Bebê",$N$71<>"Hidroginástica"),$Q$79,0) ->  | AW9: =IF($N$71="Hidroginástica",$Q$79,0) -> 0 | AY9: =IF($N$71="Natação Adulta",$Q$78,0) -> 0 | AZ9: =IF($N$71="Natação Bebê",$Q$78,0) -> 0 | BA9: =IF(AND($N$71<>"Natação Adulta",$N$71<>"Natação Bebê",$N$71<>"Hidroginástica"),$Q$78,0) ->  | BB9: =IF($N$71="Hidroginástica",$Q$78,0) -> 0 | BD9: =IF($N$71="Natação Adulta",$Q$77,0) -> 0 | BE9: =IF($N$71="Natação Bebê",$Q$77,0) -> 0 | BF9: =IF(AND($N$71<>"Natação Adulta",$N$71<>"Natação Bebê",$N$71<>"Hidroginástica"),$Q$77,0) ->  | BG9: =IF($N$71="Hidroginástica",$Q$77,0) -> 0
C10: 8 | F10: 2 | K10: Contábil | M10: Alunos | N10: =BE11 -> 67 | O10: Alunos | P10: =BF11 -> 113 | Q10: Alunos | R10: =N10+P10 -> 180 | U10: Aulas | V10: =AY11 -> 0 | X10: Aulas | Y10: =BB11 -> 0 | AT10: =IF($N$82="Natação Adulta",$Q$90,0) -> 0 | AU10: =IF($N$82="Natação Bebê",$Q$90,0) -> 0 | AV10: =IF(AND($N$82<>"Natação Adulta",$N$82<>"Natação Bebê",$N$82<>"Hidroginástica"),$Q$90,0) ->  | AW10: =IF($N$82="Hidroginástica",$Q$90,0) -> 0 | AY10: =IF($N$82="Natação Adulta",$Q$89,0) -> 0 | AZ10: =IF($N$82="Natação Bebê",$Q$89,0) -> 0 | BA10: =IF(AND($N$82<>"Natação Adulta",$N$82<>"Natação Bebê",$N$82<>"Hidroginástica"),$Q$89,0) ->  | BB10: =IF($N$82="Hidroginástica",$Q$89,0) -> 0 | BD10: =IF($N$82="Natação Adulta",$Q$88,0) -> 0 | BE10: =IF($N$82="Natação Bebê",$Q$88,0) -> 0 | BF10: =IF(AND($N$82<>"Natação Adulta",$N$82<>"Natação Bebê",$N$82<>"Hidroginástica"),$Q$88,0) ->  | BG10: =IF($N$82="Hidroginástica",$Q$88,0) -> 0
C11: 5 | F11: 2 | K11: Sistema | M11: Aulas | N11: =AZ11 -> 16 | O11: Aulas | P11: =BA11 -> 61 | Q11: Aulas | R11: 77 | U11: Bruto | V11: =AT11 -> 0 | X11: Bruto | Y11: =AW11 -> 0 | AT11: =SUM(AT4:AT10) -> 0 | AU11: =SUM(AU4:AU10) -> 507.62833 | AV11: 1624.36593 | AW11: 0 | AY11: =SUM(AY4:AY10) -> 0 | AZ11: =SUM(AZ4:AZ10) -> 16 | BA11: 61 | BB11: 0 | BD11: =SUM(BD4:BD10) -> 0 | BE11: =SUM(BE4:BE10) -> 67 | BF11: 113 | BG11: 0
C12: 3 | F12: 3 | K12: Sistema | M12: Bruto | N12: =AU11 -> 507.62833 | O12: Bruto | P12: =AV11 -> 1624.36593 | Q12: Bruto | R12: 2131.99426 | U12: INSS | V12: =AZ15 -> 0 | X12: INSS | Y12: =BB15 -> 0
C13: 6 | F13: 1 | M13: INSS | N13: =AU15 -> 38.07212475 | O13: INSS | P13: =AW15 -> 128.0129337 | Q13: INSS | R13: 166.0850584 | U13: Líquido | V13: =V11-V12 -> 0 | X13: Líquido | Y13: =Y11-Y12 -> 0 | AT13: Natação Bebê | AV13: Demais | AY13: Natação Adulta | BA13: Hidroginástica | BD13: Bruto Informado | BE13: =AU14+AW14+AZ14+BB14 -> 2131.99426
C14: 3 | F14: 2 | M14: Líquido | N14: =N12-N13 -> 469.5562053 | O14: Líquido | P14: =P12-P13 -> 1496.352996 | Q14: Líquido | R14: =N14+P14 -> 1965.909202 | AT14: Salário | AU14: =AU11 -> 507.62833 | AV14: Salário | AW14: =AV11 -> 1624.36593 | AY14: Salário | AZ14: =AT11 -> 0 | BA14: Salário | BB14: =AW11 -> 0 | BD14: INSS | BE14: =IF(BE13<=Impostos!$D$4,BE13*Impostos!$B$4,IF(BE13<=Impostos!$D$5,(BE13-Impostos!$D$4)*Impostos!$B$5+Impostos!$E$4,IF(BE13<=Impostos!$D$6,(BE13-(Impostos!$D$5-Impostos!$D$4)-Impostos!$D$4)*Impostos!$B$6+Impostos!$E$5+Impostos!$E$4,IF(BE13<=Impostos!$D$7,(BE13-(Impostos!$D$6-Impostos!$D$5)-(Impostos!$D$5-Impostos!$D$4)-Impostos!$D$4)*Impostos!$B$7+Impostos!$E$6+Impostos!$E$5+Impostos!$E$4,IF(BE13>=Impostos!$E$7,Impostos!$E$7))))) -> 173.6994834
C15: 1 | F15: 2 | AT15: INSS | AU15: =IF(AU14<=Impostos!$D$4,AU14*Impostos!$B$4,IF(AU14<=Impostos!$D$5,(AU14-Impostos!$D$4)*Impostos!$B$5+Impostos!$E$4,IF(AU14<=Impostos!$D$6,(AU14-(Impostos!$D$5-Impostos!$D$4)-Impostos!$D$4)*Impostos!$B$6+Impostos!$E$5+Impostos!$E$4,IF(AU14<=Impostos!$D$7,(AU14-(Impostos!$D$6-Impostos!$D$5)-(Impostos!$D$5-Impostos!$D$4)-Impostos!$D$4)*Impostos!$B$7+Impostos!$E$6+Impostos!$E$5+Impostos!$E$4,IF(AU14>=Impostos!$E$7,Impostos!$E$7))))) -> 38.07212475 | AV15: INSS | AW15: =IF(AW14<=Impostos!$D$4,AW14*Impostos!$B$4,IF(AW14<=Impostos!$D$5,(AW14-Impostos!$D$4)*Impostos!$B$5+Impostos!$E$4,IF(AW14<=Impostos!$D$6,(AW14-(Impostos!$D$5-Impostos!$D$4)-Impostos!$D$4)*Impostos!$B$6+Impostos!$E$5+Impostos!$E$4,IF(AW14<=Impostos!$D$7,(AW14-(Impostos!$D$6-Impostos!$D$5)-(Impostos!$D$5-Impostos!$D$4)-Impostos!$D$4)*Impostos!$B$7+Impostos!$E$6+Impostos!$E$5+Impostos!$E$4,IF(AW14>=Impostos!$E$7,Impostos!$E$7))))) -> 128.0129337 | AY15: INSS | AZ15: =IF(AZ14<=Impostos!$D$4,AZ14*Impostos!$B$4,IF(AZ14<=Impostos!$D$5,(AZ14-Impostos!$D$4)*Impostos!$B$5+Impostos!$E$4,IF(AZ14<=Impostos!$D$6,(AZ14-(Impostos!$D$5-Impostos!$D$4)-Impostos!$D$4)*Impostos!$B$6+Impostos!$E$5+Impostos!$E$4,IF(AZ14<=Impostos!$D$7,(AZ14-(Impostos!$D$6-Impostos!$D$5)-(Impostos!$D$5-Impostos!$D$4)-Impostos!$D$4)*Impostos!$B$7+Impostos!$E$6+Impostos!$E$5+Impostos!$E$4,IF(AZ14>=Impostos!$E$7,Impostos!$E$7))))) -> 0 | BA15: INSS | BB15: =IF(BB14<=Impostos!$D$4,BB14*Impostos!$B$4,IF(BB14<=Impostos!$D$5,(BB14-Impostos!$D$4)*Impostos!$B$5+Impostos!$E$4,IF(BB14<=Impostos!$D$6,(BB14-(Impostos!$D$5-Impostos!$D$4)-Impostos!$D$4)*Impostos!$B$6+Impostos!$E$5+Impostos!$E$4,IF(BB14<=Impostos!$D$7,(BB14-(Impostos!$D$6-Impostos!$D$5)-(Impostos!$D$5-Impostos!$D$4)-Impostos!$D$4)*Impostos!$B$7+Impostos!$E$6+Impostos!$E$5+Impostos!$E$4,IF(BB14>=Impostos!$E$7,Impostos!$E$7))))) -> 0 | BD15: Líquido | BE15: =BE13-BE14 -> 1958.294777
C16: 5 | F16: 1 | K16: Modalidade | N16: Natação Bebê | Q16: Nível | R16: Prof. Nível A | AE16: =VLOOKUP(N16,Configurações!$J$1:$V$9,2,0) -> 0 | AF16: =VLOOKUP(N16,Configurações!$J$1:$V$9,3,0) -> 0 | AG16: =VLOOKUP(N16,Configurações!$J$1:$V$9,4,0) -> 1 | AH16: =VLOOKUP(N16,Configurações!$J$1:$V$9,5,0) -> 4 | AI16: =VLOOKUP(N16,Configurações!$J$1:$V$9,6,0) -> 5 | AJ16: =VLOOKUP(N16,Configurações!$J$1:$V$9,7,0) -> 8 | AK16: =VLOOKUP(N16,Configurações!$J$1:$V$9,8,0) -> 9 | AL16: =VLOOKUP(N16,Configurações!$J$1:$V$9,9,0) -> 12 | AM16: =VLOOKUP(N16,Configurações!$J$1:$V$9,10,0) -> 13 | AN16: =VLOOKUP(N16,Configurações!$J$1:$V$9,11,0) -> 15 | AO16: =VLOOKUP(N16,Configurações!$J$1:$V$9,12,0) ->  | AP16: =VLOOKUP(N16,Configurações!$J$1:$V$9,13,0) -> 
C17: 6 | F17: 6 | K17: Academia | U17: Contabilidade | AE17: =IFERROR(VLOOKUP(N16,_xlfn.ANCHORARRAY($AQ$2),2,0),0) -> 67 | BD17: Líquido Calcl | BE17: =R14+V13+Y13 -> 1965.909202
C18: 4 | F18: 2 | K18: Nr. de Alunos | N18: =IF(AF23<>"",AF23,"") -> 0 | O18: =IF(AG23<>"",AG23,"") -> 1 a 4 | P18: =IF(AH23<>"",AH23,"") -> 5 a 8 | Q18: =IF(AI23<>"",AI23,"") -> 9 a 12 | R18: =IF(AJ23<>"",AJ23,"") -> 13 a 15 | S18: =IF(AK23<>0,AK23,"") ->  | U18: Nr. de Alunos | W18: =N18 -> 0 | X18: =O18 -> 1 a 4 | Y18: 5 a 8 | Z18: 9 a 12 | AA18: 13 a 15 | AF18: =IF($N$16=$AE$2,COUNTIF($B$4:$B$100,">="&AE16)-COUNTIF($B$4:$B$100,">"&AF16), IF($N$16=$AF$2,COUNTIF($C$4:$C$100,">="&AE16)-COUNTIF($C$4:$C$100,">"&AF16), IF($N$16=$AG$2,COUNTIF($D$4:$D$100,">="&AE16)-COUNTIF($D$4:$D$100,">"&AF16), IF($N$16=$AH$2,COUNTIF($E$4:$E$100,">="&AE16)-COUNTIF($E$4:$E$100,">"&AF16), IF($N$16=$AI$2,COUNTIF($F$4:$F$100,">="&AE16)-COUNTIF($F$4:$F$100,">"&AF16), IF($N$16=$AJ$2,COUNTIF($G$4:$G$100,">="&AE16)-COUNTIF($G$4:$G$100,">"&AF16), IF($N$16=$AK$2,COUNTIF($H$4:$H$100,">="&AE16)-COUNTIF($H$4:$H$100,">"&AF16), IF($N$16="Sem Uso","")))))))) -> 1 | AG18: =IF($N$16=$AE$2,COUNTIF($B$4:$B$100,">="&AG16)-COUNTIF($B$4:$B$100,">"&AH16), IF($N$16=$AF$2,COUNTIF($C$4:$C$100,">="&AG16)-COUNTIF($C$4:$C$100,">"&AH16), IF($N$16=$AG$2,COUNTIF($D$4:$D$100,">="&AG16)-COUNTIF($D$4:$D$100,">"&AH16), IF($N$16=$AH$2,COUNTIF($E$4:$E$100,">="&AG16)-COUNTIF($E$4:$E$100,">"&AH16), IF($N$16=$AI$2,COUNTIF($F$4:$F$100,">="&AG16)-COUNTIF($F$4:$F$100,">"&AH16), IF($N$16=$AJ$2,COUNTIF($G$4:$G$100,">="&AG16)-COUNTIF($G$4:$G$100,">"&AH16), IF($N$16=$AK$2,COUNTIF($H$4:$H$100,">="&AG16)-COUNTIF($H$4:$H$100,">"&AH16), IF($N$16="Sem Uso","")))))))) -> 8 | AH18: =IF($N$16=$AE$2,COUNTIF($B$4:$B$100,">="&AI16)-COUNTIF($B$4:$B$100,">"&AJ16), IF($N$16=$AF$2,COUNTIF($C$4:$C$100,">="&AI16)-COUNTIF($C$4:$C$100,">"&AJ16), IF($N$16=$AG$2,COUNTIF($D$4:$D$100,">="&AI16)-COUNTIF($D$4:$D$100,">"&AJ16), IF($N$16=$AH$2,COUNTIF($E$4:$E$100,">="&AI16)-COUNTIF($E$4:$E$100,">"&AJ16), IF($N$16=$AI$2,COUNTIF($F$4:$F$100,">="&AI16)-COUNTIF($F$4:$F$100,">"&AJ16), IF($N$16=$AJ$2,COUNTIF($G$4:$G$100,">="&AI16)-COUNTIF($G$4:$G$100,">"&AJ16), IF($N$16=$AK$2,COUNTIF($H$4:$H$100,">="&AI16)-COUNTIF($H$4:$H$100,">"&AJ16), IF($N$16="Sem Uso","")))))))) -> 7 | AI18: =IF($N$16=$AE$2,COUNTIF($B$4:$B$100,">="&AK16)-COUNTIF($B$4:$B$100,">"&AL16), IF($N$16=$AF$2,COUNTIF($C$4:$C$100,">="&AK16)-COUNTIF($C$4:$C$100,">"&AL16), IF($N$16=$AG$2,COUNTIF($D$4:$D$100,">="&AK16)-COUNTIF($D$4:$D$100,">"&AL16), IF($N$16=$AH$2,COUNTIF($E$4:$E$100,">="&AK16)-COUNTIF($E$4:$E$100,">"&AL16), IF($N$16=$AI$2,COUNTIF($F$4:$F$100,">="&AK16)-COUNTIF($F$4:$F$100,">"&AL16), IF($N$16=$AJ$2,COUNTIF($G$4:$G$100,">="&AK16)-COUNTIF($G$4:$G$100,">"&AL16), IF($N$16=$AK$2,COUNTIF($H$4:$H$100,">="&AK16)-COUNTIF($H$4:$H$100,">"&AL16), IF($N$16="Sem Uso","")))))))) -> 0 | AJ18: =IF($N$16=$AE$2,COUNTIF($B$4:$B$100,">="&AM16)-COUNTIF($B$4:$B$100,">"&AN16), IF($N$16=$AF$2,COUNTIF($C$4:$C$100,">="&AM16)-COUNTIF($C$4:$C$100,">"&AN16), IF($N$16=$AG$2,COUNTIF($D$4:$D$100,">="&AM16)-COUNTIF($D$4:$D$100,">"&AN16), IF($N$16=$AH$2,COUNTIF($E$4:$E$100,">="&AM16)-COUNTIF($E$4:$E$100,">"&AN16), IF($N$16=$AI$2,COUNTIF($F$4:$F$100,">="&AM16)-COUNTIF($F$4:$F$100,">"&AN16), IF($N$16=$AJ$2,COUNTIF($G$4:$G$100,">="&AM16)-COUNTIF($G$4:$G$100,">"&AN16), IF($N$16=$AK$2,COUNTIF($H$4:$H$100,">="&AM16)-COUNTIF($H$4:$H$100,">"&AN16), IF($N$16="Sem Uso","")))))))) -> 0 | AK18: =IF($N$16=$AE$2,COUNTIF($B$4:$B$100,">="&AO16)-COUNTIF($B$4:$B$100,">"&AP16), IF($N$16=$AF$2,COUNTIF($C$4:$C$100,">="&AO16)-COUNTIF($C$4:$C$100,">"&AP16), IF($N$16=$AG$2,COUNTIF($D$4:$D$100,">="&AO16)-COUNTIF($D$4:$D$100,">"&AP16), IF($N$16=$AH$2,COUNTIF($E$4:$E$100,">="&AO16)-COUNTIF($E$4:$E$100,">"&AP16), IF($N$16=$AI$2,COUNTIF($F$4:$F$100,">="&AO16)-COUNTIF($F$4:$F$100,">"&AP16), IF($N$16=$AJ$2,COUNTIF($G$4:$G$100,">="&AO16)-COUNTIF($G$4:$G$100,">"&AP16), IF($N$16=$AK$2,COUNTIF($H$4:$H$100,">="&AO16)-COUNTIF($H$4:$H$100,">"&AP16), IF($N$16="Sem Uso","")))))))) -> 0 | BD18: Diferença | BE18: =BE15-BE17 -> -7.61442495
C19: 0 | F19: 3 | K19: Valor da Aula | N19: =IF(AF25<>0,AF25,"") -> 17.655 | O19: 30.31952 | P19: 35.34531 | Q19: 40.78305 | R19: 46.22079 | U19: Valor da Aula | W19: =IFERROR(IF(N19<=$S$23,0,N19-$S$23),"") -> 17.655 | X19: 30.31952 | Y19: 35.34531 | Z19: 40.78305 | AA19: 46.22079 | AB19: 0
F20: 3 | K20: Nr. de Aulas | N20: =IF(AF23<>"",AF24,"") -> 1 | O20: 8 | P20: 7 | Q20: 0 | R20: 0 | U20: Nr. de Aulas | W20: =N20 -> 1 | X20: 8 | Y20: 7 | Z20: 0 | AA20: 0 | AE20: =IF(N20<>"",N20,"") -> 1 | AF20: 8 | AG20: 7 | AH20: 0 | AI20: 0 | BD20: Líquido Real | BE20: =BE17+BE18 -> 1958.294777
F21: 3 | K21: Valor | N21: =IFERROR(N19*N20,"") -> 17.655 | O21: 242.55616 | P21: 247.41717 | Q21: 0 | R21: 0 | U21: Valor | W21: =IFERROR(W19*W20,"") -> 17.655 | X21: 242.55616 | Y21: 247.41717 | Z21: 0 | AA21: 0 | AF21: =IF($N16<>"Sem Uso",VLOOKUP(N16,Configurações!$C$1:$I$8,2,0),"") -> 0 | AG21: =IF(N16<>"Sem Uso",VLOOKUP(N16,Configurações!$C$1:$I$8,3,0),"") -> 1 a 4 | AH21: =IF(N16<>"Sem Uso",VLOOKUP(N16,Configurações!$C$1:$I$8,4,0),"") -> 5 a 8 | AI21: =IF(N16<>"Sem Uso",VLOOKUP(N16,Configurações!$C$1:$I$8,5,0),"") -> 9 a 12 | AJ21: =IF(N16<>"Sem Uso",VLOOKUP(N16,Configurações!$C$1:$I$8,6,0),"") -> 13 a 15 | AK21: =IF(N16<>"Sem Uso",VLOOKUP(N16,Configurações!$C$1:$I$8,7,0),"") -> 0
F22: 3 | M22: Total de Alunos | Q22: =_xlfn.IFS(N16=$AE$2,$B$102,N16=$AF$2,$C$102,N16=$AG$2,$D$102,N16=$AH$2,$E$102,N16=$AI$2,$F$102,N16=$AJ$2,$G$102,N16=$AK$2,$H$102,N16="Sem Uso","") -> 67 | V22: Total de Alunos | Z22: =Q22 -> 67 | AE22: TABELA DE EQUIVALÊNCIA
F23: 2 | M23: Total de Aulas | Q23: =IF(Q22<>"",SUM(AE20:AJ20),"") -> 16 | R23: Registo | V23: Total de Aulas | Z23: =Q23 -> 16 | AE23: Nr. Alunos | AF23: =AF21 -> 0 | AG23: =IF(AG21<>0,AG21,"") -> 1 a 4 | AH23: =IF(AH21<>0,AH21,"") -> 5 a 8 | AI23: =IF(AI21<>0,AI21,"") -> 9 a 12 | AJ23: =IF(AJ21<>0,AJ21,"") -> 13 a 15 | AK23: =IF(AK21<>0,AK21,"") -> 
F24: 2 | M24: Total a Receber | Q24: =IF(Q22<>"",SUM(N21:S21),"") -> 507.62833 | V24: Total a Receber | Z24: =IF(Z22<>"",SUM(W21:AB21),"") -> 507.62833 | AE24: Aulas | AF24: =IF(AF23<>"",AF18,"") -> 1 | AG24: 8 | AH24: 7 | AI24: 0 | AJ24: 0
F25: 2 | AF25: =IFERROR(VLOOKUP(N16&R16,Configurações!$C$13:$I$47,2,0),"") -> 17.655 | AG25: =IFERROR(IF(AG23<>0,VLOOKUP(N16&R16,Configurações!$C$13:$I$47,3,0),""),"") -> 30.31952 | AH25: =IFERROR(IF(AH23<>0,VLOOKUP(N16&R16,Configurações!$C$13:$I$47,4,0),""),"") -> 35.34531 | AI25: =IFERROR(IF(AI23<>0,VLOOKUP(N16&R16,Configurações!$C$13:$I$47,5,0),""),"") -> 40.78305 | AJ25: =IFERROR(IF(AJ23<>0,VLOOKUP(N16&R16,Configurações!$C$13:$I$47,6,0),""),"") -> 46.22079 | AK25: =IFERROR(IF(AK23<>0,VLOOKUP(N16&R16,Configurações!$C$13:$I$47,7,0),""),"") -> 0
F26: 3
F27: 3 | K27: Modalidade | N27: Adaptação | Q27: Nível | R27: Prof. Nível A | AE27: =VLOOKUP(N27,Configurações!$J$1:$V$9,2,0) -> 0 | AF27: =VLOOKUP(N27,Configurações!$J$1:$V$9,3,0) -> 0 | AG27: =VLOOKUP(N27,Configurações!$J$1:$V$9,4,0) -> 1 | AH27: =VLOOKUP(N27,Configurações!$J$1:$V$9,5,0) -> 2 | AI27: =VLOOKUP(N27,Configurações!$J$1:$V$9,6,0) -> 3 | AJ27: =VLOOKUP(N27,Configurações!$J$1:$V$9,7,0) -> 4 | AK27: =VLOOKUP(N27,Configurações!$J$1:$V$9,8,0) -> 5 | AL27: =VLOOKUP(N27,Configurações!$J$1:$V$9,9,0) -> 6 | AM27: =VLOOKUP(N27,Configurações!$J$1:$V$9,10,0) -> 7 | AN27: =VLOOKUP(N27,Configurações!$J$1:$V$9,11,0) -> 8 | AO27: =VLOOKUP(N27,Configurações!$J$1:$V$9,12,0) ->  | AP27: =VLOOKUP(N27,Configurações!$J$1:$V$9,13,0) -> 
F28: 1 | K28: Academia | U28: Contabilidade | AE28: =IFERROR(VLOOKUP(N27,_xlfn.ANCHORARRAY($AQ$2),2,0),0) -> 113
F29: 2 | K29: Nr. de Alunos | N29: =IF(AF34<>"",AF34,"") -> 0 | O29: =IF(AG34<>"",AG34,"") -> 1 a 2 | P29: =IF(AH34<>"",AH34,"") -> 3 a 4 | Q29: =IF(AI34<>"",AI34,"") -> 5 a 6 | R29: =IF(AJ34<>"",AJ34,"") -> 7 a 8 | S29: =IF(AK34<>0,AK34,"") ->  | U29: Nr. de Alunos | W29: =N29 -> 0 | X29: =O29 -> 1 a 2 | Y29: 3 a 4 | Z29: 5 a 6 | AA29: 7 a 8 | AF29: =IF($N$27=$AE$2,COUNTIF($B$4:$B$100,">="&AE27)-COUNTIF($B$4:$B$100,">"&AF27), IF($N$27=$AF$2,COUNTIF($C$4:$C$100,">="&AE27)-COUNTIF($C$4:$C$100,">"&AF27), IF($N$27=$AG$2,COUNTIF($D$4:$D$100,">="&AE27)-COUNTIF($D$4:$D$100,">"&AF27), IF($N$27=$AH$2,COUNTIF($E$4:$E$100,">="&AE27)-COUNTIF($E$4:$E$100,">"&AF27), IF($N$27=$AI$2,COUNTIF($F$4:$F$100,">="&AE27)-COUNTIF($F$4:$F$100,">"&AF27), IF($N$27=$AJ$2,COUNTIF($G$4:$G$100,">="&AE27)-COUNTIF($G$4:$G$100,">"&AF27), IF($N$27=$AK$2,COUNTIF($H$4:$H$100,">="&AE27)-COUNTIF($H$4:$H$100,">"&AF27), IF($N$27="Sem Uso","")))))))) -> 10 | AG29: =IF($N$27=$AE$2,COUNTIF($B$4:$B$100,">="&AG27)-COUNTIF($B$4:$B$100,">"&AH27), IF($N$27=$AF$2,COUNTIF($C$4:$C$100,">="&AG27)-COUNTIF($C$4:$C$100,">"&AH27), IF($N$27=$AG$2,COUNTIF($D$4:$D$100,">="&AG27)-COUNTIF($D$4:$D$100,">"&AH27), IF($N$27=$AH$2,COUNTIF($E$4:$E$100,">="&AG27)-COUNTIF($E$4:$E$100,">"&AH27), IF($N$27=$AI$2,COUNTIF($F$4:$F$100,">="&AG27)-COUNTIF($F$4:$F$100,">"&AH27), IF($N$27=$AJ$2,COUNTIF($G$4:$G$100,">="&AG27)-COUNTIF($G$4:$G$100,">"&AH27), IF($N$27=$AK$2,COUNTIF($H$4:$H$100,">="&AG27)-COUNTIF($H$4:$H$100,">"&AH27), IF($N$27="Sem Uso","")))))))) -> 32 | AH29: =IF($N$27=$AE$2,COUNTIF($B$4:$B$100,">="&AI27)-COUNTIF($B$4:$B$100,">"&AJ27), IF($N$27=$AF$2,COUNTIF($C$4:$C$100,">="&AI27)-COUNTIF($C$4:$C$100,">"&AJ27), IF($N$27=$AG$2,COUNTIF($D$4:$D$100,">="&AI27)-COUNTIF($D$4:$D$100,">"&AJ27), IF($N$27=$AH$2,COUNTIF($E$4:$E$100,">="&AI27)-COUNTIF($E$4:$E$100,">"&AJ27), IF($N$27=$AI$2,COUNTIF($F$4:$F$100,">="&AI27)-COUNTIF($F$4:$F$100,">"&AJ27), IF($N$27=$AJ$2,COUNTIF($G$4:$G$100,">="&AI27)-COUNTIF($G$4:$G$100,">"&AJ27), IF($N$27=$AK$2,COUNTIF($H$4:$H$100,">="&AI27)-COUNTIF($H$4:$H$100,">"&AJ27), IF($N$27="Sem Uso","")))))))) -> 18 | AI29: =IF($N$27=$AE$2,COUNTIF($B$4:$B$100,">="&AK27)-COUNTIF($B$4:$B$100,">"&AL27), IF($N$27=$AF$2,COUNTIF($C$4:$C$100,">="&AK27)-COUNTIF($C$4:$C$100,">"&AL27), IF($N$27=$AG$2,COUNTIF($D$4:$D$100,">="&AK27)-COUNTIF($D$4:$D$100,">"&AL27), IF($N$27=$AH$2,COUNTIF($E$4:$E$100,">="&AK27)-COUNTIF($E$4:$E$100,">"&AL27), IF($N$27=$AI$2,COUNTIF($F$4:$F$100,">="&AK27)-COUNTIF($F$4:$F$100,">"&AL27), IF($N$27=$AJ$2,COUNTIF($G$4:$G$100,">="&AK27)-COUNTIF($G$4:$G$100,">"&AL27), IF($N$27=$AK$2,COUNTIF($H$4:$H$100,">="&AK27)-COUNTIF($H$4:$H$100,">"&AL27), IF($N$27="Sem Uso","")))))))) -> 1 | AJ29: =IF($N$27=$AE$2,COUNTIF($B$4:$B$100,">="&AM27)-COUNTIF($B$4:$B$100,">"&AN27), IF($N$27=$AF$2,COUNTIF($C$4:$C$100,">="&AM27)-COUNTIF($C$4:$C$100,">"&AN27), IF($N$27=$AG$2,COUNTIF($D$4:$D$100,">="&AM27)-COUNTIF($D$4:$D$100,">"&AN27), IF($N$27=$AH$2,COUNTIF($E$4:$E$100,">="&AM27)-COUNTIF($E$4:$E$100,">"&AN27), IF($N$27=$AI$2,COUNTIF($F$4:$F$100,">="&AM27)-COUNTIF($F$4:$F$100,">"&AN27), IF($N$27=$AJ$2,COUNTIF($G$4:$G$100,">="&AM27)-COUNTIF($G$4:$G$100,">"&AN27), IF($N$27=$AK$2,COUNTIF($H$4:$H$100,">="&AM27)-COUNTIF($H$4:$H$100,">"&AN27), IF($N$27="Sem Uso","")))))))) -> 0 | AK29: =IF($N$27=$AE$2,COUNTIF($B$4:$B$100,">="&AO27)-COUNTIF($B$4:$B$100,">"&AP27), IF($N$27=$AF$2,COUNTIF($C$4:$C$100,">="&AO27)-COUNTIF($C$4:$C$100,">"&AP27), IF($N$27=$AG$2,COUNTIF($D$4:$D$100,">="&AO27)-COUNTIF($D$4:$D$100,">"&AP27), IF($N$27=$AH$2,COUNTIF($E$4:$E$100,">="&AO27)-COUNTIF($E$4:$E$100,">"&AP27), IF($N$27=$AI$2,COUNTIF($F$4:$F$100,">="&AO27)-COUNTIF($F$4:$F$100,">"&AP27), IF($N$27=$AJ$2,COUNTIF($G$4:$G$100,">="&AO27)-COUNTIF($G$4:$G$100,">"&AP27), IF($N$27=$AK$2,COUNTIF($H$4:$H$100,">="&AO27)-COUNTIF($H$4:$H$100,">"&AP27), IF($N$27="Sem Uso","")))))))) -> 0
F30: 1 | K30: Valor da Aula | N30: =IF(AF36<>0,AF36,"") -> 17.655 | O30: 26.50604 | P30: 31.27289 | Q30: 36.71063 | R30: 40.981 | U30: Valor da Aula | W30: =IFERROR(IF(N30<=$S$34,0,N30-$S$34),"") -> 17.655 | X30: 26.50604 | Y30: 31.27289 | Z30: 36.71063 | AA30: 40.981 | AB30: 0
F31: 0 | K31: Nr. de Aulas | N31: =IF(AF34<>"",AF35,"") -> 10 | O31: 32 | P31: 18 | Q31: 1 | R31: 0 | U31: Nr. de Aulas | W31: =N31 -> 10 | X31: 32 | Y31: 18 | Z31: 1 | AA31: 0 | AE31: =IF(N31<>"",N31,"") -> 10 | AF31: 32 | AG31: 18 | AH31: 1 | AI31: 0
F32: 3 | K32: Valor | N32: =IFERROR(N30*N31,"") -> 176.55 | O32: 848.19328 | P32: 562.91202 | Q32: 36.71063 | R32: 0 | U32: Valor | W32: =IFERROR(W30*W31,"") -> 176.55 | X32: 848.19328 | Y32: 562.91202 | Z32: 36.71063 | AA32: 0 | AF32: =IF($N27<>"Sem Uso",VLOOKUP(N27,Configurações!$C$1:$I$8,2,0),"") -> 0 | AG32: =IF(N27<>"Sem Uso",VLOOKUP(N27,Configurações!$C$1:$I$8,3,0),"") -> 1 a 2 | AH32: =IF(N27<>"Sem Uso",VLOOKUP(N27,Configurações!$C$1:$I$8,4,0),"") -> 3 a 4 | AI32: =IF(N27<>"Sem Uso",VLOOKUP(N27,Configurações!$C$1:$I$8,5,0),"") -> 5 a 6 | AJ32: =IF(N27<>"Sem Uso",VLOOKUP(N27,Configurações!$C$1:$I$8,6,0),"") -> 7 a 8 | AK32: =IF(N27<>"Sem Uso",VLOOKUP(N27,Configurações!$C$1:$I$8,7,0),"") -> 0
F33: 4 | M33: Total de Alunos | Q33: =_xlfn.IFS(N27=$AE$2,$B$102,N27=$AF$2,$C$102,N27=$AG$2,$D$102,N27=$AH$2,$E$102,N27=$AI$2,$F$102,N27=$AJ$2,$G$102,N27=$AK$2,$H$102,N27="Sem Uso","") -> 113 | V33: Total de Alunos | Z33: =Q33 -> 113 | AE33: TABELA DE EQUIVALÊNCIA
F34: 3 | M34: Total de Aulas | Q34: =IF(Q33<>"",SUM(AE31:AJ31),"") -> 61 | R34: Registo | V34: Total de Aulas | Z34: =Q34 -> 61 | AE34: Nr. Alunos | AF34: =AF32 -> 0 | AG34: =IF(AG32<>0,AG32,"") -> 1 a 2 | AH34: =IF(AH32<>0,AH32,"") -> 3 a 4 | AI34: =IF(AI32<>0,AI32,"") -> 5 a 6 | AJ34: =IF(AJ32<>0,AJ32,"") -> 7 a 8 | AK34: =IF(AK32<>0,AK32,"") -> 
F35: 2 | M35: Total a Receber | Q35: =IF(Q33<>"",SUM(N32:S32),"") -> 1624.36593 | V35: Total a Receber | Z35: =IF(Z33<>"",SUM(W32:AB32),"") -> 1624.36593 | AE35: Aulas | AF35: =IF(AF34<>"",AF29,"") -> 10 | AG35: 32 | AH35: 18 | AI35: 1 | AJ35: 0
F36: 3 | AF36: =IFERROR(VLOOKUP(N27&R27,Configurações!$C$13:$I$47,2,0),"") -> 17.655 | AG36: =IFERROR(IF(AG34<>0,VLOOKUP(N27&R27,Configurações!$C$13:$I$47,3,0),""),"") -> 26.50604 | AH36: =IFERROR(IF(AH34<>0,VLOOKUP(N27&R27,Configurações!$C$13:$I$47,4,0),""),"") -> 31.27289 | AI36: =IFERROR(IF(AI34<>0,VLOOKUP(N27&R27,Configurações!$C$13:$I$47,5,0),""),"") -> 36.71063 | AJ36: =IFERROR(IF(AJ34<>0,VLOOKUP(N27&R27,Configurações!$C$13:$I$47,6,0),""),"") -> 40.981 | AK36: =IFERROR(IF(AK34<>0,VLOOKUP(N27&R27,Configurações!$C$13:$I$47,7,0),""),"") -> 0
F37: 1
F38: 3 | K38: Modalidade | N38: Sem Uso | Q38: Nível | R38: Prof. Especial | AE38: =VLOOKUP(N38,Configurações!$J$1:$V$9,2,0) ->  | AF38: =VLOOKUP(N38,Configurações!$J$1:$V$9,3,0) ->  | AG38: =VLOOKUP(N38,Configurações!$J$1:$V$9,4,0) ->  | AH38: =VLOOKUP(N38,Configurações!$J$1:$V$9,5,0) ->  | AI38: =VLOOKUP(N38,Configurações!$J$1:$V$9,6,0) ->  | AJ38: =VLOOKUP(N38,Configurações!$J$1:$V$9,7,0) ->  | AK38: =VLOOKUP(N38,Configurações!$J$1:$V$9,8,0) ->  | AL38: =VLOOKUP(N38,Configurações!$J$1:$V$9,9,0) ->  | AM38: =VLOOKUP(N38,Configurações!$J$1:$V$9,10,0) ->  | AN38: =VLOOKUP(N38,Configurações!$J$1:$V$9,11,0) ->  | AO38: =VLOOKUP(N38,Configurações!$J$1:$V$9,12,0) ->  | AP38: =VLOOKUP(N38,Configurações!$J$1:$V$9,13,0) -> 
F39: 0 | K39: Academia | U39: Contabilidade | AE39: =IFERROR(VLOOKUP(N38,_xlfn.ANCHORARRAY($AQ$2),2,0),0) -> 0
F40: 2 | K40: Nr. de Alunos | N40: =IF(AF45<>"",AF45,"") ->  | O40: =IF(AG45<>"",AG45,"") ->  | P40: =IF(AH45<>"",AH45,"") ->  | Q40: =IF(AI45<>"",AI45,"") ->  | R40: =IF(AJ45<>"",AJ45,"") ->  | S40: =IF(AK45<>0,AK45,"") ->  | U40: Nr. de Alunos | W40: =N40 ->  | X40: =O40 ->  | AF40: =IF($N$38=$AE$2,COUNTIF($B$4:$B$100,">="&AE38)-COUNTIF($B$4:$B$100,">"&AF38), IF($N$38=$AF$2,COUNTIF($C$4:$C$100,">="&AE38)-COUNTIF($C$4:$C$100,">"&AF38), IF($N$38=$AG$2,COUNTIF($D$4:$D$100,">="&AE38)-COUNTIF($D$4:$D$100,">"&AF38), IF($N$38=$AH$2,COUNTIF($E$4:$E$100,">="&AE38)-COUNTIF($E$4:$E$100,">"&AF38), IF($N$38=$AI$2,COUNTIF($F$4:$F$100,">="&AE38)-COUNTIF($F$4:$F$100,">"&AF38), IF($N$38=$AJ$2,COUNTIF($G$4:$G$100,">="&AE38)-COUNTIF($G$4:$G$100,">"&AF38), IF($N$38=$AK$2,COUNTIF($H$4:$H$100,">="&AE38)-COUNTIF($H$4:$H$100,">"&AF38), IF($N$38="Sem Uso","")))))))) ->  | AG40: =IF($N$38=$AE$2,COUNTIF($B$4:$B$100,">="&AG38)-COUNTIF($B$4:$B$100,">"&AH38), IF($N$38=$AF$2,COUNTIF($C$4:$C$100,">="&AG38)-COUNTIF($C$4:$C$100,">"&AH38), IF($N$38=$AG$2,COUNTIF($D$4:$D$100,">="&AG38)-COUNTIF($D$4:$D$100,">"&AH38), IF($N$38=$AH$2,COUNTIF($E$4:$E$100,">="&AG38)-COUNTIF($E$4:$E$100,">"&AH38), IF($N$38=$AI$2,COUNTIF($F$4:$F$100,">="&AG38)-COUNTIF($F$4:$F$100,">"&AH38), IF($N$38=$AJ$2,COUNTIF($G$4:$G$100,">="&AG38)-COUNTIF($G$4:$G$100,">"&AH38), IF($N$38=$AK$2,COUNTIF($H$4:$H$100,">="&AG38)-COUNTIF($H$4:$H$100,">"&AH38), IF($N$38="Sem Uso","")))))))) ->  | AH40: =IF($N$38=$AE$2,COUNTIF($B$4:$B$100,">="&AI38)-COUNTIF($B$4:$B$100,">"&AJ38), IF($N$38=$AF$2,COUNTIF($C$4:$C$100,">="&AI38)-COUNTIF($C$4:$C$100,">"&AJ38), IF($N$38=$AG$2,COUNTIF($D$4:$D$100,">="&AI38)-COUNTIF($D$4:$D$100,">"&AJ38), IF($N$38=$AH$2,COUNTIF($E$4:$E$100,">="&AI38)-COUNTIF($E$4:$E$100,">"&AJ38), IF($N$38=$AI$2,COUNTIF($F$4:$F$100,">="&AI38)-COUNTIF($F$4:$F$100,">"&AJ38), IF($N$38=$AJ$2,COUNTIF($G$4:$G$100,">="&AI38)-COUNTIF($G$4:$G$100,">"&AJ38), IF($N$38=$AK$2,COUNTIF($H$4:$H$100,">="&AI38)-COUNTIF($H$4:$H$100,">"&AJ38), IF($N$38="Sem Uso","")))))))) ->  | AI40: =IF($N$38=$AE$2,COUNTIF($B$4:$B$100,">="&AK38)-COUNTIF($B$4:$B$100,">"&AL38), IF($N$38=$AF$2,COUNTIF($C$4:$C$100,">="&AK38)-COUNTIF($C$4:$C$100,">"&AL38), IF($N$38=$AG$2,COUNTIF($D$4:$D$100,">="&AK38)-COUNTIF($D$4:$D$100,">"&AL38), IF($N$38=$AH$2,COUNTIF($E$4:$E$100,">="&AK38)-COUNTIF($E$4:$E$100,">"&AL38), IF($N$38=$AI$2,COUNTIF($F$4:$F$100,">="&AK38)-COUNTIF($F$4:$F$100,">"&AL38), IF($N$38=$AJ$2,COUNTIF($G$4:$G$100,">="&AK38)-COUNTIF($G$4:$G$100,">"&AL38), IF($N$38=$AK$2,COUNTIF($H$4:$H$100,">="&AK38)-COUNTIF($H$4:$H$100,">"&AL38), IF($N$38="Sem Uso","")))))))) ->  | AJ40: =IF($N$38=$AE$2,COUNTIF($B$4:$B$100,">="&AM38)-COUNTIF($B$4:$B$100,">"&AN38), IF($N$38=$AF$2,COUNTIF($C$4:$C$100,">="&AM38)-COUNTIF($C$4:$C$100,">"&AN38), IF($N$38=$AG$2,COUNTIF($D$4:$D$100,">="&AM38)-COUNTIF($D$4:$D$100,">"&AN38), IF($N$38=$AH$2,COUNTIF($E$4:$E$100,">="&AM38)-COUNTIF($E$4:$E$100,">"&AN38), IF($N$38=$AI$2,COUNTIF($F$4:$F$100,">="&AM38)-COUNTIF($F$4:$F$100,">"&AN38), IF($N$38=$AJ$2,COUNTIF($G$4:$G$100,">="&AM38)-COUNTIF($G$4:$G$100,">"&AN38), IF($N$38=$AK$2,COUNTIF($H$4:$H$100,">="&AM38)-COUNTIF($H$4:$H$100,">"&AN38), IF($N$38="Sem Uso","")))))))) ->  | AK40: =IF($N$38=$AE$2,COUNTIF($B$4:$B$100,">="&AO38)-COUNTIF($B$4:$B$100,">"&AP38), IF($N$38=$AF$2,COUNTIF($C$4:$C$100,">="&AO38)-COUNTIF($C$4:$C$100,">"&AP38), IF($N$38=$AG$2,COUNTIF($D$4:$D$100,">="&AO38)-COUNTIF($D$4:$D$100,">"&AP38), IF($N$38=$AH$2,COUNTIF($E$4:$E$100,">="&AO38)-COUNTIF($E$4:$E$100,">"&AP38), IF($N$38=$AI$2,COUNTIF($F$4:$F$100,">="&AO38)-COUNTIF($F$4:$F$100,">"&AP38), IF($N$38=$AJ$2,COUNTIF($G$4:$G$100,">="&AO38)-COUNTIF($G$4:$G$100,">"&AP38), IF($N$38=$AK$2,COUNTIF($H$4:$H$100,">="&AO38)-COUNTIF($H$4:$H$100,">"&AP38), IF($N$38="Sem Uso","")))))))) -> 
F41: 3 | K41: Valor da Aula | N41: =IF(AF47<>0,AF47,"") ->  | U41: Valor da Aula | W41: =IFERROR(IF(N41<=$S$45,0,N41-$S$45),"") -> 0 | X41: 0 | Y41: 0 | Z41: 0 | AA41: 0 | AB41: 0
F42: 2 | K42: Nr. de Aulas | N42: =IF(AF45<>"",AF46,"") ->  | U42: Nr. de Aulas | W42: =N42 ->  | AE42: =IF(N42<>"",N42,"") -> 
F43: 3 | K43: Valor | N43: =IFERROR(N41*N42,"") ->  | U43: Valor | W43: =IFERROR(W41*W42,"") ->  | AF43: =IF($N38<>"Sem Uso",VLOOKUP(N38,Configurações!$C$1:$I$8,2,0),"") ->  | AG43: =IF(N38<>"Sem Uso",VLOOKUP(N38,Configurações!$C$1:$I$8,3,0),"") ->  | AH43: =IF(N38<>"Sem Uso",VLOOKUP(N38,Configurações!$C$1:$I$8,4,0),"") ->  | AI43: =IF(N38<>"Sem Uso",VLOOKUP(N38,Configurações!$C$1:$I$8,5,0),"") ->  | AJ43: =IF(N38<>"Sem Uso",VLOOKUP(N38,Configurações!$C$1:$I$8,6,0),"") ->  | AK43: =IF(N38<>"Sem Uso",VLOOKUP(N38,Configurações!$C$1:$I$8,7,0),"") -> 
F44: 0 | M44: Total de Alunos | Q44: =_xlfn.IFS(N38=$AE$2,$B$102,N38=$AF$2,$C$102,N38=$AG$2,$D$102,N38=$AH$2,$E$102,N38=$AI$2,$F$102,N38=$AJ$2,$G$102,N38=$AK$2,$H$102,N38="Sem Uso","") ->  | V44: Total de Alunos | Z44: =Q44 ->  | AE44: TABELA DE EQUIVALÊNCIA
F45: 3 | M45: Total de Aulas | Q45: =IF(Q44<>"",SUM(AE42:AJ42),"") ->  | R45: Registo | V45: Total de Aulas | Z45: =Q45 ->  | AE45: Nr. Alunos | AF45: =AF43 ->  | AG45: =IF(AG43<>0,AG43,"") ->  | AH45: =IF(AH43<>0,AH43,"") ->  | AI45: =IF(AI43<>0,AI43,"") ->  | AJ45: =IF(AJ43<>0,AJ43,"") ->  | AK45: =IF(AK43<>0,AK43,"") -> 
F46: 1 | M46: Total a Receber | Q46: =IF(Q44<>"",SUM(N43:S43),"") ->  | V46: Total a Receber | Z46: =IF(Z44<>"",SUM(W43:AB43),"") ->  | AE46: Aulas | AF46: =IF(AF45<>"",AF40,"") -> 
F47: 3 | AF47: =IFERROR(VLOOKUP(N38&R38,Configurações!$C$13:$I$47,2,0),"") ->  | AG47: =IFERROR(IF(AG45<>0,VLOOKUP(N38&R38,Configurações!$C$13:$I$47,3,0),""),"") ->  | AH47: =IFERROR(IF(AH45<>0,VLOOKUP(N38&R38,Configurações!$C$13:$I$47,4,0),""),"") ->  | AI47: =IFERROR(IF(AI45<>0,VLOOKUP(N38&R38,Configurações!$C$13:$I$47,5,0),""),"") ->  | AJ47: =IFERROR(IF(AJ45<>0,VLOOKUP(N38&R38,Configurações!$C$13:$I$47,6,0),""),"") ->  | AK47: =IFERROR(IF(AK45<>0,VLOOKUP(N38&R38,Configurações!$C$13:$I$47,7,0),""),"") -> 
F48: 0
F49: 1 | K49: Modalidade | N49: Sem Uso | Q49: Nível | R49: Prof. Especial | AE49: =VLOOKUP(N49,Configurações!$J$1:$V$9,2,0) ->  | AF49: =VLOOKUP(N49,Configurações!$J$1:$V$9,3,0) ->  | AG49: =VLOOKUP(N49,Configurações!$J$1:$V$9,4,0) ->  | AH49: =VLOOKUP(N49,Configurações!$J$1:$V$9,5,0) ->  | AI49: =VLOOKUP(N49,Configurações!$J$1:$V$9,6,0) ->  | AJ49: =VLOOKUP(N49,Configurações!$J$1:$V$9,7,0) ->  | AK49: =VLOOKUP(N49,Configurações!$J$1:$V$9,8,0) ->  | AL49: =VLOOKUP(N49,Configurações!$J$1:$V$9,9,0) ->  | AM49: =VLOOKUP(N49,Configurações!$J$1:$V$9,10,0) ->  | AN49: =VLOOKUP(N49,Configurações!$J$1:$V$9,11,0) ->  | AO49: =VLOOKUP(N49,Configurações!$J$1:$V$9,12,0) ->  | AP49: =VLOOKUP(N49,Configurações!$J$1:$V$9,13,0) -> 
F50: 0 | K50: Academia | U50: Contabilidade | AE50: =IFERROR(VLOOKUP(N49,_xlfn.ANCHORARRAY($AQ$2),2,0),0) -> 0
F51: 1 | K51: Nr. de Alunos | N51: =IF(AF56<>"",AF56,"") ->  | O51: =IF(AG56<>"",AG56,"") ->  | P51: =IF(AH56<>"",AH56,"") ->  | Q51: =IF(AI56<>"",AI56,"") ->  | R51: =IF(AJ56<>"",AJ56,"") ->  | S51: =IF(AK56<>0,AK56,"") ->  | U51: Nr. de Alunos | W51: =N51 ->  | X51: =O51 ->  | AF51: =IF($N$49=$AE$2,COUNTIF($B$4:$B$100,">="&AE49)-COUNTIF($B$4:$B$100,">"&AF49), IF($N$49=$AF$2,COUNTIF($C$4:$C$100,">="&AE49)-COUNTIF($C$4:$C$100,">"&AF49), IF($N$49=$AG$2,COUNTIF($D$4:$D$100,">="&AE49)-COUNTIF($D$4:$D$100,">"&AF49), IF($N$49=$AH$2,COUNTIF($E$4:$E$100,">="&AE49)-COUNTIF($E$4:$E$100,">"&AF49), IF($N$49=$AI$2,COUNTIF($F$4:$F$100,">="&AE49)-COUNTIF($F$4:$F$100,">"&AF49), IF($N$49=$AJ$2,COUNTIF($G$4:$G$100,">="&AE49)-COUNTIF($G$4:$G$100,">"&AF49), IF($N$49=$AK$2,COUNTIF($H$4:$H$100,">="&AE49)-COUNTIF($H$4:$H$100,">"&AF49), IF($N$49="Sem Uso","")))))))) ->  | AG51: =IF($N$49=$AE$2,COUNTIF($B$4:$B$100,">="&AG49)-COUNTIF($B$4:$B$100,">"&AH49), IF($N$49=$AF$2,COUNTIF($C$4:$C$100,">="&AG49)-COUNTIF($C$4:$C$100,">"&AH49), IF($N$49=$AG$2,COUNTIF($D$4:$D$100,">="&AG49)-COUNTIF($D$4:$D$100,">"&AH49), IF($N$49=$AH$2,COUNTIF($E$4:$E$100,">="&AG49)-COUNTIF($E$4:$E$100,">"&AH49), IF($N$49=$AI$2,COUNTIF($F$4:$F$100,">="&AG49)-COUNTIF($F$4:$F$100,">"&AH49), IF($N$49=$AJ$2,COUNTIF($G$4:$G$100,">="&AG49)-COUNTIF($G$4:$G$100,">"&AH49), IF($N$49=$AK$2,COUNTIF($H$4:$H$100,">="&AG49)-COUNTIF($H$4:$H$100,">"&AH49), IF($N$49="Sem Uso","")))))))) ->  | AH51: =IF($N$49=$AE$2,COUNTIF($B$4:$B$100,">="&AI49)-COUNTIF($B$4:$B$100,">"&AJ49), IF($N$49=$AF$2,COUNTIF($C$4:$C$100,">="&AI49)-COUNTIF($C$4:$C$100,">"&AJ49), IF($N$49=$AG$2,COUNTIF($D$4:$D$100,">="&AI49)-COUNTIF($D$4:$D$100,">"&AJ49), IF($N$49=$AH$2,COUNTIF($E$4:$E$100,">="&AI49)-COUNTIF($E$4:$E$100,">"&AJ49), IF($N$49=$AI$2,COUNTIF($F$4:$F$100,">="&AI49)-COUNTIF($F$4:$F$100,">"&AJ49), IF($N$49=$AJ$2,COUNTIF($G$4:$G$100,">="&AI49)-COUNTIF($G$4:$G$100,">"&AJ49), IF($N$49=$AK$2,COUNTIF($H$4:$H$100,">="&AI49)-COUNTIF($H$4:$H$100,">"&AJ49), IF($N$49="Sem Uso","")))))))) ->  | AI51: =IF($N$49=$AE$2,COUNTIF($B$4:$B$100,">="&AK49)-COUNTIF($B$4:$B$100,">"&AL49), IF($N$49=$AF$2,COUNTIF($C$4:$C$100,">="&AK49)-COUNTIF($C$4:$C$100,">"&AL49), IF($N$49=$AG$2,COUNTIF($D$4:$D$100,">="&AK49)-COUNTIF($D$4:$D$100,">"&AL49), IF($N$49=$AH$2,COUNTIF($E$4:$E$100,">="&AK49)-COUNTIF($E$4:$E$100,">"&AL49), IF($N$49=$AI$2,COUNTIF($F$4:$F$100,">="&AK49)-COUNTIF($F$4:$F$100,">"&AL49), IF($N$49=$AJ$2,COUNTIF($G$4:$G$100,">="&AK49)-COUNTIF($G$4:$G$100,">"&AL49), IF($N$49=$AK$2,COUNTIF($H$4:$H$100,">="&AK49)-COUNTIF($H$4:$H$100,">"&AL49), IF($N$49="Sem Uso","")))))))) ->  | AJ51: =IF($N$49=$AE$2,COUNTIF($B$4:$B$100,">="&AM49)-COUNTIF($B$4:$B$100,">"&AN49), IF($N$49=$AF$2,COUNTIF($C$4:$C$100,">="&AM49)-COUNTIF($C$4:$C$100,">"&AN49), IF($N$49=$AG$2,COUNTIF($D$4:$D$100,">="&AM49)-COUNTIF($D$4:$D$100,">"&AN49), IF($N$49=$AH$2,COUNTIF($E$4:$E$100,">="&AM49)-COUNTIF($E$4:$E$100,">"&AN49), IF($N$49=$AI$2,COUNTIF($F$4:$F$100,">="&AM49)-COUNTIF($F$4:$F$100,">"&AN49), IF($N$49=$AJ$2,COUNTIF($G$4:$G$100,">="&AM49)-COUNTIF($G$4:$G$100,">"&AN49), IF($N$49=$AK$2,COUNTIF($H$4:$H$100,">="&AM49)-COUNTIF($H$4:$H$100,">"&AN49), IF($N$49="Sem Uso","")))))))) ->  | AK51: =IF($N$49=$AE$2,COUNTIF($B$4:$B$100,">="&AO49)-COUNTIF($B$4:$B$100,">"&AP49), IF($N$49=$AF$2,COUNTIF($C$4:$C$100,">="&AO49)-COUNTIF($C$4:$C$100,">"&AP49), IF($N$49=$AG$2,COUNTIF($D$4:$D$100,">="&AO49)-COUNTIF($D$4:$D$100,">"&AP49), IF($N$49=$AH$2,COUNTIF($E$4:$E$100,">="&AO49)-COUNTIF($E$4:$E$100,">"&AP49), IF($N$49=$AI$2,COUNTIF($F$4:$F$100,">="&AO49)-COUNTIF($F$4:$F$100,">"&AP49), IF($N$49=$AJ$2,COUNTIF($G$4:$G$100,">="&AO49)-COUNTIF($G$4:$G$100,">"&AP49), IF($N$49=$AK$2,COUNTIF($H$4:$H$100,">="&AO49)-COUNTIF($H$4:$H$100,">"&AP49), IF($N$49="Sem Uso","")))))))) -> 
F52: 2 | K52: Valor da Aula | N52: =IF(AF58<>0,AF58,"") ->  | U52: Valor da Aula | W52: =IFERROR(IF(N52<=$S$56,0,N52-$S$56),"") -> 0 | X52: 0 | Y52: 0 | Z52: 0 | AA52: 0 | AB52: 0
F53: 2 | K53: Nr. de Aulas | N53: =IF(AF56<>"",AF57,"") ->  | U53: Nr. de Aulas | W53: =N53 ->  | AE53: =IF(N53<>"",N53,"") -> 
F54: 2 | K54: Valor | N54: =IFERROR(N52*N53,"") ->  | U54: Valor | W54: =IFERROR(W52*W53,"") ->  | AF54: =IF($N49<>"Sem Uso",VLOOKUP(N49,Configurações!$C$1:$I$8,2,0),"") ->  | AG54: =IF(N49<>"Sem Uso",VLOOKUP(N49,Configurações!$C$1:$I$8,3,0),"") ->  | AH54: =IF(N49<>"Sem Uso",VLOOKUP(N49,Configurações!$C$1:$I$8,4,0),"") ->  | AI54: =IF(N49<>"Sem Uso",VLOOKUP(N49,Configurações!$C$1:$I$8,5,0),"") ->  | AJ54: =IF(N49<>"Sem Uso",VLOOKUP(N49,Configurações!$C$1:$I$8,6,0),"") ->  | AK54: =IF(N49<>"Sem Uso",VLOOKUP(N49,Configurações!$C$1:$I$8,7,0),"") -> 
F55: 0 | M55: Total de Alunos | Q55: =_xlfn.IFS(N49=$AE$2,$B$102,N49=$AF$2,$C$102,N49=$AG$2,$D$102,N49=$AH$2,$E$102,N49=$AI$2,$F$102,N49=$AJ$2,$G$102,N49=$AK$2,$H$102,N49="Sem Uso","") ->  | V55: Total de Alunos | Z55: =Q55 ->  | AE55: TABELA DE EQUIVALÊNCIA
F56: 3 | M56: Total de Aulas | Q56: =IF(Q55<>"",SUM(AE53:AJ53),"") ->  | R56: Registo | V56: Total de Aulas | Z56: =Q56 ->  | AE56: Nr. Alunos | AF56: =AF54 ->  | AG56: =IF(AG54<>0,AG54,"") ->  | AH56: =IF(AH54<>0,AH54,"") ->  | AI56: =IF(AI54<>0,AI54,"") ->  | AJ56: =IF(AJ54<>0,AJ54,"") ->  | AK56: =IF(AK54<>0,AK54,"") -> 
F57: 1 | M57: Total a Receber | Q57: =IF(Q55<>"",SUM(N54:S54),"") ->  | V57: Total a Receber | Z57: =IF(Z55<>"",SUM(W54:AB54),"") ->  | AE57: Aulas | AF57: =IF(AF56<>"",AF51,"") -> 
F58: 0 | AF58: =IFERROR(VLOOKUP(N49&R49,Configurações!$C$13:$I$47,2,0),"") ->  | AG58: =IFERROR(IF(AG56<>0,VLOOKUP(N49&R49,Configurações!$C$13:$I$47,3,0),""),"") ->  | AH58: =IFERROR(IF(AH56<>0,VLOOKUP(N49&R49,Configurações!$C$13:$I$47,4,0),""),"") ->  | AI58: =IFERROR(IF(AI56<>0,VLOOKUP(N49&R49,Configurações!$C$13:$I$47,5,0),""),"") ->  | AJ58: =IFERROR(IF(AJ56<>0,VLOOKUP(N49&R49,Configurações!$C$13:$I$47,6,0),""),"") ->  | AK58: =IFERROR(IF(AK56<>0,VLOOKUP(N49&R49,Configurações!$C$13:$I$47,7,0),""),"") -> 
F59: 1
F60: 2 | K60: Modalidade | N60: Sem Uso | Q60: Nível | R60: Prof. Especial | AE60: =VLOOKUP(N60,Configurações!$J$1:$V$9,2,0) ->  | AF60: =VLOOKUP(N60,Configurações!$J$1:$V$9,3,0) ->  | AG60: =VLOOKUP(N60,Configurações!$J$1:$V$9,4,0) ->  | AH60: =VLOOKUP(N60,Configurações!$J$1:$V$9,5,0) ->  | AI60: =VLOOKUP(N60,Configurações!$J$1:$V$9,6,0) ->  | AJ60: =VLOOKUP(N60,Configurações!$J$1:$V$9,7,0) ->  | AK60: =VLOOKUP(N60,Configurações!$J$1:$V$9,8,0) ->  | AL60: =VLOOKUP(N60,Configurações!$J$1:$V$9,9,0) ->  | AM60: =VLOOKUP(N60,Configurações!$J$1:$V$9,10,0) ->  | AN60: =VLOOKUP(N60,Configurações!$J$1:$V$9,11,0) ->  | AO60: =VLOOKUP(N60,Configurações!$J$1:$V$9,12,0) ->  | AP60: =VLOOKUP(N60,Configurações!$J$1:$V$9,13,0) -> 
F61: 2 | K61: Academia | U61: Contabilidade | AE61: =IFERROR(VLOOKUP(N60,_xlfn.ANCHORARRAY($AQ$2),2,0),0) -> 0
F62: 0 | K62: Nr. de Alunos | N62: =IF(AF67<>"",AF67,"") ->  | O62: =IF(AG67<>"",AG67,"") ->  | P62: =IF(AH67<>"",AH67,"") ->  | Q62: =IF(AI67<>"",AI67,"") ->  | R62: =IF(AJ67<>"",AJ67,"") ->  | S62: =IF(AK67<>0,AK67,"") ->  | U62: Nr. de Alunos | W62: =N62 ->  | X62: =O62 ->  | AF62: =IF($N$60=$AE$2,COUNTIF($B$4:$B$100,">="&AE60)-COUNTIF($B$4:$B$100,">"&AF60), IF($N$60=$AF$2,COUNTIF($C$4:$C$100,">="&AE60)-COUNTIF($C$4:$C$100,">"&AF60), IF($N$60=$AG$2,COUNTIF($D$4:$D$100,">="&AE60)-COUNTIF($D$4:$D$100,">"&AF60), IF($N$60=$AH$2,COUNTIF($E$4:$E$100,">="&AE60)-COUNTIF($E$4:$E$100,">"&AF60), IF($N$60=$AI$2,COUNTIF($F$4:$F$100,">="&AE60)-COUNTIF($F$4:$F$100,">"&AF60), IF($N$60=$AJ$2,COUNTIF($G$4:$G$100,">="&AE60)-COUNTIF($G$4:$G$100,">"&AF60), IF($N$60=$AK$2,COUNTIF($H$4:$H$100,">="&AE60)-COUNTIF($H$4:$H$100,">"&AF60), IF($N$60="Sem Uso","")))))))) ->  | AG62: =IF($N$60=$AE$2,COUNTIF($B$4:$B$100,">="&AG60)-COUNTIF($B$4:$B$100,">"&AH60), IF($N$60=$AF$2,COUNTIF($C$4:$C$100,">="&AG60)-COUNTIF($C$4:$C$100,">"&AH60), IF($N$60=$AG$2,COUNTIF($D$4:$D$100,">="&AG60)-COUNTIF($D$4:$D$100,">"&AH60), IF($N$60=$AH$2,COUNTIF($E$4:$E$100,">="&AG60)-COUNTIF($E$4:$E$100,">"&AH60), IF($N$60=$AI$2,COUNTIF($F$4:$F$100,">="&AG60)-COUNTIF($F$4:$F$100,">"&AH60), IF($N$60=$AJ$2,COUNTIF($G$4:$G$100,">="&AG60)-COUNTIF($G$4:$G$100,">"&AH60), IF($N$60=$AK$2,COUNTIF($H$4:$H$100,">="&AG60)-COUNTIF($H$4:$H$100,">"&AH60), IF($N$60="Sem Uso","")))))))) ->  | AH62: =IF($N$60=$AE$2,COUNTIF($B$4:$B$100,">="&AI60)-COUNTIF($B$4:$B$100,">"&AJ60), IF($N$60=$AF$2,COUNTIF($C$4:$C$100,">="&AI60)-COUNTIF($C$4:$C$100,">"&AJ60), IF($N$60=$AG$2,COUNTIF($D$4:$D$100,">="&AI60)-COUNTIF($D$4:$D$100,">"&AJ60), IF($N$60=$AH$2,COUNTIF($E$4:$E$100,">="&AI60)-COUNTIF($E$4:$E$100,">"&AJ60), IF($N$60=$AI$2,COUNTIF($F$4:$F$100,">="&AI60)-COUNTIF($F$4:$F$100,">"&AJ60), IF($N$60=$AJ$2,COUNTIF($G$4:$G$100,">="&AI60)-COUNTIF($G$4:$G$100,">"&AJ60), IF($N$60=$AK$2,COUNTIF($H$4:$H$100,">="&AI60)-COUNTIF($H$4:$H$100,">"&AJ60), IF($N$60="Sem Uso","")))))))) ->  | AI62: =IF($N$60=$AE$2,COUNTIF($B$4:$B$100,">="&AK60)-COUNTIF($B$4:$B$100,">"&AL60), IF($N$60=$AF$2,COUNTIF($C$4:$C$100,">="&AK60)-COUNTIF($C$4:$C$100,">"&AL60), IF($N$60=$AG$2,COUNTIF($D$4:$D$100,">="&AK60)-COUNTIF($D$4:$D$100,">"&AL60), IF($N$60=$AH$2,COUNTIF($E$4:$E$100,">="&AK60)-COUNTIF($E$4:$E$100,">"&AL60), IF($N$60=$AI$2,COUNTIF($F$4:$F$100,">="&AK60)-COUNTIF($F$4:$F$100,">"&AL60), IF($N$60=$AJ$2,COUNTIF($G$4:$G$100,">="&AK60)-COUNTIF($G$4:$G$100,">"&AL60), IF($N$60=$AK$2,COUNTIF($H$4:$H$100,">="&AK60)-COUNTIF($H$4:$H$100,">"&AL60), IF($N$60="Sem Uso","")))))))) ->  | AJ62: =IF($N$60=$AE$2,COUNTIF($B$4:$B$100,">="&AM60)-COUNTIF($B$4:$B$100,">"&AN60), IF($N$60=$AF$2,COUNTIF($C$4:$C$100,">="&AM60)-COUNTIF($C$4:$C$100,">"&AN60), IF($N$60=$AG$2,COUNTIF($D$4:$D$100,">="&AM60)-COUNTIF($D$4:$D$100,">"&AN60), IF($N$60=$AH$2,COUNTIF($E$4:$E$100,">="&AM60)-COUNTIF($E$4:$E$100,">"&AN60), IF($N$60=$AI$2,COUNTIF($F$4:$F$100,">="&AM60)-COUNTIF($F$4:$F$100,">"&AN60), IF($N$60=$AJ$2,COUNTIF($G$4:$G$100,">="&AM60)-COUNTIF($G$4:$G$100,">"&AN60), IF($N$60=$AK$2,COUNTIF($H$4:$H$100,">="&AM60)-COUNTIF($H$4:$H$100,">"&AN60), IF($N$60="Sem Uso","")))))))) ->  | AK62: =IF($N$60=$AE$2,COUNTIF($B$4:$B$100,">="&AO60)-COUNTIF($B$4:$B$100,">"&AP60), IF($N$60=$AF$2,COUNTIF($C$4:$C$100,">="&AO60)-COUNTIF($C$4:$C$100,">"&AP60), IF($N$60=$AG$2,COUNTIF($D$4:$D$100,">="&AO60)-COUNTIF($D$4:$D$100,">"&AP60), IF($N$60=$AH$2,COUNTIF($E$4:$E$100,">="&AO60)-COUNTIF($E$4:$E$100,">"&AP60), IF($N$60=$AI$2,COUNTIF($F$4:$F$100,">="&AO60)-COUNTIF($F$4:$F$100,">"&AP60), IF($N$60=$AJ$2,COUNTIF($G$4:$G$100,">="&AO60)-COUNTIF($G$4:$G$100,">"&AP60), IF($N$60=$AK$2,COUNTIF($H$4:$H$100,">="&AO60)-COUNTIF($H$4:$H$100,">"&AP60), IF($N$60="Sem Uso","")))))))) -> 
F63: 0 | K63: Valor da Aula | N63: =IF(AF69<>0,AF69,"") ->  | U63: Valor da Aula | W63: =IFERROR(IF(N63<=$S$67,0,N63-$S$67),"") -> 0 | X63: 0 | Y63: 0 | Z63: 0 | AA63: 0 | AB63: 0
F64: 0 | K64: Nr. de Aulas | N64: =IF(AF67<>"",AF68,"") ->  | U64: Nr. de Aulas | W64: =N64 ->  | AE64: =IF(N64<>"",N64,"") -> 
K65: Valor | N65: =IFERROR(N63*N64,"") ->  | U65: Valor | W65: =IFERROR(W63*W64,"") ->  | AF65: =IF($N60<>"Sem Uso",VLOOKUP(N60,Configurações!$C$1:$I$8,2,0),"") ->  | AG65: =IF(N60<>"Sem Uso",VLOOKUP(N60,Configurações!$C$1:$I$8,3,0),"") ->  | AH65: =IF(N60<>"Sem Uso",VLOOKUP(N60,Configurações!$C$1:$I$8,4,0),"") ->  | AI65: =IF(N60<>"Sem Uso",VLOOKUP(N60,Configurações!$C$1:$I$8,5,0),"") ->  | AJ65: =IF(N60<>"Sem Uso",VLOOKUP(N60,Configurações!$C$1:$I$8,6,0),"") ->  | AK65: =IF(N60<>"Sem Uso",VLOOKUP(N60,Configurações!$C$1:$I$8,7,0),"") -> 
M66: Total de Alunos | Q66: =_xlfn.IFS(N60=$AE$2,$B$102,N60=$AF$2,$C$102,N60=$AG$2,$D$102,N60=$AH$2,$E$102,N60=$AI$2,$F$102,N60=$AJ$2,$G$102,N60=$AK$2,$H$102,N60="Sem Uso","") ->  | V66: Total de Alunos | Z66: =Q66 ->  | AE66: TABELA DE EQUIVALÊNCIA
M67: Total de Aulas | Q67: =IF(Q66<>"",SUM(AE64:AJ64),"") ->  | R67: Registo | V67: Total de Aulas | Z67: =Q67 ->  | AE67: Nr. Alunos | AF67: =AF65 ->  | AG67: =IF(AG65<>0,AG65,"") ->  | AH67: =IF(AH65<>0,AH65,"") ->  | AI67: =IF(AI65<>0,AI65,"") ->  | AJ67: =IF(AJ65<>0,AJ65,"") ->  | AK67: =IF(AK65<>0,AK65,"") -> 
M68: Total a Receber | Q68: =IF(Q66<>"",SUM(N65:S65),"") ->  | V68: Total a Receber | Z68: =IF(Z66<>"",SUM(W65:AB65),"") ->  | AE68: Aulas | AF68: =IF(AF67<>"",AF62,"") -> 
AF69: =IFERROR(VLOOKUP(N60&R60,Configurações!$C$13:$I$47,2,0),"") ->  | AG69: =IFERROR(IF(AG67<>0,VLOOKUP(N60&R60,Configurações!$C$13:$I$47,3,0),""),"") ->  | AH69: =IFERROR(IF(AH67<>0,VLOOKUP(N60&R60,Configurações!$C$13:$I$47,4,0),""),"") ->  | AI69: =IFERROR(IF(AI67<>0,VLOOKUP(N60&R60,Configurações!$C$13:$I$47,5,0),""),"") ->  | AJ69: =IFERROR(IF(AJ67<>0,VLOOKUP(N60&R60,Configurações!$C$13:$I$47,6,0),""),"") ->  | AK69: =IFERROR(IF(AK67<>0,VLOOKUP(N60&R60,Configurações!$C$13:$I$47,7,0),""),"") -> 
K71: Modalidade | N71: Sem Uso | Q71: Nível | R71: Prof. Especial | AE71: =VLOOKUP(N71,Configurações!$J$1:$V$9,2,0) ->  | AF71: =VLOOKUP(N71,Configurações!$J$1:$V$9,3,0) ->  | AG71: =VLOOKUP(N71,Configurações!$J$1:$V$9,4,0) ->  | AH71: =VLOOKUP(N71,Configurações!$J$1:$V$9,5,0) ->  | AI71: =VLOOKUP(N71,Configurações!$J$1:$V$9,6,0) ->  | AJ71: =VLOOKUP(N71,Configurações!$J$1:$V$9,7,0) ->  | AK71: =VLOOKUP(N71,Configurações!$J$1:$V$9,8,0) ->  | AL71: =VLOOKUP(N71,Configurações!$J$1:$V$9,9,0) ->  | AM71: =VLOOKUP(N71,Configurações!$J$1:$V$9,10,0) ->  | AN71: =VLOOKUP(N71,Configurações!$J$1:$V$9,11,0) ->  | AO71: =VLOOKUP(N71,Configurações!$J$1:$V$9,12,0) ->  | AP71: =VLOOKUP(N71,Configurações!$J$1:$V$9,13,0) -> 
K72: Academia | U72: Contabilidade | AE72: =IFERROR(VLOOKUP(N71,_xlfn.ANCHORARRAY($AQ$2),2,0),0) -> 0
K73: Nr. de Alunos | N73: =IF(AF78<>"",AF78,"") ->  | O73: =IF(AG78<>"",AG78,"") ->  | P73: =IF(AH78<>"",AH78,"") ->  | Q73: =IF(AI78<>"",AI78,"") ->  | R73: =IF(AJ78<>"",AJ78,"") ->  | S73: =IF(AK78<>0,AK78,"") ->  | U73: Nr. de Alunos | W73: =N73 ->  | AF73: =IF($N$71=$AE$2,COUNTIF($B$4:$B$100,">="&AE71)-COUNTIF($B$4:$B$100,">"&AF71), IF($N$71=$AF$2,COUNTIF($C$4:$C$100,">="&AE71)-COUNTIF($C$4:$C$100,">"&AF71), IF($N$71=$AG$2,COUNTIF($D$4:$D$100,">="&AE71)-COUNTIF($D$4:$D$100,">"&AF71), IF($N$71=$AH$2,COUNTIF($E$4:$E$100,">="&AE71)-COUNTIF($E$4:$E$100,">"&AF71), IF($N$71=$AI$2,COUNTIF($F$4:$F$100,">="&AE71)-COUNTIF($F$4:$F$100,">"&AF71), IF($N$71=$AJ$2,COUNTIF($G$4:$G$100,">="&AE71)-COUNTIF($G$4:$G$100,">"&AF71), IF($N$71=$AK$2,COUNTIF($H$4:$H$100,">="&AE71)-COUNTIF($H$4:$H$100,">"&AF71), IF($N$71="Sem Uso","")))))))) ->  | AG73: =IF($N$71=$AE$2,COUNTIF($B$4:$B$100,">="&AG71)-COUNTIF($B$4:$B$100,">"&AH71), IF($N$71=$AF$2,COUNTIF($C$4:$C$100,">="&AG71)-COUNTIF($C$4:$C$100,">"&AH71), IF($N$71=$AG$2,COUNTIF($D$4:$D$100,">="&AG71)-COUNTIF($D$4:$D$100,">"&AH71), IF($N$71=$AH$2,COUNTIF($E$4:$E$100,">="&AG71)-COUNTIF($E$4:$E$100,">"&AH71), IF($N$71=$AI$2,COUNTIF($F$4:$F$100,">="&AG71)-COUNTIF($F$4:$F$100,">"&AH71), IF($N$71=$AJ$2,COUNTIF($G$4:$G$100,">="&AG71)-COUNTIF($G$4:$G$100,">"&AH71), IF($N$71=$AK$2,COUNTIF($H$4:$H$100,">="&AG71)-COUNTIF($H$4:$H$100,">"&AH71), IF($N$71="Sem Uso","")))))))) ->  | AH73: =IF($N$71=$AE$2,COUNTIF($B$4:$B$100,">="&AI71)-COUNTIF($B$4:$B$100,">"&AJ71), IF($N$71=$AF$2,COUNTIF($C$4:$C$100,">="&AI71)-COUNTIF($C$4:$C$100,">"&AJ71), IF($N$71=$AG$2,COUNTIF($D$4:$D$100,">="&AI71)-COUNTIF($D$4:$D$100,">"&AJ71), IF($N$71=$AH$2,COUNTIF($E$4:$E$100,">="&AI71)-COUNTIF($E$4:$E$100,">"&AJ71), IF($N$71=$AI$2,COUNTIF($F$4:$F$100,">="&AI71)-COUNTIF($F$4:$F$100,">"&AJ71), IF($N$71=$AJ$2,COUNTIF($G$4:$G$100,">="&AI71)-COUNTIF($G$4:$G$100,">"&AJ71), IF($N$71=$AK$2,COUNTIF($H$4:$H$100,">="&AI71)-COUNTIF($H$4:$H$100,">"&AJ71), IF($N$71="Sem Uso","")))))))) ->  | AI73: =IF($N$71=$AE$2,COUNTIF($B$4:$B$100,">="&AK71)-COUNTIF($B$4:$B$100,">"&AL71), IF($N$71=$AF$2,COUNTIF($C$4:$C$100,">="&AK71)-COUNTIF($C$4:$C$100,">"&AL71), IF($N$71=$AG$2,COUNTIF($D$4:$D$100,">="&AK71)-COUNTIF($D$4:$D$100,">"&AL71), IF($N$71=$AH$2,COUNTIF($E$4:$E$100,">="&AK71)-COUNTIF($E$4:$E$100,">"&AL71), IF($N$71=$AI$2,COUNTIF($F$4:$F$100,">="&AK71)-COUNTIF($F$4:$F$100,">"&AL71), IF($N$71=$AJ$2,COUNTIF($G$4:$G$100,">="&AK71)-COUNTIF($G$4:$G$100,">"&AL71), IF($N$71=$AK$2,COUNTIF($H$4:$H$100,">="&AK71)-COUNTIF($H$4:$H$100,">"&AL71), IF($N$71="Sem Uso","")))))))) ->  | AJ73: =IF($N$71=$AE$2,COUNTIF($B$4:$B$100,">="&AM71)-COUNTIF($B$4:$B$100,">"&AN71), IF($N$71=$AF$2,COUNTIF($C$4:$C$100,">="&AM71)-COUNTIF($C$4:$C$100,">"&AN71), IF($N$71=$AG$2,COUNTIF($D$4:$D$100,">="&AM71)-COUNTIF($D$4:$D$100,">"&AN71), IF($N$71=$AH$2,COUNTIF($E$4:$E$100,">="&AM71)-COUNTIF($E$4:$E$100,">"&AN71), IF($N$71=$AI$2,COUNTIF($F$4:$F$100,">="&AM71)-COUNTIF($F$4:$F$100,">"&AN71), IF($N$71=$AJ$2,COUNTIF($G$4:$G$100,">="&AM71)-COUNTIF($G$4:$G$100,">"&AN71), IF($N$71=$AK$2,COUNTIF($H$4:$H$100,">="&AM71)-COUNTIF($H$4:$H$100,">"&AN71), IF($N$71="Sem Uso","")))))))) ->  | AK73: =IF($N$71=$AE$2,COUNTIF($B$4:$B$100,">="&AO71)-COUNTIF($B$4:$B$100,">"&AP71), IF($N$71=$AF$2,COUNTIF($C$4:$C$100,">="&AO71)-COUNTIF($C$4:$C$100,">"&AP71), IF($N$71=$AG$2,COUNTIF($D$4:$D$100,">="&AO71)-COUNTIF($D$4:$D$100,">"&AP71), IF($N$71=$AH$2,COUNTIF($E$4:$E$100,">="&AO71)-COUNTIF($E$4:$E$100,">"&AP71), IF($N$71=$AI$2,COUNTIF($F$4:$F$100,">="&AO71)-COUNTIF($F$4:$F$100,">"&AP71), IF($N$71=$AJ$2,COUNTIF($G$4:$G$100,">="&AO71)-COUNTIF($G$4:$G$100,">"&AP71), IF($N$71=$AK$2,COUNTIF($H$4:$H$100,">="&AO71)-COUNTIF($H$4:$H$100,">"&AP71), IF($N$71="Sem Uso","")))))))) -> 
K74: Valor da Aula | N74: =IF(AF80<>0,AF80,"") ->  | U74: Valor da Aula | W74: =IFERROR(IF(N74<=$S$78,0,N74-$S$78),"") -> 0 | X74: 0 | Y74: 0 | Z74: 0 | AA74: 0 | AB74: 0
K75: Nr. de Aulas | N75: =IF(AF78<>"",AF79,"") ->  | U75: Nr. de Aulas | W75: =N75 ->  | AE75: =IF(N75<>"",N75,"") -> 
K76: Valor | N76: =IFERROR(N74*N75,"") ->  | U76: Valor | W76: =IFERROR(W74*W75,"") ->  | AF76: =IF($N71<>"Sem Uso",VLOOKUP(N71,Configurações!$C$1:$I$8,2,0),"") ->  | AG76: =IF(N71<>"Sem Uso",VLOOKUP(N71,Configurações!$C$1:$I$8,3,0),"") ->  | AH76: =IF(N71<>"Sem Uso",VLOOKUP(N71,Configurações!$C$1:$I$8,4,0),"") ->  | AI76: =IF(N71<>"Sem Uso",VLOOKUP(N71,Configurações!$C$1:$I$8,5,0),"") ->  | AJ76: =IF(N71<>"Sem Uso",VLOOKUP(N71,Configurações!$C$1:$I$8,6,0),"") ->  | AK76: =IF(N71<>"Sem Uso",VLOOKUP(N71,Configurações!$C$1:$I$8,7,0),"") -> 
M77: Total de Alunos | Q77: =_xlfn.IFS(N71=$AE$2,$B$102,N71=$AF$2,$C$102,N71=$AG$2,$D$102,N71=$AH$2,$E$102,N71=$AI$2,$F$102,N71=$AJ$2,$G$102,N71=$AK$2,$H$102,N71="Sem Uso","") ->  | V77: Total de Alunos | Z77: =Q77 ->  | AE77: TABELA DE EQUIVALÊNCIA
M78: Total de Aulas | Q78: =IF(Q77<>"",SUM(AE75:AJ75),"") ->  | R78: Registo | V78: Total de Aulas | Z78: =Q78 ->  | AE78: Nr. Alunos | AF78: =AF76 ->  | AG78: =IF(AG76<>0,AG76,"") ->  | AH78: =IF(AH76<>0,AH76,"") ->  | AI78: =IF(AI76<>0,AI76,"") ->  | AJ78: =IF(AJ76<>0,AJ76,"") ->  | AK78: =IF(AK76<>0,AK76,"") -> 
M79: Total a Receber | Q79: =IF(Q77<>"",SUM(N76:S76),"") ->  | V79: Total a Receber | Z79: =IF(Z77<>"",SUM(W76:AB76),"") ->  | AE79: Aulas | AF79: =IF(AF78<>"",AF73,"") -> 
AF80: =IFERROR(VLOOKUP(N71&R71,Configurações!$C$13:$I$47,2,0),"") ->  | AG80: =IFERROR(IF(AG78<>0,VLOOKUP(N71&R71,Configurações!$C$13:$I$47,3,0),""),"") ->  | AH80: =IFERROR(IF(AH78<>0,VLOOKUP(N71&R71,Configurações!$C$13:$I$47,4,0),""),"") ->  | AI80: =IFERROR(IF(AI78<>0,VLOOKUP(N71&R71,Configurações!$C$13:$I$47,5,0),""),"") ->  | AJ80: =IFERROR(IF(AJ78<>0,VLOOKUP(N71&R71,Configurações!$C$13:$I$47,6,0),""),"") ->  | AK80: =IFERROR(IF(AK78<>0,VLOOKUP(N71&R71,Configurações!$C$13:$I$47,7,0),""),"") -> 
K82: Modalidade | N82: Sem Uso | Q82: Nível | R82: Prof. Especial | AE82: =VLOOKUP(N82,Configurações!$J$1:$V$9,2,0) ->  | AF82: =VLOOKUP(N82,Configurações!$J$1:$V$9,3,0) ->  | AG82: =VLOOKUP(N82,Configurações!$J$1:$V$9,4,0) ->  | AH82: =VLOOKUP(N82,Configurações!$J$1:$V$9,5,0) ->  | AI82: =VLOOKUP(N82,Configurações!$J$1:$V$9,6,0) ->  | AJ82: =VLOOKUP(N82,Configurações!$J$1:$V$9,7,0) ->  | AK82: =VLOOKUP(N82,Configurações!$J$1:$V$9,8,0) ->  | AL82: =VLOOKUP(N82,Configurações!$J$1:$V$9,9,0) ->  | AM82: =VLOOKUP(N82,Configurações!$J$1:$V$9,10,0) ->  | AN82: =VLOOKUP(N82,Configurações!$J$1:$V$9,11,0) ->  | AO82: =VLOOKUP(N82,Configurações!$J$1:$V$9,12,0) ->  | AP82: =VLOOKUP(N82,Configurações!$J$1:$V$9,13,0) -> 
K83: Academia | U83: Contabilidade | AE83: =IFERROR(VLOOKUP(N82,_xlfn.ANCHORARRAY($AQ$2),2,0),0) -> 0
K84: Nr. de Alunos | N84: =IF(AF89<>"",AF89,"") ->  | O84: =IF(AG89<>"",AG89,"") ->  | P84: =IF(AH89<>"",AH89,"") ->  | Q84: =IF(AI89<>"",AI89,"") ->  | R84: =IF(AJ89<>"",AJ89,"") ->  | S84: =IF(AK89<>0,AK89,"") ->  | U84: Nr. de Alunos | W84: =N84 ->  | X84: =O84 ->  | AF84: =IF($N$82=$AE$2,COUNTIF($B$4:$B$100,">="&AE82)-COUNTIF($B$4:$B$100,">"&AF82), IF($N$82=$AF$2,COUNTIF($C$4:$C$100,">="&AE82)-COUNTIF($C$4:$C$100,">"&AF82), IF($N$82=$AG$2,COUNTIF($D$4:$D$100,">="&AE82)-COUNTIF($D$4:$D$100,">"&AF82), IF($N$82=$AH$2,COUNTIF($E$4:$E$100,">="&AE82)-COUNTIF($E$4:$E$100,">"&AF82), IF($N$82=$AI$2,COUNTIF($F$4:$F$100,">="&AE82)-COUNTIF($F$4:$F$100,">"&AF82), IF($N$82=$AJ$2,COUNTIF($G$4:$G$100,">="&AE82)-COUNTIF($G$4:$G$100,">"&AF82), IF($N$82=$AK$2,COUNTIF($H$4:$H$100,">="&AE82)-COUNTIF($H$4:$H$100,">"&AF82), IF($N$82="Sem Uso","")))))))) ->  | AG84: =IF($N$82=$AE$2,COUNTIF($B$4:$B$100,">="&AG82)-COUNTIF($B$4:$B$100,">"&AH82), IF($N$82=$AF$2,COUNTIF($C$4:$C$100,">="&AG82)-COUNTIF($C$4:$C$100,">"&AH82), IF($N$82=$AG$2,COUNTIF($D$4:$D$100,">="&AG82)-COUNTIF($D$4:$D$100,">"&AH82), IF($N$82=$AH$2,COUNTIF($E$4:$E$100,">="&AG82)-COUNTIF($E$4:$E$100,">"&AH82), IF($N$82=$AI$2,COUNTIF($F$4:$F$100,">="&AG82)-COUNTIF($F$4:$F$100,">"&AH82), IF($N$82=$AJ$2,COUNTIF($G$4:$G$100,">="&AG82)-COUNTIF($G$4:$G$100,">"&AH82), IF($N$82=$AK$2,COUNTIF($H$4:$H$100,">="&AG82)-COUNTIF($H$4:$H$100,">"&AH82), IF($N$82="Sem Uso","")))))))) ->  | AH84: =IF($N$82=$AE$2,COUNTIF($B$4:$B$100,">="&AI82)-COUNTIF($B$4:$B$100,">"&AJ82), IF($N$82=$AF$2,COUNTIF($C$4:$C$100,">="&AI82)-COUNTIF($C$4:$C$100,">"&AJ82), IF($N$82=$AG$2,COUNTIF($D$4:$D$100,">="&AI82)-COUNTIF($D$4:$D$100,">"&AJ82), IF($N$82=$AH$2,COUNTIF($E$4:$E$100,">="&AI82)-COUNTIF($E$4:$E$100,">"&AJ82), IF($N$82=$AI$2,COUNTIF($F$4:$F$100,">="&AI82)-COUNTIF($F$4:$F$100,">"&AJ82), IF($N$82=$AJ$2,COUNTIF($G$4:$G$100,">="&AI82)-COUNTIF($G$4:$G$100,">"&AJ82), IF($N$82=$AK$2,COUNTIF($H$4:$H$100,">="&AI82)-COUNTIF($H$4:$H$100,">"&AJ82), IF($N$82="Sem Uso","")))))))) ->  | AI84: =IF($N$82=$AE$2,COUNTIF($B$4:$B$100,">="&AK82)-COUNTIF($B$4:$B$100,">"&AL82), IF($N$82=$AF$2,COUNTIF($C$4:$C$100,">="&AK82)-COUNTIF($C$4:$C$100,">"&AL82), IF($N$82=$AG$2,COUNTIF($D$4:$D$100,">="&AK82)-COUNTIF($D$4:$D$100,">"&AL82), IF($N$82=$AH$2,COUNTIF($E$4:$E$100,">="&AK82)-COUNTIF($E$4:$E$100,">"&AL82), IF($N$82=$AI$2,COUNTIF($F$4:$F$100,">="&AK82)-COUNTIF($F$4:$F$100,">"&AL82), IF($N$82=$AJ$2,COUNTIF($G$4:$G$100,">="&AK82)-COUNTIF($G$4:$G$100,">"&AL82), IF($N$82=$AK$2,COUNTIF($H$4:$H$100,">="&AK82)-COUNTIF($H$4:$H$100,">"&AL82), IF($N$82="Sem Uso","")))))))) ->  | AJ84: =IF($N$82=$AE$2,COUNTIF($B$4:$B$100,">="&AM82)-COUNTIF($B$4:$B$100,">"&AN82), IF($N$82=$AF$2,COUNTIF($C$4:$C$100,">="&AM82)-COUNTIF($C$4:$C$100,">"&AN82), IF($N$82=$AG$2,COUNTIF($D$4:$D$100,">="&AM82)-COUNTIF($D$4:$D$100,">"&AN82), IF($N$82=$AH$2,COUNTIF($E$4:$E$100,">="&AM82)-COUNTIF($E$4:$E$100,">"&AN82), IF($N$82=$AI$2,COUNTIF($F$4:$F$100,">="&AM82)-COUNTIF($F$4:$F$100,">"&AN82), IF($N$82=$AJ$2,COUNTIF($G$4:$G$100,">="&AM82)-COUNTIF($G$4:$G$100,">"&AN82), IF($N$82=$AK$2,COUNTIF($H$4:$H$100,">="&AM82)-COUNTIF($H$4:$H$100,">"&AN82), IF($N$82="Sem Uso","")))))))) ->  | AK84: =IF($N$82=$AE$2,COUNTIF($B$4:$B$100,">="&AO82)-COUNTIF($B$4:$B$100,">"&AP82), IF($N$82=$AF$2,COUNTIF($C$4:$C$100,">="&AO82)-COUNTIF($C$4:$C$100,">"&AP82), IF($N$82=$AG$2,COUNTIF($D$4:$D$100,">="&AO82)-COUNTIF($D$4:$D$100,">"&AP82), IF($N$82=$AH$2,COUNTIF($E$4:$E$100,">="&AO82)-COUNTIF($E$4:$E$100,">"&AP82), IF($N$82=$AI$2,COUNTIF($F$4:$F$100,">="&AO82)-COUNTIF($F$4:$F$100,">"&AP82), IF($N$82=$AJ$2,COUNTIF($G$4:$G$100,">="&AO82)-COUNTIF($G$4:$G$100,">"&AP82), IF($N$82=$AK$2,COUNTIF($H$4:$H$100,">="&AO82)-COUNTIF($H$4:$H$100,">"&AP82), IF($N$82="Sem Uso","")))))))) -> 
K85: Valor da Aula | N85: =IF(AF91<>0,AF91,"") ->  | U85: Valor da Aula | W85: =IFERROR(IF(N85<=$S$89,0,N85-$S$89),"") -> 0 | X85: 0 | Y85: 0 | Z85: 0 | AA85: 0 | AB85: 0
K86: Nr. de Aulas | N86: =IF(AF89<>"",AF90,"") ->  | U86: Nr. de Aulas | W86: =N86 ->  | AE86: =IF(N86<>"",N86,"") -> 
K87: Valor | N87: =IFERROR(N85*N86,"") ->  | U87: Valor | W87: =IFERROR(W85*W86,"") ->  | AF87: =IF($N82<>"Sem Uso",VLOOKUP(N82,Configurações!$C$1:$I$8,2,0),"") ->  | AG87: =IF(N82<>"Sem Uso",VLOOKUP(N82,Configurações!$C$1:$I$8,3,0),"") ->  | AH87: =IF(N82<>"Sem Uso",VLOOKUP(N82,Configurações!$C$1:$I$8,4,0),"") ->  | AI87: =IF(N82<>"Sem Uso",VLOOKUP(N82,Configurações!$C$1:$I$8,5,0),"") ->  | AJ87: =IF(N82<>"Sem Uso",VLOOKUP(N82,Configurações!$C$1:$I$8,6,0),"") ->  | AK87: =IF(N82<>"Sem Uso",VLOOKUP(N82,Configurações!$C$1:$I$8,7,0),"") -> 
M88: Total de Alunos | Q88: =_xlfn.IFS(N82=$AE$2,$B$102,N82=$AF$2,$C$102,N82=$AG$2,$D$102,N82=$AH$2,$E$102,N82=$AI$2,$F$102,N82=$AJ$2,$G$102,N82=$AK$2,$H$102,N82="Sem Uso","") ->  | V88: Total de Alunos | Z88: =Q88 ->  | AE88: TABELA DE EQUIVALÊNCIA
M89: Total de Aulas | Q89: =IF(Q88<>"",SUM(AE86:AJ86),"") ->  | R89: Registo | V89: Total de Aulas | Z89: =Q89 ->  | AE89: Nr. Alunos | AF89: =AF87 ->  | AG89: =IF(AG87<>0,AG87,"") ->  | AH89: =IF(AH87<>0,AH87,"") ->  | AI89: =IF(AI87<>0,AI87,"") ->  | AJ89: =IF(AJ87<>0,AJ87,"") ->  | AK89: =IF(AK87<>0,AK87,"") -> 
M90: Total a Receber | Q90: =IF(Q88<>"",SUM(N87:S87),"") ->  | V90: Total a Receber | Z90: =IF(Z88<>"",SUM(W87:AB87),"") ->  | AE90: Aulas | AF90: =IF(AF89<>"",AF84,"") -> 
AF91: =IFERROR(VLOOKUP(N82&R82,Configurações!$C$13:$I$47,2,0),"") ->  | AG91: =IFERROR(IF(AG89<>0,VLOOKUP(N82&R82,Configurações!$C$13:$I$47,3,0),""),"") ->  | AH91: =IFERROR(IF(AH89<>0,VLOOKUP(N82&R82,Configurações!$C$13:$I$47,4,0),""),"") ->  | AI91: =IFERROR(IF(AI89<>0,VLOOKUP(N82&R82,Configurações!$C$13:$I$47,5,0),""),"") ->  | AJ91: =IFERROR(IF(AJ89<>0,VLOOKUP(N82&R82,Configurações!$C$13:$I$47,6,0),""),"") ->  | AK91: =IFERROR(IF(AK89<>0,VLOOKUP(N82&R82,Configurações!$C$13:$I$47,7,0),""),"") -> 
B102: =SUM($B$4:$B$100) -> 0 | C102: =SUM($C$4:$C$100) -> 67 | D102: =SUM($D$4:$D$100) -> 0 | E102: =SUM($E$4:$E$100) -> 0 | F102: =SUM($F$4:$F$100) -> 113 | G102: =SUM($G$4:$G$100) -> 0 | H102: =SUM($H$4:$H$100) -> 0

Sheet Vinícius Braga de Oliveira (hidden)
AT1: Valores | AY1: Aulas | BD1: Alunos
B2: Nat. Adulta | C2: Nat. Bebê | D2: Aprend. A | E2: Aprend. B | F2: Adaptação | G2: Iniciação | H2: Hidrogin. | J2: Professor(a) | M2: =AE5 -> Vinícius Braga de Oliveira | X2: Referência | Z2: 2025-07-01 | AE2: Natação Adulta | AF2: Natação Bebê | AG2: Aprendizagem A | AH2: Aprendizagem B | AI2: Adaptação | AJ2: Iniciação | AK2: Hidroginástica | AQ2: =TRANSPOSE(AE2:AK3) -> Natação Adulta | AR2: 58 | AT2: TOT NA | AU2: TOT BB | AV2: TOT IN | AW2: TOT HI | AY2: TOT NA | AZ2: TOT BB | BA2: TOT IN | BB2: TOT HI | BD2: TOT NA | BE2: TOT BB | BF2: TOT IN | BG2: TOT HI
AE3: =B102 -> 58 | AF3: 0 | AG3: 10 | AH3: 19 | AI3: 0 | AJ3: 0 | AK3: 30 | AQ3: Natação Bebê | AR3: 0
B4: 2 | D4: 0 | E4: 5 | H4: 8 | T4: Salário Bruto | W4: =R12+V11+Y11 -> 722.56 | AE4: =CELL("nome.arquivo",AE5) -> C:\Users\SAMSUNG\Downloads\[Aulas de Julho - NOVA.xlsm]Vinícius Braga de Oliveira | AQ4: Aprendizagem A | AR4: 10 | AT4: =IF($N$16="Natação Adulta",$Q$24,0) -> 460.11 | AU4: =IF($N$16="Natação Bebê",$Q$24,0) -> 0 | AV4: =IF(AND($N$16<>"Natação Adulta",$N$16<>"Natação Bebê",$N$16<>"Hidroginástica"),$Q$24,0) -> 0 | AW4: =IF($N$16="Hidroginástica",$Q$24,0) -> 0 | AY4: =IF($N$16="Natação Adulta",$Q$23,0) -> 22 | AZ4: =IF($N$16="Natação Bebê",$Q$23,0) -> 0 | BA4: =IF(AND($N$16<>"Natação Adulta",$N$16<>"Natação Bebê",$N$16<>"Hidroginástica"),$Q$23,0) -> 0 | BB4: =IF($N$16="Hidroginástica",$Q$23,0) -> 0 | BD4: =IF($N$16="Natação Adulta",$Q$22,0) -> 58 | BE4: =IF($N$16="Natação Bebê",$Q$22,0) -> 0 | BF4: =IF(AND($N$16<>"Natação Adulta",$N$16<>"Natação Bebê",$N$16<>"Hidroginástica"),$Q$22,0) -> 0 | BG4: =IF($N$16="Hidroginástica",$Q$22,0) -> 0
B5: 4 | D5: 4 | E5: 7 | H5: 5 | J5: Total de Alunos | N5: =R10+V9+Y9 -> 117 | P5: Total de Aulas | R5: =R11+V10+Y10 -> 33 | T5: INSS Total | W5: =BE14 -> 54.192 | Y5: Contabilidade | AA5: =SUM(W21:AB21)+SUM(W32:AB32)+SUM(W43:AB43)+SUM(W54:AB54)+SUM(W65:AB65)+SUM(W76:AB76)+SUM(W87:AB87) -> 139.78 | AE5: =MID(AE4,SEARCH("]",AE4)+1,LEN(AE4)-SEARCH("]",AE4)+1) -> Vinícius Braga de Oliveira | AH5: =MID(AE4,AF5+1,AG5-AF5) ->  | AQ5: Aprendizagem B | AR5: 19 | AT5: =IF($N$27="Natação Adulta",$Q$35,0) -> 0 | AU5: =IF($N$27="Natação Bebê",$Q$35,0) -> 0 | AV5: =IF(AND($N$27<>"Natação Adulta",$N$27<>"Natação Bebê",$N$27<>"Hidroginástica"),$Q$35,0) -> 88.75 | AW5: =IF($N$27="Hidroginástica",$Q$35,0) -> 0 | AY5: =IF($N$27="Natação Adulta",$Q$34,0) -> 0 | AZ5: =IF($N$27="Natação Bebê",$Q$34,0) -> 0 | BA5: =IF(AND($N$27<>"Natação Adulta",$N$27<>"Natação Bebê",$N$27<>"Hidroginástica"),$Q$34,0) -> 4 | BB5: =IF($N$27="Hidroginástica",$Q$34,0) -> 0 | BD5: =IF($N$27="Natação Adulta",$Q$33,0) -> 0 | BE5: =IF($N$27="Natação Bebê",$Q$33,0) -> 0 | BF5: =IF(AND($N$27<>"Natação Adulta",$N$27<>"Natação Bebê",$N$27<>"Hidroginástica"),$Q$33,0) -> 10 | BG5: =IF($N$27="Hidroginástica",$Q$33,0) -> 0
B6: 3 | D6: 1 | E6: 7 | H6: 6 | T6: Salário Líquido | W6: =BE20 -> 668.368 | AQ6: Adaptação | AR6: 0 | AT6: =IF($N$38="Natação Adulta",$Q$46,0) -> 0 | AU6: =IF($N$38="Natação Bebê",$Q$46,0) -> 0 | AV6: =IF(AND($N$38<>"Natação Adulta",$N$38<>"Natação Bebê",$N$38<>"Hidroginástica"),$Q$46,0) -> 71.04 | AW6: =IF($N$38="Hidroginástica",$Q$46,0) -> 0 | AY6: =IF($N$38="Natação Adulta",$Q$45,0) -> 0 | AZ6: =IF($N$38="Natação Bebê",$Q$45,0) -> 0 | BA6: =IF(AND($N$38<>"Natação Adulta",$N$38<>"Natação Bebê",$N$38<>"Hidroginástica"),$Q$45,0) -> 3 | BB6: =IF($N$38="Hidroginástica",$Q$45,0) -> 0 | BD6: =IF($N$38="Natação Adulta",$Q$44,0) -> 0 | BE6: =IF($N$38="Natação Bebê",$Q$44,0) -> 0 | BF6: =IF(AND($N$38<>"Natação Adulta",$N$38<>"Natação Bebê",$N$38<>"Hidroginástica"),$Q$44,0) -> 19 | BG6: =IF($N$38="Hidroginástica",$Q$44,0) -> 0
B7: 3 | D7: 5 | H7: 11 | AQ7: Iniciação | AR7: 0 | AT7: =IF($N$49="Natação Adulta",$Q$57,0) -> 0 | AU7: =IF($N$49="Natação Bebê",$Q$57,0) -> 0 | AV7: =IF(AND($N$49<>"Natação Adulta",$N$49<>"Natação Bebê",$N$49<>"Hidroginástica"),$Q$57,0) -> 0 | AW7: =IF($N$49="Hidroginástica",$Q$57,0) -> 102.66 | AY7: =IF($N$49="Natação Adulta",$Q$56,0) -> 0 | AZ7: =IF($N$49="Natação Bebê",$Q$56,0) -> 0 | BA7: =IF(AND($N$49<>"Natação Adulta",$N$49<>"Natação Bebê",$N$49<>"Hidroginástica"),$Q$56,0) -> 0 | BB7: =IF($N$49="Hidroginástica",$Q$56,0) -> 4 | BD7: =IF($N$49="Natação Adulta",$Q$55,0) -> 0 | BE7: =IF($N$49="Natação Bebê",$Q$55,0) -> 0 | BF7: =IF(AND($N$49<>"Natação Adulta",$N$49<>"Natação Bebê",$N$49<>"Hidroginástica"),$Q$55,0) -> 0 | BG7: =IF($N$49="Hidroginástica",$Q$55,0) -> 30
B8: 1 | M8: Natação Infantil | U8: Natação Adulta | X8: Hidroginástica | AQ8: Hidroginástica | AR8: 30 | AT8: =IF($N$60="Natação Adulta",$Q$68,0) -> 0 | AU8: =IF($N$60="Natação Bebê",$Q$68,0) -> 0 | AV8: =IF(AND($N$60<>"Natação Adulta",$N$60<>"Natação Bebê",$N$60<>"Hidroginástica"),$Q$68,0) ->  | AW8: =IF($N$60="Hidroginástica",$Q$68,0) -> 0 | AY8: =IF($N$60="Natação Adulta",$Q$67,0) -> 0 | AZ8: =IF($N$60="Natação Bebê",$Q$67,0) -> 0 | BA8: =IF(AND($N$60<>"Natação Adulta",$N$60<>"Natação Bebê",$N$60<>"Hidroginástica"),$Q$67,0) ->  | BB8: =IF($N$60="Hidroginástica",$Q$67,0) -> 0 | BD8: =IF($N$60="Natação Adulta",$Q$66,0) -> 0 | BE8: =IF($N$60="Natação Bebê",$Q$66,0) -> 0 | BF8: =IF(AND($N$60<>"Natação Adulta",$N$60<>"Natação Bebê",$N$60<>"Hidroginástica"),$Q$66,0) ->  | BG8: =IF($N$60="Hidroginástica",$Q$66,0) -> 0
B9: 4 | M9: Natação Bebê | O9: Demais | Q9: Total Infantil | U9: Alunos | V9: =BD11 -> 58 | X9: Alunos | Y9: =BG11 -> 30 | AT9: =IF($N$71="Natação Adulta",$Q$79,0) -> 0 | AU9: =IF($N$71="Natação Bebê",$Q$79,0) -> 0 | AV9: =IF(AND($N$71<>"Natação Adulta",$N$71<>"Natação Bebê",$N$71<>"Hidroginástica"),$Q$79,0) ->  | AW9: =IF($N$71="Hidroginástica",$Q$79,0) -> 0 | AY9: =IF($N$71="Natação Adulta",$Q$78,0) -> 0 | AZ9: =IF($N$71="Natação Bebê",$Q$78,0) -> 0 | BA9: =IF(AND($N$71<>"Natação Adulta",$N$71<>"Natação Bebê",$N$71<>"Hidroginástica"),$Q$78,0) ->  | BB9: =IF($N$71="Hidroginástica",$Q$78,0) -> 0 | BD9: =IF($N$71="Natação Adulta",$Q$77,0) -> 0 | BE9: =IF($N$71="Natação Bebê",$Q$77,0) -> 0 | BF9: =IF(AND($N$71<>"Natação Adulta",$N$71<>"Natação Bebê",$N$71<>"Hidroginástica"),$Q$77,0) ->  | BG9: =IF($N$71="Hidroginástica",$Q$77,0) -> 0
B10: 3 | K10: Contábil | M10: Alunos | N10: =BE11 -> 0 | O10: Alunos | P10: =BF11 -> 29 | Q10: Alunos | R10: =N10+P10 -> 29 | U10: Aulas | V10: =AY11 -> 22 | X10: Aulas | Y10: =BB11 -> 4 | AT10: =IF($N$82="Natação Adulta",$Q$90,0) -> 0 | AU10: =IF($N$82="Natação Bebê",$Q$90,0) -> 0 | AV10: =IF(AND($N$82<>"Natação Adulta",$N$82<>"Natação Bebê",$N$82<>"Hidroginástica"),$Q$90,0) ->  | AW10: =IF($N$82="Hidroginástica",$Q$90,0) -> 0 | AY10: =IF($N$82="Natação Adulta",$Q$89,0) -> 0 | AZ10: =IF($N$82="Natação Bebê",$Q$89,0) -> 0 | BA10: =IF(AND($N$82<>"Natação Adulta",$N$82<>"Natação Bebê",$N$82<>"Hidroginástica"),$Q$89,0) ->  | BB10: =IF($N$82="Hidroginástica",$Q$89,0) -> 0 | BD10: =IF($N$82="Natação Adulta",$Q$88,0) -> 0 | BE10: =IF($N$82="Natação Bebê",$Q$88,0) -> 0 | BF10: =IF(AND($N$82<>"Natação Adulta",$N$82<>"Natação Bebê",$N$82<>"Hidroginástica"),$Q$88,0) ->  | BG10: =IF($N$82="Hidroginástica",$Q$88,0) -> 0
B11: 3 | K11: Sistema | M11: Aulas | N11: =AZ11 -> 0 | O11: Aulas | P11: =BA11 -> 7 | Q11: Aulas | R11: 7 | U11: Bruto | V11: =AT11 -> 460.11 | X11: Bruto | Y11: =AW11 -> 102.66 | AT11: =SUM(AT4:AT10) -> 460.11 | AU11: =SUM(AU4:AU10) -> 0 | AV11: 159.79 | AW11: 102.66 | AY11: =SUM(AY4:AY10) -> 22 | AZ11: =SUM(AZ4:AZ10) -> 0 | BA11: 7 | BB11: 4 | BD11: =SUM(BD4:BD10) -> 58 | BE11: =SUM(BE4:BE10) -> 0 | BF11: 29 | BG11: 30
B12: 1 | K12: Sistema | M12: Bruto | N12: =AU11 -> 0 | O12: Bruto | P12: =AV11 -> 159.79 | Q12: Bruto | R12: 159.79 | U12: INSS | V12: =AZ15 -> 34.50825 | X12: INSS | Y12: =BB15 -> 7.6995
B13: 1 | M13: INSS | N13: =AU15 -> 0 | O13: INSS | P13: =AW15 -> 11.98425 | Q13: INSS | R13: 11.98425 | U13: Líquido | V13: =V11-V12 -> 425.60175 | X13: Líquido | Y13: =Y11-Y12 -> 94.9605 | AT13: Natação Bebê | AV13: Demais | AY13: Natação Adulta | BA13: Hidroginástica | BD13: Bruto Informado | BE13: =AU14+AW14+AZ14+BB14 -> 722.56
B14: 3 | M14: Líquido | N14: =N12-N13 -> 0 | O14: Líquido | P14: =P12-P13 -> 147.80575 | Q14: Líquido | R14: =N14+P14 -> 147.80575 | AT14: Salário | AU14: =AU11 -> 0 | AV14: Salário | AW14: =AV11 -> 159.79 | AY14: Salário | AZ14: =AT11 -> 460.11 | BA14: Salário | BB14: =AW11 -> 102.66 | BD14: INSS | BE14: =IF(BE13<=Impostos!$D$4,BE13*Impostos!$B$4,IF(BE13<=Impostos!$D$5,(BE13-Impostos!$D$4)*Impostos!$B$5+Impostos!$E$4,IF(BE13<=Impostos!$D$6,(BE13-(Impostos!$D$5-Impostos!$D$4)-Impostos!$D$4)*Impostos!$B$6+Impostos!$E$5+Impostos!$E$4,IF(BE13<=Impostos!$D$7,(BE13-(Impostos!$D$6-Impostos!$D$5)-(Impostos!$D$5-Impostos!$D$4)-Impostos!$D$4)*Impostos!$B$7+Impostos!$E$6+Impostos!$E$5+Impostos!$E$4,IF(BE13>=Impostos!$E$7,Impostos!$E$7))))) -> 54.192
B15: 3 | AT15: INSS | AU15: =IF(AU14<=Impostos!$D$4,AU14*Impostos!$B$4,IF(AU14<=Impostos!$D$5,(AU14-Impostos!$D$4)*Impostos!$B$5+Impostos!$E$4,IF(AU14<=Impostos!$D$6,(AU14-(Impostos!$D$5-Impostos!$D$4)-Impostos!$D$4)*Impostos!$B$6+Impostos!$E$5+Impostos!$E$4,IF(AU14<=Impostos!$D$7,(AU14-(Impostos!$D$6-Impostos!$D$5)-(Impostos!$D$5-Impostos!$D$4)-Impostos!$D$4)*Impostos!$B$7+Impostos!$E$6+Impostos!$E$5+Impostos!$E$4,IF(AU14>=Impostos!$E$7,Impostos!$E$7))))) -> 0 | AV15: INSS | AW15: =IF(AW14<=Impostos!$D$4,AW14*Impostos!$B$4,IF(AW14<=Impostos!$D$5,(AW14-Impostos!$D$4)*Impostos!$B$5+Impostos!$E$4,IF(AW14<=Impostos!$D$6,(AW14-(Impostos!$D$5-Impostos!$D$4)-Impostos!$D$4)*Impostos!$B$6+Impostos!$E$5+Impostos!$E$4,IF(AW14<=Impostos!$D$7,(AW14-(Impostos!$D$6-Impostos!$D$5)-(Impostos!$D$5-Impostos!$D$4)-Impostos!$D$4)*Impostos!$B$7+Impostos!$E$6+Impostos!$E$5+Impostos!$E$4,IF(AW14>=Impostos!$E$7,Impostos!$E$7))))) -> 11.98425 | AY15: INSS | AZ15: =IF(AZ14<=Impostos!$D$4,AZ14*Impostos!$B$4,IF(AZ14<=Impostos!$D$5,(AZ14-Impostos!$D$4)*Impostos!$B$5+Impostos!$E$4,IF(AZ14<=Impostos!$D$6,(AZ14-(Impostos!$D$5-Impostos!$D$4)-Impostos!$D$4)*Impostos!$B$6+Impostos!$E$5+Impostos!$E$4,IF(AZ14<=Impostos!$D$7,(AZ14-(Impostos!$D$6-Impostos!$D$5)-(Impostos!$D$5-Impostos!$D$4)-Impostos!$D$4)*Impostos!$B$7+Impostos!$E$6+Impostos!$E$5+Impostos!$E$4,IF(AZ14>=Impostos!$E$7,Impostos!$E$7))))) -> 34.50825 | BA15: INSS | BB15: =IF(BB14<=Impostos!$D$4,BB14*Impostos!$B$4,IF(BB14<=Impostos!$D$5,(BB14-Impostos!$D$4)*Impostos!$B$5+Impostos!$E$4,IF(BB14<=Impostos!$D$6,(BB14-(Impostos!$D$5-Impostos!$D$4)-Impostos!$D$4)*Impostos!$B$6+Impostos!$E$5+Impostos!$E$4,IF(BB14<=Impostos!$D$7,(BB14-(Impostos!$D$6-Impostos!$D$5)-(Impostos!$D$5-Impostos!$D$4)-Impostos!$D$4)*Impostos!$B$7+Impostos!$E$6+Impostos!$E$5+Impostos!$E$4,IF(BB14>=Impostos!$E$7,Impostos!$E$7))))) -> 7.6995 | BD15: Líquido | BE15: =BE13-BE14 -> 668.368
B16: 1 | K16: Modalidade | N16: Natação Adulta | Q16: Nível | R16: Prof. Nível C | AE16: =VLOOKUP(N16,Configurações!$J$1:$V$9,2,0) -> 0 | AF16: =VLOOKUP(N16,Configurações!$J$1:$V$9,3,0) -> 0 | AG16: =VLOOKUP(N16,Configurações!$J$1:$V$9,4,0) -> 1 | AH16: =VLOOKUP(N16,Configurações!$J$1:$V$9,5,0) -> 3 | AI16: =VLOOKUP(N16,Configurações!$J$1:$V$9,6,0) -> 4 | AJ16: =VLOOKUP(N16,Configurações!$J$1:$V$9,7,0) -> 5 | AK16: =VLOOKUP(N16,Configurações!$J$1:$V$9,8,0) -> 6 | AL16: =VLOOKUP(N16,Configurações!$J$1:$V$9,9,0) -> 8 | AM16: =VLOOKUP(N16,Configurações!$J$1:$V$9,10,0) ->  | AN16: =VLOOKUP(N16,Configurações!$J$1:$V$9,11,0) ->  | AO16: =VLOOKUP(N16,Configurações!$J$1:$V$9,12,0) ->  | AP16: =VLOOKUP(N16,Configurações!$J$1:$V$9,13,0) -> 
B17: 0 | K17: Academia | U17: Contabilidade | AE17: =IFERROR(VLOOKUP(N16,_xlfn.ANCHORARRAY($AQ$2),2,0),0) -> 58 | BD17: Líquido Calcl | BE17: =R14+V13+Y13 -> 668.368
B18: 4 | K18: Nr. de Alunos | N18: =IF(AF23<>"",AF23,"") -> 0 | O18: =IF(AG23<>"",AG23,"") -> 1 a 3 | P18: =IF(AH23<>"",AH23,"") -> 4 a 5 | Q18: =IF(AI23<>"",AI23,"") -> 6 a 8 | R18: =IF(AJ23<>"",AJ23,"") ->  | S18: =IF(AK23<>0,AK23,"") ->  | U18: Nr. de Alunos | W18: =N18 -> 0 | X18: =O18 -> 1 a 3 | Y18: 4 a 5 | Z18: 6 a 8 | AF18: =IF($N$16=$AE$2,COUNTIF($B$4:$B$100,">="&AE16)-COUNTIF($B$4:$B$100,">"&AF16), IF($N$16=$AF$2,COUNTIF($C$4:$C$100,">="&AE16)-COUNTIF($C$4:$C$100,">"&AF16), IF($N$16=$AG$2,COUNTIF($D$4:$D$100,">="&AE16)-COUNTIF($D$4:$D$100,">"&AF16), IF($N$16=$AH$2,COUNTIF($E$4:$E$100,">="&AE16)-COUNTIF($E$4:$E$100,">"&AF16), IF($N$16=$AI$2,COUNTIF($F$4:$F$100,">="&AE16)-COUNTIF($F$4:$F$100,">"&AF16), IF($N$16=$AJ$2,COUNTIF($G$4:$G$100,">="&AE16)-COUNTIF($G$4:$G$100,">"&AF16), IF($N$16=$AK$2,COUNTIF($H$4:$H$100,">="&AE16)-COUNTIF($H$4:$H$100,">"&AF16), IF($N$16="Sem Uso","")))))))) -> 1 | AG18: =IF($N$16=$AE$2,COUNTIF($B$4:$B$100,">="&AG16)-COUNTIF($B$4:$B$100,">"&AH16), IF($N$16=$AF$2,COUNTIF($C$4:$C$100,">="&AG16)-COUNTIF($C$4:$C$100,">"&AH16), IF($N$16=$AG$2,COUNTIF($D$4:$D$100,">="&AG16)-COUNTIF($D$4:$D$100,">"&AH16), IF($N$16=$AH$2,COUNTIF($E$4:$E$100,">="&AG16)-COUNTIF($E$4:$E$100,">"&AH16), IF($N$16=$AI$2,COUNTIF($F$4:$F$100,">="&AG16)-COUNTIF($F$4:$F$100,">"&AH16), IF($N$16=$AJ$2,COUNTIF($G$4:$G$100,">="&AG16)-COUNTIF($G$4:$G$100,">"&AH16), IF($N$16=$AK$2,COUNTIF($H$4:$H$100,">="&AG16)-COUNTIF($H$4:$H$100,">"&AH16), IF($N$16="Sem Uso","")))))))) -> 15 | AH18: =IF($N$16=$AE$2,COUNTIF($B$4:$B$100,">="&AI16)-COUNTIF($B$4:$B$100,">"&AJ16), IF($N$16=$AF$2,COUNTIF($C$4:$C$100,">="&AI16)-COUNTIF($C$4:$C$100,">"&AJ16), IF($N$16=$AG$2,COUNTIF($D$4:$D$100,">="&AI16)-COUNTIF($D$4:$D$100,">"&AJ16), IF($N$16=$AH$2,COUNTIF($E$4:$E$100,">="&AI16)-COUNTIF($E$4:$E$100,">"&AJ16), IF($N$16=$AI$2,COUNTIF($F$4:$F$100,">="&AI16)-COUNTIF($F$4:$F$100,">"&AJ16), IF($N$16=$AJ$2,COUNTIF($G$4:$G$100,">="&AI16)-COUNTIF($G$4:$G$100,">"&AJ16), IF($N$16=$AK$2,COUNTIF($H$4:$H$100,">="&AI16)-COUNTIF($H$4:$H$100,">"&AJ16), IF($N$16="Sem Uso","")))))))) -> 5 | AI18: =IF($N$16=$AE$2,COUNTIF($B$4:$B$100,">="&AK16)-COUNTIF($B$4:$B$100,">"&AL16), IF($N$16=$AF$2,COUNTIF($C$4:$C$100,">="&AK16)-COUNTIF($C$4:$C$100,">"&AL16), IF($N$16=$AG$2,COUNTIF($D$4:$D$100,">="&AK16)-COUNTIF($D$4:$D$100,">"&AL16), IF($N$16=$AH$2,COUNTIF($E$4:$E$100,">="&AK16)-COUNTIF($E$4:$E$100,">"&AL16), IF($N$16=$AI$2,COUNTIF($F$4:$F$100,">="&AK16)-COUNTIF($F$4:$F$100,">"&AL16), IF($N$16=$AJ$2,COUNTIF($G$4:$G$100,">="&AK16)-COUNTIF($G$4:$G$100,">"&AL16), IF($N$16=$AK$2,COUNTIF($H$4:$H$100,">="&AK16)-COUNTIF($H$4:$H$100,">"&AL16), IF($N$16="Sem Uso","")))))))) -> 1 | AJ18: =IF($N$16=$AE$2,COUNTIF($B$4:$B$100,">="&AM16)-COUNTIF($B$4:$B$100,">"&AN16), IF($N$16=$AF$2,COUNTIF($C$4:$C$100,">="&AM16)-COUNTIF($C$4:$C$100,">"&AN16), IF($N$16=$AG$2,COUNTIF($D$4:$D$100,">="&AM16)-COUNTIF($D$4:$D$100,">"&AN16), IF($N$16=$AH$2,COUNTIF($E$4:$E$100,">="&AM16)-COUNTIF($E$4:$E$100,">"&AN16), IF($N$16=$AI$2,COUNTIF($F$4:$F$100,">="&AM16)-COUNTIF($F$4:$F$100,">"&AN16), IF($N$16=$AJ$2,COUNTIF($G$4:$G$100,">="&AM16)-COUNTIF($G$4:$G$100,">"&AN16), IF($N$16=$AK$2,COUNTIF($H$4:$H$100,">="&AM16)-COUNTIF($H$4:$H$100,">"&AN16), IF($N$16="Sem Uso","")))))))) -> 0 | AK18: =IF($N$16=$AE$2,COUNTIF($B$4:$B$100,">="&AO16)-COUNTIF($B$4:$B$100,">"&AP16), IF($N$16=$AF$2,COUNTIF($C$4:$C$100,">="&AO16)-COUNTIF($C$4:$C$100,">"&AP16), IF($N$16=$AG$2,COUNTIF($D$4:$D$100,">="&AO16)-COUNTIF($D$4:$D$100,">"&AP16), IF($N$16=$AH$2,COUNTIF($E$4:$E$100,">="&AO16)-COUNTIF($E$4:$E$100,">"&AP16), IF($N$16=$AI$2,COUNTIF($F$4:$F$100,">="&AO16)-COUNTIF($F$4:$F$100,">"&AP16), IF($N$16=$AJ$2,COUNTIF($G$4:$G$100,">="&AO16)-COUNTIF($G$4:$G$100,">"&AP16), IF($N$16=$AK$2,COUNTIF($H$4:$H$100,">="&AO16)-COUNTIF($H$4:$H$100,">"&AP16), IF($N$16="Sem Uso","")))))))) -> 0 | BD18: Diferença | BE18: =BE15-BE17 -> 0
B19: 5 | K19: Valor da Aula | N19: =IF(AF25<>0,AF25,"") -> 17.66 | O19: 19.76 | P19: 23.68 | Q19: 27.65 | U19: Valor da Aula | W19: =IFERROR(IF(N19<=$S$23,0,N19-$S$23),"") -> 0 | X19: 2.1 | Y19: 6.02 | Z19: 9.99
B20: 1 | K20: Nr. de Aulas | N20: =IF(AF23<>"",AF24,"") -> 1 | O20: 15 | P20: 5 | Q20: 1 | U20: Nr. de Aulas | W20: =N20 -> 1 | X20: 15 | Y20: 5 | Z20: 1 | AE20: =IF(N20<>"",N20,"") -> 1 | AF20: 15 | AG20: 5 | AH20: 1 | BD20: Líquido Real | BE20: =BE17+BE18 -> 668.368
B21: 1 | K21: Valor | N21: =IFERROR(N19*N20,"") -> 17.66 | O21: 296.4 | P21: 118.4 | Q21: 27.65 | U21: Valor | W21: =IFERROR(W19*W20,"") -> 0 | X21: 31.5 | Y21: 30.1 | Z21: 9.99 | AF21: =IF($N16<>"Sem Uso",VLOOKUP(N16,Configurações!$C$1:$I$8,2,0),"") -> 0 | AG21: =IF(N16<>"Sem Uso",VLOOKUP(N16,Configurações!$C$1:$I$8,3,0),"") -> 1 a 3 | AH21: =IF(N16<>"Sem Uso",VLOOKUP(N16,Configurações!$C$1:$I$8,4,0),"") -> 4 a 5 | AI21: =IF(N16<>"Sem Uso",VLOOKUP(N16,Configurações!$C$1:$I$8,5,0),"") -> 6 a 8 | AJ21: =IF(N16<>"Sem Uso",VLOOKUP(N16,Configurações!$C$1:$I$8,6,0),"") -> 0 | AK21: =IF(N16<>"Sem Uso",VLOOKUP(N16,Configurações!$C$1:$I$8,7,0),"") -> 0
B22: 6 | M22: Total de Alunos | Q22: =_xlfn.IFS(N16=$AE$2,$B$102,N16=$AF$2,$C$102,N16=$AG$2,$D$102,N16=$AH$2,$E$102,N16=$AI$2,$F$102,N16=$AJ$2,$G$102,N16=$AK$2,$H$102,N16="Sem Uso","") -> 58 | V22: Total de Alunos | Z22: =Q22 -> 58 | AE22: TABELA DE EQUIVALÊNCIA
B23: 4 | M23: Total de Aulas | Q23: =IF(Q22<>"",SUM(AE20:AJ20),"") -> 22 | R23: Registro | S23: 17.66 | V23: Total de Aulas | Z23: =Q23 -> 22 | AE23: Nr. Alunos | AF23: =AF21 -> 0 | AG23: =IF(AG21<>0,AG21,"") -> 1 a 3 | AH23: =IF(AH21<>0,AH21,"") -> 4 a 5 | AI23: =IF(AI21<>0,AI21,"") -> 6 a 8 | AJ23: =IF(AJ21<>0,AJ21,"") ->  | AK23: =IF(AK21<>0,AK21,"") -> 
B24: 3 | M24: Total a Receber | Q24: =IF(Q22<>"",SUM(N21:S21),"") -> 460.11 | V24: Total a Receber | Z24: =IF(Z22<>"",SUM(W21:AB21),"") -> 71.59 | AE24: Aulas | AF24: =IF(AF23<>"",AF18,"") -> 1 | AG24: 15 | AH24: 5 | AI24: 1
B25: 2 | AF25: =IFERROR(VLOOKUP(N16&R16,Configurações!$C$13:$I$47,2,0),"") -> 17.66 | AG25: =IFERROR(IF(AG23<>0,VLOOKUP(N16&R16,Configurações!$C$13:$I$47,3,0),""),"") -> 19.76 | AH25: =IFERROR(IF(AH23<>0,VLOOKUP(N16&R16,Configurações!$C$13:$I$47,4,0),""),"") -> 23.68 | AI25: =IFERROR(IF(AI23<>0,VLOOKUP(N16&R16,Configurações!$C$13:$I$47,5,0),""),"") -> 27.65 | AJ25: =IFERROR(IF(AJ23<>0,VLOOKUP(N16&R16,Configurações!$C$13:$I$47,6,0),""),"") -> 0 | AK25: =IFERROR(IF(AK23<>0,VLOOKUP(N16&R16,Configurações!$C$13:$I$47,7,0),""),"") -> 0
K27: Modalidade | N27: Aprendizagem A | Q27: Nível | R27: Prof. Nível C | AE27: =VLOOKUP(N27,Configurações!$J$1:$V$9,2,0) -> 0 | AF27: =VLOOKUP(N27,Configurações!$J$1:$V$9,3,0) -> 0 | AG27: =VLOOKUP(N27,Configurações!$J$1:$V$9,4,0) -> 1 | AH27: =VLOOKUP(N27,Configurações!$J$1:$V$9,5,0) -> 2 | AI27: =VLOOKUP(N27,Configurações!$J$1:$V$9,6,0) -> 3 | AJ27: =VLOOKUP(N27,Configurações!$J$1:$V$9,7,0) -> 4 | AK27: =VLOOKUP(N27,Configurações!$J$1:$V$9,8,0) -> 5 | AL27: =VLOOKUP(N27,Configurações!$J$1:$V$9,9,0) -> 6 | AM27: =VLOOKUP(N27,Configurações!$J$1:$V$9,10,0) -> 7 | AN27: =VLOOKUP(N27,Configurações!$J$1:$V$9,11,0) -> 8 | AO27: =VLOOKUP(N27,Configurações!$J$1:$V$9,12,0) ->  | AP27: =VLOOKUP(N27,Configurações!$J$1:$V$9,13,0) -> 
K28: Academia | U28: Contabilidade | AE28: =IFERROR(VLOOKUP(N27,_xlfn.ANCHORARRAY($AQ$2),2,0),0) -> 10
K29: Nr. de Alunos | N29: =IF(AF34<>"",AF34,"") -> 0 | O29: =IF(AG34<>"",AG34,"") -> 1 a 2 | P29: =IF(AH34<>"",AH34,"") -> 3 a 4 | Q29: =IF(AI34<>"",AI34,"") -> 5 a 6 | R29: =IF(AJ34<>"",AJ34,"") -> 7 a 8 | S29: =IF(AK34<>0,AK34,"") ->  | U29: Nr. de Alunos | W29: =N29 -> 0 | X29: =O29 -> 1 a 2 | Y29: 3 a 4 | Z29: 5 a 6 | AA29: 7 a 8 | AF29: =IF($N$27=$AE$2,COUNTIF($B$4:$B$100,">="&AE27)-COUNTIF($B$4:$B$100,">"&AF27), IF($N$27=$AF$2,COUNTIF($C$4:$C$100,">="&AE27)-COUNTIF($C$4:$C$100,">"&AF27), IF($N$27=$AG$2,COUNTIF($D$4:$D$100,">="&AE27)-COUNTIF($D$4:$D$100,">"&AF27), IF($N$27=$AH$2,COUNTIF($E$4:$E$100,">="&AE27)-COUNTIF($E$4:$E$100,">"&AF27), IF($N$27=$AI$2,COUNTIF($F$4:$F$100,">="&AE27)-COUNTIF($F$4:$F$100,">"&AF27), IF($N$27=$AJ$2,COUNTIF($G$4:$G$100,">="&AE27)-COUNTIF($G$4:$G$100,">"&AF27), IF($N$27=$AK$2,COUNTIF($H$4:$H$100,">="&AE27)-COUNTIF($H$4:$H$100,">"&AF27), IF($N$27="Sem Uso","")))))))) -> 1 | AG29: =IF($N$27=$AE$2,COUNTIF($B$4:$B$100,">="&AG27)-COUNTIF($B$4:$B$100,">"&AH27), IF($N$27=$AF$2,COUNTIF($C$4:$C$100,">="&AG27)-COUNTIF($C$4:$C$100,">"&AH27), IF($N$27=$AG$2,COUNTIF($D$4:$D$100,">="&AG27)-COUNTIF($D$4:$D$100,">"&AH27), IF($N$27=$AH$2,COUNTIF($E$4:$E$100,">="&AG27)-COUNTIF($E$4:$E$100,">"&AH27), IF($N$27=$AI$2,COUNTIF($F$4:$F$100,">="&AG27)-COUNTIF($F$4:$F$100,">"&AH27), IF($N$27=$AJ$2,COUNTIF($G$4:$G$100,">="&AG27)-COUNTIF($G$4:$G$100,">"&AH27), IF($N$27=$AK$2,COUNTIF($H$4:$H$100,">="&AG27)-COUNTIF($H$4:$H$100,">"&AH27), IF($N$27="Sem Uso","")))))))) -> 1 | AH29: =IF($N$27=$AE$2,COUNTIF($B$4:$B$100,">="&AI27)-COUNTIF($B$4:$B$100,">"&AJ27), IF($N$27=$AF$2,COUNTIF($C$4:$C$100,">="&AI27)-COUNTIF($C$4:$C$100,">"&AJ27), IF($N$27=$AG$2,COUNTIF($D$4:$D$100,">="&AI27)-COUNTIF($D$4:$D$100,">"&AJ27), IF($N$27=$AH$2,COUNTIF($E$4:$E$100,">="&AI27)-COUNTIF($E$4:$E$100,">"&AJ27), IF($N$27=$AI$2,COUNTIF($F$4:$F$100,">="&AI27)-COUNTIF($F$4:$F$100,">"&AJ27), IF($N$27=$AJ$2,COUNTIF($G$4:$G$100,">="&AI27)-COUNTIF($G$4:$G$100,">"&AJ27), IF($N$27=$AK$2,COUNTIF($H$4:$H$100,">="&AI27)-COUNTIF($H$4:$H$100,">"&AJ27), IF($N$27="Sem Uso","")))))))) -> 1 | AI29: =IF($N$27=$AE$2,COUNTIF($B$4:$B$100,">="&AK27)-COUNTIF($B$4:$B$100,">"&AL27), IF($N$27=$AF$2,COUNTIF($C$4:$C$100,">="&AK27)-COUNTIF($C$4:$C$100,">"&AL27), IF($N$27=$AG$2,COUNTIF($D$4:$D$100,">="&AK27)-COUNTIF($D$4:$D$100,">"&AL27), IF($N$27=$AH$2,COUNTIF($E$4:$E$100,">="&AK27)-COUNTIF($E$4:$E$100,">"&AL27), IF($N$27=$AI$2,COUNTIF($F$4:$F$100,">="&AK27)-COUNTIF($F$4:$F$100,">"&AL27), IF($N$27=$AJ$2,COUNTIF($G$4:$G$100,">="&AK27)-COUNTIF($G$4:$G$100,">"&AL27), IF($N$27=$AK$2,COUNTIF($H$4:$H$100,">="&AK27)-COUNTIF($H$4:$H$100,">"&AL27), IF($N$27="Sem Uso","")))))))) -> 1 | AJ29: =IF($N$27=$AE$2,COUNTIF($B$4:$B$100,">="&AM27)-COUNTIF($B$4:$B$100,">"&AN27), IF($N$27=$AF$2,COUNTIF($C$4:$C$100,">="&AM27)-COUNTIF($C$4:$C$100,">"&AN27), IF($N$27=$AG$2,COUNTIF($D$4:$D$100,">="&AM27)-COUNTIF($D$4:$D$100,">"&AN27), IF($N$27=$AH$2,COUNTIF($E$4:$E$100,">="&AM27)-COUNTIF($E$4:$E$100,">"&AN27), IF($N$27=$AI$2,COUNTIF($F$4:$F$100,">="&AM27)-COUNTIF($F$4:$F$100,">"&AN27), IF($N$27=$AJ$2,COUNTIF($G$4:$G$100,">="&AM27)-COUNTIF($G$4:$G$100,">"&AN27), IF($N$27=$AK$2,COUNTIF($H$4:$H$100,">="&AM27)-COUNTIF($H$4:$H$100,">"&AN27), IF($N$27="Sem Uso","")))))))) -> 0 | AK29: =IF($N$27=$AE$2,COUNTIF($B$4:$B$100,">="&AO27)-COUNTIF($B$4:$B$100,">"&AP27), IF($N$27=$AF$2,COUNTIF($C$4:$C$100,">="&AO27)-COUNTIF($C$4:$C$100,">"&AP27), IF($N$27=$AG$2,COUNTIF($D$4:$D$100,">="&AO27)-COUNTIF($D$4:$D$100,">"&AP27), IF($N$27=$AH$2,COUNTIF($E$4:$E$100,">="&AO27)-COUNTIF($E$4:$E$100,">"&AP27), IF($N$27=$AI$2,COUNTIF($F$4:$F$100,">="&AO27)-COUNTIF($F$4:$F$100,">"&AP27), IF($N$27=$AJ$2,COUNTIF($G$4:$G$100,">="&AO27)-COUNTIF($G$4:$G$100,">"&AP27), IF($N$27=$AK$2,COUNTIF($H$4:$H$100,">="&AO27)-COUNTIF($H$4:$H$100,">"&AP27), IF($N$27="Sem Uso","")))))))) -> 0
K30: Valor da Aula | N30: =IF(AF36<>0,AF36,"") -> 17.66 | O30: 19.76 | P30: 23.68 | Q30: 27.65 | R30: 30.86 | U30: Valor da Aula | W30: =IFERROR(IF(N30<=$S$34,0,N30-$S$34),"") -> 0 | X30: 2.1 | Y30: 6.02 | Z30: 9.99 | AA30: 13.2
K31: Nr. de Aulas | N31: =IF(AF34<>"",AF35,"") -> 1 | O31: 1 | P31: 1 | Q31: 1 | R31: 0 | U31: Nr. de Aulas | W31: =N31 -> 1 | X31: 1 | Y31: 1 | Z31: 1 | AA31: 0 | AE31: =IF(N31<>"",N31,"") -> 1 | AF31: 1 | AG31: 1 | AH31: 1 | AI31: 0
K32: Valor | N32: =IFERROR(N30*N31,"") -> 17.66 | O32: 19.76 | P32: 23.68 | Q32: 27.65 | R32: 0 | U32: Valor | W32: =IFERROR(W30*W31,"") -> 0 | X32: 2.1 | Y32: 6.02 | Z32: 9.99 | AA32: 0 | AF32: =IF($N27<>"Sem Uso",VLOOKUP(N27,Configurações!$C$1:$I$8,2,0),"") -> 0 | AG32: =IF(N27<>"Sem Uso",VLOOKUP(N27,Configurações!$C$1:$I$8,3,0),"") -> 1 a 2 | AH32: =IF(N27<>"Sem Uso",VLOOKUP(N27,Configurações!$C$1:$I$8,4,0),"") -> 3 a 4 | AI32: =IF(N27<>"Sem Uso",VLOOKUP(N27,Configurações!$C$1:$I$8,5,0),"") -> 5 a 6 | AJ32: =IF(N27<>"Sem Uso",VLOOKUP(N27,Configurações!$C$1:$I$8,6,0),"") -> 7 a 8 | AK32: =IF(N27<>"Sem Uso",VLOOKUP(N27,Configurações!$C$1:$I$8,7,0),"") -> 0
M33: Total de Alunos | Q33: =_xlfn.IFS(N27=$AE$2,$B$102,N27=$AF$2,$C$102,N27=$AG$2,$D$102,N27=$AH$2,$E$102,N27=$AI$2,$F$102,N27=$AJ$2,$G$102,N27=$AK$2,$H$102,N27="Sem Uso","") -> 10 | V33: Total de Alunos | Z33: =Q33 -> 10 | AE33: TABELA DE EQUIVALÊNCIA
M34: Total de Aulas | Q34: =IF(Q33<>"",SUM(AE31:AJ31),"") -> 4 | R34: Registro | S34: 17.66 | V34: Total de Aulas | Z34: =Q34 -> 4 | AE34: Nr. Alunos | AF34: =AF32 -> 0 | AG34: =IF(AG32<>0,AG32,"") -> 1 a 2 | AH34: =IF(AH32<>0,AH32,"") -> 3 a 4 | AI34: =IF(AI32<>0,AI32,"") -> 5 a 6 | AJ34: =IF(AJ32<>0,AJ32,"") -> 7 a 8 | AK34: =IF(AK32<>0,AK32,"") -> 
M35: Total a Receber | Q35: =IF(Q33<>"",SUM(N32:S32),"") -> 88.75 | V35: Total a Receber | Z35: =IF(Z33<>"",SUM(W32:AB32),"") -> 18.11 | AE35: Aulas | AF35: =IF(AF34<>"",AF29,"") -> 1 | AG35: 1 | AH35: 1 | AI35: 1 | AJ35: 0
AF36: =IFERROR(VLOOKUP(N27&R27,Configurações!$C$13:$I$47,2,0),"") -> 17.66 | AG36: =IFERROR(IF(AG34<>0,VLOOKUP(N27&R27,Configurações!$C$13:$I$47,3,0),""),"") -> 19.76 | AH36: =IFERROR(IF(AH34<>0,VLOOKUP(N27&R27,Configurações!$C$13:$I$47,4,0),""),"") -> 23.68 | AI36: =IFERROR(IF(AI34<>0,VLOOKUP(N27&R27,Configurações!$C$13:$I$47,5,0),""),"") -> 27.65 | AJ36: =IFERROR(IF(AJ34<>0,VLOOKUP(N27&R27,Configurações!$C$13:$I$47,6,0),""),"") -> 30.86 | AK36: =IFERROR(IF(AK34<>0,VLOOKUP(N27&R27,Configurações!$C$13:$I$47,7,0),""),"") -> 0
K38: Modalidade | N38: Aprendizagem B | Q38: Nível | R38: Prof. Nível C | AE38: =VLOOKUP(N38,Configurações!$J$1:$V$9,2,0) -> 0 | AF38: =VLOOKUP(N38,Configurações!$J$1:$V$9,3,0) -> 0 | AG38: =VLOOKUP(N38,Configurações!$J$1:$V$9,4,0) -> 1 | AH38: =VLOOKUP(N38,Configurações!$J$1:$V$9,5,0) -> 4 | AI38: =VLOOKUP(N38,Configurações!$J$1:$V$9,6,0) -> 5 | AJ38: =VLOOKUP(N38,Configurações!$J$1:$V$9,7,0) -> 8 | AK38: =VLOOKUP(N38,Configurações!$J$1:$V$9,8,0) -> 9 | AL38: =VLOOKUP(N38,Configurações!$J$1:$V$9,9,0) -> 12 | AM38: =VLOOKUP(N38,Configurações!$J$1:$V$9,10,0) -> 13 | AN38: =VLOOKUP(N38,Configurações!$J$1:$V$9,11,0) -> 16 | AO38: =VLOOKUP(N38,Configurações!$J$1:$V$9,12,0) ->  | AP38: =VLOOKUP(N38,Configurações!$J$1:$V$9,13,0) -> 
K39: Academia | U39: Contabilidade | AE39: =IFERROR(VLOOKUP(N38,_xlfn.ANCHORARRAY($AQ$2),2,0),0) -> 19
K40: Nr. de Alunos | N40: =IF(AF45<>"",AF45,"") -> 0 | O40: =IF(AG45<>"",AG45,"") -> 1 a 4 | P40: =IF(AH45<>"",AH45,"") -> 5 a 8 | Q40: =IF(AI45<>"",AI45,"") -> 9 a 12 | R40: =IF(AJ45<>"",AJ45,"") -> 13 a 16 | S40: =IF(AK45<>0,AK45,"") ->  | U40: Nr. de Alunos | W40: =N40 -> 0 | X40: =O40 -> 1 a 4 | Y40: 5 a 8 | Z40: 9 a 12 | AA40: 13 a 16 | AF40: =IF($N$38=$AE$2,COUNTIF($B$4:$B$100,">="&AE38)-COUNTIF($B$4:$B$100,">"&AF38), IF($N$38=$AF$2,COUNTIF($C$4:$C$100,">="&AE38)-COUNTIF($C$4:$C$100,">"&AF38), IF($N$38=$AG$2,COUNTIF($D$4:$D$100,">="&AE38)-COUNTIF($D$4:$D$100,">"&AF38), IF($N$38=$AH$2,COUNTIF($E$4:$E$100,">="&AE38)-COUNTIF($E$4:$E$100,">"&AF38), IF($N$38=$AI$2,COUNTIF($F$4:$F$100,">="&AE38)-COUNTIF($F$4:$F$100,">"&AF38), IF($N$38=$AJ$2,COUNTIF($G$4:$G$100,">="&AE38)-COUNTIF($G$4:$G$100,">"&AF38), IF($N$38=$AK$2,COUNTIF($H$4:$H$100,">="&AE38)-COUNTIF($H$4:$H$100,">"&AF38), IF($N$38="Sem Uso","")))))))) -> 0 | AG40: =IF($N$38=$AE$2,COUNTIF($B$4:$B$100,">="&AG38)-COUNTIF($B$4:$B$100,">"&AH38), IF($N$38=$AF$2,COUNTIF($C$4:$C$100,">="&AG38)-COUNTIF($C$4:$C$100,">"&AH38), IF($N$38=$AG$2,COUNTIF($D$4:$D$100,">="&AG38)-COUNTIF($D$4:$D$100,">"&AH38), IF($N$38=$AH$2,COUNTIF($E$4:$E$100,">="&AG38)-COUNTIF($E$4:$E$100,">"&AH38), IF($N$38=$AI$2,COUNTIF($F$4:$F$100,">="&AG38)-COUNTIF($F$4:$F$100,">"&AH38), IF($N$38=$AJ$2,COUNTIF($G$4:$G$100,">="&AG38)-COUNTIF($G$4:$G$100,">"&AH38), IF($N$38=$AK$2,COUNTIF($H$4:$H$100,">="&AG38)-COUNTIF($H$4:$H$100,">"&AH38), IF($N$38="Sem Uso","")))))))) -> 0 | AH40: =IF($N$38=$AE$2,COUNTIF($B$4:$B$100,">="&AI38)-COUNTIF($B$4:$B$100,">"&AJ38), IF($N$38=$AF$2,COUNTIF($C$4:$C$100,">="&AI38)-COUNTIF($C$4:$C$100,">"&AJ38), IF($N$38=$AG$2,COUNTIF($D$4:$D$100,">="&AI38)-COUNTIF($D$4:$D$100,">"&AJ38), IF($N$38=$AH$2,COUNTIF($E$4:$E$100,">="&AI38)-COUNTIF($E$4:$E$100,">"&AJ38), IF($N$38=$AI$2,COUNTIF($F$4:$F$100,">="&AI38)-COUNTIF($F$4:$F$100,">"&AJ38), IF($N$38=$AJ$2,COUNTIF($G$4:$G$100,">="&AI38)-COUNTIF($G$4:$G$100,">"&AJ38), IF($N$38=$AK$2,COUNTIF($H$4:$H$100,">="&AI38)-COUNTIF($H$4:$H$100,">"&AJ38), IF($N$38="Sem Uso","")))))))) -> 3 | AI40: =IF($N$38=$AE$2,COUNTIF($B$4:$B$100,">="&AK38)-COUNTIF($B$4:$B$100,">"&AL38), IF($N$38=$AF$2,COUNTIF($C$4:$C$100,">="&AK38)-COUNTIF($C$4:$C$100,">"&AL38), IF($N$38=$AG$2,COUNTIF($D$4:$D$100,">="&AK38)-COUNTIF($D$4:$D$100,">"&AL38), IF($N$38=$AH$2,COUNTIF($E$4:$E$100,">="&AK38)-COUNTIF($E$4:$E$100,">"&AL38), IF($N$38=$AI$2,COUNTIF($F$4:$F$100,">="&AK38)-COUNTIF($F$4:$F$100,">"&AL38), IF($N$38=$AJ$2,COUNTIF($G$4:$G$100,">="&AK38)-COUNTIF($G$4:$G$100,">"&AL38), IF($N$38=$AK$2,COUNTIF($H$4:$H$100,">="&AK38)-COUNTIF($H$4:$H$100,">"&AL38), IF($N$38="Sem Uso","")))))))) -> 0 | AJ40: =IF($N$38=$AE$2,COUNTIF($B$4:$B$100,">="&AM38)-COUNTIF($B$4:$B$100,">"&AN38), IF($N$38=$AF$2,COUNTIF($C$4:$C$100,">="&AM38)-COUNTIF($C$4:$C$100,">"&AN38), IF($N$38=$AG$2,COUNTIF($D$4:$D$100,">="&AM38)-COUNTIF($D$4:$D$100,">"&AN38), IF($N$38=$AH$2,COUNTIF($E$4:$E$100,">="&AM38)-COUNTIF($E$4:$E$100,">"&AN38), IF($N$38=$AI$2,COUNTIF($F$4:$F$100,">="&AM38)-COUNTIF($F$4:$F$100,">"&AN38), IF($N$38=$AJ$2,COUNTIF($G$4:$G$100,">="&AM38)-COUNTIF($G$4:$G$100,">"&AN38), IF($N$38=$AK$2,COUNTIF($H$4:$H$100,">="&AM38)-COUNTIF($H$4:$H$100,">"&AN38), IF($N$38="Sem Uso","")))))))) -> 0 | AK40: =IF($N$38=$AE$2,COUNTIF($B$4:$B$100,">="&AO38)-COUNTIF($B$4:$B$100,">"&AP38), IF($N$38=$AF$2,COUNTIF($C$4:$C$100,">="&AO38)-COUNTIF($C$4:$C$100,">"&AP38), IF($N$38=$AG$2,COUNTIF($D$4:$D$100,">="&AO38)-COUNTIF($D$4:$D$100,">"&AP38), IF($N$38=$AH$2,COUNTIF($E$4:$E$100,">="&AO38)-COUNTIF($E$4:$E$100,">"&AP38), IF($N$38=$AI$2,COUNTIF($F$4:$F$100,">="&AO38)-COUNTIF($F$4:$F$100,">"&AP38), IF($N$38=$AJ$2,COUNTIF($G$4:$G$100,">="&AO38)-COUNTIF($G$4:$G$100,">"&AP38), IF($N$38=$AK$2,COUNTIF($H$4:$H$100,">="&AO38)-COUNTIF($H$4:$H$100,">"&AP38), IF($N$38="Sem Uso","")))))))) -> 0
K41: Valor da Aula | N41: =IF(AF47<>0,AF47,"") -> 17.66 | O41: 19.76 | P41: 23.68 | Q41: 27.65 | R41: 30.86 | U41: Valor da Aula | W41: =IFERROR(IF(N41<=$S$45,0,N41-$S$45),"") -> 0 | X41: 2.1 | Y41: 6.02 | Z41: 9.99 | AA41: 13.2
K42: Nr. de Aulas | N42: =IF(AF45<>"",AF46,"") -> 0 | O42: 0 | P42: 3 | Q42: 0 | R42: 0 | U42: Nr. de Aulas | W42: =N42 -> 0 | X42: 0 | Y42: 3 | Z42: 0 | AA42: 0 | AE42: =IF(N42<>"",N42,"") -> 0 | AF42: 0 | AG42: 3 | AH42: 0 | AI42: 0
K43: Valor | N43: =IFERROR(N41*N42,"") -> 0 | O43: 0 | P43: 71.04 | Q43: 0 | R43: 0 | U43: Valor | W43: =IFERROR(W41*W42,"") -> 0 | X43: 0 | Y43: 18.06 | Z43: 0 | AA43: 0 | AF43: =IF($N38<>"Sem Uso",VLOOKUP(N38,Configurações!$C$1:$I$8,2,0),"") -> 0 | AG43: =IF(N38<>"Sem Uso",VLOOKUP(N38,Configurações!$C$1:$I$8,3,0),"") -> 1 a 4 | AH43: =IF(N38<>"Sem Uso",VLOOKUP(N38,Configurações!$C$1:$I$8,4,0),"") -> 5 a 8 | AI43: =IF(N38<>"Sem Uso",VLOOKUP(N38,Configurações!$C$1:$I$8,5,0),"") -> 9 a 12 | AJ43: =IF(N38<>"Sem Uso",VLOOKUP(N38,Configurações!$C$1:$I$8,6,0),"") -> 13 a 16 | AK43: =IF(N38<>"Sem Uso",VLOOKUP(N38,Configurações!$C$1:$I$8,7,0),"") -> 0
M44: Total de Alunos | Q44: =_xlfn.IFS(N38=$AE$2,$B$102,N38=$AF$2,$C$102,N38=$AG$2,$D$102,N38=$AH$2,$E$102,N38=$AI$2,$F$102,N38=$AJ$2,$G$102,N38=$AK$2,$H$102,N38="Sem Uso","") -> 19 | V44: Total de Alunos | Z44: =Q44 -> 19 | AE44: TABELA DE EQUIVALÊNCIA
M45: Total de Aulas | Q45: =IF(Q44<>"",SUM(AE42:AJ42),"") -> 3 | R45: Registro | S45: 17.66 | V45: Total de Aulas | Z45: =Q45 -> 3 | AE45: Nr. Alunos | AF45: =AF43 -> 0 | AG45: =IF(AG43<>0,AG43,"") -> 1 a 4 | AH45: =IF(AH43<>0,AH43,"") -> 5 a 8 | AI45: =IF(AI43<>0,AI43,"") -> 9 a 12 | AJ45: =IF(AJ43<>0,AJ43,"") -> 13 a 16 | AK45: =IF(AK43<>0,AK43,"") -> 
M46: Total a Receber | Q46: =IF(Q44<>"",SUM(N43:S43),"") -> 71.04 | V46: Total a Receber | Z46: =IF(Z44<>"",SUM(W43:AB43),"") -> 18.06 | AE46: Aulas | AF46: =IF(AF45<>"",AF40,"") -> 0 | AG46: 0 | AH46: 3 | AI46: 0 | AJ46: 0
AF47: =IFERROR(VLOOKUP(N38&R38,Configurações!$C$13:$I$47,2,0),"") -> 17.66 | AG47: =IFERROR(IF(AG45<>0,VLOOKUP(N38&R38,Configurações!$C$13:$I$47,3,0),""),"") -> 19.76 | AH47: =IFERROR(IF(AH45<>0,VLOOKUP(N38&R38,Configurações!$C$13:$I$47,4,0),""),"") -> 23.68 | AI47: =IFERROR(IF(AI45<>0,VLOOKUP(N38&R38,Configurações!$C$13:$I$47,5,0),""),"") -> 27.65 | AJ47: =IFERROR(IF(AJ45<>0,VLOOKUP(N38&R38,Configurações!$C$13:$I$47,6,0),""),"") -> 30.86 | AK47: =IFERROR(IF(AK45<>0,VLOOKUP(N38&R38,Configurações!$C$13:$I$47,7,0),""),"") -> 0
K49: Modalidade | N49: Hidroginástica | Q49: Nível | R49: Prof. Nível C | AE49: =VLOOKUP(N49,Configurações!$J$1:$V$9,2,0) -> 0 | AF49: =VLOOKUP(N49,Configurações!$J$1:$V$9,3,0) -> 0 | AG49: =VLOOKUP(N49,Configurações!$J$1:$V$9,4,0) -> 1 | AH49: =VLOOKUP(N49,Configurações!$J$1:$V$9,5,0) -> 7 | AI49: =VLOOKUP(N49,Configurações!$J$1:$V$9,6,0) -> 8 | AJ49: =VLOOKUP(N49,Configurações!$J$1:$V$9,7,0) -> 15 | AK49: =VLOOKUP(N49,Configurações!$J$1:$V$9,8,0) -> 16 | AL49: =VLOOKUP(N49,Configurações!$J$1:$V$9,9,0) -> 22 | AM49: =VLOOKUP(N49,Configurações!$J$1:$V$9,10,0) -> 23 | AN49: =VLOOKUP(N49,Configurações!$J$1:$V$9,11,0) -> 30 | AO49: =VLOOKUP(N49,Configurações!$J$1:$V$9,12,0) ->  | AP49: =VLOOKUP(N49,Configurações!$J$1:$V$9,13,0) -> 
K50: Academia | U50: Contabilidade | AE50: =IFERROR(VLOOKUP(N49,_xlfn.ANCHORARRAY($AQ$2),2,0),0) -> 30
K51: Nr. de Alunos | N51: =IF(AF56<>"",AF56,"") -> 0 | O51: =IF(AG56<>"",AG56,"") -> 1 a 7 | P51: =IF(AH56<>"",AH56,"") -> 8 a 15 | Q51: =IF(AI56<>"",AI56,"") -> 16 a 22 | R51: =IF(AJ56<>"",AJ56,"") -> 23 a 30 | S51: =IF(AK56<>0,AK56,"") ->  | U51: Nr. de Alunos | W51: =N51 -> 0 | X51: =O51 -> 1 a 7 | Y51: 8 a 15 | Z51: 16 a 22 | AA51: 23 a 30 | AF51: =IF($N$49=$AE$2,COUNTIF($B$4:$B$100,">="&AE49)-COUNTIF($B$4:$B$100,">"&AF49), IF($N$49=$AF$2,COUNTIF($C$4:$C$100,">="&AE49)-COUNTIF($C$4:$C$100,">"&AF49), IF($N$49=$AG$2,COUNTIF($D$4:$D$100,">="&AE49)-COUNTIF($D$4:$D$100,">"&AF49), IF($N$49=$AH$2,COUNTIF($E$4:$E$100,">="&AE49)-COUNTIF($E$4:$E$100,">"&AF49), IF($N$49=$AI$2,COUNTIF($F$4:$F$100,">="&AE49)-COUNTIF($F$4:$F$100,">"&AF49), IF($N$49=$AJ$2,COUNTIF($G$4:$G$100,">="&AE49)-COUNTIF($G$4:$G$100,">"&AF49), IF($N$49=$AK$2,COUNTIF($H$4:$H$100,">="&AE49)-COUNTIF($H$4:$H$100,">"&AF49), IF($N$49="Sem Uso","")))))))) -> 0 | AG51: =IF($N$49=$AE$2,COUNTIF($B$4:$B$100,">="&AG49)-COUNTIF($B$4:$B$100,">"&AH49), IF($N$49=$AF$2,COUNTIF($C$4:$C$100,">="&AG49)-COUNTIF($C$4:$C$100,">"&AH49), IF($N$49=$AG$2,COUNTIF($D$4:$D$100,">="&AG49)-COUNTIF($D$4:$D$100,">"&AH49), IF($N$49=$AH$2,COUNTIF($E$4:$E$100,">="&AG49)-COUNTIF($E$4:$E$100,">"&AH49), IF($N$49=$AI$2,COUNTIF($F$4:$F$100,">="&AG49)-COUNTIF($F$4:$F$100,">"&AH49), IF($N$49=$AJ$2,COUNTIF($G$4:$G$100,">="&AG49)-COUNTIF($G$4:$G$100,">"&AH49), IF($N$49=$AK$2,COUNTIF($H$4:$H$100,">="&AG49)-COUNTIF($H$4:$H$100,">"&AH49), IF($N$49="Sem Uso","")))))))) -> 2 | AH51: =IF($N$49=$AE$2,COUNTIF($B$4:$B$100,">="&AI49)-COUNTIF($B$4:$B$100,">"&AJ49), IF($N$49=$AF$2,COUNTIF($C$4:$C$100,">="&AI49)-COUNTIF($C$4:$C$100,">"&AJ49), IF($N$49=$AG$2,COUNTIF($D$4:$D$100,">="&AI49)-COUNTIF($D$4:$D$100,">"&AJ49), IF($N$49=$AH$2,COUNTIF($E$4:$E$100,">="&AI49)-COUNTIF($E$4:$E$100,">"&AJ49), IF($N$49=$AI$2,COUNTIF($F$4:$F$100,">="&AI49)-COUNTIF($F$4:$F$100,">"&AJ49), IF($N$49=$AJ$2,COUNTIF($G$4:$G$100,">="&AI49)-COUNTIF($G$4:$G$100,">"&AJ49), IF($N$49=$AK$2,COUNTIF($H$4:$H$100,">="&AI49)-COUNTIF($H$4:$H$100,">"&AJ49), IF($N$49="Sem Uso","")))))))) -> 2 | AI51: =IF($N$49=$AE$2,COUNTIF($B$4:$B$100,">="&AK49)-COUNTIF($B$4:$B$100,">"&AL49), IF($N$49=$AF$2,COUNTIF($C$4:$C$100,">="&AK49)-COUNTIF($C$4:$C$100,">"&AL49), IF($N$49=$AG$2,COUNTIF($D$4:$D$100,">="&AK49)-COUNTIF($D$4:$D$100,">"&AL49), IF($N$49=$AH$2,COUNTIF($E$4:$E$100,">="&AK49)-COUNTIF($E$4:$E$100,">"&AL49), IF($N$49=$AI$2,COUNTIF($F$4:$F$100,">="&AK49)-COUNTIF($F$4:$F$100,">"&AL49), IF($N$49=$AJ$2,COUNTIF($G$4:$G$100,">="&AK49)-COUNTIF($G$4:$G$100,">"&AL49), IF($N$49=$AK$2,COUNTIF($H$4:$H$100,">="&AK49)-COUNTIF($H$4:$H$100,">"&AL49), IF($N$49="Sem Uso","")))))))) -> 0 | AJ51: =IF($N$49=$AE$2,COUNTIF($B$4:$B$100,">="&AM49)-COUNTIF($B$4:$B$100,">"&AN49), IF($N$49=$AF$2,COUNTIF($C$4:$C$100,">="&AM49)-COUNTIF($C$4:$C$100,">"&AN49), IF($N$49=$AG$2,COUNTIF($D$4:$D$100,">="&AM49)-COUNTIF($D$4:$D$100,">"&AN49), IF($N$49=$AH$2,COUNTIF($E$4:$E$100,">="&AM49)-COUNTIF($E$4:$E$100,">"&AN49), IF($N$49=$AI$2,COUNTIF($F$4:$F$100,">="&AM49)-COUNTIF($F$4:$F$100,">"&AN49), IF($N$49=$AJ$2,COUNTIF($G$4:$G$100,">="&AM49)-COUNTIF($G$4:$G$100,">"&AN49), IF($N$49=$AK$2,COUNTIF($H$4:$H$100,">="&AM49)-COUNTIF($H$4:$H$100,">"&AN49), IF($N$49="Sem Uso","")))))))) -> 0 | AK51: =IF($N$49=$AE$2,COUNTIF($B$4:$B$100,">="&AO49)-COUNTIF($B$4:$B$100,">"&AP49), IF($N$49=$AF$2,COUNTIF($C$4:$C$100,">="&AO49)-COUNTIF($C$4:$C$100,">"&AP49), IF($N$49=$AG$2,COUNTIF($D$4:$D$100,">="&AO49)-COUNTIF($D$4:$D$100,">"&AP49), IF($N$49=$AH$2,COUNTIF($E$4:$E$100,">="&AO49)-COUNTIF($E$4:$E$100,">"&AP49), IF($N$49=$AI$2,COUNTIF($F$4:$F$100,">="&AO49)-COUNTIF($F$4:$F$100,">"&AP49), IF($N$49=$AJ$2,COUNTIF($G$4:$G$100,">="&AO49)-COUNTIF($G$4:$G$100,">"&AP49), IF($N$49=$AK$2,COUNTIF($H$4:$H$100,">="&AO49)-COUNTIF($H$4:$H$100,">"&AP49), IF($N$49="Sem Uso","")))))))) -> 0
K52: Valor da Aula | N52: =IF(AF58<>0,AF58,"") -> 17.66 | O52: 23.68 | P52: 27.65 | Q52: 33.42 | R52: 38.81 | U52: Valor da Aula | W52: =IFERROR(IF(N52<=$S$56,0,N52-$S$56),"") -> 0 | X52: 6.02 | Y52: 9.99 | Z52: 15.76 | AA52: 21.15
K53: Nr. de Aulas | N53: =IF(AF56<>"",AF57,"") -> 0 | O53: 2 | P53: 2 | Q53: 0 | R53: 0 | U53: Nr. de Aulas | W53: =N53 -> 0 | X53: 2 | Y53: 2 | Z53: 0 | AA53: 0 | AE53: =IF(N53<>"",N53,"") -> 0 | AF53: 2 | AG53: 2 | AH53: 0 | AI53: 0
K54: Valor | N54: =IFERROR(N52*N53,"") -> 0 | O54: 47.36 | P54: 55.3 | Q54: 0 | R54: 0 | U54: Valor | W54: =IFERROR(W52*W53,"") -> 0 | X54: 12.04 | Y54: 19.98 | Z54: 0 | AA54: 0 | AF54: =IF($N49<>"Sem Uso",VLOOKUP(N49,Configurações!$C$1:$I$8,2,0),"") -> 0 | AG54: =IF(N49<>"Sem Uso",VLOOKUP(N49,Configurações!$C$1:$I$8,3,0),"") -> 1 a 7 | AH54: =IF(N49<>"Sem Uso",VLOOKUP(N49,Configurações!$C$1:$I$8,4,0),"") -> 8 a 15 | AI54: =IF(N49<>"Sem Uso",VLOOKUP(N49,Configurações!$C$1:$I$8,5,0),"") -> 16 a 22 | AJ54: =IF(N49<>"Sem Uso",VLOOKUP(N49,Configurações!$C$1:$I$8,6,0),"") -> 23 a 30 | AK54: =IF(N49<>"Sem Uso",VLOOKUP(N49,Configurações!$C$1:$I$8,7,0),"") -> 0
M55: Total de Alunos | Q55: =_xlfn.IFS(N49=$AE$2,$B$102,N49=$AF$2,$C$102,N49=$AG$2,$D$102,N49=$AH$2,$E$102,N49=$AI$2,$F$102,N49=$AJ$2,$G$102,N49=$AK$2,$H$102,N49="Sem Uso","") -> 30 | V55: Total de Alunos | Z55: =Q55 -> 30 | AE55: TABELA DE EQUIVALÊNCIA
M56: Total de Aulas | Q56: =IF(Q55<>"",SUM(AE53:AJ53),"") -> 4 | R56: Registro | S56: 17.66 | V56: Total de Aulas | Z56: =Q56 -> 4 | AE56: Nr. Alunos | AF56: =AF54 -> 0 | AG56: =IF(AG54<>0,AG54,"") -> 1 a 7 | AH56: =IF(AH54<>0,AH54,"") -> 8 a 15 | AI56: =IF(AI54<>0,AI54,"") -> 16 a 22 | AJ56: =IF(AJ54<>0,AJ54,"") -> 23 a 30 | AK56: =IF(AK54<>0,AK54,"") -> 
M57: Total a Receber | Q57: =IF(Q55<>"",SUM(N54:S54),"") -> 102.66 | V57: Total a Receber | Z57: =IF(Z55<>"",SUM(W54:AB54),"") -> 32.02 | AE57: Aulas | AF57: =IF(AF56<>"",AF51,"") -> 0 | AG57: 2 | AH57: 2 | AI57: 0 | AJ57: 0
AF58: =IFERROR(VLOOKUP(N49&R49,Configurações!$C$13:$I$47,2,0),"") -> 17.66 | AG58: =IFERROR(IF(AG56<>0,VLOOKUP(N49&R49,Configurações!$C$13:$I$47,3,0),""),"") -> 23.68 | AH58: =IFERROR(IF(AH56<>0,VLOOKUP(N49&R49,Configurações!$C$13:$I$47,4,0),""),"") -> 27.65 | AI58: =IFERROR(IF(AI56<>0,VLOOKUP(N49&R49,Configurações!$C$13:$I$47,5,0),""),"") -> 33.42 | AJ58: =IFERROR(IF(AJ56<>0,VLOOKUP(N49&R49,Configurações!$C$13:$I$47,6,0),""),"") -> 38.81 | AK58: =IFERROR(IF(AK56<>0,VLOOKUP(N49&R49,Configurações!$C$13:$I$47,7,0),""),"") -> 0
K60: Modalidade | N60: Sem Uso | Q60: Nível | R60: Prof. Especial | AE60: =VLOOKUP(N60,Configurações!$J$1:$V$9,2,0) ->  | AF60: =VLOOKUP(N60,Configurações!$J$1:$V$9,3,0) ->  | AG60: =VLOOKUP(N60,Configurações!$J$1:$V$9,4,0) ->  | AH60: =VLOOKUP(N60,Configurações!$J$1:$V$9,5,0) ->  | AI60: =VLOOKUP(N60,Configurações!$J$1:$V$9,6,0) ->  | AJ60: =VLOOKUP(N60,Configurações!$J$1:$V$9,7,0) ->  | AK60: =VLOOKUP(N60,Configurações!$J$1:$V$9,8,0) ->  | AL60: =VLOOKUP(N60,Configurações!$J$1:$V$9,9,0) ->  | AM60: =VLOOKUP(N60,Configurações!$J$1:$V$9,10,0) ->  | AN60: =VLOOKUP(N60,Configurações!$J$1:$V$9,11,0) ->  | AO60: =VLOOKUP(N60,Configurações!$J$1:$V$9,12,0) ->  | AP60: =VLOOKUP(N60,Configurações!$J$1:$V$9,13,0) -> 
K61: Academia | U61: Contabilidade | AE61: =IFERROR(VLOOKUP(N60,_xlfn.ANCHORARRAY($AQ$2),2,0),0) -> 0
K62: Nr. de Alunos | N62: =IF(AF67<>"",AF67,"") ->  | O62: =IF(AG67<>"",AG67,"") ->  | P62: =IF(AH67<>"",AH67,"") ->  | Q62: =IF(AI67<>"",AI67,"") ->  | R62: =IF(AJ67<>"",AJ67,"") ->  | S62: =IF(AK67<>0,AK67,"") ->  | U62: Nr. de Alunos | W62: =N62 ->  | X62: =O62 ->  | AF62: =IF($N$60=$AE$2,COUNTIF($B$4:$B$100,">="&AE60)-COUNTIF($B$4:$B$100,">"&AF60), IF($N$60=$AF$2,COUNTIF($C$4:$C$100,">="&AE60)-COUNTIF($C$4:$C$100,">"&AF60), IF($N$60=$AG$2,COUNTIF($D$4:$D$100,">="&AE60)-COUNTIF($D$4:$D$100,">"&AF60), IF($N$60=$AH$2,COUNTIF($E$4:$E$100,">="&AE60)-COUNTIF($E$4:$E$100,">"&AF60), IF($N$60=$AI$2,COUNTIF($F$4:$F$100,">="&AE60)-COUNTIF($F$4:$F$100,">"&AF60), IF($N$60=$AJ$2,COUNTIF($G$4:$G$100,">="&AE60)-COUNTIF($G$4:$G$100,">"&AF60), IF($N$60=$AK$2,COUNTIF($H$4:$H$100,">="&AE60)-COUNTIF($H$4:$H$100,">"&AF60), IF($N$60="Sem Uso","")))))))) ->  | AG62: =IF($N$60=$AE$2,COUNTIF($B$4:$B$100,">="&AG60)-COUNTIF($B$4:$B$100,">"&AH60), IF($N$60=$AF$2,COUNTIF($C$4:$C$100,">="&AG60)-COUNTIF($C$4:$C$100,">"&AH60), IF($N$60=$AG$2,COUNTIF($D$4:$D$100,">="&AG60)-COUNTIF($D$4:$D$100,">"&AH60), IF($N$60=$AH$2,COUNTIF($E$4:$E$100,">="&AG60)-COUNTIF($E$4:$E$100,">"&AH60), IF($N$60=$AI$2,COUNTIF($F$4:$F$100,">="&AG60)-COUNTIF($F$4:$F$100,">"&AH60), IF($N$60=$AJ$2,COUNTIF($G$4:$G$100,">="&AG60)-COUNTIF($G$4:$G$100,">"&AH60), IF($N$60=$AK$2,COUNTIF($H$4:$H$100,">="&AG60)-COUNTIF($H$4:$H$100,">"&AH60), IF($N$60="Sem Uso","")))))))) ->  | AH62: =IF($N$60=$AE$2,COUNTIF($B$4:$B$100,">="&AI60)-COUNTIF($B$4:$B$100,">"&AJ60), IF($N$60=$AF$2,COUNTIF($C$4:$C$100,">="&AI60)-COUNTIF($C$4:$C$100,">"&AJ60), IF($N$60=$AG$2,COUNTIF($D$4:$D$100,">="&AI60)-COUNTIF($D$4:$D$100,">"&AJ60), IF($N$60=$AH$2,COUNTIF($E$4:$E$100,">="&AI60)-COUNTIF($E$4:$E$100,">"&AJ60), IF($N$60=$AI$2,COUNTIF($F$4:$F$100,">="&AI60)-COUNTIF($F$4:$F$100,">"&AJ60), IF($N$60=$AJ$2,COUNTIF($G$4:$G$100,">="&AI60)-COUNTIF($G$4:$G$100,">"&AJ60), IF($N$60=$AK$2,COUNTIF($H$4:$H$100,">="&AI60)-COUNTIF($H$4:$H$100,">"&AJ60), IF($N$60="Sem Uso","")))))))) ->  | AI62: =IF($N$60=$AE$2,COUNTIF($B$4:$B$100,">="&AK60)-COUNTIF($B$4:$B$100,">"&AL60), IF($N$60=$AF$2,COUNTIF($C$4:$C$100,">="&AK60)-COUNTIF($C$4:$C$100,">"&AL60), IF($N$60=$AG$2,COUNTIF($D$4:$D$100,">="&AK60)-COUNTIF($D$4:$D$100,">"&AL60), IF($N$60=$AH$2,COUNTIF($E$4:$E$100,">="&AK60)-COUNTIF($E$4:$E$100,">"&AL60), IF($N$60=$AI$2,COUNTIF($F$4:$F$100,">="&AK60)-COUNTIF($F$4:$F$100,">"&AL60), IF($N$60=$AJ$2,COUNTIF($G$4:$G$100,">="&AK60)-COUNTIF($G$4:$G$100,">"&AL60), IF($N$60=$AK$2,COUNTIF($H$4:$H$100,">="&AK60)-COUNTIF($H$4:$H$100,">"&AL60), IF($N$60="Sem Uso","")))))))) ->  | AJ62: =IF($N$60=$AE$2,COUNTIF($B$4:$B$100,">="&AM60)-COUNTIF($B$4:$B$100,">"&AN60), IF($N$60=$AF$2,COUNTIF($C$4:$C$100,">="&AM60)-COUNTIF($C$4:$C$100,">"&AN60), IF($N$60=$AG$2,COUNTIF($D$4:$D$100,">="&AM60)-COUNTIF($D$4:$D$100,">"&AN60), IF($N$60=$AH$2,COUNTIF($E$4:$E$100,">="&AM60)-COUNTIF($E$4:$E$100,">"&AN60), IF($N$60=$AI$2,COUNTIF($F$4:$F$100,">="&AM60)-COUNTIF($F$4:$F$100,">"&AN60), IF($N$60=$AJ$2,COUNTIF($G$4:$G$100,">="&AM60)-COUNTIF($G$4:$G$100,">"&AN60), IF($N$60=$AK$2,COUNTIF($H$4:$H$100,">="&AM60)-COUNTIF($H$4:$H$100,">"&AN60), IF($N$60="Sem Uso","")))))))) ->  | AK62: =IF($N$60=$AE$2,COUNTIF($B$4:$B$100,">="&AO60)-COUNTIF($B$4:$B$100,">"&AP60), IF($N$60=$AF$2,COUNTIF($C$4:$C$100,">="&AO60)-COUNTIF($C$4:$C$100,">"&AP60), IF($N$60=$AG$2,COUNTIF($D$4:$D$100,">="&AO60)-COUNTIF($D$4:$D$100,">"&AP60), IF($N$60=$AH$2,COUNTIF($E$4:$E$100,">="&AO60)-COUNTIF($E$4:$E$100,">"&AP60), IF($N$60=$AI$2,COUNTIF($F$4:$F$100,">="&AO60)-COUNTIF($F$4:$F$100,">"&AP60), IF($N$60=$AJ$2,COUNTIF($G$4:$G$100,">="&AO60)-COUNTIF($G$4:$G$100,">"&AP60), IF($N$60=$AK$2,COUNTIF($H$4:$H$100,">="&AO60)-COUNTIF($H$4:$H$100,">"&AP60), IF($N$60="Sem Uso","")))))))) -> 
K63: Valor da Aula | N63: =IF(AF69<>0,AF69,"") ->  | U63: Valor da Aula | W63: =IFERROR(IF(N63<=$S$67,0,N63-$S$67),"") -> 0 | X63: 0 | Y63: 0 | Z63: 0 | AA63: 0 | AB63: 0
K64: Nr. de Aulas | N64: =IF(AF67<>"",AF68,"") ->  | U64: Nr. de Aulas | W64: =N64 ->  | AE64: =IF(N64<>"",N64,"") -> 
K65: Valor | N65: =IFERROR(N63*N64,"") ->  | U65: Valor | W65: =IFERROR(W63*W64,"") ->  | AF65: =IF($N60<>"Sem Uso",VLOOKUP(N60,Configurações!$C$1:$I$8,2,0),"") ->  | AG65: =IF(N60<>"Sem Uso",VLOOKUP(N60,Configurações!$C$1:$I$8,3,0),"") ->  | AH65: =IF(N60<>"Sem Uso",VLOOKUP(N60,Configurações!$C$1:$I$8,4,0),"") ->  | AI65: =IF(N60<>"Sem Uso",VLOOKUP(N60,Configurações!$C$1:$I$8,5,0),"") ->  | AJ65: =IF(N60<>"Sem Uso",VLOOKUP(N60,Configurações!$C$1:$I$8,6,0),"") ->  | AK65: =IF(N60<>"Sem Uso",VLOOKUP(N60,Configurações!$C$1:$I$8,7,0),"") -> 
M66: Total de Alunos | Q66: =_xlfn.IFS(N60=$AE$2,$B$102,N60=$AF$2,$C$102,N60=$AG$2,$D$102,N60=$AH$2,$E$102,N60=$AI$2,$F$102,N60=$AJ$2,$G$102,N60=$AK$2,$H$102,N60="Sem Uso","") ->  | V66: Total de Alunos | Z66: =Q66 ->  | AE66: TABELA DE EQUIVALÊNCIA
M67: Total de Aulas | Q67: =IF(Q66<>"",SUM(AE64:AJ64),"") ->  | R67: Registro | V67: Total de Aulas | Z67: =Q67 ->  | AE67: Nr. Alunos | AF67: =AF65 ->  | AG67: =IF(AG65<>0,AG65,"") ->  | AH67: =IF(AH65<>0,AH65,"") ->  | AI67: =IF(AI65<>0,AI65,"") ->  | AJ67: =IF(AJ65<>0,AJ65,"") ->  | AK67: =IF(AK65<>0,AK65,"") -> 
M68: Total a Receber | Q68: =IF(Q66<>"",SUM(N65:S65),"") ->  | V68: Total a Receber | Z68: =IF(Z66<>"",SUM(W65:AB65),"") ->  | AE68: Aulas | AF68: =IF(AF67<>"",AF62,"") -> 
AF69: =IFERROR(VLOOKUP(N60&R60,Configurações!$C$13:$I$47,2,0),"") ->  | AG69: =IFERROR(IF(AG67<>0,VLOOKUP(N60&R60,Configurações!$C$13:$I$47,3,0),""),"") ->  | AH69: =IFERROR(IF(AH67<>0,VLOOKUP(N60&R60,Configurações!$C$13:$I$47,4,0),""),"") ->  | AI69: =IFERROR(IF(AI67<>0,VLOOKUP(N60&R60,Configurações!$C$13:$I$47,5,0),""),"") ->  | AJ69: =IFERROR(IF(AJ67<>0,VLOOKUP(N60&R60,Configurações!$C$13:$I$47,6,0),""),"") ->  | AK69: =IFERROR(IF(AK67<>0,VLOOKUP(N60&R60,Configurações!$C$13:$I$47,7,0),""),"") -> 
K71: Modalidade | N71: Sem Uso | Q71: Nível | R71: Prof. Especial | AE71: =VLOOKUP(N71,Configurações!$J$1:$V$9,2,0) ->  | AF71: =VLOOKUP(N71,Configurações!$J$1:$V$9,3,0) ->  | AG71: =VLOOKUP(N71,Configurações!$J$1:$V$9,4,0) ->  | AH71: =VLOOKUP(N71,Configurações!$J$1:$V$9,5,0) ->  | AI71: =VLOOKUP(N71,Configurações!$J$1:$V$9,6,0) ->  | AJ71: =VLOOKUP(N71,Configurações!$J$1:$V$9,7,0) ->  | AK71: =VLOOKUP(N71,Configurações!$J$1:$V$9,8,0) ->  | AL71: =VLOOKUP(N71,Configurações!$J$1:$V$9,9,0) ->  | AM71: =VLOOKUP(N71,Configurações!$J$1:$V$9,10,0) ->  | AN71: =VLOOKUP(N71,Configurações!$J$1:$V$9,11,0) ->  | AO71: =VLOOKUP(N71,Configurações!$J$1:$V$9,12,0) ->  | AP71: =VLOOKUP(N71,Configurações!$J$1:$V$9,13,0) -> 
K72: Academia | U72: Contabilidade | AE72: =IFERROR(VLOOKUP(N71,_xlfn.ANCHORARRAY($AQ$2),2,0),0) -> 0
K73: Nr. de Alunos | N73: =IF(AF78<>"",AF78,"") ->  | O73: =IF(AG78<>"",AG78,"") ->  | P73: =IF(AH78<>"",AH78,"") ->  | Q73: =IF(AI78<>"",AI78,"") ->  | R73: =IF(AJ78<>"",AJ78,"") ->  | S73: =IF(AK78<>0,AK78,"") ->  | U73: Nr. de Alunos | W73: =N73 ->  | AF73: =IF($N$71=$AE$2,COUNTIF($B$4:$B$100,">="&AE71)-COUNTIF($B$4:$B$100,">"&AF71), IF($N$71=$AF$2,COUNTIF($C$4:$C$100,">="&AE71)-COUNTIF($C$4:$C$100,">"&AF71), IF($N$71=$AG$2,COUNTIF($D$4:$D$100,">="&AE71)-COUNTIF($D$4:$D$100,">"&AF71), IF($N$71=$AH$2,COUNTIF($E$4:$E$100,">="&AE71)-COUNTIF($E$4:$E$100,">"&AF71), IF($N$71=$AI$2,COUNTIF($F$4:$F$100,">="&AE71)-COUNTIF($F$4:$F$100,">"&AF71), IF($N$71=$AJ$2,COUNTIF($G$4:$G$100,">="&AE71)-COUNTIF($G$4:$G$100,">"&AF71), IF($N$71=$AK$2,COUNTIF($H$4:$H$100,">="&AE71)-COUNTIF($H$4:$H$100,">"&AF71), IF($N$71="Sem Uso","")))))))) ->  | AG73: =IF($N$71=$AE$2,COUNTIF($B$4:$B$100,">="&AG71)-COUNTIF($B$4:$B$100,">"&AH71), IF($N$71=$AF$2,COUNTIF($C$4:$C$100,">="&AG71)-COUNTIF($C$4:$C$100,">"&AH71), IF($N$71=$AG$2,COUNTIF($D$4:$D$100,">="&AG71)-COUNTIF($D$4:$D$100,">"&AH71), IF($N$71=$AH$2,COUNTIF($E$4:$E$100,">="&AG71)-COUNTIF($E$4:$E$100,">"&AH71), IF($N$71=$AI$2,COUNTIF($F$4:$F$100,">="&AG71)-COUNTIF($F$4:$F$100,">"&AH71), IF($N$71=$AJ$2,COUNTIF($G$4:$G$100,">="&AG71)-COUNTIF($G$4:$G$100,">"&AH71), IF($N$71=$AK$2,COUNTIF($H$4:$H$100,">="&AG71)-COUNTIF($H$4:$H$100,">"&AH71), IF($N$71="Sem Uso","")))))))) ->  | AH73: =IF($N$71=$AE$2,COUNTIF($B$4:$B$100,">="&AI71)-COUNTIF($B$4:$B$100,">"&AJ71), IF($N$71=$AF$2,COUNTIF($C$4:$C$100,">="&AI71)-COUNTIF($C$4:$C$100,">"&AJ71), IF($N$71=$AG$2,COUNTIF($D$4:$D$100,">="&AI71)-COUNTIF($D$4:$D$100,">"&AJ71), IF($N$71=$AH$2,COUNTIF($E$4:$E$100,">="&AI71)-COUNTIF($E$4:$E$100,">"&AJ71), IF($N$71=$AI$2,COUNTIF($F$4:$F$100,">="&AI71)-COUNTIF($F$4:$F$100,">"&AJ71), IF($N$71=$AJ$2,COUNTIF($G$4:$G$100,">="&AI71)-COUNTIF($G$4:$G$100,">"&AJ71), IF($N$71=$AK$2,COUNTIF($H$4:$H$100,">="&AI71)-COUNTIF($H$4:$H$100,">"&AJ71), IF($N$71="Sem Uso","")))))))) ->  | AI73: =IF($N$71=$AE$2,COUNTIF($B$4:$B$100,">="&AK71)-COUNTIF($B$4:$B$100,">"&AL71), IF($N$71=$AF$2,COUNTIF($C$4:$C$100,">="&AK71)-COUNTIF($C$4:$C$100,">"&AL71), IF($N$71=$AG$2,COUNTIF($D$4:$D$100,">="&AK71)-COUNTIF($D$4:$D$100,">"&AL71), IF($N$71=$AH$2,COUNTIF($E$4:$E$100,">="&AK71)-COUNTIF($E$4:$E$100,">"&AL71), IF($N$71=$AI$2,COUNTIF($F$4:$F$100,">="&AK71)-COUNTIF($F$4:$F$100,">"&AL71), IF($N$71=$AJ$2,COUNTIF($G$4:$G$100,">="&AK71)-COUNTIF($G$4:$G$100,">"&AL71), IF($N$71=$AK$2,COUNTIF($H$4:$H$100,">="&AK71)-COUNTIF($H$4:$H$100,">"&AL71), IF($N$71="Sem Uso","")))))))) ->  | AJ73: =IF($N$71=$AE$2,COUNTIF($B$4:$B$100,">="&AM71)-COUNTIF($B$4:$B$100,">"&AN71), IF($N$71=$AF$2,COUNTIF($C$4:$C$100,">="&AM71)-COUNTIF($C$4:$C$100,">"&AN71), IF($N$71=$AG$2,COUNTIF($D$4:$D$100,">="&AM71)-COUNTIF($D$4:$D$100,">"&AN71), IF($N$71=$AH$2,COUNTIF($E$4:$E$100,">="&AM71)-COUNTIF($E$4:$E$100,">"&AN71), IF($N$71=$AI$2,COUNTIF($F$4:$F$100,">="&AM71)-COUNTIF($F$4:$F$100,">"&AN71), IF($N$71=$AJ$2,COUNTIF($G$4:$G$100,">="&AM71)-COUNTIF($G$4:$G$100,">"&AN71), IF($N$71=$AK$2,COUNTIF($H$4:$H$100,">="&AM71)-COUNTIF($H$4:$H$100,">"&AN71), IF($N$71="Sem Uso","")))))))) ->  | AK73: =IF($N$71=$AE$2,COUNTIF($B$4:$B$100,">="&AO71)-COUNTIF($B$4:$B$100,">"&AP71), IF($N$71=$AF$2,COUNTIF($C$4:$C$100,">="&AO71)-COUNTIF($C$4:$C$100,">"&AP71), IF($N$71=$AG$2,COUNTIF($D$4:$D$100,">="&AO71)-COUNTIF($D$4:$D$100,">"&AP71), IF($N$71=$AH$2,COUNTIF($E$4:$E$100,">="&AO71)-COUNTIF($E$4:$E$100,">"&AP71), IF($N$71=$AI$2,COUNTIF($F$4:$F$100,">="&AO71)-COUNTIF($F$4:$F$100,">"&AP71), IF($N$71=$AJ$2,COUNTIF($G$4:$G$100,">="&AO71)-COUNTIF($G$4:$G$100,">"&AP71), IF($N$71=$AK$2,COUNTIF($H$4:$H$100,">="&AO71)-COUNTIF($H$4:$H$100,">"&AP71), IF($N$71="Sem Uso","")))))))) -> 
K74: Valor da Aula | N74: =IF(AF80<>0,AF80,"") ->  | U74: Valor da Aula | W74: =IFERROR(IF(N74<=$S$78,0,N74-$S$78),"") -> 0 | X74: 0 | Y74: 0 | Z74: 0 | AA74: 0 | AB74: 0
K75: Nr. de Aulas | N75: =IF(AF78<>"",AF79,"") ->  | U75: Nr. de Aulas | W75: =N75 ->  | AE75: =IF(N75<>"",N75,"") -> 
K76: Valor | N76: =IFERROR(N74*N75,"") ->  | U76: Valor | W76: =IFERROR(W74*W75,"") ->  | AF76: =IF($N71<>"Sem Uso",VLOOKUP(N71,Configurações!$C$1:$I$8,2,0),"") ->  | AG76: =IF(N71<>"Sem Uso",VLOOKUP(N71,Configurações!$C$1:$I$8,3,0),"") ->  | AH76: =IF(N71<>"Sem Uso",VLOOKUP(N71,Configurações!$C$1:$I$8,4,0),"") ->  | AI76: =IF(N71<>"Sem Uso",VLOOKUP(N71,Configurações!$C$1:$I$8,5,0),"") ->  | AJ76: =IF(N71<>"Sem Uso",VLOOKUP(N71,Configurações!$C$1:$I$8,6,0),"") ->  | AK76: =IF(N71<>"Sem Uso",VLOOKUP(N71,Configurações!$C$1:$I$8,7,0),"") -> 
M77: Total de Alunos | Q77: =_xlfn.IFS(N71=$AE$2,$B$102,N71=$AF$2,$C$102,N71=$AG$2,$D$102,N71=$AH$2,$E$102,N71=$AI$2,$F$102,N71=$AJ$2,$G$102,N71=$AK$2,$H$102,N71="Sem Uso","") ->  | V77: Total de Alunos | Z77: =Q77 ->  | AE77: TABELA DE EQUIVALÊNCIA
M78: Total de Aulas | Q78: =IF(Q77<>"",SUM(AE75:AJ75),"") ->  | R78: Registro | V78: Total de Aulas | Z78: =Q78 ->  | AE78: Nr. Alunos | AF78: =AF76 ->  | AG78: =IF(AG76<>0,AG76,"") ->  | AH78: =IF(AH76<>0,AH76,"") ->  | AI78: =IF(AI76<>0,AI76,"") ->  | AJ78: =IF(AJ76<>0,AJ76,"") ->  | AK78: =IF(AK76<>0,AK76,"") -> 
M79: Total a Receber | Q79: =IF(Q77<>"",SUM(N76:S76),"") ->  | V79: Total a Receber | Z79: =IF(Z77<>"",SUM(W76:AB76),"") ->  | AE79: Aulas | AF79: =IF(AF78<>"",AF73,"") -> 
AF80: =IFERROR(VLOOKUP(N71&R71,Configurações!$C$13:$I$47,2,0),"") ->  | AG80: =IFERROR(IF(AG78<>0,VLOOKUP(N71&R71,Configurações!$C$13:$I$47,3,0),""),"") ->  | AH80: =IFERROR(IF(AH78<>0,VLOOKUP(N71&R71,Configurações!$C$13:$I$47,4,0),""),"") ->  | AI80: =IFERROR(IF(AI78<>0,VLOOKUP(N71&R71,Configurações!$C$13:$I$47,5,0),""),"") ->  | AJ80: =IFERROR(IF(AJ78<>0,VLOOKUP(N71&R71,Configurações!$C$13:$I$47,6,0),""),"") ->  | AK80: =IFERROR(IF(AK78<>0,VLOOKUP(N71&R71,Configurações!$C$13:$I$47,7,0),""),"") -> 
K82: Modalidade | N82: Sem Uso | Q82: Nível | R82: Prof. Especial | AE82: =VLOOKUP(N82,Configurações!$J$1:$V$9,2,0) ->  | AF82: =VLOOKUP(N82,Configurações!$J$1:$V$9,3,0) ->  | AG82: =VLOOKUP(N82,Configurações!$J$1:$V$9,4,0) ->  | AH82: =VLOOKUP(N82,Configurações!$J$1:$V$9,5,0) ->  | AI82: =VLOOKUP(N82,Configurações!$J$1:$V$9,6,0) ->  | AJ82: =VLOOKUP(N82,Configurações!$J$1:$V$9,7,0) ->  | AK82: =VLOOKUP(N82,Configurações!$J$1:$V$9,8,0) ->  | AL82: =VLOOKUP(N82,Configurações!$J$1:$V$9,9,0) ->  | AM82: =VLOOKUP(N82,Configurações!$J$1:$V$9,10,0) ->  | AN82: =VLOOKUP(N82,Configurações!$J$1:$V$9,11,0) ->  | AO82: =VLOOKUP(N82,Configurações!$J$1:$V$9,12,0) ->  | AP82: =VLOOKUP(N82,Configurações!$J$1:$V$9,13,0) -> 
K83: Academia | U83: Contabilidade | AE83: =IFERROR(VLOOKUP(N82,_xlfn.ANCHORARRAY($AQ$2),2,0),0) -> 0
K84: Nr. de Alunos | N84: =IF(AF89<>"",AF89,"") ->  | O84: =IF(AG89<>"",AG89,"") ->  | P84: =IF(AH89<>"",AH89,"") ->  | Q84: =IF(AI89<>"",AI89,"") ->  | R84: =IF(AJ89<>"",AJ89,"") ->  | S84: =IF(AK89<>0,AK89,"") ->  | U84: Nr. de Alunos | W84: =N84 ->  | X84: =O84 ->  | AF84: =IF($N$82=$AE$2,COUNTIF($B$4:$B$100,">="&AE82)-COUNTIF($B$4:$B$100,">"&AF82), IF($N$82=$AF$2,COUNTIF($C$4:$C$100,">="&AE82)-COUNTIF($C$4:$C$100,">"&AF82), IF($N$82=$AG$2,COUNTIF($D$4:$D$100,">="&AE82)-COUNTIF($D$4:$D$100,">"&AF82), IF($N$82=$AH$2,COUNTIF($E$4:$E$100,">="&AE82)-COUNTIF($E$4:$E$100,">"&AF82), IF($N$82=$AI$2,COUNTIF($F$4:$F$100,">="&AE82)-COUNTIF($F$4:$F$100,">"&AF82), IF($N$82=$AJ$2,COUNTIF($G$4:$G$100,">="&AE82)-COUNTIF($G$4:$G$100,">"&AF82), IF($N$82=$AK$2,COUNTIF($H$4:$H$100,">="&AE82)-COUNTIF($H$4:$H$100,">"&AF82), IF($N$82="Sem Uso","")))))))) ->  | AG84: =IF($N$82=$AE$2,COUNTIF($B$4:$B$100,">="&AG82)-COUNTIF($B$4:$B$100,">"&AH82), IF($N$82=$AF$2,COUNTIF($C$4:$C$100,">="&AG82)-COUNTIF($C$4:$C$100,">"&AH82), IF($N$82=$AG$2,COUNTIF($D$4:$D$100,">="&AG82)-COUNTIF($D$4:$D$100,">"&AH82), IF($N$82=$AH$2,COUNTIF($E$4:$E$100,">="&AG82)-COUNTIF($E$4:$E$100,">"&AH82), IF($N$82=$AI$2,COUNTIF($F$4:$F$100,">="&AG82)-COUNTIF($F$4:$F$100,">"&AH82), IF($N$82=$AJ$2,COUNTIF($G$4:$G$100,">="&AG82)-COUNTIF($G$4:$G$100,">"&AH82), IF($N$82=$AK$2,COUNTIF($H$4:$H$100,">="&AG82)-COUNTIF($H$4:$H$100,">"&AH82), IF($N$82="Sem Uso","")))))))) ->  | AH84: =IF($N$82=$AE$2,COUNTIF($B$4:$B$100,">="&AI82)-COUNTIF($B$4:$B$100,">"&AJ82), IF($N$82=$AF$2,COUNTIF($C$4:$C$100,">="&AI82)-COUNTIF($C$4:$C$100,">"&AJ82), IF($N$82=$AG$2,COUNTIF($D$4:$D$100,">="&AI82)-COUNTIF($D$4:$D$100,">"&AJ82), IF($N$82=$AH$2,COUNTIF($E$4:$E$100,">="&AI82)-COUNTIF($E$4:$E$100,">"&AJ82), IF($N$82=$AI$2,COUNTIF($F$4:$F$100,">="&AI82)-COUNTIF($F$4:$F$100,">"&AJ82), IF($N$82=$AJ$2,COUNTIF($G$4:$G$100,">="&AI82)-COUNTIF($G$4:$G$100,">"&AJ82), IF($N$82=$AK$2,COUNTIF($H$4:$H$100,">="&AI82)-COUNTIF($H$4:$H$100,">"&AJ82), IF($N$82="Sem Uso","")))))))) ->  | AI84: =IF($N$82=$AE$2,COUNTIF($B$4:$B$100,">="&AK82)-COUNTIF($B$4:$B$100,">"&AL82), IF($N$82=$AF$2,COUNTIF($C$4:$C$100,">="&AK82)-COUNTIF($C$4:$C$100,">"&AL82), IF($N$82=$AG$2,COUNTIF($D$4:$D$100,">="&AK82)-COUNTIF($D$4:$D$100,">"&AL82), IF($N$82=$AH$2,COUNTIF($E$4:$E$100,">="&AK82)-COUNTIF($E$4:$E$100,">"&AL82), IF($N$82=$AI$2,COUNTIF($F$4:$F$100,">="&AK82)-COUNTIF($F$4:$F$100,">"&AL82), IF($N$82=$AJ$2,COUNTIF($G$4:$G$100,">="&AK82)-COUNTIF($G$4:$G$100,">"&AL82), IF($N$82=$AK$2,COUNTIF($H$4:$H$100,">="&AK82)-COUNTIF($H$4:$H$100,">"&AL82), IF($N$82="Sem Uso","")))))))) ->  | AJ84: =IF($N$82=$AE$2,COUNTIF($B$4:$B$100,">="&AM82)-COUNTIF($B$4:$B$100,">"&AN82), IF($N$82=$AF$2,COUNTIF($C$4:$C$100,">="&AM82)-COUNTIF($C$4:$C$100,">"&AN82), IF($N$82=$AG$2,COUNTIF($D$4:$D$100,">="&AM82)-COUNTIF($D$4:$D$100,">"&AN82), IF($N$82=$AH$2,COUNTIF($E$4:$E$100,">="&AM82)-COUNTIF($E$4:$E$100,">"&AN82), IF($N$82=$AI$2,COUNTIF($F$4:$F$100,">="&AM82)-COUNTIF($F$4:$F$100,">"&AN82), IF($N$82=$AJ$2,COUNTIF($G$4:$G$100,">="&AM82)-COUNTIF($G$4:$G$100,">"&AN82), IF($N$82=$AK$2,COUNTIF($H$4:$H$100,">="&AM82)-COUNTIF($H$4:$H$100,">"&AN82), IF($N$82="Sem Uso","")))))))) ->  | AK84: =IF($N$82=$AE$2,COUNTIF($B$4:$B$100,">="&AO82)-COUNTIF($B$4:$B$100,">"&AP82), IF($N$82=$AF$2,COUNTIF($C$4:$C$100,">="&AO82)-COUNTIF($C$4:$C$100,">"&AP82), IF($N$82=$AG$2,COUNTIF($D$4:$D$100,">="&AO82)-COUNTIF($D$4:$D$100,">"&AP82), IF($N$82=$AH$2,COUNTIF($E$4:$E$100,">="&AO82)-COUNTIF($E$4:$E$100,">"&AP82), IF($N$82=$AI$2,COUNTIF($F$4:$F$100,">="&AO82)-COUNTIF($F$4:$F$100,">"&AP82), IF($N$82=$AJ$2,COUNTIF($G$4:$G$100,">="&AO82)-COUNTIF($G$4:$G$100,">"&AP82), IF($N$82=$AK$2,COUNTIF($H$4:$H$100,">="&AO82)-COUNTIF($H$4:$H$100,">"&AP82), IF($N$82="Sem Uso","")))))))) -> 
K85: Valor da Aula | N85: =IF(AF91<>0,AF91,"") ->  | U85: Valor da Aula | W85: =IFERROR(IF(N85<=$S$89,0,N85-$S$89),"") -> 0 | X85: 0 | Y85: 0 | Z85: 0 | AA85: 0 | AB85: 0
K86: Nr. de Aulas | N86: =IF(AF89<>"",AF90,"") ->  | U86: Nr. de Aulas | W86: =N86 ->  | AE86: =IF(N86<>"",N86,"") -> 
K87: Valor | N87: =IFERROR(N85*N86,"") ->  | U87: Valor | W87: =IFERROR(W85*W86,"") ->  | AF87: =IF($N82<>"Sem Uso",VLOOKUP(N82,Configurações!$C$1:$I$8,2,0),"") ->  | AG87: =IF(N82<>"Sem Uso",VLOOKUP(N82,Configurações!$C$1:$I$8,3,0),"") ->  | AH87: =IF(N82<>"Sem Uso",VLOOKUP(N82,Configurações!$C$1:$I$8,4,0),"") ->  | AI87: =IF(N82<>"Sem Uso",VLOOKUP(N82,Configurações!$C$1:$I$8,5,0),"") ->  | AJ87: =IF(N82<>"Sem Uso",VLOOKUP(N82,Configurações!$C$1:$I$8,6,0),"") ->  | AK87: =IF(N82<>"Sem Uso",VLOOKUP(N82,Configurações!$C$1:$I$8,7,0),"") -> 
M88: Total de Alunos | Q88: =_xlfn.IFS(N82=$AE$2,$B$102,N82=$AF$2,$C$102,N82=$AG$2,$D$102,N82=$AH$2,$E$102,N82=$AI$2,$F$102,N82=$AJ$2,$G$102,N82=$AK$2,$H$102,N82="Sem Uso","") ->  | V88: Total de Alunos | Z88: =Q88 ->  | AE88: TABELA DE EQUIVALÊNCIA
M89: Total de Aulas | Q89: =IF(Q88<>"",SUM(AE86:AJ86),"") ->  | R89: Registro | V89: Total de Aulas | Z89: =Q89 ->  | AE89: Nr. Alunos | AF89: =AF87 ->  | AG89: =IF(AG87<>0,AG87,"") ->  | AH89: =IF(AH87<>0,AH87,"") ->  | AI89: =IF(AI87<>0,AI87,"") ->  | AJ89: =IF(AJ87<>0,AJ87,"") ->  | AK89: =IF(AK87<>0,AK87,"") -> 
M90: Total a Receber | Q90: =IF(Q88<>"",SUM(N87:S87),"") ->  | V90: Total a Receber | Z90: =IF(Z88<>"",SUM(W87:AB87),"") ->  | AE90: Aulas | AF90: =IF(AF89<>"",AF84,"") -> 
AF91: =IFERROR(VLOOKUP(N82&R82,Configurações!$C$13:$I$47,2,0),"") ->  | AG91: =IFERROR(IF(AG89<>0,VLOOKUP(N82&R82,Configurações!$C$13:$I$47,3,0),""),"") ->  | AH91: =IFERROR(IF(AH89<>0,VLOOKUP(N82&R82,Configurações!$C$13:$I$47,4,0),""),"") ->  | AI91: =IFERROR(IF(AI89<>0,VLOOKUP(N82&R82,Configurações!$C$13:$I$47,5,0),""),"") ->  | AJ91: =IFERROR(IF(AJ89<>0,VLOOKUP(N82&R82,Configurações!$C$13:$I$47,6,0),""),"") ->  | AK91: =IFERROR(IF(AK89<>0,VLOOKUP(N82&R82,Configurações!$C$13:$I$47,7,0),""),"") -> 
B102: =SUM($B$4:$B$100) -> 58 | C102: =SUM($C$4:$C$100) -> 0 | D102: =SUM($D$4:$D$100) -> 10 | E102: =SUM($E$4:$E$100) -> 19 | F102: =SUM($F$4:$F$100) -> 0 | G102: =SUM($G$4:$G$100) -> 0 | H102: =SUM($H$4:$H$100) -> 30
